Workbook

Sheet Instructions
I2: Validation - Croisement des tables
B3: Instructions:
A4: 1 | B4: Dupliquer votre modèle de détermination avant de passer aux étapes suivantes. | I4: Ovoltotrec | J4: Rapport GTYF | K4: Rapport ECONO
A5: 2 | B5: Coller les OUTPUTs ci-dessous dans votre modèle de détermination. | I5: =VLOOKUP("Ovoltotrec",Output!$C:$AM,8,FALSE) -> 1549700 | J5: =VLOOKUP("OVOLTOTREC",GTYF!$C:$AQ,8,FALSE)=I5 -> TRUE | K5: =VLOOKUP("OVOLTOTREC",Econo!$C:$AQ,8,FALSE)=I5 -> TRUE
B6: Outputs pour Cahier_Détermination_2023
A7: 3 | B7: Ajouter l'agrégat FCIMPROD_SNAT au thème 5 de la section LANSCAPE de votre modèle et les courbes SNAT
B8: *AGGREGATE FCIMPROD_SNAT FCxxxx
A9: 4 | B9: Copier coller la syntaxe TARGET_GTYF_DET, TARGET_ECONO, TARGET AREA, TARGET DETAIL (voir plus bas) dans la section "Reports" du scénario de détermination.
B10: *TARGET GTYF_DET.dbf
B11: *TARGET_ECONO.dbf
B12: *TARGET AREA.dbf et *TARGET DETAIL.dbf
A13: 5 | B13: Insérer la syntaxe économique dans les sections Output, Lanscape, …
A14: 6 | B14: Compiler le scénario (Faire une fleche sur vos scénarios)
A15: 7 | B15: Ouvrir vos rapports Output, GTYF et ECONO directement de WS. Contrôle A --> Contrôle C
A16: 8 | B16: Copier/coller vos rapports Output, GTYF et ECONO dans les onglets appropriés. Attention de respecter le nombres de colonnes. Les onglets Output, GTYF et ECONO sont préformatés et contiennent des formules aux colonnes AM à AP.
A17: 9 | B17: Valider que la cellule I5 indique vrai lorsque vous aurez collé vos données dans les onglets "Output", "GTYF" et ÉCONO" pour s'assurer que les données proviennent de la même optimisation.
A18: 10 | B18: Utiliser le fichier DBF pour copier/coller votre calendrier de COS dans l'onglet Cedule_COS et y ajouter les COS absents (COS fermés ou toujours ouverts) et compléter leur calendrier par des "0" ou des "1".
A19: 11 | B19: Compléter toutes les cellules et onglets de couleur | D19: jaune
A20: 12 | B20: Notez que les tableaux 9, 10, 13, 15 et 17 ont des instructions particulières

Sheet Suivi_modif
B2: Modifications apportées au cahier:
B3: Version originale (v1) | C3: Version de départ
B4: Version modifiée 2 novembre 2021 (v2) | C4: Correction du calcul de % de sapin en P0 (cellule O9)
B5: Version modifiée 4 novembre 2021 (v3) | C5: Correction du % récolte volume sur pied destiné à l'aménagement (Tableau - CelluleV59)
B6: Version modifiée 4 novembre 2021 (v3) | C6: Correction des valideurs Vrai/Faux (Tableau - Cellule W101, W102, W103)
B7: Version modifiée 8 novembre 2021 (v4) | C7: Onglet "UTA" - Amélioration de la syntaxe des rechercheV
B8: Version modifiée 8 novembre 2021 (v4) | C8: Tableau 3 - ligne 50: changé la police de caractère pour du Arial
B9: Version modifiée 9 novembre 2021 (v5) | C9: Onglet "Target_ECONO": La syntaxe du rapport a été corrigée.

Sheet Tableaux
T1: Instructions : Compléter les cellules oranges | AB1: Avec l'utilisation de l'outil à Éric | AD1: U03153 | AE1: U03351 | AG1: Écart
B2: PROER1 : vous pouvez utiliser l'outil FoxPro pour compléter les cellules oranges : | T2: 1) Cellule V11 : Inscrire la superficie totale brute de la carte WS | AB2: 692871.9 | AD2: 216013.1 | AE2: 521084.3 | AF2: =AD2+AE2 -> 737097.4 | AG2: =AB2-AF2 -> -44225.5
B3: l'outil intérroge la carte Woodstock et met les valeurs dans un fichier Excel | T3: 2) Cellule V15 : Inscrire la superficie WS des GS RP1 et RP2 (ça ne devrait être que du EXEX et EXTI) | AB3: 0
B4: interroge_carte_WS_pour cahier_analyse.FXP | T4: 3) Cellule V24 : Inscrire la superficie WS des GS RP3 à RP9 sur INC | AB4: 0
B5: T:\Donnees\Courant\CPF_2023-2028\Comite_Vague_2\30_Phase1\32_Sce1\Outils | T5: 4) Cellule V25 : Inscrire la superficie WS des GS SNAT sur INC (qui ne sont pas des RP) | AB5: 6141.4
T6: 5) Cellules L20 à S21 : Inscrire la superficie de la carte WS pour chacune des cases oranges
B7: Catégories | I7: Superficie | Z7: Total | AA7: Sup_aff | AB7: 4742.1
I8: ha | J8: % | L8: 2013 | M8: Écart | V8: Période | Z8: Total | AA8: Sup_empche | AB8: 11046.7 | AD8: 3124.1 | AE8: 7078.6 | AF8: =AD8+AE8 -> 10202.7 | AG8: =AB8-AF8 -> 844
B9: Superficie totale du territoire d'analyse (EXHU exclu) | I9: =V11-V16 -> 651519.8 | J9: =IFERROR(I9/I9,"-") -> 1 | L9: =AF15-AF20 -> 652493.2 | M9: =I9-L9 -> -973.4 | S9: =LEFT(B$25,10) -> Tableau 1. | T9: Output | U9: Superficie | V9: 0 | Z9: Total | AA9: Sup_ecot | AB9: 4524.3 | AD9: 828.1 | AE9: 2123.8 | AF9: =AD9+AE9 -> 2951.9 | AG9: =AB9-AF9 -> 1572.4
B10: Pertes (emprise chemin, écotone, improductif) | I10: =U20+V20+Y20 -> 15756.6 | J10: =I10/I9 -> 0.02418437628 | L10: =AF16 -> 13327.1 | M10: =I10-L10 -> 2429.5 | S10: =LEFT(B$25,10) -> Tableau 1. | T10: OSUPTOT | U10: WS | V10: =VLOOKUP(T10,Output!$C:$H,6,FALSE) -> 677115.3 | Z10: INC | AA10: Sup_brivAB | AB10: 13546.6 | AD10: 1221.2 | AE10: 6654.5 | AF10: =AD10+AE10 -> 7875.7 | AG10: =AB10-AF10 -> 5670.9
B11: Territoire improductif (EXEX + EXTI) | I11: =SUM(V13:V14) -> 57632 | J11: =I11/I9 -> 0.08845778747 | L11: =AF17+AF18 -> 67531.3 | M11: =I11-L11 -> -9899.3 | S11: Tableau 1. | U11: Brute | V11: =AB2 -> 692871.9 | X11: Sup_soustraite : | Y11: =T20+U20+V20+Y20+AA20 -> 133067.6 | Z11: INC | AA11: Sup_brivCD | AB11: 4782.5 | AD11: 2882 | AE11: 6570.5 | AF11: =AD11+AE11 -> 9452.5 | AG11: =AB11-AF11 -> -4670
B12: sans possibilité de remise en production | I12: =I11-I13 -> 57632 | J12: - | S12: Tableau 1. | U12: pertes | V12: =U20+V20+Y20 -> 15756.6 | X12: Sup nette : | Y12: =V11-Y11 -> 559804.3 | Z12: Total | AA12: Sup_impro | AB12: 185.6 | AD12: 132 | AE12: 40.5 | AF12: =AD12+AE12 -> 172.5 | AG12: =AB12-AF12 -> 13.1
B13: avec possibilité de remise en production (RP1 et RP2) | I13: =V15 -> 0 | J13: - | S13: Tableau 1. | T13: OSUPEXEX | U13: EXEX | V13: =VLOOKUP(T13,Output!$C:$H,6,FALSE) -> 36220.9 | Z13: Total | AA13: Sup_pentf | AB13: 112568.9
S14: Tableau 1. | T14: OSUPEXTI | U14: EXTI | V14: =VLOOKUP(T14,Output!$C:$H,6,FALSE) -> 21411.1 | Z14: INC | AA14: Sup_pentf | AB14: 64066.3 | AC14: WS | AD14: =AD17+AD18+AD20+AD21+AD22 -> 211769.7 | AE14: =AE17+AE18+AE20+AE21+AE22 -> 511841.4 | AF14: =AF17+AF18+AF20+AF21+AF22 -> 723611.1 | AG14: =V10-AF14 -> -46495.8
B15: Territoire inclus dans l’UA mais exclu des activités d'aménagement (EXIN) | I15: =V17 -> 239965 | J15: =I15/I9 -> 0.3683157442 | L15: =AF21 -> 222630.1 | M15: =I15-L15 -> 17334.9 | S15: Tableau 1. | U15: RP1/RP2 | V15: =AB3 -> 0 | AC15: Brute | AD15: =AD2 -> 216013.1 | AE15: =AE2 -> 521084.3 | AF15: =AF2 -> 737097.4 | AG15: -44225.5
B16: pentes abruptes et sommets (codes F et S) --> potentiellement récoltables | I16: =AA21 -> 64066.3 | J16: - | S16: Tableau 1. | T16: OSUPEXHU | U16: EXHU | V16: =VLOOKUP(T16,Output!$C:$H,6,FALSE) -> 41352.1 | AC16: pertes | AD16: 4245 | AE16: =AE8+AE9+AE12 -> 9242.9 | AF16: =AF8+AF9+AF12 -> 13327.1 | AG16: 2429.5
B17: bandes riveraines (densité AB) --> potentiellement récoltables | I17: =W21 -> 13546.6 | J17: - | L17: =AF10 -> 7875.7 | M17: 5670.9 | S17: Tableau 1. | T17: OSUPEXIN | U17: EXIN | V17: =VLOOKUP(T17,Output!$C:$H,6,FALSE) -> 239965 | AC17: EXEX | AD17: 10256.4 | AE17: 24816.3 | AF17: =AD17+AE17 -> 35072.7 | AG17: 1148.2
B18: bandes riveraines (densité CD) --> potentiellement récoltables | I18: =X21 -> 4782.5 | J18: - | L18: =AF11 -> 9452.5 | M18: -4670 | S18: Tableau 1. | T18: ↓ | U18: ↓ | V18: ↓ | Y18: ↓ | AA18: ↓ | AC18: EXTI | AD18: 4436.5 | AE18: 28022.1 | AF18: =AD18+AE18 -> 32458.6 | AG18: -11047.5
B19: autres | I19: =I15-I16-I17-I18 -> 157569.6 | L19: =(L15-L17-L18) -> 205301.9 | M19: =(I16+I19)-L19 -> 16334 | S19: Tableau 1. | T19: Sup_aff | U19: Sup_empche | V19: Sup_ecot | W19: Sup_brivAB | X19: Sup_brivCD | Y19: Sup_impro | Z19: Sup_aut | AA19: Sup_pentf | AC19: Improductif | AD19: =AD16+AD17+AD18 -> 18937.9 | AE19: =AE16+AE17+AE18 -> 62081.3 | AF19: 80858.4 | AG19: -80858.4
B20: Territoire destiné à l'aménagement forestier (INC) | I20: =V22 -> 338166.2 | J20: =I20/I9 -> 0.519042092 | L20: =AF22 -> 348845.5 | M20: -10679.3 | N20: =M20/L20 -> -0.03061326576 | S20: Tableau 1. | T20: =AB7 -> 4742.1 | U20: =AB8 -> 11046.7 | V20: =AB9 -> 4524.3 | Y20: =AB12 -> 185.6 | AA20: =AB13 -> 112568.9 | AB20: Total | AC20: EXHU | AD20: 38044.1 | AE20: 46560.1 | AF20: =AD20+AE20 -> 84604.2 | AG20: -43252.1
B21: forestier exploitable | I21: =V22-I22-I23 -> 332024.8 | J21: - | L21: =Y22-L22-L23 -> 0 | M21: 332024.8 | S21: Tableau 1. | W21: =AB10 -> 13546.6 | X21: =AB11 -> 4782.5 | AA21: =AB14 -> 64066.3 | AB21: INC | AC21: EXIN | AD21: 74629.6 | AE21: 148000.5 | AF21: =AD21+AE21 -> 222630.1 | AG21: 17334.9
B22: forestier inexploitable avec possibilité de remise en production (RP3 à RP15) | I22: =V24 -> 0 | J22: - | L22: 0 | M22: 0 | S22: Tableau 1. | T22: OSUPINC | U22: INC | V22: =VLOOKUP(T22,Output!$C:$H,6,FALSE) -> 338166.2 | AC22: INC | AD22: 84403.1 | AE22: 264442.4 | AF22: =AD22+AE22 -> 348845.5 | AG22: =V22-AF22 -> -10679.3
B23: forestier inexploitable sans possibilité de remise en production (SNAT) | I23: =V25 -> 6141.4 | J23: - | L23: 0 | M23: 6141.4 | S23: Tableau 1. | AC23: SUP_BRU-EXHU | AF23: =AF2-AF20 -> 652493.2
S24: Tableau 1. | U24: RP3 à RP9 | V24: =AB4 -> 0 | AF24: =AF17+AF18+AF12+AF8+AF9 -> 80858.4
B25: Tableau 1. Répartition de la superficie de l'unité d'aménagement pas catégorie de territoire | S25: Tableau 1. | U25: SNAT | V25: =AB5 -> 6141.4
B26: Catégories | F26: Superficies
F27: Hectares | G27: %
B28: Superficie totale de l’unité d’aménagement | F28: =ROUND(I9,-1) -> 651520 | G28: =F28/F28 -> 1
B29: Retraits de superficie
B30: Territoire non forestier | F30: =ROUND(I10+I11,-1) -> 73390 | G30: =F30/F28 -> 0.112644278
B31: Territoire forestier peu productif (30 à 50 m³/ha) | F31: =ROUND(I22+I23,-1) -> 6140 | G31: =F31/F28 -> 0.009424115914
B32: Territoire forestier exclu de l’aménagement | F32: =ROUND(F28-F30-F31-F33,-1) -> 239970 | G32: =F32/F28 -> 0.3683233055 | N32: À compléter UA : | O32: UA:
B33: Superficie destinée à l’aménagement forestier | F33: =ROUND(I21,-1) -> 332020 | G33: =F33/F28 -> 0.5096083006 | O33: 03772 | T33: Légende | U33: Output | V33: P2@P6
S34: =LEFT(B$46,10) -> Tableau 3. | T34: Sepm | U34: OVOLGSEPMREC | V34: =IFERROR(VLOOKUP($U34,Output!$C:$AM,37,FALSE)/5,0) -> 191638.082
S35: Tableau 3.
S36: Tableau 3. | T36: Tho | U36: OVOLTHOREC | V36: =IFERROR(VLOOKUP($U36,Output!$C:$AM,37,FALSE)/5,0) -> 572.754
S37: Tableau 3. | T37: Pru | U37: OVOLPRUREC | V37: =IFERROR(VLOOKUP($U37,Output!$C:$AM,37,FALSE)/5,0) -> 0.2104
S38: Tableau 3. | T38: Pins | U38: OVOLGPINSREC | V38: =IFERROR(VLOOKUP($U38,Output!$C:$AM,37,FALSE)/5,0) -> 1058.4316
S39: Tableau 3. | T39: Peu | U39: OVOLGPEUREC | V39: =IFERROR(VLOOKUP($U39,Output!$C:$AM,37,FALSE)/5,0) -> 56255.5628
S40: Tableau 3. | T40: Bop | U40: OVOLGBPREC | V40: =IFERROR(VLOOKUP($U40,Output!$C:$AM,37,FALSE)/5,0) -> 48466.846
S41: Tableau 3. | T41: Boj | U41: OVOLBOJREC | V41: =IFERROR(VLOOKUP($U41,Output!$C:$AM,37,FALSE)/5,0) -> 6257.8812
S42: Tableau 3. | T42: Ers | U42: OVOLERSREC | V42: =IFERROR(VLOOKUP($U42,Output!$C:$AM,37,FALSE)/5,0) -> 535.8732
S43: Tableau 3. | T43: Err | U43: OVOLGEROREC | V43: =IFERROR(VLOOKUP($U43,Output!$C:$AM,37,FALSE)/5,0) -> 4934.7968
S44: Tableau 3. | T44: Autre .F. (Auf) | V44: =V47-V42-V41 -> 219.4536
S45: Tableau 3. | T45: résineux | U45: OVOLGRREC | V45: =IFERROR(VLOOKUP($U45,Output!$C:$AM,37,FALSE)/5,0) -> 193269.55
B46: Tableau 3. Possibilités forestières par essence ou par groupe d’essences et écart avec la période 2018-2023 | S46: Tableau 3. | T46: intolérant | U46: OVOLGFIREC | V46: =IFERROR(VLOOKUP($U46,Output!$C:$AM,37,FALSE)/5,0) -> 109657.418
B47: Périodes | C47: ="Possibilités forestières (m"&CHAR(179)&" bruts/an)" -> Possibilités forestières (m³ bruts/an) | S47: Tableau 3. | T47: Tolérant | U47: OVOLGFTREC | V47: =IFERROR(VLOOKUP($U47,Output!$C:$AM,37,FALSE)/5,0) -> 7013.208
C48: SEPM | D48: Thuya | E48: Pruche | F48: Pins blanc et rouge | G48: Peupliers | H48: Bouleau à papier | I48: Bouleau jaune | J48: Érables à sucre et rouge | K48: Autres feuillus durs | L48: Total | N48: Possibilité forestière unitaire (PAC / Sup destinée à l'aménagement) | S48: Tableau 3. | T48: Total récoltés | U48: OVOLTOTREC | V48: =IFERROR(VLOOKUP($U48,Output!$C:$AM,37,FALSE)/5,0) -> 309940
B49: 2023-2028 | C49: =ROUND(V$34,-2) -> 191600 | D49: =ROUND(V$36,-2) -> 600 | E49: =ROUND(V$37,-2) -> 0 | F49: =ROUND(V$38,-2) -> 1100 | G49: =ROUND(V$39,-2) -> 56300 | H49: =ROUND(V$40,-2) -> 48500 | I49: =ROUND(V$41,-2) -> 6300 | J49: =ROUND(V$50,-2) -> 5500 | K49: =ROUND(V$44,-2) -> 200 | L49: =SUM(C49:K49) -> 310100 | N49: =V57 -> 0.933497982 | S49: Tableau 3. | T49: FN sur pied | U49: OVOLGFNREC | V49: =IFERROR(VLOOKUP($U49,Output!$C:$AM,37,FALSE)/5,0) -> 185.9368
C50: =C49/$L$49 -> 0.6178652048 | D50: 0.001934859723 | E50: 0 | F50: 0.003547242825 | G50: 0.1815543373 | H50: 0.1564011609 | I50: 0.02031602709 | J50: 0.01773621412 | K50: 0.0006449532409 | L50: =SUM(C50:K50) -> 1 | S50: Tableau 3. | T50: ER | V50: =V42+V43 -> 5470.67
B51: 2018-2023 | C51: =VLOOKUP($O$33,DataLocal!$A$6:$W$35,13,FALSE) -> 179800 | D51: =VLOOKUP($O$33,DataLocal!$A$6:$W$35,14,FALSE) -> 1400 | E51: =VLOOKUP($O$33,DataLocal!$A$6:$W$35,15,FALSE) -> 0 | F51: =VLOOKUP($O$33,DataLocal!$A$6:$W$35,16,FALSE) -> 1600 | G51: =VLOOKUP($O$33,DataLocal!$A$6:$W$35,17,FALSE) -> 35500 | H51: =VLOOKUP($O$33,DataLocal!$A$6:$W$35,18,FALSE) -> 53600 | I51: =VLOOKUP($O$33,DataLocal!$A$6:$W$35,19,FALSE) -> 7200 | J51: =VLOOKUP($O$33,DataLocal!$A$6:$W$35,20,FALSE) -> 8800 | K51: =VLOOKUP($O$33,DataLocal!$A$6:$W$35,21,FALSE) -> 300 | L51: =VLOOKUP($O$33,DataLocal!$A$6:$W$35,23,FALSE) -> 288200 | N51: % du volume sur pied initial | S51: Tableau 3. | U51: OVOLSABREC | V51: =IFERROR(VLOOKUP($U51,Output!$C:$AM,37,FALSE)/5,0) -> 79761.574
B52: Écart | C52: =IFERROR((C49/C$51)-1,0) -> 0.06562847608 | D52: -0.5714285714 | E52: 0 | F52: -0.3125 | G52: 0.585915493 | H52: -0.09514925373 | I52: -0.125 | J52: -0.375 | K52: -0.3333333333 | L52: 0.0759888966 | N52: =V59 -> 0.01408216489 | S52: Tableau 3. | U52: OVOLGEPXREC | V52: =IFERROR(VLOOKUP($U52,Output!$C:$AM,37,FALSE)/5,0) -> 98752.6344
B53: ="Répartition de la composante SEPM des possibilités forestières 2023-2028 : sapin ("&IFERROR(ROUND(V51/V34*100,0),0)&"%), épinettes ("&IFERROR(ROUND(V52/V34*100,0),0)&"%), pin gris ("&IFERROR(ROUND(V53/V34*100,0),0)&"%) et mélèzes ("&IFERROR(ROUND(V54/V34*100,0),0)&"%)." -> Répartition de la composante SEPM des possibilités forestières 2023-2028 : sapin (42%), épinettes (52%), pin gris (6%) et mélèzes (0%). | S53: Tableau 3. | U53: OVOLGPGREC | V53: =IFERROR(VLOOKUP($U53,Output!$C:$AM,37,FALSE)/5,0) -> 12444.1632
B54: ="Répartition de la composante Érables à sucre et rouge des possibilités forestières 2023-2028 : érable à sucre("&IFERROR(ROUND(V42/(V42+V43)*100,0),0)&"%) et érable rouge ("&IFERROR(ROUND(V43/(V42+V43)*100,0),0)&"%)." -> Répartition de la composante Érables à sucre et rouge des possibilités forestières 2023-2028 : érable à sucre(10%) et érable rouge (90%). | S54: Tableau 3. | U54: OVOLGMLREC | V54: =IFERROR(VLOOKUP($U54,Output!$C:$AM,37,FALSE)/5,0) -> 679.306
B55: Copier/Coller le tableau ci-dessus avec les lignes 53 et 54 | S55: Tableau 3. | U55: OSUPINC | V55: =IFERROR(VLOOKUP($U55,Output!$C:$AM,6,FALSE),0) -> 338166.2
S56: Tableau 3. | U56: OVOLTOTPIEDINC | V56: =IFERROR(VLOOKUP($U56,Output!$C:$AM,7,FALSE),0) -> 24175881.63
S57: Tableau 3. | U57: Possibilité forestière unitaire | V57: =IFERROR(V48/F33,0) -> 0.933497982
S58: Tableau 3. | U58: % récolte volume sur pied
U59: % récolte volume sur pied destiné à l'aménagement | V59: =V48/Figures!V19 -> 0.01408216489
B61: Tableau 4. Répartition des superficies récoltées et des possibilités forestières par grand type de forêt
B62: Grands types de forêt | D62: Superficie récoltée* | H62: Possibilités forestières* | S62: =LEFT(B$61,10) -> Tableau 4. | V62: Output total non arrondi | W62: Écart entre la somme du tableau et le output total
D63: Coupes totales | F63: Coupes partielles | H63: Résineux | J63: Feuillus tolérants | L63: Feuillus intolérants | N63: Total | S63: Tableau 4. | T63: Total | Z63: P2 à P6
D64: ha/an | E64: % | F64: ha/an | G64: % | H64: m³ bruts/an | I64: % | J64: ="m"&CHAR(179)&" bruts/an" -> m³ bruts/an | K64: % | L64: ="m"&CHAR(179)&" bruts/an" -> m³ bruts/an | M64: % | N64: ="m"&CHAR(179)&" bruts/an" -> m³ bruts/an | O64: % | S64: Tableau 4. | T64: ha/an | U64: % | Y64: Famille de courbe | Z64: OSUPINC | AA64: OSUPREALREGAFIN | AB64: OSUPREALREGAPAR | AC64: OSUPREALREGAPRE | AD64: OVOLGRREC | AE64: OVOLGAURREC | AF64: OVOLGFIREC | AG64: OVOLGFTREC | AH64: OVOLTOTREC
B65: Bétulaies blanches | D65: =ROUND(AA65/5,-1) -> 110 | E65: =IFERROR(D65/D$79,0) -> 0.05583756345 | F65: =ROUND(AB65/5,-1) -> 0 | G65: =IFERROR(F65/F$79,0) -> 0 | H65: =ROUND(AD65/5,-2) -> 4200 | I65: =IFERROR(H65/H$79,0) -> 0.02172788412 | J65: =ROUND(AG65/5,-2) -> 500 | K65: =IFERROR(J65/J$79,0) -> 0.07142857143 | L65: =ROUND(AF65/5,-2) -> 11400 | M65: =L65/L$79 -> 0.1039197812 | N65: =H65+J65+L65 -> 16100 | O65: =N65/$N$79 -> 0.05193548387 | S65: Tableau 4. | T65: =D65+F65 -> 110 | U65: =IFERROR(T65/T$79,0) -> 0.04888888889 | V65: =(AA65+AB65)/5 -> 114.828 | W65: =T65-V65 -> -4.828 | Y65: (FCTYF_BOP) | Z65: =VLOOKUP(Z$64&$Y65,GTYF!$C:$AP,6,FALSE) -> 10610.9 | AA65: =VLOOKUP(AA$64&$Y65,GTYF!$C:$AP,37,FALSE) -> 574.14 | AB65: =VLOOKUP(AB$64&$Y65,GTYF!$C:$AP,37,FALSE) -> 0 | AC65: =VLOOKUP(AC$64&$Y65,GTYF!$C:$AP,37,FALSE) -> 574.14 | AD65: =VLOOKUP(AD$64&$Y65,GTYF!$C:$AP,37,FALSE) -> 20899.836 | AE65: =VLOOKUP(AE$64&$Y65,GTYF!$C:$AP,37,FALSE) -> 146.112 | AF65: =VLOOKUP(AF$64&$Y65,GTYF!$C:$AP,37,FALSE) -> 56825.948 | AG65: =VLOOKUP(AG$64&$Y65,GTYF!$C:$AP,37,FALSE) -> 2622.336 | AH65: =VLOOKUP(AH$64&$Y65,GTYF!$C:$AP,37,FALSE) -> 80348.118
B66: Bétulaies blanches à résineux | D66: 260 | E66: =IFERROR(D66/D$79,0) -> 0.1319796954 | F66: 0 | G66: =IFERROR(F66/F$79,0) -> 0 | H66: =ROUND(AD66/5,-2) -> 17000 | I66: =IFERROR(H66/H$79,0) -> 0.08794619762 | J66: =ROUND(AG66/5,-2) -> 1300 | K66: 0.1857142857 | L66: =ROUND(AF66/5,-2) -> 19300 | M66: =L66/L$79 -> 0.1759343665 | N66: =H66+J66+L66 -> 37600 | O66: 0.1212903226 | S66: Tableau 4. | T66: 260 | U66: =IFERROR(T66/T$79,0) -> 0.1155555556 | V66: =(AA66+AB66)/5 -> 258.6456 | W66: 1.3544 | Y66: (FCTYF_BOPR) | Z66: =VLOOKUP(Z$64&$Y66,GTYF!$C:$AP,6,FALSE) -> 19872.3 | AA66: =VLOOKUP(AA$64&$Y66,GTYF!$C:$AP,37,FALSE) -> 1293.228 | AB66: =VLOOKUP(AB$64&$Y66,GTYF!$C:$AP,37,FALSE) -> 0 | AC66: =VLOOKUP(AC$64&$Y66,GTYF!$C:$AP,37,FALSE) -> 1293.228 | AD66: =VLOOKUP(AD$64&$Y66,GTYF!$C:$AP,37,FALSE) -> 84975.36 | AE66: =VLOOKUP(AE$64&$Y66,GTYF!$C:$AP,37,FALSE) -> 533.48 | AF66: =VLOOKUP(AF$64&$Y66,GTYF!$C:$AP,37,FALSE) -> 96602.792 | AG66: =VLOOKUP(AG$64&$Y66,GTYF!$C:$AP,37,FALSE) -> 6556.376 | AH66: =VLOOKUP(AH$64&$Y66,GTYF!$C:$AP,37,FALSE) -> 188134.53
B67: Cédrières | D67: 0 | E67: 0 | F67: 0 | G67: 0 | H67: =ROUND(AD67/5,-2) -> 0 | I67: 0 | J67: 0 | K67: 0 | L67: 0 | M67: 0 | N67: 0 | O67: 0 | S67: Tableau 4. | T67: 0 | U67: 0 | V67: =(AA67+AB67)/5 -> 0 | W67: 0 | Y67: (FCTYF_THO) | Z67: =VLOOKUP(Z$64&$Y67,GTYF!$C:$AP,6,FALSE) -> 0 | AA67: =VLOOKUP(AA$64&$Y67,GTYF!$C:$AP,37,FALSE) -> 0 | AB67: =VLOOKUP(AB$64&$Y67,GTYF!$C:$AP,37,FALSE) -> 0 | AC67: =VLOOKUP(AC$64&$Y67,GTYF!$C:$AP,37,FALSE) -> 0 | AD67: =VLOOKUP(AD$64&$Y67,GTYF!$C:$AP,37,FALSE) -> 0 | AE67: =VLOOKUP(AE$64&$Y67,GTYF!$C:$AP,37,FALSE) -> 0 | AF67: =VLOOKUP(AF$64&$Y67,GTYF!$C:$AP,37,FALSE) -> 0 | AG67: =VLOOKUP(AG$64&$Y67,GTYF!$C:$AP,37,FALSE) -> 0 | AH67: =VLOOKUP(AH$64&$Y67,GTYF!$C:$AP,37,FALSE) -> 0
B68: Érablières rouges | D68: 0 | E68: 0 | F68: 0 | G68: 0 | H68: 0 | I68: 0 | J68: 0 | K68: 0 | L68: 100 | M68: 0.0009115770283 | N68: 100 | O68: 0.0003225806452 | S68: Tableau 4. | T68: 0 | U68: 0 | V68: =(AA68+AB68)/5 -> 0.9192 | W68: -0.9192 | Y68: (FCTYF_ERO) | Z68: =VLOOKUP(Z$64&$Y68,GTYF!$C:$AP,6,FALSE) -> 1144.6 | AA68: =VLOOKUP(AA$64&$Y68,GTYF!$C:$AP,37,FALSE) -> 4.596 | AB68: =VLOOKUP(AB$64&$Y68,GTYF!$C:$AP,37,FALSE) -> 0 | AC68: =VLOOKUP(AC$64&$Y68,GTYF!$C:$AP,37,FALSE) -> 4.596 | AD68: =VLOOKUP(AD$64&$Y68,GTYF!$C:$AP,37,FALSE) -> 151.308 | AE68: =VLOOKUP(AE$64&$Y68,GTYF!$C:$AP,37,FALSE) -> 12.742 | AF68: =VLOOKUP(AF$64&$Y68,GTYF!$C:$AP,37,FALSE) -> 387.396 | AG68: =VLOOKUP(AG$64&$Y68,GTYF!$C:$AP,37,FALSE) -> 107.714 | AH68: =VLOOKUP(AH$64&$Y68,GTYF!$C:$AP,37,FALSE) -> 646.418
B69: Feuillus tolérants | D69: 0 | E69: 0 | F69: 10 | G69: 0.03571428571 | H69: 0 | I69: 0 | J69: 500 | K69: 0.07142857143 | L69: 100 | M69: 0.0009115770283 | N69: 600 | O69: 0.001935483871 | S69: Tableau 4. | T69: 10 | U69: 0.004444444444 | V69: 7.088 | W69: 2.912 | Y69: (FCTYF_FT) | Z69: =VLOOKUP(Z$64&$Y69,GTYF!$C:$AP,6,FALSE) -> 3763.1 | AA69: =VLOOKUP(AA$64&$Y69,GTYF!$C:$AP,37,FALSE) -> 0 | AB69: =VLOOKUP(AB$64&$Y69,GTYF!$C:$AP,37,FALSE) -> 35.44 | AC69: =VLOOKUP(AC$64&$Y69,GTYF!$C:$AP,37,FALSE) -> 35.44 | AD69: =VLOOKUP(AD$64&$Y69,GTYF!$C:$AP,37,FALSE) -> 148.184 | AE69: =VLOOKUP(AE$64&$Y69,GTYF!$C:$AP,37,FALSE) -> 6.288 | AF69: =VLOOKUP(AF$64&$Y69,GTYF!$C:$AP,37,FALSE) -> 338.74 | AG69: =VLOOKUP(AG$64&$Y69,GTYF!$C:$AP,37,FALSE) -> 2368.714 | AH69: =VLOOKUP(AH$64&$Y69,GTYF!$C:$AP,37,FALSE) -> 2855.546
B70: Feuillus tolérants à résineux | D70: 0 | E70: 0 | F70: 10 | G70: 0.03571428571 | H70: 200 | I70: 0.001034661148 | J70: 200 | K70: 0.02857142857 | L70: 100 | M70: 0.0009115770283 | N70: 500 | O70: 0.001612903226 | S70: Tableau 4. | T70: 10 | U70: 0.004444444444 | V70: 6.1156 | W70: 3.8844 | Y70: (FCTYF_FTR) | Z70: =VLOOKUP(Z$64&$Y70,GTYF!$C:$AP,6,FALSE) -> 5691.6 | AA70: =VLOOKUP(AA$64&$Y70,GTYF!$C:$AP,37,FALSE) -> 0 | AB70: =VLOOKUP(AB$64&$Y70,GTYF!$C:$AP,37,FALSE) -> 30.578 | AC70: =VLOOKUP(AC$64&$Y70,GTYF!$C:$AP,37,FALSE) -> 30.578 | AD70: =VLOOKUP(AD$64&$Y70,GTYF!$C:$AP,37,FALSE) -> 799.74 | AE70: =VLOOKUP(AE$64&$Y70,GTYF!$C:$AP,37,FALSE) -> 66.602 | AF70: =VLOOKUP(AF$64&$Y70,GTYF!$C:$AP,37,FALSE) -> 348.072 | AG70: =VLOOKUP(AG$64&$Y70,GTYF!$C:$AP,37,FALSE) -> 926.748 | AH70: =VLOOKUP(AH$64&$Y70,GTYF!$C:$AP,37,FALSE) -> 2074.56
B71: Pessières | D71: =ROUND(AA71/5,-1) -> 420 | E71: 0.2131979695 | F71: 230 | G71: 0.8214285714 | H71: 70200 | I71: 0.3631660631 | J71: 0 | K71: 0 | L71: 4000 | M71: 0.03646308113 | N71: 74200 | O71: 0.2393548387 | S71: Tableau 4. | T71: 650 | U71: 0.2888888889 | V71: 647.06 | W71: =T71-V71 -> 2.94 | Y71: (FCTYF_EPX) | Z71: =VLOOKUP(Z$64&$Y71,GTYF!$C:$AP,6,FALSE) -> 114218.1 | AA71: =VLOOKUP(AA$64&$Y71,GTYF!$C:$AP,37,FALSE) -> 2087.26 | AB71: =VLOOKUP(AB$64&$Y71,GTYF!$C:$AP,37,FALSE) -> 1148.04 | AC71: =VLOOKUP(AC$64&$Y71,GTYF!$C:$AP,37,FALSE) -> 3235.304 | AD71: =VLOOKUP(AD$64&$Y71,GTYF!$C:$AP,37,FALSE) -> 350892.754 | AE71: =VLOOKUP(AE$64&$Y71,GTYF!$C:$AP,37,FALSE) -> 2364.78 | AF71: =VLOOKUP(AF$64&$Y71,GTYF!$C:$AP,37,FALSE) -> 20084.3 | AG71: =VLOOKUP(AG$64&$Y71,GTYF!$C:$AP,37,FALSE) -> 190.556 | AH71: =VLOOKUP(AH$64&$Y71,GTYF!$C:$AP,37,FALSE) -> 371167.434
B72: Peupleraies | D72: 310 | E72: 0.1573604061 | F72: 0 | G72: 0 | H72: 10300 | I72: 0.05328504915 | J72: 600 | K72: 0.08571428571 | L72: 36500 | M72: 0.3327256153 | N72: 47400 | O72: 0.1529032258 | S72: Tableau 4. | T72: 310 | U72: 0.1377777778 | V72: 306.4324 | W72: 3.5676 | Y72: (FCTYF_PEU) | Z72: =VLOOKUP(Z$64&$Y72,GTYF!$C:$AP,6,FALSE) -> 11739.8 | AA72: =VLOOKUP(AA$64&$Y72,GTYF!$C:$AP,37,FALSE) -> 1532.162 | AB72: =VLOOKUP(AB$64&$Y72,GTYF!$C:$AP,37,FALSE) -> 0 | AC72: =VLOOKUP(AC$64&$Y72,GTYF!$C:$AP,37,FALSE) -> 1532.162 | AD72: =VLOOKUP(AD$64&$Y72,GTYF!$C:$AP,37,FALSE) -> 51381.532 | AE72: =VLOOKUP(AE$64&$Y72,GTYF!$C:$AP,37,FALSE) -> 959.048 | AF72: =VLOOKUP(AF$64&$Y72,GTYF!$C:$AP,37,FALSE) -> 182674.482 | AG72: =VLOOKUP(AG$64&$Y72,GTYF!$C:$AP,37,FALSE) -> 2984.276 | AH72: =VLOOKUP(AH$64&$Y72,GTYF!$C:$AP,37,FALSE) -> 237040.292
B73: Peupleraies à résineux | D73: 130 | E73: 0.06598984772 | F73: 0 | G73: 0 | H73: 8100 | I73: 0.04190377651 | J73: 100 | K73: 0.01428571429 | L73: 14000 | M73: 0.127620784 | N73: 22200 | O73: 0.07161290323 | S73: Tableau 4. | T73: 130 | U73: 0.05777777778 | V73: 134.6816 | W73: -4.6816 | Y73: (FCTYF_PEUR) | Z73: =VLOOKUP(Z$64&$Y73,GTYF!$C:$AP,6,FALSE) -> 6488.4 | AA73: =VLOOKUP(AA$64&$Y73,GTYF!$C:$AP,37,FALSE) -> 673.408 | AB73: =VLOOKUP(AB$64&$Y73,GTYF!$C:$AP,37,FALSE) -> 0 | AC73: =VLOOKUP(AC$64&$Y73,GTYF!$C:$AP,37,FALSE) -> 673.408 | AD73: =VLOOKUP(AD$64&$Y73,GTYF!$C:$AP,37,FALSE) -> 40486.64 | AE73: =VLOOKUP(AE$64&$Y73,GTYF!$C:$AP,37,FALSE) -> 2283.122 | AF73: =VLOOKUP(AF$64&$Y73,GTYF!$C:$AP,37,FALSE) -> 69934.142 | AG73: =VLOOKUP(AG$64&$Y73,GTYF!$C:$AP,37,FALSE) -> 487.916 | AH73: =VLOOKUP(AH$64&$Y73,GTYF!$C:$AP,37,FALSE) -> 110908.7
B74: Pinèdes blanches | D74: 0 | E74: 0 | F74: 0 | G74: 0 | H74: 0 | I74: 0 | J74: 0 | K74: 0 | L74: 0 | M74: 0 | N74: 0 | O74: 0 | S74: Tableau 4. | T74: 0 | U74: 0 | V74: 0 | W74: 0 | Y74: (FCTYF_PIN) | Z74: =VLOOKUP(Z$64&$Y74,GTYF!$C:$AP,6,FALSE) -> 0 | AA74: =VLOOKUP(AA$64&$Y74,GTYF!$C:$AP,37,FALSE) -> 0 | AB74: =VLOOKUP(AB$64&$Y74,GTYF!$C:$AP,37,FALSE) -> 0 | AC74: =VLOOKUP(AC$64&$Y74,GTYF!$C:$AP,37,FALSE) -> 0 | AD74: =VLOOKUP(AD$64&$Y74,GTYF!$C:$AP,37,FALSE) -> 0 | AE74: =VLOOKUP(AE$64&$Y74,GTYF!$C:$AP,37,FALSE) -> 0 | AF74: =VLOOKUP(AF$64&$Y74,GTYF!$C:$AP,37,FALSE) -> 0 | AG74: =VLOOKUP(AG$64&$Y74,GTYF!$C:$AP,37,FALSE) -> 0 | AH74: =VLOOKUP(AH$64&$Y74,GTYF!$C:$AP,37,FALSE) -> 0
B75: Pinèdes grises | D75: 10 | E75: 0.005076142132 | F75: 0 | G75: 0 | H75: 3400 | I75: 0.01758923952 | J75: 0 | K75: 0 | L75: 200 | M75: 0.001823154057 | N75: 3600 | O75: 0.01161290323 | S75: Tableau 4. | T75: 10 | U75: 0.004444444444 | V75: 11.2292 | W75: -1.2292 | Y75: (FCTYF_PIG) | Z75: =VLOOKUP(Z$64&$Y75,GTYF!$C:$AP,6,FALSE) -> 1327.1 | AA75: =VLOOKUP(AA$64&$Y75,GTYF!$C:$AP,37,FALSE) -> 56.146 | AB75: =VLOOKUP(AB$64&$Y75,GTYF!$C:$AP,37,FALSE) -> 0 | AC75: =VLOOKUP(AC$64&$Y75,GTYF!$C:$AP,37,FALSE) -> 56.146 | AD75: =VLOOKUP(AD$64&$Y75,GTYF!$C:$AP,37,FALSE) -> 16985.612 | AE75: =VLOOKUP(AE$64&$Y75,GTYF!$C:$AP,37,FALSE) -> 19.662 | AF75: =VLOOKUP(AF$64&$Y75,GTYF!$C:$AP,37,FALSE) -> 1086.472 | AG75: =VLOOKUP(AG$64&$Y75,GTYF!$C:$AP,37,FALSE) -> 0 | AH75: =VLOOKUP(AH$64&$Y75,GTYF!$C:$AP,37,FALSE) -> 18072.084
B76: Prucheraies | D76: 0 | E76: 0 | F76: 0 | G76: 0 | H76: 0 | I76: 0 | J76: 0 | K76: 0 | L76: 0 | M76: 0 | N76: 0 | O76: 0 | S76: Tableau 4. | T76: 0 | U76: 0 | V76: 0 | W76: 0 | Y76: (FCTYF_PRU) | Z76: =VLOOKUP(Z$64&$Y76,GTYF!$C:$AP,6,FALSE) -> 0 | AA76: =VLOOKUP(AA$64&$Y76,GTYF!$C:$AP,37,FALSE) -> 0 | AB76: =VLOOKUP(AB$64&$Y76,GTYF!$C:$AP,37,FALSE) -> 0 | AC76: =VLOOKUP(AC$64&$Y76,GTYF!$C:$AP,37,FALSE) -> 0 | AD76: =VLOOKUP(AD$64&$Y76,GTYF!$C:$AP,37,FALSE) -> 0 | AE76: =VLOOKUP(AE$64&$Y76,GTYF!$C:$AP,37,FALSE) -> 0 | AF76: =VLOOKUP(AF$64&$Y76,GTYF!$C:$AP,37,FALSE) -> 0 | AG76: =VLOOKUP(AG$64&$Y76,GTYF!$C:$AP,37,FALSE) -> 0 | AH76: =VLOOKUP(AH$64&$Y76,GTYF!$C:$AP,37,FALSE) -> 0
B77: Résineux à feuillus | D77: 450 | E77: 0.2284263959 | F77: 30 | G77: 0.1071428571 | H77: 47600 | I77: 0.2462493533 | J77: 3400 | K77: 0.4857142857 | L77: 21000 | M77: 0.1914311759 | N77: 72000 | O77: 0.2322580645 | S77: Tableau 4. | T77: 480 | U77: 0.2133333333 | V77: 476.1028 | W77: 3.8972 | Y77: (FCTYF_RF) | Z77: =VLOOKUP(Z$64&$Y77,GTYF!$C:$AP,6,FALSE) -> 46143.8 | AA77: =VLOOKUP(AA$64&$Y77,GTYF!$C:$AP,37,FALSE) -> 2246.726 | AB77: =VLOOKUP(AB$64&$Y77,GTYF!$C:$AP,37,FALSE) -> 133.788 | AC77: =VLOOKUP(AC$64&$Y77,GTYF!$C:$AP,37,FALSE) -> 2380.514 | AD77: =VLOOKUP(AD$64&$Y77,GTYF!$C:$AP,37,FALSE) -> 238218.744 | AE77: =VLOOKUP(AE$64&$Y77,GTYF!$C:$AP,37,FALSE) -> 1630.462 | AF77: =VLOOKUP(AF$64&$Y77,GTYF!$C:$AP,37,FALSE) -> 105083.604 | AG77: =VLOOKUP(AG$64&$Y77,GTYF!$C:$AP,37,FALSE) -> 17060.768 | AH77: =VLOOKUP(AH$64&$Y77,GTYF!$C:$AP,37,FALSE) -> 360362.5
B78: Sapinières | D78: 280 | E78: 0.1421319797 | F78: 0 | G78: 0 | H78: 32300 | I78: 0.1670977755 | J78: =ROUND(AG78/5,-2) -> 400 | K78: 0.05714285714 | L78: 3000 | M78: 0.02734731085 | N78: 35700 | O78: 0.1151612903 | S78: Tableau 4. | T78: 280 | U78: 0.1244444444 | V78: 282.2764 | W78: -2.2764 | Y78: (FCTYF_SAB) | Z78: =VLOOKUP(Z$64&$Y78,GTYF!$C:$AP,6,FALSE) -> 111025.1 | AA78: =VLOOKUP(AA$64&$Y78,GTYF!$C:$AP,37,FALSE) -> 1410.002 | AB78: =VLOOKUP(AB$64&$Y78,GTYF!$C:$AP,37,FALSE) -> 1.38 | AC78: =VLOOKUP(AC$64&$Y78,GTYF!$C:$AP,37,FALSE) -> 1411.382 | AD78: =VLOOKUP(AD$64&$Y78,GTYF!$C:$AP,37,FALSE) -> 161408.044 | AE78: =VLOOKUP(AE$64&$Y78,GTYF!$C:$AP,37,FALSE) -> 133.598 | AF78: =VLOOKUP(AF$64&$Y78,GTYF!$C:$AP,37,FALSE) -> 14921.146 | AG78: =VLOOKUP(AG$64&$Y78,GTYF!$C:$AP,37,FALSE) -> 1760.632 | AH78: =VLOOKUP(AH$64&$Y78,GTYF!$C:$AP,37,FALSE) -> 178089.816
B79: Total | D79: =SUM(D65:D78) -> 1970 | E79: =SUM(E65:E78) -> 1 | F79: =SUM(F65:F78) -> 280 | G79: =SUM(G65:G78) -> 1 | H79: =SUM(H65:H78) -> 193300 | I79: =SUM(I65:I78) -> 1 | J79: 7000 | K79: 1 | L79: 109700 | M79: 1 | N79: =SUM(N65:N78) -> 310000 | O79: 1 | S79: Tableau 4. | T79: =SUM(T65:T78) -> 2250 | U79: =SUM(U65:U78) -> 1 | V79: =SUM(V65:V78) -> 2245.3788 | W79: 4.6212 | Y79: Somme | Z79: =SUM(Z65:Z78) -> 332024.8 | AA79: =SUM(AA65:AA78) -> 9877.668 | AB79: =SUM(AB65:AB78) -> 1349.226 | AC79: =SUM(AC65:AC78) -> 11226.898
B80: * Les superficies sont arrondies à la dizaine près et les volumes à la centaine près. Cette opération peut engendrer de légères distorsions sur les sommes | S80: Tableau 4. | Y80: Total (Output) | Z80: =VLOOKUP(Z$64,Output!$C:$AP,6,FALSE) -> 338166.2
Y81: Écart | Z81: =Z79-Z80 -> -6141.4
N82: Écart de possibilité
N83: =Instructions!I5/5-N79 -> -60 | O83: Valideur
B84: Tableau 8. Traitements commerciaux supportant les possibilités forestières
B85: Traitements commerciaux (récolte) | G85: Superficie annuelle moyenne (ha/an) | H85: Superficie antérieure (ha/an) | I85: Écart (ha/an)
T88: Légende | U88: Name | V88: PERIOD2@6
B89: Coupe avec protection de la régénération et des sols (CPRS) | G89: =IFERROR(ROUND(V89,-1),0)-G90-G91 -> 1920 | H89: =IFERROR(ROUND(VLOOKUP(O33,DataLocal!$A:$BH,37,FALSE),-1),0) -> 2010 | I89: =G89-H89 -> -90 | S89: =LEFT(B$84,10) -> Tableau 8. | T89: Coupes avec protection de la régénération et des sols (CPRS) | U89: OSUPCT | V89: =IFERROR(VLOOKUP(U89,Output!$C:$AQ,37,FALSE)/5,"0000") -> 1975.534
B90: Coupe avec protection des petites tiges marchandes (CPPTM) | G90: =IFERROR(ROUND(V90,-1),0) -> 60 | H90: =IFERROR(ROUND(VLOOKUP(O33,DataLocal!$A:$BH,38,FALSE),-1),0) -> 0 | I90: =G90-H90 -> 60 | S90: Tableau 8. | T90: Coupe avec protection des petites tiges marchandes (CPPTM) | U90: OSUPREALACPPTM | V90: =IFERROR(VLOOKUP(U90,Output!$C:$AQ,37,FALSE)/5,"0000") -> 58.4616
B91: Coupe avec réserve de semenciers (CRS) | G91: =IFERROR(ROUND(V91,-1),0) -> 0 | H91: =IFERROR(ROUND(VLOOKUP(33,DataLocal!$A:$BH,39,FALSE),-1),0) -> 0 | I91: 0 | S91: Tableau 8. | T91: Coupe avec réserve de semenciers (CRS) | U91: OSUPREALACRS | V91: =IFERROR(VLOOKUP(U91,Output!$C:$AQ,37,FALSE)/5,"0000") -> 0
B92: Total des coupes finales | G92: =SUM(G89:G91) -> 1980 | H92: =SUM(H89:H91) -> 2010 | I92: -30 | S92: Tableau 8.
B93: Éclaircie commerciale | G93: =IFERROR(ROUND(V93,-1),0) -> 80 | H93: =IFERROR(ROUND(VLOOKUP(O33,DataLocal!$A:$BH,40,FALSE),-1),0) -> 0 | I93: 80 | S93: Tableau 8. | T93: Éclaircie commerciale (EC) | U93: OSUPEC_SEPM | V93: =IFERROR(VLOOKUP(U93,Output!$C:$AQ,37,FALSE)/5,"0000") -> 83
B94: Coupe progressive régulière | G94: =IFERROR(ROUND(V94+V95,-1),0) -> 0 | H94: =IFERROR(ROUND(VLOOKUP(O33,DataLocal!$A:$BH,41,FALSE),-1),0) -> 790 | I94: -790 | S94: Tableau 8. | T94: Coupe progressive régulière initiale (CPROG) | U94: OSUPCPROG_INI | V94: =IFERROR(VLOOKUP(U94,Output!$C:$AQ,37,FALSE)/5,"0000") -> 0000
B95: Coupe progressive irrégulière à régénération lente (CPIL) | G95: =IFERROR(ROUND(V96+V97,-1),0) -> 190 | H95: =IFERROR(ROUND(VLOOKUP(O33,DataLocal!$A:$BH,42,FALSE),-1),0) -> 0 | I95: 190 | S95: Tableau 8. | T95: Coupe progressive régulière finale (CPROG) | U95: OSUPCPROG_FIN | V95: =IFERROR(VLOOKUP(U95,Output!$C:$AQ,37,FALSE)/5,"0000") -> 0000
B96: Coupe progressive irrégulière à couvert permanent (CPICP) | G96: =IFERROR(ROUND(V98,-1),0) -> 0 | H96: =IFERROR(ROUND(VLOOKUP(O33,DataLocal!$A:$BH,43,FALSE),-1),0) -> 0 | I96: 0 | S96: Tableau 8. | T96: Coupe progessive irrégulière initiale (CPIRL) | U96: OSUPCPIRL_INI | V96: =IFERROR(VLOOKUP(U96,Output!$C:$AQ,37,FALSE)/5,"0000") -> 185.0452
B97: Coupes de jardinage ou d'amélioration | G97: =IFERROR(ROUND(V99,-1),0) -> 0 | H97: =IFERROR(ROUND(VLOOKUP(O33,DataLocal!$A:$BH,44,FALSE),-1),0) -> 0 | I97: 0 | T97: Coupe progessive irrégulière finale (CPIRL) | U97: OSUPCPIRL_FIN | V97: =IFERROR(VLOOKUP(U97,Output!$C:$AQ,37,FALSE)/5,"0000") -> 0
B98: Total des coupes partielles | G98: =SUM(G93:G97) -> 270 | H98: =SUM(H93:H97) -> 790 | I98: -520 | S98: =LEFT(B$84,10) -> Tableau 8. | T98: Coupe à couvert permanent (CPICP) | U98: OSUPCPICP | V98: =IFERROR(VLOOKUP(U98,Output!$C:$AQ,37,FALSE)/5,"0000") -> 1.8
B99: Total des activités de récolte | G99: =G92+G98 -> 2250 | H99: =H98+H92 -> 2800 | I99: -550 | S99: =LEFT(B$84,10) -> Tableau 8. | T99: Coupe de jardinage (CJ) | U99: OSUPCJ | V99: =IFERROR(VLOOKUP(U99,Output!$C:$AQ,37,FALSE)/5,"0000") -> 0000
B100: % des coupes totales / récolte | G100: =IFERROR(G92/G99,0) -> 0.88 | H100: =IFERROR(H92/H99,0) -> 0.7178571429 | I100: =ROUND(G100-H100,2) -> 0.16 | W100: Valideur
B101: % des coupes partielles / récolte | G101: =IFERROR(G98/G99,0) -> 0.12 | H101: =IFERROR(H98/H99,0) -> 0.2821428571 | I101: =ROUND(G101-H101,2) -> -0.16 | S101: =LEFT(B$84,10) -> Tableau 8. | U101: OSUPREALREGAPAR | V101: =VLOOKUP(U101,Output!$C:$AQ,37,FALSE)/5 -> 269.8452 | W101: =ROUND(SUM(V93:V99),0)=ROUND(V101,0) -> TRUE
B102: Coupes partielles de peuplements résineux | G102: =ROUND((AB67+AB71+AB75+AB76+AB77+AB78)/5,-1) -> 260 | H102: =IFERROR(ROUND(VLOOKUP(O33,DataLocal!$A:$BH,45,FALSE),-1),0) -> 540 | I102: -280 | S102: =LEFT(B$84,10) -> Tableau 8. | U102: OSUPREALREGAFIN | V102: =VLOOKUP(U102,Output!$C:$AQ,37,FALSE)/5 -> 1975.534 | W102: =ROUND((V89),0)=ROUND(V102,0) -> TRUE
B103: Coupes partielles de peuplements de feuillus tolérants et de pins | G103: =ROUND((AB69+AB70+AB74)/5,-1) -> 10 | H103: =IFERROR(ROUND(VLOOKUP(O33,DataLocal!$A:$BH,46,FALSE),-1),0) -> 250 | I103: -240 | S103: =LEFT(B$84,10) -> Tableau 8. | U103: OSUPREALREGAPRE | V103: =VLOOKUP(U103,Output!$C:$AQ,37,FALSE)/5 -> 2245.3796 | W103: =ROUND(V89+SUM(V93:V99),0)=ROUND(V103,0) -> TRUE
B104: * Les superficies sont arrondies à la dizaine près. Cette opération peut engendrer de légères distorsions sur les sommes.
B109: Tableau 9. Variables descriptives reliées aux coupes partielles et totales par grand type de forêt | L109: La CRV est-elle compabilisée avec les coupes partielles (regaPar)?
B110: Grands types de forêt | E110: Coupes partielles | H110: Coupes totales | L110: Si Oui - Remplacer alors les valeurs (colonne H et I) par celles-ci
E111: Rotation moyenne | F111: Prélèvement moyen | G111: Surface terrière moyenne avant coupe | H111: Âge moyen des peuplements | I111: Volume moyen toutes essences | J111: Dimension des bois SEPM | M111: Âge moyen des peuplements | N111: Volume moyen toutes essences
S113: Référence Tableau 63 du cahier d'analyse VF
E115: Années | F115: ="m"&CHAR(179)&"/ha" -> m³/ha | G115: ="m"&CHAR(178)&"/ha" -> m²/ha | H115: Années | I115: ="m"&CHAR(179)&"/an" -> m³/an | J115: ="dcm"&CHAR(179)&"/tige" -> dcm³/tige | M115: Années | N115: ="m"&CHAR(179)&"/an" -> m³/an | S115: =LEFT(B$109,10) -> Tableau 9. | V115: OSUPREALREGAPRE | W115: OSUPINC | X115: OVOLGSEPMRECREGAFIN | Y115: ONBTGSEPMRECREGAFIN | Z115: OVOLTOTRECACT | AA115: OVOLTOTRECACFP | AB115: OVOLTOTRECACRS | AC115: OVOLTOTRECACPPTM | AD115: OSUPREALREGAFIN | AE115: OVOLTOTRECACRV | AF115: OAGETOTRECACT | AG115: OAGETOTRECACFP | AH115: OAGETOTRECACRS | AI115: OAGETOTRECACPPTM | AJ115: OSUPREALREGAFIN | AK115: OAGETOTRECACRV | AM115: OVOLTOTRECaEC | AN115: OVOLTOTRECaEC2 | AO115: OVOLTOTRECaEC3 | AP115: OVOLTOTRECaCA | AQ115: OVOLTOTRECaCA2 | AR115: OVOLTOTRECaCPROG | AS115: OVOLTOTRECaCPIL | AT115: OVOLTOTRECaCPIP | AU115: OVOLTOTRECaCPFORT | AV115: OVOLTOTRECaCPFAIBL | AW115: OVOLTOTRECaCP | AX115: OVOLTOTRECaCPJ | AY115: OVOLTOTRECaCJ | AZ115: SOMME | BA115: OSUPREALREGAPAR
B116: =T116 -> Bétulaies blanches | E116: =IFERROR($AZ116/$BA116,"-") -> - | F116: - | G116: - | H116: =IFERROR(($AF116+$AG116+$AH116+$AI116+$AK116)/$AJ116*5,"-") -> 97.85970321 | I116: =IFERROR(($Z116+$AA116+$AB116+$AC116+$AE116)/$AD116,"-") -> 139.9451667 | J116: =(IFERROR(X116/Y116*1000,"-")) -> 111.2753724 | M116: =IFERROR(($AF116+$AG116+$AH116+$AI116)/$AJ116*5,"-") -> 97.85970321 | N116: =IFERROR(($Z116+$AA116+$AB116+$AC116)/$AD116,"-") -> 139.9451667 | S116: =LEFT(B$109,10) -> Tableau 9. | T116: Bétulaies blanches | U116: (FCTYF_BOP) | V116: =VLOOKUP(V$115&$U116,GTYF!$C:$AQ,37,FALSE) -> 574.14 | W116: =VLOOKUP(W$115&$U116,GTYF!$C:$AQ,6,FALSE) -> 10610.9 | X116: =VLOOKUP(X$115&$U116,GTYF!$C:$AQ,37,FALSE) -> 20753.722 | Y116: =VLOOKUP(Y$115&$U116,GTYF!$C:$AQ,37,FALSE) -> 186507.774 | Z116: =VLOOKUP(Z$115&$U116,GTYF!$C:$AQ,37,FALSE) -> 80348.118 | AA116: =VLOOKUP(AA$115&$U116,GTYF!$C:$AQ,37,FALSE) -> 0 | AB116: =VLOOKUP(AB$115&$U116,GTYF!$C:$AQ,37,FALSE) -> 0 | AC116: =VLOOKUP(AC$115&$U116,GTYF!$C:$AQ,37,FALSE) -> 0 | AD116: =VLOOKUP(AD$115&$U116,GTYF!$C:$AQ,37,FALSE) -> 574.14 | AE116: =VLOOKUP(AE$115&$U116,GTYF!$C:$AQ,37,FALSE) -> 0 | AF116: =VLOOKUP(AF$115&$U116,GTYF!$C:$AQ,37,FALSE) -> 11237.034 | AG116: =VLOOKUP(AG$115&$U116,GTYF!$C:$AQ,37,FALSE) -> 0 | AH116: =VLOOKUP(AH$115&$U116,GTYF!$C:$AQ,37,FALSE) -> 0 | AI116: =VLOOKUP(AI$115&$U116,GTYF!$C:$AQ,37,FALSE) -> 0 | AJ116: =VLOOKUP(AJ$115&$U116,GTYF!$C:$AQ,37,FALSE) -> 574.14 | AK116: =VLOOKUP(AK$115&$U116,GTYF!$C:$AQ,37,FALSE) -> 0 | AM116: =VLOOKUP(AM$115&$U116,GTYF!$C:$AQ,37,FALSE) -> 0 | AN116: =VLOOKUP(AN$115&$U116,GTYF!$C:$AQ,37,FALSE) -> 0 | AO116: =VLOOKUP(AO$115&$U116,GTYF!$C:$AQ,37,FALSE) -> 0 | AP116: =VLOOKUP(AP$115&$U116,GTYF!$C:$AQ,37,FALSE) -> 0 | AQ116: =VLOOKUP(AQ$115&$U116,GTYF!$C:$AQ,37,FALSE) -> 0 | AR116: =VLOOKUP(AR$115&$U116,GTYF!$C:$AQ,37,FALSE) -> 0 | AS116: =VLOOKUP(AS$115&$U116,GTYF!$C:$AQ,37,FALSE) -> 0 | AT116: =VLOOKUP(AT$115&$U116,GTYF!$C:$AQ,37,FALSE) -> 0 | AU116: =VLOOKUP(AU$115&$U116,GTYF!$C:$AQ,37,FALSE) -> 0 | AV116: =VLOOKUP(AV$115&$U116,GTYF!$C:$AQ,37,FALSE) -> 0 | AW116: =VLOOKUP(AW$115&$U116,GTYF!$C:$AQ,37,FALSE) -> 0 | AX116: =VLOOKUP(AX$115&$U116,GTYF!$C:$AQ,37,FALSE) -> 0 | AY116: =VLOOKUP(AY$115&$U116,GTYF!$C:$AQ,37,FALSE) -> 0 | AZ116: =SUM(AM116:AY116) -> 0 | BA116: =VLOOKUP(BA$115&$U116,GTYF!$C:$AQ,37,FALSE) -> 0
B117: Bétulaies blanches à résineux | E117: - | F117: - | G117: - | H117: =IFERROR(($AF117+$AG117+$AH117+$AI117+$AK117)/$AJ117*5,"-") -> 79.33648204 | I117: =IFERROR(($Z117+$AA117+$AB117+$AC117+$AE117)/$AD117,"-") -> 145.4766909 | J117: =(IFERROR(X117/Y117*1000,"-")) -> 130.9585939 | M117: =IFERROR(($AF117+$AG117+$AH117+$AI117)/$AJ117*5,"-") -> 79.33648204 | N117: =IFERROR(($Z117+$AA117+$AB117+$AC117)/$AD117,"-") -> 145.4766909 | S117: Tableau 9. | T117: Bétulaies blanches à résineux | U117: (FCTYF_BOPR) | V117: =VLOOKUP(V$115&$U117,GTYF!$C:$AQ,37,FALSE) -> 1293.228 | W117: =VLOOKUP(W$115&$U117,GTYF!$C:$AQ,6,FALSE) -> 19872.3 | X117: =VLOOKUP(X$115&$U117,GTYF!$C:$AQ,37,FALSE) -> 84441.88 | Y117: =VLOOKUP(Y$115&$U117,GTYF!$C:$AQ,37,FALSE) -> 644798.31 | Z117: =VLOOKUP(Z$115&$U117,GTYF!$C:$AQ,37,FALSE) -> 188134.53 | AA117: =VLOOKUP(AA$115&$U117,GTYF!$C:$AQ,37,FALSE) -> 0 | AB117: =VLOOKUP(AB$115&$U117,GTYF!$C:$AQ,37,FALSE) -> 0 | AC117: =VLOOKUP(AC$115&$U117,GTYF!$C:$AQ,37,FALSE) -> 0 | AD117: =VLOOKUP(AD$115&$U117,GTYF!$C:$AQ,37,FALSE) -> 1293.228 | AE117: =VLOOKUP(AE$115&$U117,GTYF!$C:$AQ,37,FALSE) -> 0 | AF117: =VLOOKUP(AF$115&$U117,GTYF!$C:$AQ,37,FALSE) -> 20520.032 | AG117: =VLOOKUP(AG$115&$U117,GTYF!$C:$AQ,37,FALSE) -> 0 | AH117: =VLOOKUP(AH$115&$U117,GTYF!$C:$AQ,37,FALSE) -> 0 | AI117: =VLOOKUP(AI$115&$U117,GTYF!$C:$AQ,37,FALSE) -> 0 | AJ117: =VLOOKUP(AJ$115&$U117,GTYF!$C:$AQ,37,FALSE) -> 1293.228 | AK117: =VLOOKUP(AK$115&$U117,GTYF!$C:$AQ,37,FALSE) -> 0 | AM117: =VLOOKUP(AM$115&$U117,GTYF!$C:$AQ,37,FALSE) -> 0 | AN117: =VLOOKUP(AN$115&$U117,GTYF!$C:$AQ,37,FALSE) -> 0 | AO117: =VLOOKUP(AO$115&$U117,GTYF!$C:$AQ,37,FALSE) -> 0 | AP117: =VLOOKUP(AP$115&$U117,GTYF!$C:$AQ,37,FALSE) -> 0 | AQ117: =VLOOKUP(AQ$115&$U117,GTYF!$C:$AQ,37,FALSE) -> 0 | AR117: =VLOOKUP(AR$115&$U117,GTYF!$C:$AQ,37,FALSE) -> 0 | AS117: =VLOOKUP(AS$115&$U117,GTYF!$C:$AQ,37,FALSE) -> 0 | AT117: =VLOOKUP(AT$115&$U117,GTYF!$C:$AQ,37,FALSE) -> 0 | AU117: =VLOOKUP(AU$115&$U117,GTYF!$C:$AQ,37,FALSE) -> 0 | AV117: =VLOOKUP(AV$115&$U117,GTYF!$C:$AQ,37,FALSE) -> 0 | AW117: =VLOOKUP(AW$115&$U117,GTYF!$C:$AQ,37,FALSE) -> 0 | AX117: =VLOOKUP(AX$115&$U117,GTYF!$C:$AQ,37,FALSE) -> 0 | AY117: =VLOOKUP(AY$115&$U117,GTYF!$C:$AQ,37,FALSE) -> 0 | AZ117: =SUM(AM117:AY117) -> 0 | BA117: =VLOOKUP(BA$115&$U117,GTYF!$C:$AQ,37,FALSE) -> 0
B118: Cédrières | E118: - | F118: - | G118: - | H118: =IFERROR(($AF118+$AG118+$AH118+$AI118+$AK118)/$AJ118*5,"-") -> - | I118: - | J118: =(IFERROR(X118/Y118*1000,"-")) -> - | M118: - | N118: - | S118: Tableau 9. | T118: Cédrières | U118: (FCTYF_THO) | V118: =VLOOKUP(V$115&$U118,GTYF!$C:$AQ,37,FALSE) -> 0 | W118: =VLOOKUP(W$115&$U118,GTYF!$C:$AQ,6,FALSE) -> 0 | X118: =VLOOKUP(X$115&$U118,GTYF!$C:$AQ,37,FALSE) -> 0 | Y118: =VLOOKUP(Y$115&$U118,GTYF!$C:$AQ,37,FALSE) -> 0 | Z118: =VLOOKUP(Z$115&$U118,GTYF!$C:$AQ,37,FALSE) -> 0 | AA118: =VLOOKUP(AA$115&$U118,GTYF!$C:$AQ,37,FALSE) -> 0 | AB118: =VLOOKUP(AB$115&$U118,GTYF!$C:$AQ,37,FALSE) -> 0 | AC118: =VLOOKUP(AC$115&$U118,GTYF!$C:$AQ,37,FALSE) -> 0 | AD118: =VLOOKUP(AD$115&$U118,GTYF!$C:$AQ,37,FALSE) -> 0 | AE118: =VLOOKUP(AE$115&$U118,GTYF!$C:$AQ,37,FALSE) -> 0 | AF118: =VLOOKUP(AF$115&$U118,GTYF!$C:$AQ,37,FALSE) -> 0 | AG118: =VLOOKUP(AG$115&$U118,GTYF!$C:$AQ,37,FALSE) -> 0 | AH118: =VLOOKUP(AH$115&$U118,GTYF!$C:$AQ,37,FALSE) -> 0 | AI118: =VLOOKUP(AI$115&$U118,GTYF!$C:$AQ,37,FALSE) -> 0 | AJ118: =VLOOKUP(AJ$115&$U118,GTYF!$C:$AQ,37,FALSE) -> 0 | AK118: =VLOOKUP(AK$115&$U118,GTYF!$C:$AQ,37,FALSE) -> 0 | AM118: =VLOOKUP(AM$115&$U118,GTYF!$C:$AQ,37,FALSE) -> 0 | AN118: =VLOOKUP(AN$115&$U118,GTYF!$C:$AQ,37,FALSE) -> 0 | AO118: =VLOOKUP(AO$115&$U118,GTYF!$C:$AQ,37,FALSE) -> 0 | AP118: =VLOOKUP(AP$115&$U118,GTYF!$C:$AQ,37,FALSE) -> 0 | AQ118: =VLOOKUP(AQ$115&$U118,GTYF!$C:$AQ,37,FALSE) -> 0 | AR118: =VLOOKUP(AR$115&$U118,GTYF!$C:$AQ,37,FALSE) -> 0 | AS118: =VLOOKUP(AS$115&$U118,GTYF!$C:$AQ,37,FALSE) -> 0 | AT118: =VLOOKUP(AT$115&$U118,GTYF!$C:$AQ,37,FALSE) -> 0 | AU118: =VLOOKUP(AU$115&$U118,GTYF!$C:$AQ,37,FALSE) -> 0 | AV118: =VLOOKUP(AV$115&$U118,GTYF!$C:$AQ,37,FALSE) -> 0 | AW118: =VLOOKUP(AW$115&$U118,GTYF!$C:$AQ,37,FALSE) -> 0 | AX118: =VLOOKUP(AX$115&$U118,GTYF!$C:$AQ,37,FALSE) -> 0 | AY118: =VLOOKUP(AY$115&$U118,GTYF!$C:$AQ,37,FALSE) -> 0 | AZ118: 0 | BA118: =VLOOKUP(BA$115&$U118,GTYF!$C:$AQ,37,FALSE) -> 0
B119: Érablières rouges | E119: - | F119: - | G119: - | H119: 75.01087903 | I119: 140.6479547 | J119: 146.3249798 | M119: 75.01087903 | N119: 140.6479547 | S119: Tableau 9. | T119: Érablières rouges | U119: (FCTYF_ERO) | V119: =VLOOKUP(V$115&$U119,GTYF!$C:$AQ,37,FALSE) -> 4.596 | W119: =VLOOKUP(W$115&$U119,GTYF!$C:$AQ,6,FALSE) -> 1144.6 | X119: =VLOOKUP(X$115&$U119,GTYF!$C:$AQ,37,FALSE) -> 138.568 | Y119: =VLOOKUP(Y$115&$U119,GTYF!$C:$AQ,37,FALSE) -> 946.988 | Z119: =VLOOKUP(Z$115&$U119,GTYF!$C:$AQ,37,FALSE) -> 646.418 | AA119: =VLOOKUP(AA$115&$U119,GTYF!$C:$AQ,37,FALSE) -> 0 | AB119: =VLOOKUP(AB$115&$U119,GTYF!$C:$AQ,37,FALSE) -> 0 | AC119: =VLOOKUP(AC$115&$U119,GTYF!$C:$AQ,37,FALSE) -> 0 | AD119: =VLOOKUP(AD$115&$U119,GTYF!$C:$AQ,37,FALSE) -> 4.596 | AE119: =VLOOKUP(AE$115&$U119,GTYF!$C:$AQ,37,FALSE) -> 0 | AF119: =VLOOKUP(AF$115&$U119,GTYF!$C:$AQ,37,FALSE) -> 68.95 | AG119: =VLOOKUP(AG$115&$U119,GTYF!$C:$AQ,37,FALSE) -> 0 | AH119: =VLOOKUP(AH$115&$U119,GTYF!$C:$AQ,37,FALSE) -> 0 | AI119: =VLOOKUP(AI$115&$U119,GTYF!$C:$AQ,37,FALSE) -> 0 | AJ119: =VLOOKUP(AJ$115&$U119,GTYF!$C:$AQ,37,FALSE) -> 4.596 | AK119: =VLOOKUP(AK$115&$U119,GTYF!$C:$AQ,37,FALSE) -> 0 | AM119: =VLOOKUP(AM$115&$U119,GTYF!$C:$AQ,37,FALSE) -> 0 | AN119: =VLOOKUP(AN$115&$U119,GTYF!$C:$AQ,37,FALSE) -> 0 | AO119: =VLOOKUP(AO$115&$U119,GTYF!$C:$AQ,37,FALSE) -> 0 | AP119: =VLOOKUP(AP$115&$U119,GTYF!$C:$AQ,37,FALSE) -> 0 | AQ119: =VLOOKUP(AQ$115&$U119,GTYF!$C:$AQ,37,FALSE) -> 0 | AR119: =VLOOKUP(AR$115&$U119,GTYF!$C:$AQ,37,FALSE) -> 0 | AS119: =VLOOKUP(AS$115&$U119,GTYF!$C:$AQ,37,FALSE) -> 0 | AT119: =VLOOKUP(AT$115&$U119,GTYF!$C:$AQ,37,FALSE) -> 0 | AU119: =VLOOKUP(AU$115&$U119,GTYF!$C:$AQ,37,FALSE) -> 0 | AV119: =VLOOKUP(AV$115&$U119,GTYF!$C:$AQ,37,FALSE) -> 0 | AW119: =VLOOKUP(AW$115&$U119,GTYF!$C:$AQ,37,FALSE) -> 0 | AX119: =VLOOKUP(AX$115&$U119,GTYF!$C:$AQ,37,FALSE) -> 0 | AY119: =VLOOKUP(AY$115&$U119,GTYF!$C:$AQ,37,FALSE) -> 0 | AZ119: 0 | BA119: =VLOOKUP(BA$115&$U119,GTYF!$C:$AQ,37,FALSE) -> 0
B120: Feuillus tolérants | E120: 52 | F120: 80.6 | G120: 24.7 | H120: - | I120: - | J120: - | M120: - | N120: - | S120: Tableau 9. | T120: Feuillus tolérants | U120: (FCTYF_FT) | V120: =VLOOKUP(V$115&$U120,GTYF!$C:$AQ,37,FALSE) -> 35.44 | W120: =VLOOKUP(W$115&$U120,GTYF!$C:$AQ,6,FALSE) -> 3763.1 | X120: =VLOOKUP(X$115&$U120,GTYF!$C:$AQ,37,FALSE) -> 0 | Y120: =VLOOKUP(Y$115&$U120,GTYF!$C:$AQ,37,FALSE) -> 0 | Z120: =VLOOKUP(Z$115&$U120,GTYF!$C:$AQ,37,FALSE) -> 0 | AA120: =VLOOKUP(AA$115&$U120,GTYF!$C:$AQ,37,FALSE) -> 0 | AB120: =VLOOKUP(AB$115&$U120,GTYF!$C:$AQ,37,FALSE) -> 0 | AC120: =VLOOKUP(AC$115&$U120,GTYF!$C:$AQ,37,FALSE) -> 0 | AD120: =VLOOKUP(AD$115&$U120,GTYF!$C:$AQ,37,FALSE) -> 0 | AE120: =VLOOKUP(AE$115&$U120,GTYF!$C:$AQ,37,FALSE) -> 0 | AF120: =VLOOKUP(AF$115&$U120,GTYF!$C:$AQ,37,FALSE) -> 0 | AG120: =VLOOKUP(AG$115&$U120,GTYF!$C:$AQ,37,FALSE) -> 0 | AH120: =VLOOKUP(AH$115&$U120,GTYF!$C:$AQ,37,FALSE) -> 0 | AI120: =VLOOKUP(AI$115&$U120,GTYF!$C:$AQ,37,FALSE) -> 0 | AJ120: =VLOOKUP(AJ$115&$U120,GTYF!$C:$AQ,37,FALSE) -> 0 | AK120: =VLOOKUP(AK$115&$U120,GTYF!$C:$AQ,37,FALSE) -> 0 | AM120: =VLOOKUP(AM$115&$U120,GTYF!$C:$AQ,37,FALSE) -> 0 | AN120: =VLOOKUP(AN$115&$U120,GTYF!$C:$AQ,37,FALSE) -> 0 | AO120: =VLOOKUP(AO$115&$U120,GTYF!$C:$AQ,37,FALSE) -> 0 | AP120: =VLOOKUP(AP$115&$U120,GTYF!$C:$AQ,37,FALSE) -> 0 | AQ120: =VLOOKUP(AQ$115&$U120,GTYF!$C:$AQ,37,FALSE) -> 0 | AR120: =VLOOKUP(AR$115&$U120,GTYF!$C:$AQ,37,FALSE) -> 0 | AS120: =VLOOKUP(AS$115&$U120,GTYF!$C:$AQ,37,FALSE) -> 0 | AT120: =VLOOKUP(AT$115&$U120,GTYF!$C:$AQ,37,FALSE) -> 0 | AU120: =VLOOKUP(AU$115&$U120,GTYF!$C:$AQ,37,FALSE) -> 2311.046 | AV120: =VLOOKUP(AV$115&$U120,GTYF!$C:$AQ,37,FALSE) -> 544.5 | AW120: =VLOOKUP(AW$115&$U120,GTYF!$C:$AQ,37,FALSE) -> 0 | AX120: =VLOOKUP(AX$115&$U120,GTYF!$C:$AQ,37,FALSE) -> 0 | AY120: =VLOOKUP(AY$115&$U120,GTYF!$C:$AQ,37,FALSE) -> 0 | AZ120: 2855.546 | BA120: =VLOOKUP(BA$115&$U120,GTYF!$C:$AQ,37,FALSE) -> 35.44
B121: Feuillus tolérants à résineux | E121: 50 | F121: 67.8 | G121: 23.4 | H121: - | I121: - | J121: - | M121: - | N121: - | S121: Tableau 9. | T121: Feuillus tolérants à résineux | U121: (FCTYF_FTR) | V121: =VLOOKUP(V$115&$U121,GTYF!$C:$AQ,37,FALSE) -> 30.578 | W121: =VLOOKUP(W$115&$U121,GTYF!$C:$AQ,6,FALSE) -> 5691.6 | X121: =VLOOKUP(X$115&$U121,GTYF!$C:$AQ,37,FALSE) -> 0 | Y121: =VLOOKUP(Y$115&$U121,GTYF!$C:$AQ,37,FALSE) -> 0 | Z121: =VLOOKUP(Z$115&$U121,GTYF!$C:$AQ,37,FALSE) -> 0 | AA121: =VLOOKUP(AA$115&$U121,GTYF!$C:$AQ,37,FALSE) -> 0 | AB121: =VLOOKUP(AB$115&$U121,GTYF!$C:$AQ,37,FALSE) -> 0 | AC121: =VLOOKUP(AC$115&$U121,GTYF!$C:$AQ,37,FALSE) -> 0 | AD121: =VLOOKUP(AD$115&$U121,GTYF!$C:$AQ,37,FALSE) -> 0 | AE121: =VLOOKUP(AE$115&$U121,GTYF!$C:$AQ,37,FALSE) -> 0 | AF121: =VLOOKUP(AF$115&$U121,GTYF!$C:$AQ,37,FALSE) -> 0 | AG121: =VLOOKUP(AG$115&$U121,GTYF!$C:$AQ,37,FALSE) -> 0 | AH121: =VLOOKUP(AH$115&$U121,GTYF!$C:$AQ,37,FALSE) -> 0 | AI121: =VLOOKUP(AI$115&$U121,GTYF!$C:$AQ,37,FALSE) -> 0 | AJ121: =VLOOKUP(AJ$115&$U121,GTYF!$C:$AQ,37,FALSE) -> 0 | AK121: =VLOOKUP(AK$115&$U121,GTYF!$C:$AQ,37,FALSE) -> 0 | AM121: =VLOOKUP(AM$115&$U121,GTYF!$C:$AQ,37,FALSE) -> 0 | AN121: =VLOOKUP(AN$115&$U121,GTYF!$C:$AQ,37,FALSE) -> 0 | AO121: =VLOOKUP(AO$115&$U121,GTYF!$C:$AQ,37,FALSE) -> 0 | AP121: =VLOOKUP(AP$115&$U121,GTYF!$C:$AQ,37,FALSE) -> 0 | AQ121: =VLOOKUP(AQ$115&$U121,GTYF!$C:$AQ,37,FALSE) -> 0 | AR121: =VLOOKUP(AR$115&$U121,GTYF!$C:$AQ,37,FALSE) -> 0 | AS121: =VLOOKUP(AS$115&$U121,GTYF!$C:$AQ,37,FALSE) -> 0 | AT121: =VLOOKUP(AT$115&$U121,GTYF!$C:$AQ,37,FALSE) -> 0 | AU121: =VLOOKUP(AU$115&$U121,GTYF!$C:$AQ,37,FALSE) -> 2074.56 | AV121: =VLOOKUP(AV$115&$U121,GTYF!$C:$AQ,37,FALSE) -> 0 | AW121: =VLOOKUP(AW$115&$U121,GTYF!$C:$AQ,37,FALSE) -> 0 | AX121: =VLOOKUP(AX$115&$U121,GTYF!$C:$AQ,37,FALSE) -> 0 | AY121: =VLOOKUP(AY$115&$U121,GTYF!$C:$AQ,37,FALSE) -> 0 | AZ121: =SUM(AM121:AY121) -> 2074.56 | BA121: =VLOOKUP(BA$115&$U121,GTYF!$C:$AQ,37,FALSE) -> 30.578
B122: Pessières | E122: 32 | F122: 57.6 | G122: 29.4 | H122: 111.0967872 | I122: 146.1248431 | J122: 117.8680126 | M122: 111.0967872 | N122: 146.1248431 | S122: Tableau 9. | T122: Pessières | U122: (FCTYF_EPX) | V122: =VLOOKUP(V$115&$U122,GTYF!$C:$AQ,37,FALSE) -> 3235.304 | W122: =VLOOKUP(W$115&$U122,GTYF!$C:$AQ,6,FALSE) -> 114218.1 | X122: =VLOOKUP(X$115&$U122,GTYF!$C:$AQ,37,FALSE) -> 287750.132 | Y122: =VLOOKUP(Y$115&$U122,GTYF!$C:$AQ,37,FALSE) -> 2441291.116 | Z122: =VLOOKUP(Z$115&$U122,GTYF!$C:$AQ,37,FALSE) -> 276609.504 | AA122: =VLOOKUP(AA$115&$U122,GTYF!$C:$AQ,37,FALSE) -> 0 | AB122: =VLOOKUP(AB$115&$U122,GTYF!$C:$AQ,37,FALSE) -> 0 | AC122: =VLOOKUP(AC$115&$U122,GTYF!$C:$AQ,37,FALSE) -> 28391.036 | AD122: =VLOOKUP(AD$115&$U122,GTYF!$C:$AQ,37,FALSE) -> 2087.26 | AE122: =VLOOKUP(AE$115&$U122,GTYF!$C:$AQ,37,FALSE) -> 0 | AF122: =VLOOKUP(AF$115&$U122,GTYF!$C:$AQ,37,FALSE) -> 39954.254 | AG122: =VLOOKUP(AG$115&$U122,GTYF!$C:$AQ,37,FALSE) -> 0 | AH122: =VLOOKUP(AH$115&$U122,GTYF!$C:$AQ,37,FALSE) -> 0 | AI122: =VLOOKUP(AI$115&$U122,GTYF!$C:$AQ,37,FALSE) -> 6423.322 | AJ122: =VLOOKUP(AJ$115&$U122,GTYF!$C:$AQ,37,FALSE) -> 2087.26 | AK122: =VLOOKUP(AK$115&$U122,GTYF!$C:$AQ,37,FALSE) -> 0 | AM122: =VLOOKUP(AM$115&$U122,GTYF!$C:$AQ,37,FALSE) -> 16638.742 | AN122: =VLOOKUP(AN$115&$U122,GTYF!$C:$AQ,37,FALSE) -> 0 | AO122: =VLOOKUP(AO$115&$U122,GTYF!$C:$AQ,37,FALSE) -> 0 | AP122: =VLOOKUP(AP$115&$U122,GTYF!$C:$AQ,37,FALSE) -> 0 | AQ122: =VLOOKUP(AQ$115&$U122,GTYF!$C:$AQ,37,FALSE) -> 0 | AR122: =VLOOKUP(AR$115&$U122,GTYF!$C:$AQ,37,FALSE) -> 0 | AS122: =VLOOKUP(AS$115&$U122,GTYF!$C:$AQ,37,FALSE) -> 49528.152 | AT122: =VLOOKUP(AT$115&$U122,GTYF!$C:$AQ,37,FALSE) -> 0 | AU122: =VLOOKUP(AU$115&$U122,GTYF!$C:$AQ,37,FALSE) -> 0 | AV122: =VLOOKUP(AV$115&$U122,GTYF!$C:$AQ,37,FALSE) -> 0 | AW122: =VLOOKUP(AW$115&$U122,GTYF!$C:$AQ,37,FALSE) -> 0 | AX122: =VLOOKUP(AX$115&$U122,GTYF!$C:$AQ,37,FALSE) -> 0 | AY122: =VLOOKUP(AY$115&$U122,GTYF!$C:$AQ,37,FALSE) -> 0 | AZ122: 66166.894 | BA122: =VLOOKUP(BA$115&$U122,GTYF!$C:$AQ,37,FALSE) -> 1148.04
B123: Peupleraies | E123: - | F123: - | G123: - | H123: 80.39829339 | I123: 154.7096795 | J123: 107.3988415 | M123: 80.39829339 | N123: =IFERROR(($Z123+$AA123+$AB123+$AC123)/$AD123,"-") -> 154.7096795 | S123: Tableau 9. | T123: Peupleraies | U123: (FCTYF_PEU) | V123: =VLOOKUP(V$115&$U123,GTYF!$C:$AQ,37,FALSE) -> 1532.162 | W123: =VLOOKUP(W$115&$U123,GTYF!$C:$AQ,6,FALSE) -> 11739.8 | X123: =VLOOKUP(X$115&$U123,GTYF!$C:$AQ,37,FALSE) -> 50422.486 | Y123: =VLOOKUP(Y$115&$U123,GTYF!$C:$AQ,37,FALSE) -> 469488.174 | Z123: =VLOOKUP(Z$115&$U123,GTYF!$C:$AQ,37,FALSE) -> 237040.292 | AA123: =VLOOKUP(AA$115&$U123,GTYF!$C:$AQ,37,FALSE) -> 0 | AB123: =VLOOKUP(AB$115&$U123,GTYF!$C:$AQ,37,FALSE) -> 0 | AC123: =VLOOKUP(AC$115&$U123,GTYF!$C:$AQ,37,FALSE) -> 0 | AD123: =VLOOKUP(AD$115&$U123,GTYF!$C:$AQ,37,FALSE) -> 1532.162 | AE123: =VLOOKUP(AE$115&$U123,GTYF!$C:$AQ,37,FALSE) -> 0 | AF123: =VLOOKUP(AF$115&$U123,GTYF!$C:$AQ,37,FALSE) -> 24636.642 | AG123: =VLOOKUP(AG$115&$U123,GTYF!$C:$AQ,37,FALSE) -> 0 | AH123: =VLOOKUP(AH$115&$U123,GTYF!$C:$AQ,37,FALSE) -> 0 | AI123: =VLOOKUP(AI$115&$U123,GTYF!$C:$AQ,37,FALSE) -> 0 | AJ123: =VLOOKUP(AJ$115&$U123,GTYF!$C:$AQ,37,FALSE) -> 1532.162 | AK123: =VLOOKUP(AK$115&$U123,GTYF!$C:$AQ,37,FALSE) -> 0 | AM123: =VLOOKUP(AM$115&$U123,GTYF!$C:$AQ,37,FALSE) -> 0 | AN123: =VLOOKUP(AN$115&$U123,GTYF!$C:$AQ,37,FALSE) -> 0 | AO123: =VLOOKUP(AO$115&$U123,GTYF!$C:$AQ,37,FALSE) -> 0 | AP123: =VLOOKUP(AP$115&$U123,GTYF!$C:$AQ,37,FALSE) -> 0 | AQ123: =VLOOKUP(AQ$115&$U123,GTYF!$C:$AQ,37,FALSE) -> 0 | AR123: =VLOOKUP(AR$115&$U123,GTYF!$C:$AQ,37,FALSE) -> 0 | AS123: =VLOOKUP(AS$115&$U123,GTYF!$C:$AQ,37,FALSE) -> 0 | AT123: =VLOOKUP(AT$115&$U123,GTYF!$C:$AQ,37,FALSE) -> 0 | AU123: =VLOOKUP(AU$115&$U123,GTYF!$C:$AQ,37,FALSE) -> 0 | AV123: =VLOOKUP(AV$115&$U123,GTYF!$C:$AQ,37,FALSE) -> 0 | AW123: =VLOOKUP(AW$115&$U123,GTYF!$C:$AQ,37,FALSE) -> 0 | AX123: =VLOOKUP(AX$115&$U123,GTYF!$C:$AQ,37,FALSE) -> 0 | AY123: =VLOOKUP(AY$115&$U123,GTYF!$C:$AQ,37,FALSE) -> 0 | AZ123: 0 | BA123: =VLOOKUP(BA$115&$U123,GTYF!$C:$AQ,37,FALSE) -> 0
B124: Peupleraies à résineux | E124: - | F124: - | G124: - | H124: 74.43582494 | I124: 164.6976276 | J124: 129.6261882 | M124: 74.43582494 | N124: 164.6976276 | S124: Tableau 9. | T124: Peupleraies à résineux | U124: (FCTYF_PEUR) | V124: =VLOOKUP(V$115&$U124,GTYF!$C:$AQ,37,FALSE) -> 673.408 | W124: =VLOOKUP(W$115&$U124,GTYF!$C:$AQ,6,FALSE) -> 6488.4 | X124: =VLOOKUP(X$115&$U124,GTYF!$C:$AQ,37,FALSE) -> 38203.516 | Y124: =VLOOKUP(Y$115&$U124,GTYF!$C:$AQ,37,FALSE) -> 294720.662 | Z124: =VLOOKUP(Z$115&$U124,GTYF!$C:$AQ,37,FALSE) -> 110908.7 | AA124: =VLOOKUP(AA$115&$U124,GTYF!$C:$AQ,37,FALSE) -> 0 | AB124: =VLOOKUP(AB$115&$U124,GTYF!$C:$AQ,37,FALSE) -> 0 | AC124: =VLOOKUP(AC$115&$U124,GTYF!$C:$AQ,37,FALSE) -> 0 | AD124: =VLOOKUP(AD$115&$U124,GTYF!$C:$AQ,37,FALSE) -> 673.408 | AE124: =VLOOKUP(AE$115&$U124,GTYF!$C:$AQ,37,FALSE) -> 0 | AF124: =VLOOKUP(AF$115&$U124,GTYF!$C:$AQ,37,FALSE) -> 10025.136 | AG124: =VLOOKUP(AG$115&$U124,GTYF!$C:$AQ,37,FALSE) -> 0 | AH124: =VLOOKUP(AH$115&$U124,GTYF!$C:$AQ,37,FALSE) -> 0 | AI124: =VLOOKUP(AI$115&$U124,GTYF!$C:$AQ,37,FALSE) -> 0 | AJ124: =VLOOKUP(AJ$115&$U124,GTYF!$C:$AQ,37,FALSE) -> 673.408 | AK124: =VLOOKUP(AK$115&$U124,GTYF!$C:$AQ,37,FALSE) -> 0 | AM124: =VLOOKUP(AM$115&$U124,GTYF!$C:$AQ,37,FALSE) -> 0 | AN124: =VLOOKUP(AN$115&$U124,GTYF!$C:$AQ,37,FALSE) -> 0 | AO124: =VLOOKUP(AO$115&$U124,GTYF!$C:$AQ,37,FALSE) -> 0 | AP124: =VLOOKUP(AP$115&$U124,GTYF!$C:$AQ,37,FALSE) -> 0 | AQ124: =VLOOKUP(AQ$115&$U124,GTYF!$C:$AQ,37,FALSE) -> 0 | AR124: =VLOOKUP(AR$115&$U124,GTYF!$C:$AQ,37,FALSE) -> 0 | AS124: =VLOOKUP(AS$115&$U124,GTYF!$C:$AQ,37,FALSE) -> 0 | AT124: =VLOOKUP(AT$115&$U124,GTYF!$C:$AQ,37,FALSE) -> 0 | AU124: =VLOOKUP(AU$115&$U124,GTYF!$C:$AQ,37,FALSE) -> 0 | AV124: =VLOOKUP(AV$115&$U124,GTYF!$C:$AQ,37,FALSE) -> 0 | AW124: =VLOOKUP(AW$115&$U124,GTYF!$C:$AQ,37,FALSE) -> 0 | AX124: =VLOOKUP(AX$115&$U124,GTYF!$C:$AQ,37,FALSE) -> 0 | AY124: =VLOOKUP(AY$115&$U124,GTYF!$C:$AQ,37,FALSE) -> 0 | AZ124: 0 | BA124: =VLOOKUP(BA$115&$U124,GTYF!$C:$AQ,37,FALSE) -> 0
B125: Pinèdes blanches | E125: - | F125: - | G125: - | H125: - | I125: - | J125: - | M125: - | N125: - | S125: Tableau 9. | T125: Pinèdes blanches | U125: (FCTYF_PIN) | V125: =VLOOKUP(V$115&$U125,GTYF!$C:$AQ,37,FALSE) -> 0 | W125: =VLOOKUP(W$115&$U125,GTYF!$C:$AQ,6,FALSE) -> 0 | X125: =VLOOKUP(X$115&$U125,GTYF!$C:$AQ,37,FALSE) -> 0 | Y125: =VLOOKUP(Y$115&$U125,GTYF!$C:$AQ,37,FALSE) -> 0 | Z125: =VLOOKUP(Z$115&$U125,GTYF!$C:$AQ,37,FALSE) -> 0 | AA125: =VLOOKUP(AA$115&$U125,GTYF!$C:$AQ,37,FALSE) -> 0 | AB125: =VLOOKUP(AB$115&$U125,GTYF!$C:$AQ,37,FALSE) -> 0 | AC125: =VLOOKUP(AC$115&$U125,GTYF!$C:$AQ,37,FALSE) -> 0 | AD125: =VLOOKUP(AD$115&$U125,GTYF!$C:$AQ,37,FALSE) -> 0 | AE125: =VLOOKUP(AE$115&$U125,GTYF!$C:$AQ,37,FALSE) -> 0 | AF125: =VLOOKUP(AF$115&$U125,GTYF!$C:$AQ,37,FALSE) -> 0 | AG125: =VLOOKUP(AG$115&$U125,GTYF!$C:$AQ,37,FALSE) -> 0 | AH125: =VLOOKUP(AH$115&$U125,GTYF!$C:$AQ,37,FALSE) -> 0 | AI125: =VLOOKUP(AI$115&$U125,GTYF!$C:$AQ,37,FALSE) -> 0 | AJ125: =VLOOKUP(AJ$115&$U125,GTYF!$C:$AQ,37,FALSE) -> 0 | AK125: =VLOOKUP(AK$115&$U125,GTYF!$C:$AQ,37,FALSE) -> 0 | AM125: =VLOOKUP(AM$115&$U125,GTYF!$C:$AQ,37,FALSE) -> 0 | AN125: =VLOOKUP(AN$115&$U125,GTYF!$C:$AQ,37,FALSE) -> 0 | AO125: =VLOOKUP(AO$115&$U125,GTYF!$C:$AQ,37,FALSE) -> 0 | AP125: =VLOOKUP(AP$115&$U125,GTYF!$C:$AQ,37,FALSE) -> 0 | AQ125: =VLOOKUP(AQ$115&$U125,GTYF!$C:$AQ,37,FALSE) -> 0 | AR125: =VLOOKUP(AR$115&$U125,GTYF!$C:$AQ,37,FALSE) -> 0 | AS125: =VLOOKUP(AS$115&$U125,GTYF!$C:$AQ,37,FALSE) -> 0 | AT125: =VLOOKUP(AT$115&$U125,GTYF!$C:$AQ,37,FALSE) -> 0 | AU125: =VLOOKUP(AU$115&$U125,GTYF!$C:$AQ,37,FALSE) -> 0 | AV125: =VLOOKUP(AV$115&$U125,GTYF!$C:$AQ,37,FALSE) -> 0 | AW125: =VLOOKUP(AW$115&$U125,GTYF!$C:$AQ,37,FALSE) -> 0 | AX125: =VLOOKUP(AX$115&$U125,GTYF!$C:$AQ,37,FALSE) -> 0 | AY125: =VLOOKUP(AY$115&$U125,GTYF!$C:$AQ,37,FALSE) -> 0 | AZ125: 0 | BA125: =VLOOKUP(BA$115&$U125,GTYF!$C:$AQ,37,FALSE) -> 0
B126: Pinèdes grises | E126: - | F126: - | G126: - | H126: 58.13860293 | I126: 321.8766074 | J126: 233.6614253 | M126: 58.13860293 | N126: 321.8766074 | S126: Tableau 9. | T126: Pinèdes grises | U126: (FCTYF_PIG) | V126: =VLOOKUP(V$115&$U126,GTYF!$C:$AQ,37,FALSE) -> 56.146 | W126: =VLOOKUP(W$115&$U126,GTYF!$C:$AQ,6,FALSE) -> 1327.1 | X126: =VLOOKUP(X$115&$U126,GTYF!$C:$AQ,37,FALSE) -> 16965.95 | Y126: =VLOOKUP(Y$115&$U126,GTYF!$C:$AQ,37,FALSE) -> 72609.118 | Z126: =VLOOKUP(Z$115&$U126,GTYF!$C:$AQ,37,FALSE) -> 18072.084 | AA126: =VLOOKUP(AA$115&$U126,GTYF!$C:$AQ,37,FALSE) -> 0 | AB126: =VLOOKUP(AB$115&$U126,GTYF!$C:$AQ,37,FALSE) -> 0 | AC126: =VLOOKUP(AC$115&$U126,GTYF!$C:$AQ,37,FALSE) -> 0 | AD126: =VLOOKUP(AD$115&$U126,GTYF!$C:$AQ,37,FALSE) -> 56.146 | AE126: =VLOOKUP(AE$115&$U126,GTYF!$C:$AQ,37,FALSE) -> 0 | AF126: =VLOOKUP(AF$115&$U126,GTYF!$C:$AQ,37,FALSE) -> 652.85 | AG126: =VLOOKUP(AG$115&$U126,GTYF!$C:$AQ,37,FALSE) -> 0 | AH126: =VLOOKUP(AH$115&$U126,GTYF!$C:$AQ,37,FALSE) -> 0 | AI126: =VLOOKUP(AI$115&$U126,GTYF!$C:$AQ,37,FALSE) -> 0 | AJ126: =VLOOKUP(AJ$115&$U126,GTYF!$C:$AQ,37,FALSE) -> 56.146 | AK126: =VLOOKUP(AK$115&$U126,GTYF!$C:$AQ,37,FALSE) -> 0 | AM126: =VLOOKUP(AM$115&$U126,GTYF!$C:$AQ,37,FALSE) -> 0 | AN126: =VLOOKUP(AN$115&$U126,GTYF!$C:$AQ,37,FALSE) -> 0 | AO126: =VLOOKUP(AO$115&$U126,GTYF!$C:$AQ,37,FALSE) -> 0 | AP126: =VLOOKUP(AP$115&$U126,GTYF!$C:$AQ,37,FALSE) -> 0 | AQ126: =VLOOKUP(AQ$115&$U126,GTYF!$C:$AQ,37,FALSE) -> 0 | AR126: =VLOOKUP(AR$115&$U126,GTYF!$C:$AQ,37,FALSE) -> 0 | AS126: =VLOOKUP(AS$115&$U126,GTYF!$C:$AQ,37,FALSE) -> 0 | AT126: =VLOOKUP(AT$115&$U126,GTYF!$C:$AQ,37,FALSE) -> 0 | AU126: =VLOOKUP(AU$115&$U126,GTYF!$C:$AQ,37,FALSE) -> 0 | AV126: =VLOOKUP(AV$115&$U126,GTYF!$C:$AQ,37,FALSE) -> 0 | AW126: =VLOOKUP(AW$115&$U126,GTYF!$C:$AQ,37,FALSE) -> 0 | AX126: =VLOOKUP(AX$115&$U126,GTYF!$C:$AQ,37,FALSE) -> 0 | AY126: =VLOOKUP(AY$115&$U126,GTYF!$C:$AQ,37,FALSE) -> 0 | AZ126: 0 | BA126: =VLOOKUP(BA$115&$U126,GTYF!$C:$AQ,37,FALSE) -> 0
B127: Prucheraies | F127: - | H127: - | I127: - | J127: - | M127: - | N127: - | S127: Tableau 9. | T127: Prucheraies | U127: (FCTYF_PRU) | V127: =VLOOKUP(V$115&$U127,GTYF!$C:$AQ,37,FALSE) -> 0 | W127: =VLOOKUP(W$115&$U127,GTYF!$C:$AQ,6,FALSE) -> 0 | X127: =VLOOKUP(X$115&$U127,GTYF!$C:$AQ,37,FALSE) -> 0 | Y127: =VLOOKUP(Y$115&$U127,GTYF!$C:$AQ,37,FALSE) -> 0 | Z127: =VLOOKUP(Z$115&$U127,GTYF!$C:$AQ,37,FALSE) -> 0 | AA127: =VLOOKUP(AA$115&$U127,GTYF!$C:$AQ,37,FALSE) -> 0 | AB127: =VLOOKUP(AB$115&$U127,GTYF!$C:$AQ,37,FALSE) -> 0 | AC127: =VLOOKUP(AC$115&$U127,GTYF!$C:$AQ,37,FALSE) -> 0 | AD127: =VLOOKUP(AD$115&$U127,GTYF!$C:$AQ,37,FALSE) -> 0 | AE127: =VLOOKUP(AE$115&$U127,GTYF!$C:$AQ,37,FALSE) -> 0 | AF127: =VLOOKUP(AF$115&$U127,GTYF!$C:$AQ,37,FALSE) -> 0 | AG127: =VLOOKUP(AG$115&$U127,GTYF!$C:$AQ,37,FALSE) -> 0 | AH127: =VLOOKUP(AH$115&$U127,GTYF!$C:$AQ,37,FALSE) -> 0 | AI127: =VLOOKUP(AI$115&$U127,GTYF!$C:$AQ,37,FALSE) -> 0 | AJ127: =VLOOKUP(AJ$115&$U127,GTYF!$C:$AQ,37,FALSE) -> 0 | AK127: =VLOOKUP(AK$115&$U127,GTYF!$C:$AQ,37,FALSE) -> 0 | AM127: =VLOOKUP(AM$115&$U127,GTYF!$C:$AQ,37,FALSE) -> 0 | AN127: =VLOOKUP(AN$115&$U127,GTYF!$C:$AQ,37,FALSE) -> 0 | AO127: =VLOOKUP(AO$115&$U127,GTYF!$C:$AQ,37,FALSE) -> 0 | AP127: =VLOOKUP(AP$115&$U127,GTYF!$C:$AQ,37,FALSE) -> 0 | AQ127: =VLOOKUP(AQ$115&$U127,GTYF!$C:$AQ,37,FALSE) -> 0 | AR127: =VLOOKUP(AR$115&$U127,GTYF!$C:$AQ,37,FALSE) -> 0 | AS127: =VLOOKUP(AS$115&$U127,GTYF!$C:$AQ,37,FALSE) -> 0 | AT127: =VLOOKUP(AT$115&$U127,GTYF!$C:$AQ,37,FALSE) -> 0 | AU127: =VLOOKUP(AU$115&$U127,GTYF!$C:$AQ,37,FALSE) -> 0 | AV127: =VLOOKUP(AV$115&$U127,GTYF!$C:$AQ,37,FALSE) -> 0 | AW127: =VLOOKUP(AW$115&$U127,GTYF!$C:$AQ,37,FALSE) -> 0 | AX127: =VLOOKUP(AX$115&$U127,GTYF!$C:$AQ,37,FALSE) -> 0 | AY127: =VLOOKUP(AY$115&$U127,GTYF!$C:$AQ,37,FALSE) -> 0 | AZ127: 0 | BA127: =VLOOKUP(BA$115&$U127,GTYF!$C:$AQ,37,FALSE) -> 0
B128: Résineux à feuillus | E128: 41 | F128: 75 | G128: 27.9 | H128: 90.16190225 | I128: 155.9292401 | J128: 136.4678637 | M128: 90.16190225 | N128: 155.9292401 | S128: Tableau 9. | T128: Résineux à feuillus | U128: (FCTYF_RF) | V128: =VLOOKUP(V$115&$U128,GTYF!$C:$AQ,37,FALSE) -> 2380.514 | W128: =VLOOKUP(W$115&$U128,GTYF!$C:$AQ,6,FALSE) -> 46143.8 | X128: =VLOOKUP(X$115&$U128,GTYF!$C:$AQ,37,FALSE) -> 230772.622 | Y128: =VLOOKUP(Y$115&$U128,GTYF!$C:$AQ,37,FALSE) -> 1691040.042 | Z128: =VLOOKUP(Z$115&$U128,GTYF!$C:$AQ,37,FALSE) -> 350330.278 | AA128: =VLOOKUP(AA$115&$U128,GTYF!$C:$AQ,37,FALSE) -> 0 | AB128: =VLOOKUP(AB$115&$U128,GTYF!$C:$AQ,37,FALSE) -> 0 | AC128: =VLOOKUP(AC$115&$U128,GTYF!$C:$AQ,37,FALSE) -> 0 | AD128: =VLOOKUP(AD$115&$U128,GTYF!$C:$AQ,37,FALSE) -> 2246.726 | AE128: =VLOOKUP(AE$115&$U128,GTYF!$C:$AQ,37,FALSE) -> 0 | AF128: =VLOOKUP(AF$115&$U128,GTYF!$C:$AQ,37,FALSE) -> 40513.818 | AG128: =VLOOKUP(AG$115&$U128,GTYF!$C:$AQ,37,FALSE) -> 0 | AH128: =VLOOKUP(AH$115&$U128,GTYF!$C:$AQ,37,FALSE) -> 0 | AI128: =VLOOKUP(AI$115&$U128,GTYF!$C:$AQ,37,FALSE) -> 0 | AJ128: =VLOOKUP(AJ$115&$U128,GTYF!$C:$AQ,37,FALSE) -> 2246.726 | AK128: =VLOOKUP(AK$115&$U128,GTYF!$C:$AQ,37,FALSE) -> 0 | AM128: =VLOOKUP(AM$115&$U128,GTYF!$C:$AQ,37,FALSE) -> 0 | AN128: =VLOOKUP(AN$115&$U128,GTYF!$C:$AQ,37,FALSE) -> 0 | AO128: =VLOOKUP(AO$115&$U128,GTYF!$C:$AQ,37,FALSE) -> 0 | AP128: =VLOOKUP(AP$115&$U128,GTYF!$C:$AQ,37,FALSE) -> 0 | AQ128: =VLOOKUP(AQ$115&$U128,GTYF!$C:$AQ,37,FALSE) -> 0 | AR128: =VLOOKUP(AR$115&$U128,GTYF!$C:$AQ,37,FALSE) -> 0 | AS128: =VLOOKUP(AS$115&$U128,GTYF!$C:$AQ,37,FALSE) -> 10032.222 | AT128: =VLOOKUP(AT$115&$U128,GTYF!$C:$AQ,37,FALSE) -> 0 | AU128: =VLOOKUP(AU$115&$U128,GTYF!$C:$AQ,37,FALSE) -> 0 | AV128: =VLOOKUP(AV$115&$U128,GTYF!$C:$AQ,37,FALSE) -> 0 | AW128: =VLOOKUP(AW$115&$U128,GTYF!$C:$AQ,37,FALSE) -> 0 | AX128: =VLOOKUP(AX$115&$U128,GTYF!$C:$AQ,37,FALSE) -> 0 | AY128: =VLOOKUP(AY$115&$U128,GTYF!$C:$AQ,37,FALSE) -> 0 | AZ128: 10032.222 | BA128: =VLOOKUP(BA$115&$U128,GTYF!$C:$AQ,37,FALSE) -> 133.788
B129: Sapinières | E129: 31 | F129: 74.5 | G129: 27.4 | H129: 112.3410818 | I129: 126.2317444 | J129: 107.8924841 | M129: =IFERROR(($AF129+$AG129+$AH129+$AI129)/$AJ129*5,"-") -> 112.3410818 | N129: 126.2317444 | S129: Tableau 9. | T129: Sapinières | U129: (FCTYF_SAB) | V129: =VLOOKUP(V$115&$U129,GTYF!$C:$AQ,37,FALSE) -> 1411.382 | W129: =VLOOKUP(W$115&$U129,GTYF!$C:$AQ,6,FALSE) -> 111025.1 | X129: =VLOOKUP(X$115&$U129,GTYF!$C:$AQ,37,FALSE) -> 161174.206 | Y129: =VLOOKUP(Y$115&$U129,GTYF!$C:$AQ,37,FALSE) -> 1493840.904 | Z129: =VLOOKUP(Z$115&$U129,GTYF!$C:$AQ,37,FALSE) -> 172419.066 | AA129: =VLOOKUP(AA$115&$U129,GTYF!$C:$AQ,37,FALSE) -> 0 | AB129: =VLOOKUP(AB$115&$U129,GTYF!$C:$AQ,37,FALSE) -> 0 | AC129: =VLOOKUP(AC$115&$U129,GTYF!$C:$AQ,37,FALSE) -> 5567.946 | AD129: =VLOOKUP(AD$115&$U129,GTYF!$C:$AQ,37,FALSE) -> 1410.002 | AE129: =VLOOKUP(AE$115&$U129,GTYF!$C:$AQ,37,FALSE) -> 0 | AF129: =VLOOKUP(AF$115&$U129,GTYF!$C:$AQ,37,FALSE) -> 30605.37 | AG129: =VLOOKUP(AG$115&$U129,GTYF!$C:$AQ,37,FALSE) -> 0 | AH129: =VLOOKUP(AH$115&$U129,GTYF!$C:$AQ,37,FALSE) -> 0 | AI129: =VLOOKUP(AI$115&$U129,GTYF!$C:$AQ,37,FALSE) -> 1074.86 | AJ129: =VLOOKUP(AJ$115&$U129,GTYF!$C:$AQ,37,FALSE) -> 1410.002 | AK129: =VLOOKUP(AK$115&$U129,GTYF!$C:$AQ,37,FALSE) -> 0 | AM129: =VLOOKUP(AM$115&$U129,GTYF!$C:$AQ,37,FALSE) -> 102.804 | AN129: =VLOOKUP(AN$115&$U129,GTYF!$C:$AQ,37,FALSE) -> 0 | AO129: =VLOOKUP(AO$115&$U129,GTYF!$C:$AQ,37,FALSE) -> 0 | AP129: =VLOOKUP(AP$115&$U129,GTYF!$C:$AQ,37,FALSE) -> 0 | AQ129: =VLOOKUP(AQ$115&$U129,GTYF!$C:$AQ,37,FALSE) -> 0 | AR129: =VLOOKUP(AR$115&$U129,GTYF!$C:$AQ,37,FALSE) -> 0 | AS129: =VLOOKUP(AS$115&$U129,GTYF!$C:$AQ,37,FALSE) -> 0 | AT129: =VLOOKUP(AT$115&$U129,GTYF!$C:$AQ,37,FALSE) -> 0 | AU129: =VLOOKUP(AU$115&$U129,GTYF!$C:$AQ,37,FALSE) -> 0 | AV129: =VLOOKUP(AV$115&$U129,GTYF!$C:$AQ,37,FALSE) -> 0 | AW129: =VLOOKUP(AW$115&$U129,GTYF!$C:$AQ,37,FALSE) -> 0 | AX129: =VLOOKUP(AX$115&$U129,GTYF!$C:$AQ,37,FALSE) -> 0 | AY129: =VLOOKUP(AY$115&$U129,GTYF!$C:$AQ,37,FALSE) -> 0 | AZ129: 102.804 | BA129: =VLOOKUP(BA$115&$U129,GTYF!$C:$AQ,37,FALSE) -> 1.38
S130: Tableau 9. | T130: Tous les GTYF | V130: =SUM(V116:V129) -> 11226.898 | W130: =SUM(W116:W129) -> 332024.8 | X130: 890623.082 | Y130: 7295243.088 | Z130: 1434508.99 | AA130: 0 | AB130: 0 | AC130: 33958.982 | AD130: 9877.668 | AE130: 0 | AF130: 178214.086 | AG130: 0 | AH130: 0 | AI130: 7498.182 | AJ130: 9877.668 | AK130: 0
L131: Les statistiques portants sur les coupes partielles proviennent d'un Script R et sont disponibles ici:
L132: T:\Donnees\02_Courant\01_CPF\01_UA\0XXXX\70_Determination\72_Rapport\01_Cahier_DET\Tableau_9
B134: Tableau 10. Traitements non commerciaux supportant les possibilités forestières
B135: Traitements non commerciaux | F135: Superficie annuelle moyenne (ha/an) | G135: Superficie antérieure (ha/an) | H135: Écart (ha/an) | X135: Exemple U03772
K138: Le texte en rouge demande à l'analyste de valider la nature exacte du traitement et les superficies - variable selon la vague et l'UA - veuillez ensuite mettre en noir et supprimer la remarque si elle ne s'applique pas (si DEG_1 ne contient pas de regarni)
B139: Ligniculture (essences à croissance rapide) | F139: =ROUND(V139,-1) -> 0 | G139: =IFERROR(ROUND(VLOOKUP(O33,DataLocal!$A:$BH,47,FALSE),-1),0) -> 0 | H139: =F139-G139 -> 0 | S139: =LEFT(B$134,11) -> Tableau 10. | T139: Plantation ligniculture (pins, feuillus) | U139: OSUPPL_PPF | V139: =IFERROR(VLOOKUP(U139,Output!C:AQ,37,FALSE),0)/5 -> 0
B140: Plantation intensive (2 000 plants/ha) | F140: =ROUND(V140,-1) -> 380 | G140: =IFERROR(ROUND(VLOOKUP(O33,DataLocal!$A:$BH,48,FALSE),-1),0) -> 110 | H140: =F140-G140 -> 270 | S140: =LEFT(B$134,11) -> Tableau 10. | T140: Plantation intensive | U140: OSUPPL_SEPM_I | V140: =IFERROR(VLOOKUP(U140,Output!C:AQ,37,FALSE),0)/5 -> 375.2812
B141: Plantation de base (1 600 plants/ha) | F141: =ROUND(V141,-1) -> 100 | G141: =IFERROR(ROUND(VLOOKUP(O33,DataLocal!$A:$BH,49,FALSE),-1),0) -> 0 | H141: 100 | S141: Tableau 10. | T141: Plantation de base | U141: OSUPPL_SEPM_E | V141: =IFERROR(VLOOKUP(U141,Output!C:AQ,37,FALSE),0)/5 -> 98.532
B142: Regarni | F142: =ROUND(V142,-1) -> 20 | G142: =IFERROR(ROUND(VLOOKUP(O33,DataLocal!$A:$BH,50,FALSE),-1),0) -> 100 | H142: -80 | S142: Tableau 10. | T142: Regarni | U142: OSUPREG | V142: =IFERROR(VLOOKUP(U142,Output!C:AQ,37,FALSE),0)/5 -> 19.7548
B143: % des plantations dans les coupes totales | F143: =IFERROR(SUM(F139:F141)/G92,0) -> 0.2424242424 | G143: =IFERROR(SUM(G139:G141)/H92,0) -> 0.05472636816 | H143: 0.1876978743 | S143: Tableau 10.
B144: Total des travaux de reboisement | F144: =ROUND(SUM(F139:F142),-1) -> 500 | G144: =ROUND(SUM(G139:G142),-1) -> 210 | H144: 290 | S144: Tableau 10.
B145: Nettoiement (régénération naturelle et plantation) | F145: =ROUND(V145,-1) -> 720 | G145: =IFERROR(ROUND(VLOOKUP(O33,DataLocal!$A:$BH,51,FALSE),-1),0) -> 220 | H145: 500 | S145: Tableau 10. | T145: Nettoiement | U145: OSUPREALNET | V145: =IFERROR(VLOOKUP(U145,Output!C:AQ,37,FALSE),0)/5 -> 718.4456
B146: Éclaircie précommerciale | F146: =ROUND(V146,-1) -> 180 | G146: =IFERROR(ROUND(VLOOKUP(O33,DataLocal!$A:$BH,52,FALSE),-1),0) -> 770 | H146: -590 | S146: Tableau 10. | T146: Éclaircie précommerciale de la régénération naturelle | U146: OSUPREALEPC | V146: =IFERROR(VLOOKUP(U146,Output!C:AQ,37,FALSE),0)/5 -> 181.5036 | X146: Exemple U09751
B147: Dégagement de la régénération naturelle | F147: =ROUND(V147,-1) -> 10 | G147: =IFERROR(ROUND(VLOOKUP(O33,DataLocal!$A:$BH,53,FALSE),-1),0) -> 0 | H147: 10 | S147: Tableau 10. | T147: Dégagement de la régénération naturelle | U147: OSUPDEG_2 | V147: =IFERROR(VLOOKUP(U147,Output!C:AQ,37,FALSE),0)/5 -> 10.148
B148: Dégagement des plantations* | F148: =ROUND(V148,-1) -> 470 | G148: =IFERROR(ROUND(VLOOKUP(O33,DataLocal!$A:$BH,54,FALSE),-1),0) -> 130 | H148: 340 | S148: Tableau 10. | T148: Dégagement de plantation | U148: OSUPDEG_1 | V148: =IFERROR(VLOOKUP(U148,Output!C:AQ,37,FALSE),0)/5 -> 474.974
B149: Élagage | F149: =ROUND(V149,-1) -> 0 | G149: =IFERROR(ROUND(VLOOKUP(O33,DataLocal!$A:$BN,66,FALSE),-1),0) -> 0 | H149: 0 | S149: Tableau 10. | T149: Élagage (plantation) | U149: OSUPELAG | V149: =IFERROR(VLOOKUP(U149,Output!C:AQ,37,FALSE),0)/5 -> 0
B150: Total des travaux d'éducation | F150: =SUM(F145:F149) -> 1380 | G150: =SUM(G145:G149) -> 1120 | H150: 260 | S150: Tableau 10. | U150: OSUPSCA_LIGN | V150: =IFERROR(VLOOKUP(U150,Output!C:AQ,37,FALSE),0)/5 -> 0
B151: Scarifiage partiel | F151: =ROUND(V152,-1) -> 50 | G151: =IFERROR(ROUND(VLOOKUP(O33,DataLocal!$A:$BH,58,FALSE),-1),0) -> 640 | H151: -590 | S151: Tableau 10. | U151: OSUPSCA_LRD | V151: =IFERROR(VLOOKUP(U151,Output!C:AQ,37,FALSE),0)/5 -> 0
B152: Scarifiage en plein | F152: =ROUND(V153+V150+V151,-1) -> 480 | G152: =IFERROR(ROUND(VLOOKUP(O33,DataLocal!$A:$BH,59,FALSE),-1),0) -> 230 | H152: 250 | S152: Tableau 10. | U152: OSUPSCA_PART | V152: =IFERROR(VLOOKUP(U152,Output!C:AQ,37,FALSE),0)/5 -> 51.188
B153: Total de la préparation de terrain | F153: =IFERROR(SUM(F151:F152),0) -> 530 | G153: =IFERROR(SUM(G151:G152),0) -> 870 | H153: -340 | S153: Tableau 10. | U153: OSUPSCA_REG | V153: =IFERROR(VLOOKUP(U153,Output!C:AQ,37,FALSE),0)/5 -> 476.6952
B154: Total des travaux sans récolte | F154: =F153+F150+F144 -> 2410 | G154: =G153+G150+G144 -> 2200 | H154: 210
B155: * Peut aussi comprendre du dégagement de regarni
B160: Tableau 13 : Variation du volume sur pied à court, moyen et long terme | L160: % du volume total | U160: colonne | V160: 37 | W160: 38 | X160: 39 | Y160: 40 | AF160: 37 | AG160: 38 | AH160: 39 | AI160: 40
B161: Essences | C161: Volume moyen sur pied (m3) | G161: Volume moyen sur pied (%) | V161: Volume moyen sur pied (m3) | Z161: Volume moyen sur pied (%) | AF161: Volume dans courbe SNAT
C162: 2023 à 2048 | D162: 2048 à 2073 | E162: 2073 à 2118 | F162: 2118 à 2168 | G162: =C162 -> 2023 à 2048 | H162: =D162 -> 2048 à 2073 | I162: =E162 -> 2073 à 2118 | J162: =F162 -> 2118 à 2168 | L162: 2023 à 2048 | T162: Légende | U162: Name | V162: p 2 à 6 | W162: p 7 à 11 | X162: p 12 à 20 | Y162: p 21 à 30 | Z162: p 2 à 6 | AA162: p 7 à 11 | AB162: p 12 à 20 | AC162: p 21 à 30 | AE162: Name | AF162: p 2 à 6 | AG162: p 7 à 11 | AH162: p 12 à 20 | AI162: p 21 à 30
B163: =T163 -> Sapin baumier | C163: =ROUND(V163-AF163,-2) -> 8740500 | D163: =ROUND(W163-AG163,-2) -> 9333000 | E163: 6731300 | F163: 7991000 | G163: =C163/C$177 -> 0.3135909128 | H163: =D163/D$177 -> 0.2946152923 | I163: =E163/E$177 -> 0.2133662566 | J163: =F163/F$177 -> 0.2616260035 | L163: =C163/C$177 -> 0.3135909128 | S163: =LEFT(B$160,11) -> Tableau 13 | T163: Sapin baumier | U163: OVOLSABPIEDINC | V163: =VLOOKUP($U163,Output!$C:$AQ,V$160,FALSE) -> 8746933.028 | W163: =VLOOKUP($U163,Output!$C:$AQ,W$160,FALSE) -> 9339696.962 | X163: =VLOOKUP($U163,Output!$C:$AQ,X$160,FALSE) -> 6738898.056 | Y163: =VLOOKUP($U163,Output!$C:$AQ,Y$160,FALSE) -> 7998957.205 | Z163: =V163/V$178 -> 0.3113450164 | AA163: =W163/W$178 -> 0.2929246005 | AB163: =X163/X$178 -> 0.2120144542 | AC163: =Y163/Y$178 -> 0.2598203917 | AE163: OVOLSABPIEDSNAT | AF163: =VLOOKUP($AE163,Output!$C:$AQ,AF$160,FALSE) -> 6393.98 | AG163: =VLOOKUP($AE163,Output!$C:$AQ,AG$160,FALSE) -> 6684.674 | AH163: =VLOOKUP($AE163,Output!$C:$AQ,AH$160,FALSE) -> 7594.216667 | AI163: =VLOOKUP($AE163,Output!$C:$AQ,AI$160,FALSE) -> 7943.13
B164: =T164 -> Épinettes | C164: =ROUND(V164-AF164,-2) -> 10908600 | D164: 14953500 | E164: 17540000 | F164: 15706500 | G164: 0.3913778196 | H164: 0.4720379057 | I164: 0.5559764296 | J164: 0.5142321141 | L164: 0.3913778196 | S164: Tableau 13 | T164: Épinettes | U164: OVOLgEpxPIEDINC | V164: =VLOOKUP($U164,Output!$C:$AQ,V$160,FALSE) -> 11118710.4 | W164: =VLOOKUP($U164,Output!$C:$AQ,W$160,FALSE) -> 15148778.31 | X164: =VLOOKUP($U164,Output!$C:$AQ,X$160,FALSE) -> 17764809.91 | Y164: =VLOOKUP($U164,Output!$C:$AQ,Y$160,FALSE) -> 15937186.36 | Z164: 0.395767872 | AA164: 0.4751171107 | AB164: 0.5589039108 | AC164: 0.5176682281 | AE164: OVOLgEpxPIEDSNAT | AF164: =VLOOKUP($AE164,Output!$C:$AQ,AF$160,FALSE) -> 210152.27 | AG164: =VLOOKUP($AE164,Output!$C:$AQ,AG$160,FALSE) -> 195266.822 | AH164: =VLOOKUP($AE164,Output!$C:$AQ,AH$160,FALSE) -> 224774.2056 | AI164: =VLOOKUP($AE164,Output!$C:$AQ,AI$160,FALSE) -> 230692.002
B165: =T165 -> Pin gris | C165: 1045500 | D165: 847200 | E165: 734900 | F165: 454100 | G165: 0.03751035975 | H165: 0.02674360609 | I165: 0.02329458826 | J165: 0.0148672717 | L165: 0.03751035975 | S165: Tableau 13 | T165: Pin gris | U165: OVOLgPgPIEDINC | V165: =VLOOKUP($U165,Output!$C:$AQ,V$160,FALSE) -> 1045500.556 | W165: =VLOOKUP($U165,Output!$C:$AQ,W$160,FALSE) -> 847201.296 | X165: =VLOOKUP($U165,Output!$C:$AQ,X$160,FALSE) -> 734928.6978 | Y165: =VLOOKUP($U165,Output!$C:$AQ,Y$160,FALSE) -> 454101.423 | Z165: 0.03721434549 | AA165: 0.02657110849 | AB165: 0.02312180797 | AC165: 0.01475002385 | AE165: OVOLgPgPIEDSNAT | AF165: =VLOOKUP($AE165,Output!$C:$AQ,AF$160,FALSE) -> 0 | AG165: =VLOOKUP($AE165,Output!$C:$AQ,AG$160,FALSE) -> 0 | AH165: =VLOOKUP($AE165,Output!$C:$AQ,AH$160,FALSE) -> 0 | AI165: =VLOOKUP($AE165,Output!$C:$AQ,AI$160,FALSE) -> 0
B166: =T166 -> Mélèzes | C166: 85900 | D166: 114700 | E166: 150000 | F166: 127700 | G166: 0.003081912867 | H166: 0.003620740816 | I166: 0.004754644495 | J166: 0.004180908603 | L166: 0.003081912867 | S166: Tableau 13 | T166: Mélèzes | U166: OVOLgMlPIEDINC | V166: =VLOOKUP($U166,Output!$C:$AQ,V$160,FALSE) -> 90011.646 | W166: =VLOOKUP($U166,Output!$C:$AQ,W$160,FALSE) -> 117499.266 | X166: =VLOOKUP($U166,Output!$C:$AQ,X$160,FALSE) -> 153533.04 | Y166: =VLOOKUP($U166,Output!$C:$AQ,Y$160,FALSE) -> 130793.031 | Z166: 0.003203943291 | AA166: 0.003685175836 | AB166: 0.004830348139 | AC166: 0.004248390843 | AE166: OVOLGMlPIEDSNAT | AF166: =VLOOKUP($AE166,Output!$C:$AQ,AF$160,FALSE) -> 4146.1 | AG166: =VLOOKUP($AE166,Output!$C:$AQ,AG$160,FALSE) -> 2752.9 | AH166: =VLOOKUP($AE166,Output!$C:$AQ,AH$160,FALSE) -> 3511.527778 | AI166: =VLOOKUP($AE166,Output!$C:$AQ,AI$160,FALSE) -> 3079.969
B167: Thuya | C167: =ROUND(V167-AF167,-2) -> 75100 | D167: 81500 | E167: 70400 | F167: 70300 | G167: 0.002694431389 | H167: 0.002572714703 | I167: 0.00223151315 | J167: 0.002301627837 | L167: 0.002694431389 | S167: Tableau 13 | T167: Thuya | U167: OVOLTHOPIEDINC | V167: =VLOOKUP($U167,Output!$C:$AQ,V$160,FALSE) -> 75109.344 | W167: =VLOOKUP($U167,Output!$C:$AQ,W$160,FALSE) -> 81498.73 | X167: =VLOOKUP($U167,Output!$C:$AQ,X$160,FALSE) -> 70382.74222 | Y167: =VLOOKUP($U167,Output!$C:$AQ,Y$160,FALSE) -> 70307.83 | Z167: 0.00267349937 | AA167: 0.002556076822 | AB167: 0.002214332159 | AC167: 0.002283723673 | AE167: OVOLTHOPIEDSNAT | AF167: =VLOOKUP($AE167,Output!$C:$AQ,AF$160,FALSE) -> 0 | AG167: =VLOOKUP($AE167,Output!$C:$AQ,AG$160,FALSE) -> 0 | AH167: =VLOOKUP($AE167,Output!$C:$AQ,AH$160,FALSE) -> 0 | AI167: =VLOOKUP($AE167,Output!$C:$AQ,AI$160,FALSE) -> 0
B168: Pruche | C168: 1300 | D168: 2800 | E168: 5600 | F168: 6200 | G168: 4.664128902e-05 | H168: 8.838774441e-05 | I168: 0.0001775067278 | J168: 0.0002029885148 | L168: 4.664128902e-05 | S168: Tableau 13 | T168: Pruche | U168: OVOLPRUPIEDINC | V168: =VLOOKUP($U168,Output!$C:$AQ,V$160,FALSE) -> 1262.53 | W168: =VLOOKUP($U168,Output!$C:$AQ,W$160,FALSE) -> 2752.246 | X168: =VLOOKUP($U168,Output!$C:$AQ,X$160,FALSE) -> 5565.783333 | Y168: =VLOOKUP($U168,Output!$C:$AQ,Y$160,FALSE) -> 6199.584 | Z168: 4.493945732e-05 | AA168: 8.631977712e-05 | AB168: 0.0001751067468 | AC168: 0.0002013735418 | AE168: OVOLPRUPIEDSNAT | AF168: =VLOOKUP($AE168,Output!$C:$AQ,AF$160,FALSE) -> 0 | AG168: =VLOOKUP($AE168,Output!$C:$AQ,AG$160,FALSE) -> 0 | AH168: =VLOOKUP($AE168,Output!$C:$AQ,AH$160,FALSE) -> 0 | AI168: =VLOOKUP($AE168,Output!$C:$AQ,AI$160,FALSE) -> 0
B169: Pins blanc et rouge | C169: 78900 | D169: 110200 | E169: 135600 | F169: 118200 | G169: 0.002830767464 | H169: 0.003478689083 | I169: 0.004298198624 | J169: 0.003869877814 | L169: 0.002830767464 | S169: Tableau 13 | T169: Pins blanc et rouge | U169: OVOLGPINSPIEDINC | V169: =VLOOKUP($U169,Output!$C:$AQ,V$160,FALSE) -> 78934.526 | W169: =VLOOKUP($U169,Output!$C:$AQ,W$160,FALSE) -> 110202.398 | X169: =VLOOKUP($U169,Output!$C:$AQ,X$160,FALSE) -> 135596.0967 | Y169: =VLOOKUP($U169,Output!$C:$AQ,Y$160,FALSE) -> 118239.511 | Z169: 0.00280965582 | AA169: 0.003456321286 | AB169: 0.004266028688 | AC169: 0.003840630131 | AE169: OVOLGPINSCPIEDSNAT | AF169: =VLOOKUP($AE169,Output!$C:$AQ,AF$160,FALSE) -> 0 | AG169: =VLOOKUP($AE169,Output!$C:$AQ,AG$160,FALSE) -> 0 | AH169: =VLOOKUP($AE169,Output!$C:$AQ,AH$160,FALSE) -> 0 | AI169: =VLOOKUP($AE169,Output!$C:$AQ,AI$160,FALSE) -> 0
B170: Peupliers | C170: 1800800 | D170: 1175900 | E170: 1352800 | F170: 1239400 | G170: 0.06460894867 | H170: 0.03711969595 | I170: 0.04288055382 | J170: 0.04057805891 | L170: 0.06460894867 | S170: Tableau 13 | T170: Peupliers | U170: OVOLGPEUPIEDINC | V170: =VLOOKUP($U170,Output!$C:$AQ,V$160,FALSE) -> 1800938.124 | W170: =VLOOKUP($U170,Output!$C:$AQ,W$160,FALSE) -> 1176057.64 | X170: =VLOOKUP($U170,Output!$C:$AQ,X$160,FALSE) -> 1352994.679 | Y170: =VLOOKUP($U170,Output!$C:$AQ,Y$160,FALSE) -> 1239498.583 | Z170: 0.0641039674 | AA170: 0.03688515975 | AB170: 0.04256696363 | AC170: 0.04026112393 | AE170: OVOLPEUPIEDSNAT | AF170: =VLOOKUP($AE170,Output!$C:$AQ,AF$160,FALSE) -> 149.86 | AG170: =VLOOKUP($AE170,Output!$C:$AQ,AG$160,FALSE) -> 119.46 | AH170: =VLOOKUP($AE170,Output!$C:$AQ,AH$160,FALSE) -> 154.1244444 | AI170: =VLOOKUP($AE170,Output!$C:$AQ,AI$160,FALSE) -> 142.81
B171: Bouleau à papier | C171: 3482800 | D171: 3257700 | E171: 3026900 | F171: 3121500 | G171: 0.1249556011 | H171: 0.1028359839 | I171: 0.09594555615 | J171: 0.1021981692 | L171: 0.1249556011 | S171: Tableau 13 | T171: Bouleau à papier | U171: OVOLgBpPIEDINC | V171: =VLOOKUP($U171,Output!$C:$AQ,V$160,FALSE) -> 3483728.606 | W171: =VLOOKUP($U171,Output!$C:$AQ,W$160,FALSE) -> 3258532.48 | X171: =VLOOKUP($U171,Output!$C:$AQ,X$160,FALSE) -> 3027917.2 | Y171: =VLOOKUP($U171,Output!$C:$AQ,Y$160,FALSE) -> 3122464.435 | Z171: 0.1240024974 | AA171: 0.1021986397 | AB171: 0.09526219381 | AC171: 0.101423212 | AE171: OVOLgBpPIEDSNAT | AF171: =VLOOKUP($AE171,Output!$C:$AQ,AF$160,FALSE) -> 899.15 | AG171: =VLOOKUP($AE171,Output!$C:$AQ,AG$160,FALSE) -> 850.028 | AH171: =VLOOKUP($AE171,Output!$C:$AQ,AH$160,FALSE) -> 977.6777778 | AI171: =VLOOKUP($AE171,Output!$C:$AQ,AI$160,FALSE) -> 996.002
B172: Bouleau jaune | C172: 943300 | D172: 1022100 | E172: 1052500 | F172: 997600 | G172: 0.03384363687 | H172: 0.03226468341 | I172: 0.03336175554 | J172: 0.03266150683 | L172: 0.03384363687 | S172: Tableau 13 | T172: Bouleau jaune | U172: OVOLBOJPIEDINC | V172: =VLOOKUP($U172,Output!$C:$AQ,V$160,FALSE) -> 943293.084 | W172: =VLOOKUP($U172,Output!$C:$AQ,W$160,FALSE) -> 1022119.838 | X172: =VLOOKUP($U172,Output!$C:$AQ,X$160,FALSE) -> 1052494.16 | Y172: =VLOOKUP($U172,Output!$C:$AQ,Y$160,FALSE) -> 997628.899 | Z172: 0.03357629465 | AA172: 0.03205714773 | AB172: 0.0331128284 | AC172: 0.03240476535 | AE172: OVOLBOJPIEDSNAT | AF172: =VLOOKUP($AE172,Output!$C:$AQ,AF$160,FALSE) -> 0 | AG172: =VLOOKUP($AE172,Output!$C:$AQ,AG$160,FALSE) -> 0 | AH172: =VLOOKUP($AE172,Output!$C:$AQ,AH$160,FALSE) -> 0 | AI172: =VLOOKUP($AE172,Output!$C:$AQ,AI$160,FALSE) -> 0
B173: Érable rouge | C173: 460200 | D173: 490100 | E173: 410900 | F173: 377500 | G173: 0.01651101631 | H173: 0.01547101198 | I173: 0.01302455615 | J173: 0.01235938134 | L173: 0.01651101631 | S173: Tableau 13 | T173: Érable rouge | U173: OVOLgEroPIEDINC | V173: =VLOOKUP($U173,Output!$C:$AQ,V$160,FALSE) -> 460209.258 | W173: =VLOOKUP($U173,Output!$C:$AQ,W$160,FALSE) -> 490050.146 | X173: =VLOOKUP($U173,Output!$C:$AQ,X$160,FALSE) -> 410924.5456 | Y173: =VLOOKUP($U173,Output!$C:$AQ,Y$160,FALSE) -> 377483.009 | Z173: 0.0163810399 | AA173: 0.01536963607 | AB173: 0.01292821802 | AC173: 0.01226132116 | AE173: OVOLgEroPIEDSNAT | AF173: =VLOOKUP($AE173,Output!$C:$AQ,AF$160,FALSE) -> 0 | AG173: =VLOOKUP($AE173,Output!$C:$AQ,AG$160,FALSE) -> 0 | AH173: =VLOOKUP($AE173,Output!$C:$AQ,AH$160,FALSE) -> 0 | AI173: =VLOOKUP($AE173,Output!$C:$AQ,AI$160,FALSE) -> 0
B174: Érable à sucre | C174: 215900 | D174: 251300 | E174: 290400 | F174: 285300 | G174: 0.007746041769 | H174: 0.007932800061 | I174: 0.009204991743 | J174: 0.009340745688 | L174: 0.007746041769 | S174: Tableau 13 | T174: Érable à sucre | U174: OVOLERSPIEDINC | V174: =VLOOKUP($U174,Output!$C:$AQ,V$160,FALSE) -> 215865.912 | W174: =VLOOKUP($U174,Output!$C:$AQ,W$160,FALSE) -> 251345.412 | X174: =VLOOKUP($U174,Output!$C:$AQ,X$160,FALSE) -> 290410.4689 | Y174: =VLOOKUP($U174,Output!$C:$AQ,Y$160,FALSE) -> 285265.148 | Z174: 0.007683696181 | AA174: 0.007883045318 | AB174: 0.009136689197 | AC174: 0.009265920618 | AE174: OVOLERSPIEDSNAT | AF174: =VLOOKUP($AE174,Output!$C:$AQ,AF$160,FALSE) -> 0 | AG174: =VLOOKUP($AE174,Output!$C:$AQ,AG$160,FALSE) -> 0 | AH174: =VLOOKUP($AE174,Output!$C:$AQ,AH$160,FALSE) -> 0 | AI174: =VLOOKUP($AE174,Output!$C:$AQ,AI$160,FALSE) -> 0
B175: Autres feuillus durs | C175: =ROUND(V175-AF175,-2) -> 33500 | D175: 38600 | E175: 46600 | F175: 48400 | G175: 0.00120191014 | H175: 0.001218488191 | I175: 0.001477109557 | J175: 0.001584620019 | L175: 0.00120191014 | S175: Tableau 13 | T175: Autres feuillus durs | V175: =V178-V176-V174-V173-V172-V171-V170-V169-V168-V167 -> 33522.704 | W175: =W178-W176-W174-W173-W172-W171-W170-W169-W168-W167 -> 38569.098 | X175: =X178-X176-X174-X173-X172-X171-X170-X169-X168-X167 -> 46632.47333 | Y175: =Y178-Y176-Y174-Y173-Y172-Y171-Y170-Y169-Y168-Y167 -> 48362.342 | Z175: 0.001193232736 | AA175: 0.001209657837 | AB175: 0.001467117962 | AC175: 0.001570895095 | AE175: Autres feuillus durs | AF175: =AF178-AF176-AF174-AF173-AF172-AF171-AF170-AF169-AF168-AF167 -> 0.01000000002 | AG175: =AG178-AG176-AG174-AG173-AG172-AG171-AG170-AG169-AG168-AG167 -> 0.00200000002 | AH175: =AH178-AH176-AH174-AH173-AH172-AH171-AH170-AH169-AH168-AH167 -> -4.493472261e-11 | AI175: =AI178-AI176-AI174-AI173-AI172-AI171-AI170-AI169-AI168-AI167 -> 0.0009999999946
B176: Autres essences | C176: =IF($L$163<0.0095,C163,0)+IF($L$164<0.0095,C164,0)+IF($L$165<0.0095,C165,0)+IF($L$166<0.0095,C166,0)+IF($L$167<0.0095,C167,0)+IF($L$168<0.0095,C168,0)+IF($L$169<0.0095,C169,0)+IF($L$170<0.0095,C170,0)+IF($L$171<0.0095,C171,0)+IF($L$172<0.0095,C172,0)+IF($L$173<0.0095,C173,0)+IF($L$174<0.0095,C174+0)+IF($L$175<0.0095,C175,0) -> 490600 | D176: =IF($L$163<0.0095,D163,0)+IF($L$164<0.0095,D164,0)+IF($L$165<0.0095,D165,0)+IF($L$166<0.0095,D166,0)+IF($L$167<0.0095,D167,0)+IF($L$168<0.0095,D168,0)+IF($L$169<0.0095,D169,0)+IF($L$170<0.0095,D170,0)+IF($L$171<0.0095,D171,0)+IF($L$172<0.0095,D172,0)+IF($L$173<0.0095,D173,0)+IF($L$174<0.0095,D174+0)+IF($L$175<0.0095,D175,0) -> 599100 | E176: =IF($L$163<0.0095,E163,0)+IF($L$164<0.0095,E164,0)+IF($L$165<0.0095,E165,0)+IF($L$166<0.0095,E166,0)+IF($L$167<0.0095,E167,0)+IF($L$168<0.0095,E168,0)+IF($L$169<0.0095,E169,0)+IF($L$170<0.0095,E170,0)+IF($L$171<0.0095,E171,0)+IF($L$172<0.0095,E172,0)+IF($L$173<0.0095,E173,0)+IF($L$174<0.0095,E174+0)+IF($L$175<0.0095,E175,0) -> 698600 | F176: =IF($L$163<0.0095,F163,0)+IF($L$164<0.0095,F164,0)+IF($L$165<0.0095,F165,0)+IF($L$166<0.0095,F166,0)+IF($L$167<0.0095,F167,0)+IF($L$168<0.0095,F168,0)+IF($L$169<0.0095,F169,0)+IF($L$170<0.0095,F170,0)+IF($L$171<0.0095,F171,0)+IF($L$172<0.0095,F172,0)+IF($L$173<0.0095,F173,0)+IF($L$174<0.0095,F174+0)+IF($L$175<0.0095,F175,0) -> 656100 | G176: 0.01760170492 | H176: 0.0189118206 | I176: 0.0221439643 | J176: 0.02148076848 | L176: 0.01760170492 | S176: Tableau 13 | T176: SEPM | U176: OVOLGSEPMPIEDINC | V176: =VLOOKUP($U176,Output!$C:$AQ,V$160,FALSE) -> 21001155.63 | W176: =VLOOKUP($U176,Output!$C:$AQ,W$160,FALSE) -> 25453175.84 | X176: =VLOOKUP($U176,Output!$C:$AQ,X$160,FALSE) -> 25392169.71 | Y176: =VLOOKUP($U176,Output!$C:$AQ,Y$160,FALSE) -> 24521038.02 | Z176: 0.7475311771 | AA176: 0.7982979957 | AB176: 0.7988705214 | AC176: 0.7964870345 | AE176: OVOLgSEPMPIEDSNAT | AF176: =VLOOKUP($AE176,Output!$C:$AQ,AF$160,FALSE) -> 220692.35 | AG176: =VLOOKUP($AE176,Output!$C:$AQ,AG$160,FALSE) -> 204704.396 | AH176: =VLOOKUP($AE176,Output!$C:$AQ,AH$160,FALSE) -> 235879.95 | AI176: =VLOOKUP($AE176,Output!$C:$AQ,AI$160,FALSE) -> 241715.096
B177: Total | C177: =ROUND(V178-AF178,-2) -> 27872300 | D177: =ROUND(W178-AG178,-2) -> 31678600 | E177: =ROUND(X178-AH178,-2) -> 31548100 | F177: =ROUND(Y178-AI178,-2) -> 30543600 | G177: 1 | H177: 1 | I177: 1 | J177: 1 | S177: Tableau 13 | T177: FN - ERS BOJ | U177: OVOLGFNPIEDINC | V177: =VLOOKUP($U177,Output!$C:$AQ,V$160,FALSE) -> 27650.74 | W177: =VLOOKUP($U177,Output!$C:$AQ,W$160,FALSE) -> 29784.334 | X177: =VLOOKUP($U177,Output!$C:$AQ,X$160,FALSE) -> 32327.86667 | Y177: =VLOOKUP($U177,Output!$C:$AQ,Y$160,FALSE) -> 32995.859 | Z177: 0.0009842215631 | AA177: 0.0009341378179 | AB177: 0.001017076524 | AC177: 0.00107176433 | AE177: OVOLgFnPIEDSNAT | AF177: =VLOOKUP($AE177,Output!$C:$AQ,AF$160,FALSE) -> 0 | AG177: =VLOOKUP($AE177,Output!$C:$AQ,AG$160,FALSE) -> 0 | AH177: =VLOOKUP($AE177,Output!$C:$AQ,AH$160,FALSE) -> 0 | AI177: =VLOOKUP($AE177,Output!$C:$AQ,AI$160,FALSE) -> 0
L178: Masquer les essences du tableau qui sont en surbrillance (< 1%) | S178: Tableau 13 | T178: TOT sur pied | U178: OVOLTOTPIEDINC | V178: =VLOOKUP($U178,Output!$C:$AQ,V$160,FALSE) -> 28094019.72 | W178: =VLOOKUP($U178,Output!$C:$AQ,W$160,FALSE) -> 31884303.83 | X178: =VLOOKUP($U178,Output!$C:$AQ,X$160,FALSE) -> 31785087.86 | Y178: =VLOOKUP($U178,Output!$C:$AQ,Y$160,FALSE) -> 30786487.36 | Z178: 1 | AA178: 1 | AB178: 1 | AC178: 1 | AE178: OVOLTOTPIEDSNAT | AF178: =VLOOKUP($AE178,Output!$C:$AQ,AF$160,FALSE) -> 221741.37 | AG178: =VLOOKUP($AE178,Output!$C:$AQ,AG$160,FALSE) -> 205673.886 | AH178: =VLOOKUP($AE178,Output!$C:$AQ,AH$160,FALSE) -> 237011.7522 | AI178: =VLOOKUP($AE178,Output!$C:$AQ,AI$160,FALSE) -> 242853.909
L179: Ces volumes sont comptabilisés dans "Autres essences" | S179: Tableau 13 | T179: Érables à sucre et rouge
D182: P2 | E182: P3 | F182: P4 | G182: P5 | H182: P6
B183: Tableau 15 Statistiques sur les compartiments d’organisation spatiale admissibles à la récolte par période
B184: Compartiments d'organisation spatiale | D184: 2023-2028 | E184: 2028-2033 | F184: 2033-2038 | G184: 2038-2043 | H184: 2043-2048
B185: Nombre total | D185: =Cedule_COS!G6 -> 240
B186: En pessière | D186: =COUNTIF(Cedule_COS!$A$10:$A$1009,"<S*") -> 240 | J186: Fait la sommation automatique des COS débutant par la lettre "P" ou par "C", valider et corriger si nécessaire
B187: En sapinière | D187: =COUNTIF(Cedule_COS!$A$10:$A$1009,"S*") -> 0 | J187: Fait la sommation automatique des COS débutant par la lettre "S", valider et corriger si nécessaire
B188: Admissibles à la récolte | D188: =Cedule_COS!C7 -> 43 | E188: =Cedule_COS!D7 -> 38 | F188: =Cedule_COS!E7 -> 48 | G188: =Cedule_COS!F7 -> 69 | H188: =Cedule_COS!G7 -> 36
B189: % de compartiments admissibles | D189: =Cedule_COS!C8 -> 0.1791666667 | E189: =Cedule_COS!D8 -> 0.1583333333 | F189: =Cedule_COS!E8 -> 0.2 | G189: =Cedule_COS!F8 -> 0.2875 | H189: =Cedule_COS!G8 -> 0.15
B193: Tableau 17 Superficies considérées pour l'analyse de la mortalité d'ici la période 2023-2028 | S193: =LEFT(B$193,11) -> Tableau 17 | T193: Légende | V193: Output | W193: Valeur | X193: Période | Y193: Année
F194: ha | G194: % | S194: =LEFT(B$193,11) -> Tableau 17 | T194: Incluses aux activités de récolte | V194: OSUPINC | W194: =VLOOKUP($V194,Output!$C:$AQ,6,FALSE) -> 338166.2 | X194: P0 | Y194: 2018
B195: Épidémie sévère confirmée à la photo-interprétation | F195: 0 | G195: =F195/W$194 -> 0 | J195: Faire une sélection sur le thème 8 = "INC" et seulement les années correspondant à l'épidémie actuelle | S195: =LEFT(B$193,11) -> Tableau 17 | T195: Épidémie sévère confirmée à la photo-interprétation | V195: Requete dans la table d'attribut
B196: Défoliation cumulative (cote ≥ 15) | F196: =ROUND(W196,-1) -> 21670 | G196: =F196/W$194 -> 0.06408091643 | J196: Des champs avaient été ajoutés par l'analyste à la fin de table d'attribut de la carte woodstock | S196: =LEFT(B$193,11) -> Tableau 17 | T196: Défoliation cumulative projetée 2023 ≥ 15 | V196: OSUPINC15+ | W196: =VLOOKUP($V196,Output!$C:$AQ,7,FALSE) -> 21665.39 | X196: P1 | Y196: 2023
B197: Mortalité projetée | F197: =ROUND(SUM(W197:W198),-1) -> 13280 | G197: =F197/W$194 -> 0.03927063083 | J197: et c'est sur ces derniers que doivent se réaliser les requêtes | S197: =LEFT(B$193,11) -> Tableau 17 | T197: Mortalité projetée (sommation des 2 actions) | V197: osupaTBEmort | W197: =VLOOKUP($V197,Output!$C:$AQ,8,FALSE) -> 12315 | X197: P2 | Y197: 2028
B198: Récupération prévue 2018-2023 | F198: =-ROUND(W199,-1) -> -1430 | G198: =F198/W$194 -> -0.004228689916 | V198: Osupactiontberetard | W198: =VLOOKUP($V198,Output!$C:$AQ,8,FALSE) -> 961 | X198: P2 | Y198: 2028
S199: =LEFT(B$193,11) -> Tableau 17 | T199: Récolte prévue à court terme (récupération) | V199: osuprealregapre_15+ | W199: =VLOOKUP($V199,Output!$C:$AQ,7,FALSE) -> 1426 | X199: P1 | Y199: 2023

Sheet Figures
B2: Figure 2. Répartition du volume de bois marchand sur pied en début de calcul (m3). | N2: Volume sur pied en P0 | S2: Source: CahierDetermination_2018-2023 | V2: Volume sur pied en P0 - volume en SNAT | Z2: Volume dans courbe SNAT
L3: Conserver les GTYF même s'ils sont absents de l'UA | S3: Intrants | T3: Légende | U3: Name | V3: PERIOD0 | W3: % | X3: PERIOD0 | Z3: Name | AB3: PERIOD0
N4: Total | O4: =V19 -> 22009400 | S4: =LEFT(B$2,10) -> Figure 2. | T4: Autres feuillus durs | V4: =ROUND(V19-V17-V11-V12-V10-V8-V9-V6-V5-V7,-2) -> 28700 | W4: =IFERROR(V4/$V$19,0) -> 0.001303988296 | X4: =X19-X17-X11-X12-X10-X8-X9-X6-X5-X7 -> 28677.89 | Z4: Autres feuillus durs | AB4: =ROUND(AB19-AB17-AB11-AB12-AB10-AB8-AB9-AB6-AB5-AB7,-2) -> 0
N5: % R | O5: =(V17+V12+V11+V10)/V19 -> 0.6657473625 | S5: Figure 2. | T5: Érable à sucre | U5: OVOLERSPIEDINC | V5: =ROUND(X5-AB5,-2) -> 169700 | W5: 0.007710341945 | X5: =VLOOKUP(U5,Output!$C:$AQ,6,FALSE) -> 169651.19 | Z5: OVOLERSPIEDSNAT | AB5: =VLOOKUP(Z5,Output!$C:$AQ,6,FALSE) -> 0
N6: %SEPM | O6: =V17/V19 -> 0.6599907312 | S6: Figure 2. | T6: Érable rouge | U6: OVOLgEroPIEDINC | V6: 373000 | W6: 0.01694730433 | X6: =VLOOKUP(U6,Output!$C:$AQ,6,FALSE) -> 373045.27 | Z6: OVOLgEroPIEDSNAT | AB6: =VLOOKUP(Z6,Output!$C:$AQ,6,FALSE) -> 0
N7: % Fi | O7: =W21 -> 0.2843239707 | P7: =O7*O4 -> 6257800 | S7: Figure 2. | T7: Bouleau jaune | U7: OVOLBOJPIEDINC | V7: 900500 | W7: 0.0409143366 | X7: =VLOOKUP(U7,Output!$C:$AQ,6,FALSE) -> 900544.61 | Z7: OVOLBOJPIEDSNAT | AB7: =VLOOKUP(Z7,Output!$C:$AQ,6,FALSE) -> 0
N8: % FT | O8: =W22 -> 0.04992866684 | S8: Figure 2. | T8: Bouleau à papier | U8: OVOLgBpPIEDINC | V8: 3457200 | W8: 0.1570783393 | X8: =VLOOKUP(U8,Output!$C:$AQ,6,FALSE) -> 3458099.53 | Z8: OVOLgBpPIEDSNAT | AB8: =VLOOKUP(Z8,Output!$C:$AQ,6,FALSE) -> 899.15
N9: %Sapin | O9: =V16/V17 -> 0.4679264767 | S9: Figure 2. | T9: Peupliers | U9: OVOLGPEUPIEDINC | V9: 2427600 | W9: 0.1102983271 | X9: =VLOOKUP(U9,Output!$C:$AQ,6,FALSE) -> 2427720.46 | Z9: OVOLPEUPIEDSNAT | AB9: =VLOOKUP(Z9,Output!$C:$AQ,6,FALSE) -> 149.86
N10: %ERR | O10: =IFERROR(V6/(V5+V6),0) -> 0.6873042196 | S10: Figure 2. | T10: Pins blanc et rouge | U10: OVOLGPINSPIEDINC | V10: 59900 | W10: 0.002721564422 | X10: =VLOOKUP(U10,Output!$C:$AQ,6,FALSE) -> 59875.06 | Z10: OVOLGPINSCPIEDSNAT | AB10: =VLOOKUP(Z10,Output!$C:$AQ,6,FALSE) -> 0
S11: Figure 2. | T11: Pruche | U11: OVOLPRUPIEDINC | V11: 600 | W11: 2.726107936e-05 | X11: =VLOOKUP(U11,Output!$C:$AQ,6,FALSE) -> 626.43 | Z11: OVOLPRUPIEDSNAT | AB11: =VLOOKUP(Z11,Output!$C:$AQ,6,FALSE) -> 0
N12: Volume sur pied au calcul 2015-2018 | P12: UA | S12: Figure 2. | T12: Thuya | U12: OVOLTHOPIEDINC | V12: 66200 | W12: 0.003007805756 | X12: =VLOOKUP(U12,Output!$C:$AQ,6,FALSE) -> 66249.07 | Z12: OVOLTHOPIEDSNAT | AB12: =VLOOKUP(Z12,Output!$C:$AQ,6,FALSE) -> 0
P13: =Tableaux!O33 -> 03772 | S13: Figure 2. | T13: Mélèzes | U13: OVOLgMlPIEDINC | V13: 68900 | W13: 0.003130480613 | X13: =VLOOKUP(U13,Output!$C:$AQ,6,FALSE) -> 73028.22 | Z13: OVOLGMlPIEDSNAT | AB13: =VLOOKUP(Z13,Output!$C:$AQ,6,FALSE) -> 4146.1
N14: Total | O14: =VLOOKUP(P13,DataLocal!$A:$BM,61,FALSE) -> 0 | S14: Figure 2. | T14: Pin gris | U14: OVOLgPgPIEDINC | V14: 784400 | W14: 0.03563931775 | X14: =VLOOKUP(U14,Output!$C:$AQ,6,FALSE) -> 784351.92 | Z14: OVOLgPgPIEDSNAT | AB14: =VLOOKUP(Z14,Output!$C:$AQ,6,FALSE) -> 0
N15: % R | O15: =VLOOKUP(P13,DataLocal!$A:$BM,62,FALSE) -> 0 | S15: Figure 2. | T15: Épinettes | U15: OVOLgEpxPIEDINC | V15: 6875600 | W15: 0.3123937954 | X15: =VLOOKUP(U15,Output!$C:$AQ,6,FALSE) -> 7085765.21 | Z15: OVOLgEpxPIEDSNAT | AB15: =VLOOKUP(Z15,Output!$C:$AQ,6,FALSE) -> 210152.27
N16: % SEPM | O16: =VLOOKUP(P13,DataLocal!$A:$BM,63,FALSE) -> 0 | S16: Figure 2. | T16: Sapin baumier | U16: OVOLSABPIEDINC | V16: =ROUND(X16-AB16,-2) -> 6797100 | W16: 0.3088271375 | X16: =VLOOKUP(U16,Output!$C:$AQ,6,FALSE) -> 6803542.03 | Z16: OVOLSABPIEDSNAT | AB16: =VLOOKUP(Z16,Output!$C:$AQ,6,FALSE) -> 6393.98
N17: % Fi | O17: =VLOOKUP(P13,DataLocal!$A:$BM,64,FALSE) -> 0 | S17: Figure 2. | T17: SEPM | U17: OVOLGSEPMPIEDINC | V17: =ROUND(X17-AB17,-2) -> 14526000 | W17: =IFERROR(V17/$V$19,0) -> 0.6599907312 | X17: =VLOOKUP(U17,Output!$C:$AQ,6,FALSE) -> 14746687.39 | Z17: OVOLgSEPMPIEDSNAT | AB17: =VLOOKUP(Z17,Output!$C:$AQ,6,FALSE) -> 220692.35
N18: % Ft | O18: =VLOOKUP(P13,DataLocal!$A:$BM,65,FALSE) -> 0 | S18: Figure 2. | T18: FN - ERS BOJ | U18: OVOLGFNPIEDINC | V18: 25000 | W18: 0.001135878307 | X18: =VLOOKUP(U18,Output!$C:$AQ,6,FALSE) -> 25012.76 | Z18: OVOLgFnPIEDSNAT | AB18: =VLOOKUP(Z18,Output!$C:$AQ,6,FALSE) -> 0
S19: Figure 2. | T19: TOT sur pied | U19: OVOLTOTPIEDINC | V19: =ROUND(X19-AB19,-2) -> 22009400 | W19: 1 | X19: =VLOOKUP(U19,Output!$C:$AQ,6,FALSE) -> 22231176.9 | Z19: OVOLTOTPIEDSNAT | AB19: =VLOOKUP(Z19,Output!$C:$AQ,6,FALSE) -> 221741.37
N20: Vol R | O20: =ROUND(O15*$O$14,-2) -> 0 | T20: Érables à sucre et rouge | U20: Érables à sucre et rouge | V20: =V5+V6 -> 542700 | W20: 0.02465764628 | X20: =X5+X6 -> 542696.46 | Z20: Érables à sucre et rouge | AB20: =AB5+AB6 -> 0
N21: Vol SEPM | O21: =ROUND(O16*$O$14,-2) -> 0 | P21: Traduits en m3 | T21: gFi | U21: OVOLgFiPIEDINC | V21: =ROUND(X21-AB21,-2) -> 6257800 | W21: 0.2843239707 | X21: =VLOOKUP(U21,Output!$C:$AQ,6,FALSE) -> 6258865.26 | Z21: OVOLgFiPIEDSNAT | AB21: =VLOOKUP(Z21,Output!$C:$AQ,6,FALSE) -> 1049.01
N22: Vol Fi | O22: =ROUND(O17*$O$14,-2) -> 0 | P22: approximativement | T22: gFt | U22: OVOLgFtPIEDINC | V22: 1098900 | W22: 0.04992866684 | X22: =VLOOKUP(U22,Output!$C:$AQ,6,FALSE) -> 1098873.69 | Z22: OVOLgFtPIEDSNAT | AB22: =VLOOKUP(Z22,Output!$C:$AQ,6,FALSE) -> 0
N23: Vol Ft | O23: =ROUND(O18*$O$14,-2) -> 0
B27: Type de couvert : | C27: =#REF! -> 
B28: Figure 3. Répartition de la superficie par grand type de forêt en début de calcul (ha). | S28: Intrants | T28: Légende | V28: PERIOD0 | W28: % | X28: PERIOD0
S29: =LEFT(B$28,10) -> Figure 3. | T29: Sapinières | U29: (FCTYF_SAB) | V29: =ROUND(X29,-1) -> 111030 | W29: =V29/V$44 -> 0.3287351469 | X29: =VLOOKUP("OSUPINC"&$U29,GTYF!$C:$AP,6,FALSE) -> 111025.1
S30: Figure 3. | T30: Résineux à feuillus | U30: (FCTYF_RF) | V30: =ROUND(X30,-1) -> 46140 | W30: 0.1366102826 | X30: =VLOOKUP("OSUPINC"&$U30,GTYF!$C:$AP,6,FALSE) -> 46143.8
S31: Figure 3. | T31: Prucheraies | U31: (FCTYF_PRU) | V31: 0 | W31: 0 | X31: =VLOOKUP("OSUPINC"&$U31,GTYF!$C:$AP,6,FALSE) -> 0
S32: Figure 3. | T32: Pinèdes grises | U32: (FCTYF_PIG) | V32: 1330 | W32: 0.003937834327 | X32: =VLOOKUP("OSUPINC"&$U32,GTYF!$C:$AP,6,FALSE) -> 1327.1
L33: Conserver les GTYF même s'ils sont absents de l'UA | S33: Figure 3. | T33: Pinèdes blanches | U33: (FCTYF_PIN) | V33: 0 | W33: 0 | X33: =VLOOKUP("OSUPINC"&$U33,GTYF!$C:$AP,6,FALSE) -> 0
S34: Figure 3. | T34: Peupleraies à résineux | U34: (FCTYF_PEUR) | V34: 6490 | W34: 0.01921544721 | X34: =VLOOKUP("OSUPINC"&$U34,GTYF!$C:$AP,6,FALSE) -> 6488.4
S35: Figure 3. | T35: Peupleraies | U35: (FCTYF_PEU) | V35: 11740 | W35: 0.03475953008 | X35: =VLOOKUP("OSUPINC"&$U35,GTYF!$C:$AP,6,FALSE) -> 11739.8
S36: Figure 3. | T36: Pessières | U36: (FCTYF_EPX) | V36: 114220 | W36: 0.3381800277 | X36: =VLOOKUP("OSUPINC"&$U36,GTYF!$C:$AP,6,FALSE) -> 114218.1
S37: Figure 3. | T37: Feuillus tolérants à résineux | U37: (FCTYF_FTR) | V37: 5690 | W37: 0.01684682505 | X37: =VLOOKUP("OSUPINC"&$U37,GTYF!$C:$AP,6,FALSE) -> 5691.6
S38: Figure 3. | T38: Feuillus tolérants | U38: (FCTYF_FT) | V38: 3760 | W38: 0.01113252411 | X38: =VLOOKUP("OSUPINC"&$U38,GTYF!$C:$AP,6,FALSE) -> 3763.1
S39: Figure 3. | T39: Érablières rouges | U39: (FCTYF_ERO) | V39: 1140 | W39: 0.003375286566 | X39: =VLOOKUP("OSUPINC"&$U39,GTYF!$C:$AP,6,FALSE) -> 1144.6
S40: Figure 3. | T40: Cédrières | U40: (FCTYF_THO) | V40: 0 | W40: 0 | X40: =VLOOKUP("OSUPINC"&$U40,GTYF!$C:$AP,6,FALSE) -> 0
S41: Figure 3. | T41: Bétulaies blanches à résineux | U41: (FCTYF_BOPR) | V41: 19870 | W41: 0.05883065269 | X41: =VLOOKUP("OSUPINC"&$U41,GTYF!$C:$AP,6,FALSE) -> 19872.3
S42: Figure 3. | T42: Bétulaies blanches | U42: (FCTYF_BOP) | V42: 10610 | W42: 0.03141385129 | X42: =VLOOKUP("OSUPINC"&$U42,GTYF!$C:$AP,6,FALSE) -> 10610.9
U43: Somme: | V43: =SUM(V29:V42) -> 332020 | X43: =SUM(X29:X42) -> 332024.8
T44: OSUPINC | U44: Tous | V44: =VLOOKUP("OSUPINC",Output!$C:$AP,7,FALSE) -> 337749.1
V45: =V43-V44 -> -5729.1 | W45: Écart
V49: 2018
B50: Figure 4. Superficie destinée à l'aménagement forestier par classe d'âge en début de calcul (ha). | S50: Intrants | U50: Name | V50: PERIOD0 | X50: Classe d'âge | Y50: OUTPUT | Z50: Superficie (ha) | AA50: Pourcentage (%)
S51: =LEFT(B$50,10) -> Figure 4. | T51: 10 ans | U51: OSUP_INC_CLASSEAGEFCAGEAGE1 | V51: =VLOOKUP(U51,Output!$C:$AQ,6,FALSE) -> 11585.8 | X51: 10 | Z51: =ROUND(SUM(V51:V54),-1) -> 44180 | AA51: =IFERROR(Z51/$V$89,0) -> 0.1306458185
S52: Figure 4. | T52: 10 ans | U52: OSUP_INC_CLASSEAGEFCAGEAGE2 | V52: =VLOOKUP(U52,Output!$C:$AQ,6,FALSE) -> 3394.5 | X52: 30 | Z52: =ROUND(SUM(V55:V58),-1) -> 86160 | AA52: 0.2547859603
S53: Figure 4. | T53: 10 ans | U53: OSUP_INC_CLASSEAGEFCAGEAGE3 | V53: =VLOOKUP(U53,Output!$C:$AQ,6,FALSE) -> 14547.2 | X53: 50 | Z53: =ROUND(SUM(V59:V62),-1) -> 100660 | AA53: 0.2976642846
S54: Figure 4. | T54: 10 ans | U54: OSUP_INC_CLASSEAGEFCAGEAGE4 | V54: =VLOOKUP(U54,Output!$C:$AQ,6,FALSE) -> 14656.6 | X54: 70 | Z54: =ROUND(SUM(V63:V66),-1) -> 58440 | AA54: 0.1728144327
S55: Figure 4. | T55: 30 ans | U55: OSUP_INC_CLASSEAGEFCAGEAGE5 | V55: =VLOOKUP(U55,Output!$C:$AQ,6,FALSE) -> 18719.6 | X55: 90 | Z55: =ROUND(SUM(V67:V70),-1) -> 19340 | AA55: 0.05719081327
S56: Figure 4. | T56: 30 ans | U56: OSUP_INC_CLASSEAGEFCAGEAGE6 | V56: =VLOOKUP(U56,Output!$C:$AQ,6,FALSE) -> 16841.9 | X56: 120 et plus | Z56: =ROUND(SUM(V71:V80),-1) -> 18790 | AA56: 0.05556439408
S57: Figure 4. | T57: 30 ans | U57: OSUP_INC_CLASSEAGEFCAGEAGE7 | V57: =VLOOKUP(U57,Output!$C:$AQ,6,FALSE) -> 33118.2
S58: Figure 4. | T58: 30 ans | U58: OSUP_INC_CLASSEAGEFCAGEAGE8 | V58: =VLOOKUP(U58,Output!$C:$AQ,6,FALSE) -> 17483.7
S59: Figure 4. | T59: 50 ans | U59: OSUP_INC_CLASSEAGEFCAGEAGE9 | V59: =VLOOKUP(U59,Output!$C:$AQ,6,FALSE) -> 39043.3
S60: Figure 4. | T60: 50 ans | U60: OSUP_INC_CLASSEAGEFCAGEAGE10 | V60: =VLOOKUP(U60,Output!$C:$AQ,6,FALSE) -> 12773.8
S61: Figure 4. | T61: 50 ans | U61: OSUP_INC_CLASSEAGEFCAGEAGE11 | V61: =VLOOKUP(U61,Output!$C:$AQ,6,FALSE) -> 28728.3
N62: Proportion de la superficie dont l'évolution est suivi en âge: | S62: Figure 4. | T62: 50 ans | U62: OSUP_INC_CLASSEAGEFCAGEAGE12 | V62: =VLOOKUP(U62,Output!$C:$AQ,6,FALSE) -> 20112.4
N63: =IF(AND($W$81>=99.5%,$W$81<100%),"> 99%",IF(AND($W$81>=0.1%,$W$81<0.5%),"< 1%",$W$81)) -> 0.9686565363 | S63: Figure 4. | T63: 70 ans | U63: OSUP_INC_CLASSEAGEFCAGEAGE13 | V63: =VLOOKUP(U63,Output!$C:$AQ,6,FALSE) -> 10657.7
S64: Figure 4. | T64: 70 ans | U64: OSUP_INC_CLASSEAGEFCAGEAGE14 | V64: =VLOOKUP(U64,Output!$C:$AQ,6,FALSE) -> 27122.7
S65: Figure 4. | T65: 70 ans | U65: OSUP_INC_CLASSEAGEFCAGEAGE15 | V65: =VLOOKUP(U65,Output!$C:$AQ,6,FALSE) -> 9149
S66: Figure 4. | T66: 70 ans | U66: OSUP_INC_CLASSEAGEFCAGEAGE16 | V66: =VLOOKUP(U66,Output!$C:$AQ,6,FALSE) -> 11508.6
S67: Figure 4. | T67: 90 ans | U67: OSUP_INC_CLASSEAGEFCAGEAGE17 | V67: =VLOOKUP(U67,Output!$C:$AQ,6,FALSE) -> 5242.3
S68: Figure 4. | T68: 90 ans | U68: OSUP_INC_CLASSEAGEFCAGEAGE18 | V68: =VLOOKUP(U68,Output!$C:$AQ,6,FALSE) -> 7144.1
B69: Figure 5. Superficie destinée à l'aménagement forestier par classe de surface terrière en début de calcul (ha) | S69: Figure 4. | T69: 90 ans | U69: OSUP_INC_CLASSEAGEFCAGEAGE19 | V69: =VLOOKUP(U69,Output!$C:$AQ,6,FALSE) -> 3386.9
S70: Figure 4. | T70: 90 ans | U70: OSUP_INC_CLASSEAGEFCAGEAGE20 | V70: =VLOOKUP(U70,Output!$C:$AQ,6,FALSE) -> 3565
S71: Figure 4. | T71: 120 et plus | U71: OSUP_INC_CLASSEAGEFCAGEAGE21 | V71: =VLOOKUP(U71,Output!$C:$AQ,6,FALSE) -> 1957.1
S72: Figure 4. | T72: 120 et plus | U72: OSUP_INC_CLASSEAGEFCAGEAGE22 | V72: =VLOOKUP(U72,Output!$C:$AQ,6,FALSE) -> 1792.4
S73: Figure 4. | T73: 120 et plus | U73: OSUP_INC_CLASSEAGEFCAGEAGE23 | V73: =VLOOKUP(U73,Output!$C:$AQ,6,FALSE) -> 885.5
S74: Figure 4. | T74: 120 et plus | U74: OSUP_INC_CLASSEAGEFCAGEAGE24 | V74: =VLOOKUP(U74,Output!$C:$AQ,6,FALSE) -> 0
S75: Figure 4. | T75: 120 et plus | U75: OSUP_INC_CLASSEAGEFCAGEAGE25 | V75: =VLOOKUP(U75,Output!$C:$AQ,6,FALSE) -> 0
N76: Proportion de la superficie dont l'évolution est suivi en surface terrière: | S76: Figure 4. | T76: 120 et plus | U76: OSUP_INC_CLASSEAGEFCAGEAGE26 | V76: =VLOOKUP(U76,Output!$C:$AQ,6,FALSE) -> 0
N77: =IF(AND($W$88>=99.5%,$W$88<100%),"> 99%",IF(AND($W$88>=0.1%,$W$88<0.5%),"< 1%",$W$88)) -> 0.03134346366 | S77: Figure 4. | T77: 120 et plus | U77: OSUP_INC_CLASSEAGEFCAGEAGE27 | V77: =VLOOKUP(U77,Output!$C:$AQ,6,FALSE) -> 508.7
S78: Figure 4. | T78: 120 et plus | U78: OSUP_INC_CLASSEAGEFCAGEAGE28 | V78: =VLOOKUP(U78,Output!$C:$AQ,6,FALSE) -> 95.1
S79: Figure 4. | T79: 120 et plus | U79: OSUP_INC_CLASSEAGEFCAGEAGE29 | V79: =VLOOKUP(U79,Output!$C:$AQ,6,FALSE) -> 0
S80: Figure 4. | T80: 120 et plus | U80: OSUP_INC_CLASSEAGEFCAGEAGE30+ | V80: =VLOOKUP(U80,Output!$C:$AQ,6,FALSE) -> 13546.5
U81: Sous-total | V81: =SUM(V51:V80) -> 327566.9 | W81: =V81/V89 -> 0.9686565363
S82: =LEFT(B$69,10) -> Figure 5. | T82: <16 | U82: OSUPINC_ST016(FCST) | V82: =VLOOKUP(U82,GTYF!$C:$AQ,6,FALSE) -> 0 | W82: =IFERROR(V82/$V$88,0) -> 0
S83: Figure 5. | T83: 16 à 18 | U83: OSUPINC_ST1619(FCST) | V83: =VLOOKUP(U83,GTYF!$C:$AQ,6,FALSE) -> 1919.9 | W83: 0.1811346032
S84: Figure 5. | T84: 19 à 21 | U84: OSUPINC_ST1922(FCST) | V84: =VLOOKUP(U84,GTYF!$C:$AQ,6,FALSE) -> 1499.1 | W84: 0.1414338683
S85: Figure 5. | T85: 22 à 24 | U85: OSUPINC_ST2225(FCST) | V85: =VLOOKUP(U85,GTYF!$C:$AQ,6,FALSE) -> 7180.3 | W85: 0.6774315285
S86: Figure 5. | T86: 25 à 28 | U86: OSUPINC_ST2528(FCST) | V86: =VLOOKUP(U86,GTYF!$C:$AQ,6,FALSE) -> 0 | W86: 0
S87: Figure 5. | T87: 29+ | U87: OSUPINC_ST29+(FCST) | V87: =VLOOKUP(U87,GTYF!$C:$AQ,6,FALSE) -> 0 | W87: 0
S88: Figure 5. | T88: Total 0-29+ | U88: Sous-total | V88: =SUM(V82:V87) -> 10599.3 | W88: =V88/V89 -> 0.03134346366
U89: OSUPINC | V89: =VLOOKUP(U89,Output!$C:$AQ,6,FALSE) -> 338166.2
A91: 80 | B91: Figure 6. Évolution des volumes et des possibilités forestières à rendement non-décroissant
U93: Période | V93: P0 | W93: P1 | X93: P2 | Y93: P3 | Z93: P4 | AA93: P5 | AB93: P6 | AC93: P7 | AD93: P8 | AE93: P9 | AF93: P10 | AG93: P11 | AH93: P12 | AI93: P13 | AJ93: P14 | AK93: P15 | AL93: P16 | AM93: P17 | AN93: P18 | AO93: P19 | AP93: P20 | AQ93: P21 | AR93: P22 | AS93: P23 | AT93: P24 | AU93: P25 | AV93: P26 | AW93: P27 | AX93: P28 | AY93: P29 | AZ93: P30
U94: Colonne | V94: 6 | W94: 7 | X94: 8 | Y94: 9 | Z94: 10 | AA94: 11 | AB94: 12 | AC94: 13 | AD94: 14 | AE94: 15 | AF94: 16 | AG94: 17 | AH94: 18 | AI94: 19 | AJ94: 20 | AK94: 21 | AL94: 22 | AM94: 23 | AN94: 24 | AO94: 25 | AP94: 26 | AQ94: 27 | AR94: 28 | AS94: 29 | AT94: 30 | AU94: 31 | AV94: 32 | AW94: 33 | AX94: 34 | AY94: 35 | AZ94: 36
S95: =LEFT(B$91,10) -> Figure 6. | T95: Légende | U95: Axe des "X" Début de période | W95: 2018 | X95: 2023 | Y95: 2028 | Z95: 2033 | AA95: 2038 | AB95: 2043 | AC95: 2048 | AD95: 2053 | AE95: 2058 | AF95: 2063 | AG95: 2068 | AH95: 2073 | AI95: 2078 | AJ95: 2083 | AK95: 2088 | AL95: 2093 | AM95: 2098 | AN95: 2103 | AO95: 2108 | AP95: 2113 | AQ95: 2118 | AR95: 2123 | AS95: 2128 | AT95: 2133 | AU95: 2138 | AV95: 2143 | AW95: 2148 | AX95: 2153 | AY95: 2158 | AZ95: 2163
S96: =LEFT(B$91,10) -> Figure 6. | T96: Possibilités forestières quinquennales | U96: OVOLTOTREC | V96: =VLOOKUP($U96,Output!$C:$AM,V$94,FALSE) -> 0 | W96: =VLOOKUP($U96,Output!$C:$AM,W$94,FALSE) -> 1431940.02 | X96: =VLOOKUP($U96,Output!$C:$AM,X$94,FALSE) -> 1549700 | Y96: =VLOOKUP($U96,Output!$C:$AM,Y$94,FALSE) -> 1549700 | Z96: =VLOOKUP($U96,Output!$C:$AM,Z$94,FALSE) -> 1549700 | AA96: =VLOOKUP($U96,Output!$C:$AM,AA$94,FALSE) -> 1549700 | AB96: =VLOOKUP($U96,Output!$C:$AM,AB$94,FALSE) -> 1549700 | AC96: =VLOOKUP($U96,Output!$C:$AM,AC$94,FALSE) -> 1851813.76 | AD96: =VLOOKUP($U96,Output!$C:$AM,AD$94,FALSE) -> 2360737.9 | AE96: =VLOOKUP($U96,Output!$C:$AM,AE$94,FALSE) -> 2606455.56 | AF96: =VLOOKUP($U96,Output!$C:$AM,AF$94,FALSE) -> 2606457.49 | AG96: =VLOOKUP($U96,Output!$C:$AM,AG$94,FALSE) -> 2822275.07 | AH96: =VLOOKUP($U96,Output!$C:$AM,AH$94,FALSE) -> 2822275.65 | AI96: =VLOOKUP($U96,Output!$C:$AM,AI$94,FALSE) -> 2822282.24 | AJ96: =VLOOKUP($U96,Output!$C:$AM,AJ$94,FALSE) -> 2822282.24 | AK96: =VLOOKUP($U96,Output!$C:$AM,AK$94,FALSE) -> 2822282.74 | AL96: =VLOOKUP($U96,Output!$C:$AM,AL$94,FALSE) -> 2823912.56 | AM96: =VLOOKUP($U96,Output!$C:$AM,AM$94,FALSE) -> 2823912.56 | AN96: =VLOOKUP($U96,Output!$C:$AM,AN$94,FALSE) -> 2823912.56 | AO96: =VLOOKUP($U96,Output!$C:$AM,AO$94,FALSE) -> 2826316.96 | AP96: =VLOOKUP($U96,Output!$C:$AM,AP$94,FALSE) -> 2826316.96 | AQ96: =VLOOKUP($U96,Output!$C:$AM,AQ$94,FALSE) -> 2826316.96 | AR96: =VLOOKUP($U96,Output!$C:$AM,AR$94,FALSE) -> 2826316.96 | AS96: =VLOOKUP($U96,Output!$C:$AM,AS$94,FALSE) -> 2826316.96 | AT96: =VLOOKUP($U96,Output!$C:$AM,AT$94,FALSE) -> 2826316.96 | AU96: =VLOOKUP($U96,Output!$C:$AM,AU$94,FALSE) -> 2826316.96 | AV96: =VLOOKUP($U96,Output!$C:$AM,AV$94,FALSE) -> 2826316.96 | AW96: =VLOOKUP($U96,Output!$C:$AM,AW$94,FALSE) -> 2826316.96 | AX96: =VLOOKUP($U96,Output!$C:$AM,AX$94,FALSE) -> 2826317.16 | AY96: =VLOOKUP($U96,Output!$C:$AM,AY$94,FALSE) -> 2826317.16 | AZ96: =VLOOKUP($U96,Output!$C:$AM,AZ$94,FALSE) -> 2826317.16
S97: =LEFT(B$91,10) -> Figure 6. | T97: Volume à maturité | U97: OVOLMATUREADM | V97: =VLOOKUP($U97,Output!$C:$AM,V$94,FALSE) -> 9364211.27 | W97: =VLOOKUP($U97,Output!$C:$AM,W$94,FALSE) -> 9586316.3 | X97: =VLOOKUP($U97,Output!$C:$AM,X$94,FALSE) -> 11019035.95 | Y97: =VLOOKUP($U97,Output!$C:$AM,Y$94,FALSE) -> 13484180.06 | Z97: =VLOOKUP($U97,Output!$C:$AM,Z$94,FALSE) -> 15794595.44 | AA97: =VLOOKUP($U97,Output!$C:$AM,AA$94,FALSE) -> 18339402.8 | AB97: =VLOOKUP($U97,Output!$C:$AM,AB$94,FALSE) -> 20820231.47 | AC97: =VLOOKUP($U97,Output!$C:$AM,AC$94,FALSE) -> 21662699.76 | AD97: =VLOOKUP($U97,Output!$C:$AM,AD$94,FALSE) -> 22744333.46 | AE97: =VLOOKUP($U97,Output!$C:$AM,AE$94,FALSE) -> 21501563.36 | AF97: =VLOOKUP($U97,Output!$C:$AM,AF$94,FALSE) -> 22750622.73 | AG97: =VLOOKUP($U97,Output!$C:$AM,AG$94,FALSE) -> 21552858.22 | AH97: =VLOOKUP($U97,Output!$C:$AM,AH$94,FALSE) -> 20201220.64 | AI97: =VLOOKUP($U97,Output!$C:$AM,AI$94,FALSE) -> 20413239.35 | AJ97: =VLOOKUP($U97,Output!$C:$AM,AJ$94,FALSE) -> 20947289.71 | AK97: =VLOOKUP($U97,Output!$C:$AM,AK$94,FALSE) -> 20964398.23 | AL97: =VLOOKUP($U97,Output!$C:$AM,AL$94,FALSE) -> 21816561.8 | AM97: =VLOOKUP($U97,Output!$C:$AM,AM$94,FALSE) -> 22903724.75 | AN97: =VLOOKUP($U97,Output!$C:$AM,AN$94,FALSE) -> 22544271.67 | AO97: =VLOOKUP($U97,Output!$C:$AM,AO$94,FALSE) -> 22992688.19 | AP97: =VLOOKUP($U97,Output!$C:$AM,AP$94,FALSE) -> 22630655.83 | AQ97: =VLOOKUP($U97,Output!$C:$AM,AQ$94,FALSE) -> 22534483.12 | AR97: =VLOOKUP($U97,Output!$C:$AM,AR$94,FALSE) -> 21655318.26 | AS97: =VLOOKUP($U97,Output!$C:$AM,AS$94,FALSE) -> 21123242.08 | AT97: =VLOOKUP($U97,Output!$C:$AM,AT$94,FALSE) -> 20764957.5 | AU97: =VLOOKUP($U97,Output!$C:$AM,AU$94,FALSE) -> 20546784.97 | AV97: =VLOOKUP($U97,Output!$C:$AM,AV$94,FALSE) -> 20417278.2 | AW97: =VLOOKUP($U97,Output!$C:$AM,AW$94,FALSE) -> 19721125.21 | AX97: =VLOOKUP($U97,Output!$C:$AM,AX$94,FALSE) -> 19700703.89 | AY97: =VLOOKUP($U97,Output!$C:$AM,AY$94,FALSE) -> 19891186.59 | AZ97: =VLOOKUP($U97,Output!$C:$AM,AZ$94,FALSE) -> 20085490.72
S98: =LEFT(B$91,10) -> Figure 6. | T98: Volume sur pied | U98: OVOLTOTPIEDINC | V98: =VLOOKUP($U98,Output!$C:$AM,V$94,FALSE) -> 22231176.9 | W98: =VLOOKUP($U98,Output!$C:$AM,W$94,FALSE) -> 24175881.63 | X98: =VLOOKUP($U98,Output!$C:$AM,X$94,FALSE) -> 25376393.21 | Y98: =VLOOKUP($U98,Output!$C:$AM,Y$94,FALSE) -> 26836924.68 | Z98: =VLOOKUP($U98,Output!$C:$AM,Z$94,FALSE) -> 28179351.19 | AA98: =VLOOKUP($U98,Output!$C:$AM,AA$94,FALSE) -> 29447361.6 | AB98: =VLOOKUP($U98,Output!$C:$AM,AB$94,FALSE) -> 30630067.9 | AC98: =VLOOKUP($U98,Output!$C:$AM,AC$94,FALSE) -> 31487770.83 | AD98: =VLOOKUP($U98,Output!$C:$AM,AD$94,FALSE) -> 31853881.49 | AE98: =VLOOKUP($U98,Output!$C:$AM,AE$94,FALSE) -> 31954309.44 | AF98: =VLOOKUP($U98,Output!$C:$AM,AF$94,FALSE) -> 32099722.68 | AG98: =VLOOKUP($U98,Output!$C:$AM,AG$94,FALSE) -> 32025834.69 | AH98: =VLOOKUP($U98,Output!$C:$AM,AH$94,FALSE) -> 31991123.77 | AI98: =VLOOKUP($U98,Output!$C:$AM,AI$94,FALSE) -> 31975868.98 | AJ98: =VLOOKUP($U98,Output!$C:$AM,AJ$94,FALSE) -> 31985222.01 | AK98: =VLOOKUP($U98,Output!$C:$AM,AK$94,FALSE) -> 31963026.2 | AL98: =VLOOKUP($U98,Output!$C:$AM,AL$94,FALSE) -> 31887068.26 | AM98: =VLOOKUP($U98,Output!$C:$AM,AM$94,FALSE) -> 31823301.34 | AN98: =VLOOKUP($U98,Output!$C:$AM,AN$94,FALSE) -> 31626174.14 | AO98: =VLOOKUP($U98,Output!$C:$AM,AO$94,FALSE) -> 31452120.74 | AP98: =VLOOKUP($U98,Output!$C:$AM,AP$94,FALSE) -> 31361885.3 | AQ98: =VLOOKUP($U98,Output!$C:$AM,AQ$94,FALSE) -> 31308957.66 | AR98: =VLOOKUP($U98,Output!$C:$AM,AR$94,FALSE) -> 31118619.51 | AS98: =VLOOKUP($U98,Output!$C:$AM,AS$94,FALSE) -> 30949482.63 | AT98: =VLOOKUP($U98,Output!$C:$AM,AT$94,FALSE) -> 30828369.35 | AU98: =VLOOKUP($U98,Output!$C:$AM,AU$94,FALSE) -> 30605706.58 | AV98: =VLOOKUP($U98,Output!$C:$AM,AV$94,FALSE) -> 30605706.58 | AW98: =VLOOKUP($U98,Output!$C:$AM,AW$94,FALSE) -> 30605706.58 | AX98: =VLOOKUP($U98,Output!$C:$AM,AX$94,FALSE) -> 30605706.58 | AY98: =VLOOKUP($U98,Output!$C:$AM,AY$94,FALSE) -> 30630911.57 | AZ98: =VLOOKUP($U98,Output!$C:$AM,AZ$94,FALSE) -> 30605706.58
S99: =LEFT(B$91,10) -> Figure 6. | T99: Volume récoltable | U99: OVOLTOTADMREGAPRE | V99: =VLOOKUP($U99,Output!$C:$AM,V$94,FALSE) -> 0 | W99: =VLOOKUP($U99,Output!$C:$AM,W$94,FALSE) -> 3720503.41 | X99: =VLOOKUP($U99,Output!$C:$AM,X$94,FALSE) -> 2611057.25 | Y99: =VLOOKUP($U99,Output!$C:$AM,Y$94,FALSE) -> 2597154.74 | Z99: =VLOOKUP($U99,Output!$C:$AM,Z$94,FALSE) -> 3923503.46 | AA99: =VLOOKUP($U99,Output!$C:$AM,AA$94,FALSE) -> 5115462.61 | AB99: =VLOOKUP($U99,Output!$C:$AM,AB$94,FALSE) -> 4431377.63 | AC99: =VLOOKUP($U99,Output!$C:$AM,AC$94,FALSE) -> 6146899.91 | AD99: =VLOOKUP($U99,Output!$C:$AM,AD$94,FALSE) -> 6117190.23 | AE99: =VLOOKUP($U99,Output!$C:$AM,AE$94,FALSE) -> 6492500.17 | AF99: =VLOOKUP($U99,Output!$C:$AM,AF$94,FALSE) -> 9399425.86 | AG99: =VLOOKUP($U99,Output!$C:$AM,AG$94,FALSE) -> 6975140.79 | AH99: =VLOOKUP($U99,Output!$C:$AM,AH$94,FALSE) -> 6579605.47 | AI99: =VLOOKUP($U99,Output!$C:$AM,AI$94,FALSE) -> 7852968.67 | AJ99: =VLOOKUP($U99,Output!$C:$AM,AJ$94,FALSE) -> 7572371.19 | AK99: =VLOOKUP($U99,Output!$C:$AM,AK$94,FALSE) -> 8983327.1 | AL99: =VLOOKUP($U99,Output!$C:$AM,AL$94,FALSE) -> 5668281.02 | AM99: =VLOOKUP($U99,Output!$C:$AM,AM$94,FALSE) -> 6027891.86 | AN99: =VLOOKUP($U99,Output!$C:$AM,AN$94,FALSE) -> 6894443.02 | AO99: =VLOOKUP($U99,Output!$C:$AM,AO$94,FALSE) -> 6199519.99 | AP99: =VLOOKUP($U99,Output!$C:$AM,AP$94,FALSE) -> 9318070.36 | AQ99: =VLOOKUP($U99,Output!$C:$AM,AQ$94,FALSE) -> 4975802.54 | AR99: =VLOOKUP($U99,Output!$C:$AM,AR$94,FALSE) -> 5722824.54 | AS99: =VLOOKUP($U99,Output!$C:$AM,AS$94,FALSE) -> 5983192.03 | AT99: =VLOOKUP($U99,Output!$C:$AM,AT$94,FALSE) -> 5461802.64 | AU99: =VLOOKUP($U99,Output!$C:$AM,AU$94,FALSE) -> 8410318.15 | AV99: =VLOOKUP($U99,Output!$C:$AM,AV$94,FALSE) -> 4843954.63 | AW99: =VLOOKUP($U99,Output!$C:$AM,AW$94,FALSE) -> 5917020.81 | AX99: =VLOOKUP($U99,Output!$C:$AM,AX$94,FALSE) -> 5937479.6 | AY99: =VLOOKUP($U99,Output!$C:$AM,AY$94,FALSE) -> 5279623.3 | AZ99: =VLOOKUP($U99,Output!$C:$AM,AZ$94,FALSE) -> 8180576.1
T116: * Source: Cahier_analyse, Tableau 13, onglet Budget | X116: Moyenne P2 à P6
B117: Figure 7. Répartition du budget annuel par familles de traitements prévus à la stratégie d’aménagement et coût moyen à l’hectare par famille de traitements
S118: =LEFT(B$117,10) -> Figure 7. | T118: Légende | U118: Output taux | V118: Output superficie | W118: $/ha | X118: ha | Y118: $
S119: =LEFT(B$117,10) -> Figure 7. | T119: Coupes avec protection de la régénération et des sols (CPRS) | U119: OTAUXCT_100 | V119: OSUPCT | W119: =IFERROR(VLOOKUP(U119,Output!$C:$AQ,37,FALSE),0) -> 0 | X119: =IFERROR(VLOOKUP(V119,Output!$C:$AQ,37,FALSE),"0000")/5 -> 1975.534 | Y119: =W119*X119 -> 0
S120: =LEFT(B$117,10) -> Figure 7. | T120: Coupe avec protection des petites tiges marchandes (CPPTM) | V120: OSUPREALaCPPTM | W120: =IFERROR(VLOOKUP(U120,Output!$C:$AQ,8,FALSE),0) -> 0 | X120: =IFERROR(VLOOKUP(V120,Output!$C:$AQ,37,FALSE),"0000")/5 -> 58.4616 | Y120: =W120*X120 -> 0
S121: =LEFT(B$117,10) -> Figure 7. | T121: Coupe avec réserve de semenciers (CRS) | V121: OSUPREALaCRS | W121: =IFERROR(VLOOKUP(U121,Output!$C:$AQ,8,FALSE),0) -> 0 | X121: =IFERROR(VLOOKUP(V121,Output!$C:$AQ,37,FALSE),"0000")/5 -> 0 | Y121: 0
T122: Coupe à rétention variable (CRV, CPPTM, CPPTM, CPHR, CDL)
S123: =LEFT(B$117,10) -> Figure 7. | T123: Coupes finales | W123: =(ROUND(Y123/X123,0))&"$/ha" -> 0$/ha | X123: =SUM(X119:X121) -> 2033.9956 | Y123: =SUM(Y119:Y121) -> 0
S124: Figure 7. | T124: Éclaircie commerciale (EC) | U124: OTAUXEC_SEPM_100 | V124: OSUPEC_SEPM | W124: =IFERROR(VLOOKUP(U124,Output!$C:$AQ,37,FALSE),0) -> 1280 | X124: =IFERROR(VLOOKUP(V124,Output!$C:$AQ,37,FALSE),"0000")/5 -> 83 | Y124: 106240
S125: Figure 7. | T125: Coupe progressive régulière initiale (CPROG) | U125: OTAUXCPROG_INI_100 | V125: OSUPCPROG_INI | W125: =IFERROR(VLOOKUP(U125,Output!$C:$AQ,37,FALSE),0) -> 480 | X125: =IFERROR(VLOOKUP(V125,Output!$C:$AQ,37,FALSE),"0000")/5 -> 0 | Y125: 0
S126: Figure 7. | T126: Coupe progressive régulière finale (CPROG) | U126: OTAUXCPROG_FIN_100 | V126: OSUPCPROG_FIN | W126: =IFERROR(VLOOKUP(U126,Output!$C:$AQ,37,FALSE),0) -> 0 | X126: =IFERROR(VLOOKUP(V126,Output!$C:$AQ,37,FALSE),"0000")/5 -> 0 | Y126: 0
S127: Figure 7. | T127: Coupe progessive irrégulière initiale (CPIRL) | U127: OTAUXCPIRL_INI_100 | V127: OSUPCPIRL_INI | W127: =IFERROR(VLOOKUP(U127,Output!$C:$AQ,37,FALSE),0) -> 400 | X127: =IFERROR(VLOOKUP(V127,Output!$C:$AQ,37,FALSE),"0000")/5 -> 185.0452 | Y127: 74018.08
S128: Figure 7. | T128: Coupe progessive irrégulière finale (CPIRL) | U128: OTAUXCPIRL_FIN_100 | V128: OSUPCPIRL_FIN | W128: =IFERROR(VLOOKUP(U128,Output!$C:$AQ,37,FALSE),0) -> 0 | X128: =IFERROR(VLOOKUP(V128,Output!$C:$AQ,37,FALSE),"0000")/5 -> 0 | Y128: 0
S129: Figure 7. | T129: Coupe à couvert permanent (CPICP) | U129: OTAUXCPICP_100 | V129: OSUPCPICP | W129: =IFERROR(VLOOKUP(U129,Output!$C:$AQ,37,FALSE),0) -> 430 | X129: =IFERROR(VLOOKUP(V129,Output!$C:$AQ,37,FALSE),"0000")/5 -> 1.8 | Y129: 774
S130: Figure 7. | T130: Coupe de jardinage (CJ) | U130: OTAUXCJ_100 | V130: OSUPCJ | W130: =IFERROR(VLOOKUP(U130,Output!$C:$AQ,37,FALSE),0) -> 680.44 | X130: =IFERROR(VLOOKUP(V130,Output!$C:$AQ,37,FALSE),"0000")/5 -> 0 | Y130: 0
S131: Figure 7. | T131: Coupes partielles | W131: =(ROUND(Y131/X131,0))&"$/ha" -> 671$/ha | X131: =SUM(X124:X130) -> 269.8452 | Y131: =SUM(Y124:Y130) -> 181032.08
S132: Figure 7. | T132: Plantation ligniculture (pins, feuillus) | U132: OTAUXPL_PPF_100 | V132: OSUPPL_PPF | W132: =IFERROR(VLOOKUP(U132,Output!$C:$AQ,37,FALSE),0) -> 1640 | X132: =IFERROR(VLOOKUP(V132,Output!$C:$AQ,37,FALSE),"0000")/5 -> 0 | Y132: 0
S133: Figure 7. | T133: Plantation intensive | U133: OTAUXPL_SEPM_I_100 | V133: OSUPPL_SEPM_I | W133: =IFERROR(VLOOKUP(U133,Output!$C:$AQ,37,FALSE),0) -> 1610 | X133: =IFERROR(VLOOKUP(V133,Output!$C:$AQ,37,FALSE),"0000")/5 -> 375.2812 | Y133: 604202.732
S134: Figure 7. | T134: Plantation de base | U134: OTAUXPL_SEPM_E_100 | V134: OSUPPL_SEPM_E | W134: =IFERROR(VLOOKUP(U134,Output!$C:$AQ,37,FALSE),0) -> 1280 | X134: =IFERROR(VLOOKUP(V134,Output!$C:$AQ,37,FALSE),"0000")/5 -> 98.532 | Y134: 126120.96
S135: Figure 7. | T135: Regarni | U135: OTAUXREG_100 | V135: OSUPREG | W135: =IFERROR(VLOOKUP(U135,Output!$C:$AQ,37,FALSE),0) -> 530 | X135: =IFERROR(VLOOKUP(V135,Output!$C:$AQ,37,FALSE),"0000")/5 -> 19.7548 | Y135: 10470.044
S136: Figure 7. | T136: Ensemencement (ENS) | U136: OTAUXENS_100 | V136: OSUPENS | W136: =IFERROR(VLOOKUP(U136,Output!$C:$AQ,37,FALSE),0) -> 130 | X136: =IFERROR(VLOOKUP(V136,Output!$C:$AQ,37,FALSE),"0000")/5 -> 0 | Y136: =W136*X136 -> 0
S137: Figure 7. | T137: Reboisement | W137: =(ROUND(Y137/X137,0))&"$/ha" -> 1501$/ha | X137: =SUM(X132:X136) -> 493.568 | Y137: =SUM(Y132:Y136) -> 740793.736
S138: Figure 7. | T138: Dégagement de la régénération naturelle | U138: OTAUXDEG_2_100 | V138: OSUPDEG_2 | W138: =IFERROR(VLOOKUP(U138,Output!$C:$AQ,37,FALSE),0) -> 1720 | X138: =IFERROR(VLOOKUP(V138,Output!$C:$AQ,37,FALSE),"0000")/5 -> 10.148 | Y138: 17454.56
S139: Figure 7. | T139: Dégagement de plantation | U139: OTAUXDEG_1_100 | V139: OSUPDEG_1 | W139: =IFERROR(VLOOKUP(U139,Output!$C:$AQ,37,FALSE),0) -> 1720 | X139: =IFERROR(VLOOKUP(V139,Output!$C:$AQ,37,FALSE),"0000")/5 -> 474.974 | Y139: 816955.28
S140: Figure 7. | T140: Nettoiement de la régénération naturelle | U140: OTAUXNETT_100 | V140: OSUPREALNET | W140: =IFERROR(VLOOKUP(U140,Output!$C:$AQ,37,FALSE),0) -> 1230 | X140: =IFERROR(VLOOKUP(V140,Output!$C:$AQ,37,FALSE),"0000")/5-X141 -> 422.3068 | Y140: 519437.364
C141: $ /m3 | E141: $ /ha | S141: Figure 7. | T141: Nettoiement de plantation | U141: OTAUXNETT_100 | V141: OSUPTCADNETT_T100% | W141: =IFERROR(VLOOKUP(U141,Output!$C:$AQ,37,FALSE),0) -> 1230 | X141: =IFERROR(VLOOKUP(V141,Output!$C:$AQ,37,FALSE),"0000")/5 -> 296.1388 | Y141: 364250.724
C142: =Y151/(Instructions!I5/5) -> 10.41294005 | E142: =Y151/Tableaux!F33 -> 9.720458521 | S142: Figure 7. | T142: Éclaircie précommerciale (EPC_1) | U142: OTAUXEPC_1_100 | V142: OSUPEPC_1 | W142: =IFERROR(VLOOKUP(U142,Output!$C:$AQ,37,FALSE),0) -> 1560 | X142: =IFERROR(VLOOKUP(V142,Output!$C:$AQ,37,FALSE),"0000")/5 -> 181.5036 | Y142: 283145.616
S143: Figure 7. | T143: Éclaircie précommerciale (EPC_2) | U143: OTAUXEPC_2_100 | V143: OSUPEPC_2 | W143: =IFERROR(VLOOKUP(U143,Output!$C:$AQ,37,FALSE),0) -> 1560 | X143: =IFERROR(VLOOKUP(V143,Output!$C:$AQ,37,FALSE),"0000")/5 -> 0 | Y143: 0
S144: Figure 7. | T144: Éclaircie précommerciale de la régénération naturelle | V144: OSUPREALEPC | W144: =IFERROR(VLOOKUP(U144,Output!$C:$AQ,37,FALSE),0) -> 0 | X144: =IFERROR(VLOOKUP(V144,Output!$C:$AQ,37,FALSE),"0000")/5 -> 181.5036 | Y144: 0
S145: Figure 7. | T145: Élagage (plantation) | U145: OTAUXELAG_100 | V145: OSUPELAG | W145: =IFERROR(VLOOKUP(U145,Output!$C:$AQ,37,FALSE),0) -> 1630 | X145: =IFERROR(VLOOKUP(V145,Output!$C:$AQ,37,FALSE),"0000")/5 -> 0 | Y145: 0
S146: Figure 7. | T146: Travaux d'éducation | W146: =(ROUND(Y146/X146,0))&"$/ha" -> 1445$/ha | X146: =SUM(X138:X143)+X145 -> 1385.0712 | Y146: =SUM(Y138:Y143)+Y145 -> 2001243.544
S147: Figure 7. | T147: Préparation terrain lignicult. + ferti + élagage (SCA_LIGN) | U147: OTAUXSCA_LIGN_100 | V147: OSUPSCA_LIGN | W147: =IFERROR(VLOOKUP(U147,Output!$C:$AQ,37,FALSE),0) -> 1760 | X147: =IFERROR(VLOOKUP(V147,Output!$C:$AQ,37,FALSE),"0000")/5 -> 0 | Y147: 0
S148: Figure 7. | T148: Préparation de terrain partielle (SCA_PART) | U148: OTAUXSCA_PART_100 | V148: OSUPSCA_PART | W148: =IFERROR(VLOOKUP(U148,Output!$C:$AQ,37,FALSE),0) -> 730 | X148: =IFERROR(VLOOKUP(V148,Output!$C:$AQ,37,FALSE),"0000")/5 -> 51.188 | Y148: 37367.24
S149: Figure 7. | T149: Préparation de terrain régulière, 1 passage (SCA_REG) | U149: OTAUXSCA_REG_100 | V149: OSUPSCA_REG | W149: =IFERROR(VLOOKUP(U149,Output!$C:$AQ,37,FALSE),0) -> 560 | X149: =IFERROR(VLOOKUP(V149,Output!$C:$AQ,37,FALSE),"0000")/5 -> 476.6952 | Y149: 266949.312 | AA149: Valideur
B150: Figure 9b Évolution de la superficie des vieilles forêts selon leur degré d'altération | S150: Figure 7. | T150: Préparation de terrain | W150: =(ROUND(Y150/X150,0))&"$/ha" -> 576$/ha | X150: =SUM(X147:X149) -> 527.8832 | Y150: =SUM(Y147:Y149) -> 304316.552 | Z150: =Y123+Y131+Y137+Y146+Y150 -> 3227385.912 | AA150: =Y151-Z150 -> 0.7259999998
S151: Figure 7. | T151: Investissement sylvicole annuel (O$INVESTISTS)* | V151: O$INVESTISTS | Y151: =IFERROR(VLOOKUP(V151,Output!$C:$AQ,37,FALSE),"0000")/5 -> 3227386.638
S155: =LEFT(B$117,10) -> Figure 7. | T155: =T123 -> Coupes finales | U155: =Y123 -> 0 | V155: =W123 -> 0$/ha
S156: =LEFT(B$117,10) -> Figure 7. | T156: =T131 -> Coupes partielles | U156: =Y131 -> 181032.08 | V156: =W131 -> 671$/ha
S157: =LEFT(B$117,10) -> Figure 7. | T157: =T137 -> Reboisement | U157: =Y137 -> 740793.736 | V157: =W137 -> 1501$/ha
S158: =LEFT(B$117,10) -> Figure 7. | T158: =T146 -> Travaux d'éducation | U158: =Y146 -> 2001243.544 | V158: =W146 -> 1445$/ha
S159: =LEFT(B$117,10) -> Figure 7. | T159: =T150 -> Préparation de terrain | U159: =Y150 -> 304316.552 | V159: =W150 -> 576$/ha
U161: Période | V161: P0 | W161: P1 | X161: P2 | Y161: P3 | Z161: P4 | AA161: P5 | AB161: P6 | AC161: P7 | AD161: P8 | AE161: P9 | AF161: P10 | AG161: P11 | AH161: P12 | AI161: P13 | AJ161: P14 | AK161: P15 | AL161: P16 | AM161: P17 | AN161: P18 | AO161: P19 | AP161: P20 | AQ161: P21 | AR161: P22 | AS161: P23 | AT161: P24 | AU161: P25 | AV161: P26 | AW161: P27 | AX161: P28 | AY161: P29 | AZ161: P30
S162: =LEFT(B$150,10) -> Figure 9b | U162: Axe des "X" Fin de période | V162: 2018 | W162: 2023 | X162: 2028 | Y162: 2033 | Z162: 2038 | AA162: 2043 | AB162: 2048 | AC162: 2053 | AD162: 2058 | AE162: 2063 | AF162: 2068 | AG162: 2073 | AH162: 2078 | AI162: 2083 | AJ162: 2088 | AK162: 2093 | AL162: 2098 | AM162: 2103 | AN162: 2108 | AO162: 2113 | AP162: 2118 | AQ162: 2123 | AR162: 2128 | AS162: 2133 | AT162: 2138 | AU162: 2143 | AV162: 2148 | AW162: 2153 | AX162: 2158 | AY162: 2163 | AZ162: 2168
S163: Figure 9b | U163: Colonne | V163: 6 | W163: 7 | X163: 8 | Y163: 9 | Z163: 10 | AA163: 11 | AB163: 12 | AC163: 13 | AD163: 14 | AE163: 15 | AF163: 16 | AG163: 17 | AH163: 18 | AI163: 19 | AJ163: 20 | AK163: 21 | AL163: 22 | AM163: 23 | AN163: 24 | AO163: 25 | AP163: 26 | AQ163: 27 | AR163: 28 | AS163: 29 | AT163: 30 | AU163: 31 | AV163: 32 | AW163: 33 | AX163: 34 | AY163: 35 | AZ163: 36
S164: Figure 9b | U164: OSUPREGECO | V164: =VLOOKUP($U164,Output!$C:$AL,V$163,FALSE) -> 578131.2 | W164: =VLOOKUP($U164,Output!$C:$AL,W$163,FALSE) -> 577714.1 | X164: =VLOOKUP($U164,Output!$C:$AL,X$163,FALSE) -> 577276.52 | Y164: =VLOOKUP($U164,Output!$C:$AL,Y$163,FALSE) -> 576811.92 | Z164: =VLOOKUP($U164,Output!$C:$AL,Z$163,FALSE) -> 576422.48 | AA164: =VLOOKUP($U164,Output!$C:$AL,AA$163,FALSE) -> 575995.88 | AB164: =VLOOKUP($U164,Output!$C:$AL,AB$163,FALSE) -> 575687.47 | AC164: =VLOOKUP($U164,Output!$C:$AL,AC$163,FALSE) -> 575282.87 | AD164: =VLOOKUP($U164,Output!$C:$AL,AD$163,FALSE) -> 574906.97 | AE164: =VLOOKUP($U164,Output!$C:$AL,AE$163,FALSE) -> 574309.82 | AF164: =VLOOKUP($U164,Output!$C:$AL,AF$163,FALSE) -> 573736.38 | AG164: =VLOOKUP($U164,Output!$C:$AL,AG$163,FALSE) -> 573421.46 | AH164: =VLOOKUP($U164,Output!$C:$AL,AH$163,FALSE) -> 572816.97 | AI164: =VLOOKUP($U164,Output!$C:$AL,AI$163,FALSE) -> 572128.87 | AJ164: =VLOOKUP($U164,Output!$C:$AL,AJ$163,FALSE) -> 571617.34 | AK164: =VLOOKUP($U164,Output!$C:$AL,AK$163,FALSE) -> 571108.87 | AL164: =VLOOKUP($U164,Output!$C:$AL,AL$163,FALSE) -> 570521.37 | AM164: =VLOOKUP($U164,Output!$C:$AL,AM$163,FALSE) -> 570277.33 | AN164: =VLOOKUP($U164,Output!$C:$AL,AN$163,FALSE) -> 570065.3 | AO164: =VLOOKUP($U164,Output!$C:$AL,AO$163,FALSE) -> 569905.91 | AP164: =VLOOKUP($U164,Output!$C:$AL,AP$163,FALSE) -> 569700.11 | AQ164: =VLOOKUP($U164,Output!$C:$AL,AQ$163,FALSE) -> 569642.54 | AR164: =VLOOKUP($U164,Output!$C:$AL,AR$163,FALSE) -> 569561.77 | AS164: =VLOOKUP($U164,Output!$C:$AL,AS$163,FALSE) -> 569542.01 | AT164: =VLOOKUP($U164,Output!$C:$AL,AT$163,FALSE) -> 569527.06 | AU164: =VLOOKUP($U164,Output!$C:$AL,AU$163,FALSE) -> 569440.99 | AV164: =VLOOKUP($U164,Output!$C:$AL,AV$163,FALSE) -> 569436.21 | AW164: =VLOOKUP($U164,Output!$C:$AL,AW$163,FALSE) -> 569425.41 | AX164: =VLOOKUP($U164,Output!$C:$AL,AX$163,FALSE) -> 569422.48 | AY164: =VLOOKUP($U164,Output!$C:$AL,AY$163,FALSE) -> 569421.66 | AZ164: =VLOOKUP($U164,Output!$C:$AL,AZ$163,FALSE) -> 569325.78
S165: Figure 9b | T165: Élevé | U165: OSUPVIEUXALERTEREGECO | V165: =VLOOKUP($U165,Output!$C:$AL,V$163,FALSE) -> 133730.11 | W165: =VLOOKUP($U165,Output!$C:$AL,W$163,FALSE) -> 133646.05 | X165: =VLOOKUP($U165,Output!$C:$AL,X$163,FALSE) -> 133553.69 | Y165: =VLOOKUP($U165,Output!$C:$AL,Y$163,FALSE) -> 133459.46 | Z165: =VLOOKUP($U165,Output!$C:$AL,Z$163,FALSE) -> 133370.5 | AA165: =VLOOKUP($U165,Output!$C:$AL,AA$163,FALSE) -> 133276.52 | AB165: =VLOOKUP($U165,Output!$C:$AL,AB$163,FALSE) -> 133208.82 | AC165: =VLOOKUP($U165,Output!$C:$AL,AC$163,FALSE) -> 133118.43 | AD165: =VLOOKUP($U165,Output!$C:$AL,AD$163,FALSE) -> 133042.7 | AE165: =VLOOKUP($U165,Output!$C:$AL,AE$163,FALSE) -> 132904.31 | AF165: =VLOOKUP($U165,Output!$C:$AL,AF$163,FALSE) -> 132775.88 | AG165: =VLOOKUP($U165,Output!$C:$AL,AG$163,FALSE) -> 132708.16 | AH165: =VLOOKUP($U165,Output!$C:$AL,AH$163,FALSE) -> 132577.61 | AI165: =VLOOKUP($U165,Output!$C:$AL,AI$163,FALSE) -> 132421.88 | AJ165: =VLOOKUP($U165,Output!$C:$AL,AJ$163,FALSE) -> 132298.31 | AK165: =VLOOKUP($U165,Output!$C:$AL,AK$163,FALSE) -> 132187.51 | AL165: =VLOOKUP($U165,Output!$C:$AL,AL$163,FALSE) -> 132051.6 | AM165: =VLOOKUP($U165,Output!$C:$AL,AM$163,FALSE) -> 131995.18 | AN165: =VLOOKUP($U165,Output!$C:$AL,AN$163,FALSE) -> 131943.33 | AO165: =VLOOKUP($U165,Output!$C:$AL,AO$163,FALSE) -> 131903.05 | AP165: =VLOOKUP($U165,Output!$C:$AL,AP$163,FALSE) -> 131855.9 | AQ165: =VLOOKUP($U165,Output!$C:$AL,AQ$163,FALSE) -> 131842.73 | AR165: =VLOOKUP($U165,Output!$C:$AL,AR$163,FALSE) -> 131823.55 | AS165: =VLOOKUP($U165,Output!$C:$AL,AS$163,FALSE) -> 131818.92 | AT165: =VLOOKUP($U165,Output!$C:$AL,AT$163,FALSE) -> 131816.09 | AU165: =VLOOKUP($U165,Output!$C:$AL,AU$163,FALSE) -> 131794.69 | AV165: =VLOOKUP($U165,Output!$C:$AL,AV$163,FALSE) -> 131793.66 | AW165: =VLOOKUP($U165,Output!$C:$AL,AW$163,FALSE) -> 131790.87 | AX165: =VLOOKUP($U165,Output!$C:$AL,AX$163,FALSE) -> 131790.12 | AY165: =VLOOKUP($U165,Output!$C:$AL,AY$163,FALSE) -> 131789.9 | AZ165: =VLOOKUP($U165,Output!$C:$AL,AZ$163,FALSE) -> 131765.22
S166: Figure 9b | U166: OSUPVIEUXACCEPTREGECO | V166: =VLOOKUP($U166,Output!$C:$AL,V$163,FALSE) -> 222883.51 | W166: =VLOOKUP($U166,Output!$C:$AL,W$163,FALSE) -> 222743.42 | X166: =VLOOKUP($U166,Output!$C:$AL,X$163,FALSE) -> 222589.48 | Y166: =VLOOKUP($U166,Output!$C:$AL,Y$163,FALSE) -> 222432.44 | Z166: =VLOOKUP($U166,Output!$C:$AL,Z$163,FALSE) -> 222284.17 | AA166: =VLOOKUP($U166,Output!$C:$AL,AA$163,FALSE) -> 222127.54 | AB166: =VLOOKUP($U166,Output!$C:$AL,AB$163,FALSE) -> 222014.69 | AC166: =VLOOKUP($U166,Output!$C:$AL,AC$163,FALSE) -> 221864.05 | AD166: =VLOOKUP($U166,Output!$C:$AL,AD$163,FALSE) -> 221737.84 | AE166: =VLOOKUP($U166,Output!$C:$AL,AE$163,FALSE) -> 221507.19 | AF166: =VLOOKUP($U166,Output!$C:$AL,AF$163,FALSE) -> 221293.14 | AG166: =VLOOKUP($U166,Output!$C:$AL,AG$163,FALSE) -> 221180.26 | AH166: =VLOOKUP($U166,Output!$C:$AL,AH$163,FALSE) -> 220962.68 | AI166: =VLOOKUP($U166,Output!$C:$AL,AI$163,FALSE) -> 220703.14 | AJ166: =VLOOKUP($U166,Output!$C:$AL,AJ$163,FALSE) -> 220497.18 | AK166: =VLOOKUP($U166,Output!$C:$AL,AK$163,FALSE) -> 220312.51 | AL166: =VLOOKUP($U166,Output!$C:$AL,AL$163,FALSE) -> 220086 | AM166: =VLOOKUP($U166,Output!$C:$AL,AM$163,FALSE) -> 219991.97 | AN166: =VLOOKUP($U166,Output!$C:$AL,AN$163,FALSE) -> 219905.56 | AO166: =VLOOKUP($U166,Output!$C:$AL,AO$163,FALSE) -> 219838.41 | AP166: =VLOOKUP($U166,Output!$C:$AL,AP$163,FALSE) -> 219759.84 | AQ166: =VLOOKUP($U166,Output!$C:$AL,AQ$163,FALSE) -> 219737.88 | AR166: =VLOOKUP($U166,Output!$C:$AL,AR$163,FALSE) -> 219705.91 | AS166: =VLOOKUP($U166,Output!$C:$AL,AS$163,FALSE) -> 219698.2 | AT166: =VLOOKUP($U166,Output!$C:$AL,AT$163,FALSE) -> 219693.49 | AU166: =VLOOKUP($U166,Output!$C:$AL,AU$163,FALSE) -> 219657.82 | AV166: =VLOOKUP($U166,Output!$C:$AL,AV$163,FALSE) -> 219656.09 | AW166: =VLOOKUP($U166,Output!$C:$AL,AW$163,FALSE) -> 219651.45 | AX166: =VLOOKUP($U166,Output!$C:$AL,AX$163,FALSE) -> 219650.19 | AY166: =VLOOKUP($U166,Output!$C:$AL,AY$163,FALSE) -> 219649.84 | AZ166: =VLOOKUP($U166,Output!$C:$AL,AZ$163,FALSE) -> 219608.7
S167: Figure 9b | T167: Moyen | V167: =V166-V165 -> 89153.4 | W167: =W166-W165 -> 89097.37 | X167: 89035.79 | Y167: 88972.98 | Z167: 88913.67 | AA167: 88851.02 | AB167: 88805.87 | AC167: 88745.62 | AD167: 88695.14 | AE167: 88602.88 | AF167: 88517.26 | AG167: 88472.1 | AH167: 88385.07 | AI167: 88281.26 | AJ167: 88198.87 | AK167: 88125 | AL167: 88034.4 | AM167: 87996.79 | AN167: 87962.23 | AO167: 87935.36 | AP167: 87903.94 | AQ167: 87895.15 | AR167: 87882.36 | AS167: 87879.28 | AT167: 87877.4 | AU167: 87863.13 | AV167: 87862.43 | AW167: 87860.58 | AX167: 87860.07 | AY167: 87859.94 | AZ167: 87843.48
S168: Figure 9b | T168: Faible | V168: =$V$164-V165-V167 -> 355247.69 | W168: 355387.78 | X168: 355541.72 | Y168: 355698.76 | Z168: 355847.03 | AA168: 356003.66 | AB168: 356116.51 | AC168: 356267.15 | AD168: 356393.36 | AE168: 356624.01 | AF168: 356838.06 | AG168: 356950.94 | AH168: 357168.52 | AI168: 357428.06 | AJ168: 357634.02 | AK168: 357818.69 | AL168: 358045.2 | AM168: 358139.23 | AN168: 358225.64 | AO168: 358292.79 | AP168: 358371.36 | AQ168: 358393.32 | AR168: 358425.29 | AS168: 358433 | AT168: 358437.71 | AU168: 358473.38 | AV168: 358475.11 | AW168: 358479.75 | AX168: 358481.01 | AY168: 358481.36 | AZ168: 358522.5
S169: Figure 9b | T169: Niveau prédit | U169: OSUPVIEUXTOTREGECO | V169: =VLOOKUP($U169,Output!$C:$AL,V$163,FALSE) -> 120903.2 | W169: =VLOOKUP($U169,Output!$C:$AL,W$163,FALSE) -> 147987.81 | X169: =VLOOKUP($U169,Output!$C:$AL,X$163,FALSE) -> 193675.8 | Y169: =VLOOKUP($U169,Output!$C:$AL,Y$163,FALSE) -> 210153.62 | Z169: =VLOOKUP($U169,Output!$C:$AL,Z$163,FALSE) -> 239258.31 | AA169: =VLOOKUP($U169,Output!$C:$AL,AA$163,FALSE) -> 274752.9 | AB169: =VLOOKUP($U169,Output!$C:$AL,AB$163,FALSE) -> 286898.13 | AC169: =VLOOKUP($U169,Output!$C:$AL,AC$163,FALSE) -> 334802.22 | AD169: =VLOOKUP($U169,Output!$C:$AL,AD$163,FALSE) -> 346321.87 | AE169: =VLOOKUP($U169,Output!$C:$AL,AE$163,FALSE) -> 379720.98 | AF169: =VLOOKUP($U169,Output!$C:$AL,AF$163,FALSE) -> 382688.06 | AG169: =VLOOKUP($U169,Output!$C:$AL,AG$163,FALSE) -> 392752.59 | AH169: =VLOOKUP($U169,Output!$C:$AL,AH$163,FALSE) -> 397370.29 | AI169: =VLOOKUP($U169,Output!$C:$AL,AI$163,FALSE) -> 397773.01 | AJ169: =VLOOKUP($U169,Output!$C:$AL,AJ$163,FALSE) -> 386802.37 | AK169: =VLOOKUP($U169,Output!$C:$AL,AK$163,FALSE) -> 382890.1 | AL169: =VLOOKUP($U169,Output!$C:$AL,AL$163,FALSE) -> 371397.95 | AM169: =VLOOKUP($U169,Output!$C:$AL,AM$163,FALSE) -> 368107.67 | AN169: =VLOOKUP($U169,Output!$C:$AL,AN$163,FALSE) -> 364981.76 | AO169: =VLOOKUP($U169,Output!$C:$AL,AO$163,FALSE) -> 359139.99 | AP169: =VLOOKUP($U169,Output!$C:$AL,AP$163,FALSE) -> 357496.36 | AQ169: =VLOOKUP($U169,Output!$C:$AL,AQ$163,FALSE) -> 353170.44 | AR169: =VLOOKUP($U169,Output!$C:$AL,AR$163,FALSE) -> 352928.7 | AS169: =VLOOKUP($U169,Output!$C:$AL,AS$163,FALSE) -> 351967.83 | AT169: =VLOOKUP($U169,Output!$C:$AL,AT$163,FALSE) -> 351175.2 | AU169: =VLOOKUP($U169,Output!$C:$AL,AU$163,FALSE) -> 351886.45 | AV169: =VLOOKUP($U169,Output!$C:$AL,AV$163,FALSE) -> 355691.25 | AW169: =VLOOKUP($U169,Output!$C:$AL,AW$163,FALSE) -> 360834.2 | AX169: =VLOOKUP($U169,Output!$C:$AL,AX$163,FALSE) -> 363812.67 | AY169: =VLOOKUP($U169,Output!$C:$AL,AY$163,FALSE) -> 364107.07 | AZ169: =VLOOKUP($U169,Output!$C:$AL,AZ$163,FALSE) -> 365616.83
S170: Figure 9b | T170: Portrait préindustriel
B176: Figure 9c Évolution de la superficie des peuplements en régénération selon leur degré d'altération
U177: Période | V177: P0 | W177: P1 | X177: P2 | Y177: P3 | Z177: P4 | AA177: P5 | AB177: P6 | AC177: P7 | AD177: P8 | AE177: P9 | AF177: P10 | AG177: P11 | AH177: P12 | AI177: P13 | AJ177: P14 | AK177: P15 | AL177: P16 | AM177: P17 | AN177: P18 | AO177: P19 | AP177: P20 | AQ177: P21 | AR177: P22 | AS177: P23 | AT177: P24 | AU177: P25 | AV177: P26 | AW177: P27 | AX177: P28 | AY177: P29 | AZ177: P30
U178: Axe des "X" Fin de période | V178: 2018 | W178: 2023 | X178: 2028 | Y178: 2033 | Z178: 2038 | AA178: 2043 | AB178: 2048 | AC178: 2053 | AD178: 2058 | AE178: 2063 | AF178: 2068 | AG178: 2073 | AH178: 2078 | AI178: 2083 | AJ178: 2088 | AK178: 2093 | AL178: 2098 | AM178: 2103 | AN178: 2108 | AO178: 2113 | AP178: 2118 | AQ178: 2123 | AR178: 2128 | AS178: 2133 | AT178: 2138 | AU178: 2143 | AV178: 2148 | AW178: 2153 | AX178: 2158 | AY178: 2163 | AZ178: 2168
S179: =LEFT(B$176,10) -> Figure 9c | U179: Colonne | V179: 6 | W179: 7 | X179: 8 | Y179: 9 | Z179: 10 | AA179: 11 | AB179: 12 | AC179: 13 | AD179: 14 | AE179: 15 | AF179: 16 | AG179: 17 | AH179: 18 | AI179: 19 | AJ179: 20 | AK179: 21 | AL179: 22 | AM179: 23 | AN179: 24 | AO179: 25 | AP179: 26 | AQ179: 27 | AR179: 28 | AS179: 29 | AT179: 30 | AU179: 31 | AV179: 32 | AW179: 33 | AX179: 34 | AY179: 35 | AZ179: 36
S180: Figure 9c | T180: Niveau prédit | U180: OSUPJEUNEREGECO | V180: =VLOOKUP($U180,Output!$C:$AL,V$179,FALSE) -> 31936.6 | W180: =VLOOKUP($U180,Output!$C:$AL,W$179,FALSE) -> 24490.2 | X180: =VLOOKUP($U180,Output!$C:$AL,X$179,FALSE) -> 30956.48 | Y180: =VLOOKUP($U180,Output!$C:$AL,Y$179,FALSE) -> 29066.32 | Z180: =VLOOKUP($U180,Output!$C:$AL,Z$179,FALSE) -> 29792.98 | AA180: =VLOOKUP($U180,Output!$C:$AL,AA$179,FALSE) -> 28627.85 | AB180: =VLOOKUP($U180,Output!$C:$AL,AB$179,FALSE) -> 26847.7 | AC180: =VLOOKUP($U180,Output!$C:$AL,AC$179,FALSE) -> 29179.39 | AD180: =VLOOKUP($U180,Output!$C:$AL,AD$179,FALSE) -> 29973.08 | AE180: =VLOOKUP($U180,Output!$C:$AL,AE$179,FALSE) -> 36939.94 | AF180: =VLOOKUP($U180,Output!$C:$AL,AF$179,FALSE) -> 40561.62 | AG180: =VLOOKUP($U180,Output!$C:$AL,AG$179,FALSE) -> 39088.78 | AH180: =VLOOKUP($U180,Output!$C:$AL,AH$179,FALSE) -> 41810.28 | AI180: =VLOOKUP($U180,Output!$C:$AL,AI$179,FALSE) -> 43750.58 | AJ180: =VLOOKUP($U180,Output!$C:$AL,AJ$179,FALSE) -> 47846.77 | AK180: =VLOOKUP($U180,Output!$C:$AL,AK$179,FALSE) -> 46872.67 | AL180: =VLOOKUP($U180,Output!$C:$AL,AL$179,FALSE) -> 47797.75 | AM180: =VLOOKUP($U180,Output!$C:$AL,AM$179,FALSE) -> 47161.52 | AN180: =VLOOKUP($U180,Output!$C:$AL,AN$179,FALSE) -> 42735.11 | AO180: =VLOOKUP($U180,Output!$C:$AL,AO$179,FALSE) -> 40206.23 | AP180: =VLOOKUP($U180,Output!$C:$AL,AP$179,FALSE) -> 38655.21 | AQ180: =VLOOKUP($U180,Output!$C:$AL,AQ$179,FALSE) -> 38113.12 | AR180: =VLOOKUP($U180,Output!$C:$AL,AR$179,FALSE) -> 37421.08 | AS180: =VLOOKUP($U180,Output!$C:$AL,AS$179,FALSE) -> 35715.82 | AT180: =VLOOKUP($U180,Output!$C:$AL,AT$179,FALSE) -> 33697.87 | AU180: =VLOOKUP($U180,Output!$C:$AL,AU$179,FALSE) -> 36234.72 | AV180: =VLOOKUP($U180,Output!$C:$AL,AV$179,FALSE) -> 34631.84 | AW180: =VLOOKUP($U180,Output!$C:$AL,AW$179,FALSE) -> 35872.43 | AX180: =VLOOKUP($U180,Output!$C:$AL,AX$179,FALSE) -> 39816.34 | AY180: =VLOOKUP($U180,Output!$C:$AL,AY$179,FALSE) -> 40975.8 | AZ180: =VLOOKUP($U180,Output!$C:$AL,AZ$179,FALSE) -> 43984.42
S181: Figure 9c | U181: OSUPREGECO | V181: =VLOOKUP($U181,Output!$C:$AL,V$179,FALSE) -> 578131.2 | W181: =VLOOKUP($U181,Output!$C:$AL,W$179,FALSE) -> 577714.1 | X181: =VLOOKUP($U181,Output!$C:$AL,X$179,FALSE) -> 577276.52 | Y181: =VLOOKUP($U181,Output!$C:$AL,Y$179,FALSE) -> 576811.92 | Z181: =VLOOKUP($U181,Output!$C:$AL,Z$179,FALSE) -> 576422.48 | AA181: =VLOOKUP($U181,Output!$C:$AL,AA$179,FALSE) -> 575995.88 | AB181: =VLOOKUP($U181,Output!$C:$AL,AB$179,FALSE) -> 575687.47 | AC181: =VLOOKUP($U181,Output!$C:$AL,AC$179,FALSE) -> 575282.87 | AD181: =VLOOKUP($U181,Output!$C:$AL,AD$179,FALSE) -> 574906.97 | AE181: =VLOOKUP($U181,Output!$C:$AL,AE$179,FALSE) -> 574309.82 | AF181: =VLOOKUP($U181,Output!$C:$AL,AF$179,FALSE) -> 573736.38 | AG181: =VLOOKUP($U181,Output!$C:$AL,AG$179,FALSE) -> 573421.46 | AH181: =VLOOKUP($U181,Output!$C:$AL,AH$179,FALSE) -> 572816.97 | AI181: =VLOOKUP($U181,Output!$C:$AL,AI$179,FALSE) -> 572128.87 | AJ181: =VLOOKUP($U181,Output!$C:$AL,AJ$179,FALSE) -> 571617.34 | AK181: =VLOOKUP($U181,Output!$C:$AL,AK$179,FALSE) -> 571108.87 | AL181: =VLOOKUP($U181,Output!$C:$AL,AL$179,FALSE) -> 570521.37 | AM181: =VLOOKUP($U181,Output!$C:$AL,AM$179,FALSE) -> 570277.33 | AN181: =VLOOKUP($U181,Output!$C:$AL,AN$179,FALSE) -> 570065.3 | AO181: =VLOOKUP($U181,Output!$C:$AL,AO$179,FALSE) -> 569905.91 | AP181: =VLOOKUP($U181,Output!$C:$AL,AP$179,FALSE) -> 569700.11 | AQ181: =VLOOKUP($U181,Output!$C:$AL,AQ$179,FALSE) -> 569642.54 | AR181: =VLOOKUP($U181,Output!$C:$AL,AR$179,FALSE) -> 569561.77 | AS181: =VLOOKUP($U181,Output!$C:$AL,AS$179,FALSE) -> 569542.01 | AT181: =VLOOKUP($U181,Output!$C:$AL,AT$179,FALSE) -> 569527.06 | AU181: =VLOOKUP($U181,Output!$C:$AL,AU$179,FALSE) -> 569440.99 | AV181: =VLOOKUP($U181,Output!$C:$AL,AV$179,FALSE) -> 569436.21 | AW181: =VLOOKUP($U181,Output!$C:$AL,AW$179,FALSE) -> 569425.41 | AX181: =VLOOKUP($U181,Output!$C:$AL,AX$179,FALSE) -> 569422.48 | AY181: =VLOOKUP($U181,Output!$C:$AL,AY$179,FALSE) -> 569421.66 | AZ181: =VLOOKUP($U181,Output!$C:$AL,AZ$179,FALSE) -> 569325.78
S182: Figure 9c | V182: =IFERROR(V180/V181,"0000") -> 0.05524109406 | W182: 0.04239155665 | X182: 0.0536250461 | Y182: 0.05039133033 | Z182: 0.05168601336 | AA182: 0.04970148398 | AB182: 0.0466358943 | AC182: 0.05072181273 | AD182: 0.05213553073 | AE182: 0.06432057874 | AF182: 0.07069731224 | AG182: 0.06816762665 | AH182: 0.07299064481 | AI182: 0.07646979954 | AJ182: 0.08370419624 | AK182: 0.08207309055 | AL182: 0.08377907036 | AM182: 0.08269927195 | AN182: 0.07496528906 | AO182: 0.07054889113 | AP182: 0.0678518563 | AQ182: 0.06690708176 | AR182: 0.06570153049 | AS182: 0.06270972004 | AT182: 0.05916816314 | AU182: 0.06363208943 | AV182: 0.06081776921 | AW182: 0.06299759261 | AX182: 0.06992407465 | AY182: 0.0719603817 | AZ182: 0.07725703199
S183: Figure 9c
S184: Figure 9c | U184: OSUPJEUNEALERTEREGECO | V184: =VLOOKUP($U184,Output!$C:$AL,V$179,FALSE) -> 173549.52 | W184: =VLOOKUP($U184,Output!$C:$AL,W$179,FALSE) -> 173424.39 | X184: =VLOOKUP($U184,Output!$C:$AL,X$179,FALSE) -> 173293.09 | Y184: =VLOOKUP($U184,Output!$C:$AL,Y$179,FALSE) -> 173153.71 | Z184: =VLOOKUP($U184,Output!$C:$AL,Z$179,FALSE) -> 173036.83 | AA184: =VLOOKUP($U184,Output!$C:$AL,AA$179,FALSE) -> 172908.85 | AB184: =VLOOKUP($U184,Output!$C:$AL,AB$179,FALSE) -> 172816.33 | AC184: =VLOOKUP($U184,Output!$C:$AL,AC$179,FALSE) -> 172694.95 | AD184: =VLOOKUP($U184,Output!$C:$AL,AD$179,FALSE) -> 172582.18 | AE184: =VLOOKUP($U184,Output!$C:$AL,AE$179,FALSE) -> 172403.03 | AF184: =VLOOKUP($U184,Output!$C:$AL,AF$179,FALSE) -> 172231 | AG184: =VLOOKUP($U184,Output!$C:$AL,AG$179,FALSE) -> 172136.51 | AH184: =VLOOKUP($U184,Output!$C:$AL,AH$179,FALSE) -> 171955.16 | AI184: =VLOOKUP($U184,Output!$C:$AL,AI$179,FALSE) -> 171748.73 | AJ184: =VLOOKUP($U184,Output!$C:$AL,AJ$179,FALSE) -> 171595.27 | AK184: =VLOOKUP($U184,Output!$C:$AL,AK$179,FALSE) -> 171442.73 | AL184: =VLOOKUP($U184,Output!$C:$AL,AL$179,FALSE) -> 171266.48 | AM184: =VLOOKUP($U184,Output!$C:$AL,AM$179,FALSE) -> 171193.27 | AN184: =VLOOKUP($U184,Output!$C:$AL,AN$179,FALSE) -> 171129.66 | AO184: =VLOOKUP($U184,Output!$C:$AL,AO$179,FALSE) -> 171081.84 | AP184: =VLOOKUP($U184,Output!$C:$AL,AP$179,FALSE) -> 171020.1 | AQ184: =VLOOKUP($U184,Output!$C:$AL,AQ$179,FALSE) -> 171002.83 | AR184: =VLOOKUP($U184,Output!$C:$AL,AR$179,FALSE) -> 170978.6 | AS184: =VLOOKUP($U184,Output!$C:$AL,AS$179,FALSE) -> 170972.67 | AT184: =VLOOKUP($U184,Output!$C:$AL,AT$179,FALSE) -> 170968.19 | AU184: =VLOOKUP($U184,Output!$C:$AL,AU$179,FALSE) -> 170942.37 | AV184: =VLOOKUP($U184,Output!$C:$AL,AV$179,FALSE) -> 170940.93 | AW184: =VLOOKUP($U184,Output!$C:$AL,AW$179,FALSE) -> 170937.69 | AX184: =VLOOKUP($U184,Output!$C:$AL,AX$179,FALSE) -> 170936.81 | AY184: =VLOOKUP($U184,Output!$C:$AL,AY$179,FALSE) -> 170936.57 | AZ184: =VLOOKUP($U184,Output!$C:$AL,AZ$179,FALSE) -> 170907.81
S185: Figure 9c | T185: Faible | U185: OSUPJEUNEACCEPTREGECO | V185: =VLOOKUP($U185,Output!$C:$AL,V$179,FALSE) -> 115736.4 | W185: =VLOOKUP($U185,Output!$C:$AL,W$179,FALSE) -> 115652.98 | X185: =VLOOKUP($U185,Output!$C:$AL,X$179,FALSE) -> 115565.44 | Y185: =VLOOKUP($U185,Output!$C:$AL,Y$179,FALSE) -> 115472.52 | Z185: =VLOOKUP($U185,Output!$C:$AL,Z$179,FALSE) -> 115394.58 | AA185: =VLOOKUP($U185,Output!$C:$AL,AA$179,FALSE) -> 115309.26 | AB185: =VLOOKUP($U185,Output!$C:$AL,AB$179,FALSE) -> 115247.58 | AC185: =VLOOKUP($U185,Output!$C:$AL,AC$179,FALSE) -> 115166.66 | AD185: =VLOOKUP($U185,Output!$C:$AL,AD$179,FALSE) -> 115091.48 | AE185: =VLOOKUP($U185,Output!$C:$AL,AE$179,FALSE) -> 114972.05 | AF185: =VLOOKUP($U185,Output!$C:$AL,AF$179,FALSE) -> 114857.36 | AG185: =VLOOKUP($U185,Output!$C:$AL,AG$179,FALSE) -> 114794.36 | AH185: =VLOOKUP($U185,Output!$C:$AL,AH$179,FALSE) -> 114673.46 | AI185: =VLOOKUP($U185,Output!$C:$AL,AI$179,FALSE) -> 114535.84 | AJ185: =VLOOKUP($U185,Output!$C:$AL,AJ$179,FALSE) -> 114433.54 | AK185: =VLOOKUP($U185,Output!$C:$AL,AK$179,FALSE) -> 114331.84 | AL185: =VLOOKUP($U185,Output!$C:$AL,AL$179,FALSE) -> 114214.34 | AM185: =VLOOKUP($U185,Output!$C:$AL,AM$179,FALSE) -> 114165.54 | AN185: =VLOOKUP($U185,Output!$C:$AL,AN$179,FALSE) -> 114123.13 | AO185: =VLOOKUP($U185,Output!$C:$AL,AO$179,FALSE) -> 114091.25 | AP185: =VLOOKUP($U185,Output!$C:$AL,AP$179,FALSE) -> 114050.09 | AQ185: =VLOOKUP($U185,Output!$C:$AL,AQ$179,FALSE) -> 114038.58 | AR185: =VLOOKUP($U185,Output!$C:$AL,AR$179,FALSE) -> 114022.42 | AS185: =VLOOKUP($U185,Output!$C:$AL,AS$179,FALSE) -> 114018.47 | AT185: =VLOOKUP($U185,Output!$C:$AL,AT$179,FALSE) -> 114015.48 | AU185: =VLOOKUP($U185,Output!$C:$AL,AU$179,FALSE) -> 113998.27 | AV185: =VLOOKUP($U185,Output!$C:$AL,AV$179,FALSE) -> 113997.31 | AW185: =VLOOKUP($U185,Output!$C:$AL,AW$179,FALSE) -> 113995.15 | AX185: =VLOOKUP($U185,Output!$C:$AL,AX$179,FALSE) -> 113994.57 | AY185: =VLOOKUP($U185,Output!$C:$AL,AY$179,FALSE) -> 113994.4 | AZ185: =VLOOKUP($U185,Output!$C:$AL,AZ$179,FALSE) -> 113975.23
S186: Figure 9c | T186: Moyen | V186: =V184-V185 -> 57813.12 | W186: 57771.41 | X186: 57727.65 | Y186: 57681.19 | Z186: 57642.25 | AA186: 57599.59 | AB186: 57568.75 | AC186: 57528.29 | AD186: 57490.7 | AE186: 57430.98 | AF186: 57373.64 | AG186: 57342.15 | AH186: 57281.7 | AI186: 57212.89 | AJ186: 57161.73 | AK186: 57110.89 | AL186: 57052.14 | AM186: 57027.73 | AN186: 57006.53 | AO186: 56990.59 | AP186: 56970.01 | AQ186: 56964.25 | AR186: 56956.18 | AS186: 56954.2 | AT186: 56952.71 | AU186: 56944.1 | AV186: 56943.62 | AW186: 56942.54 | AX186: 56942.24 | AY186: 56942.17 | AZ186: 56932.58
S187: Figure 9c | T187: Élevé | V187: =$V$181-V184 -> 404581.68 | W187: 404706.81 | X187: 404838.11 | Y187: 404977.49 | Z187: 405094.37 | AA187: 405222.35 | AB187: 405314.87 | AC187: 405436.25 | AD187: 405549.02 | AE187: 405728.17 | AF187: 405900.2 | AG187: 405994.69 | AH187: 406176.04 | AI187: 406382.47 | AJ187: 406535.93 | AK187: 406688.47 | AL187: 406864.72 | AM187: 406937.93 | AN187: 407001.54 | AO187: 407049.36 | AP187: 407111.1 | AQ187: 407128.37 | AR187: 407152.6 | AS187: 407158.53 | AT187: 407163.01 | AU187: 407188.83 | AV187: 407190.27 | AW187: 407193.51 | AX187: 407194.39 | AY187: 407194.63 | AZ187: 407223.39
U199: Période | V199: P0 | W199: P1 | X199: P2 | Y199: P3 | Z199: P4 | AA199: P5 | AB199: P6 | AC199: P7 | AD199: P8 | AE199: P9 | AF199: P10 | AG199: P11 | AH199: P12 | AI199: P13 | AJ199: P14 | AK199: P15 | AL199: P16 | AM199: P17 | AN199: P18 | AO199: P19 | AP199: P20 | AQ199: P21 | AR199: P22 | AS199: P23 | AT199: P24 | AU199: P25 | AV199: P26 | AW199: P27 | AX199: P28 | AY199: P29 | AZ199: P30
U200: Axe des "X" Fin de période | V200: 2018 | W200: 2023 | X200: 2028 | Y200: 2033 | Z200: 2038 | AA200: 2043 | AB200: 2048 | AC200: 2053 | AD200: 2058 | AE200: 2063 | AF200: 2068 | AG200: 2073 | AH200: 2078 | AI200: 2083 | AJ200: 2088 | AK200: 2093 | AL200: 2098 | AM200: 2103 | AN200: 2108 | AO200: 2113 | AP200: 2118 | AQ200: 2123 | AR200: 2128 | AS200: 2133 | AT200: 2138 | AU200: 2143 | AV200: 2148 | AW200: 2153 | AX200: 2158 | AY200: 2163 | AZ200: 2168
U201: Colonne | V201: 6 | W201: 7 | X201: 8 | Y201: 9 | Z201: 10 | AA201: 11 | AB201: 12 | AC201: 13 | AD201: 14 | AE201: 15 | AF201: 16 | AG201: 17 | AH201: 18 | AI201: 19 | AJ201: 20 | AK201: 21 | AL201: 22 | AM201: 23 | AN201: 24 | AO201: 25 | AP201: 26 | AQ201: 27 | AR201: 28 | AS201: 29 | AT201: 30 | AU201: 31 | AV201: 32 | AW201: 33 | AX201: 34 | AY201: 35 | AZ201: 36
B202: Figure 10a Évolution de la superficie selon le type de couvert | S202: =LEFT(B$202,10) -> Figure 10a | U202: OSUPINC
S203: Figure 10a | U203: Résineux | V203: =SUM(V214,V220,V221,V222,V224,V225) -> 226570.3 | W203: =SUM(W214,W220,W221,W222,W224,W225) -> 225560.39 | X203: 226252.84 | Y203: 228280.18 | Z203: 228636.02 | AA203: 230053.46 | AB203: 229448.09 | AC203: 230852.9 | AD203: 229406.11 | AE203: 228395.11 | AF203: 229304.92 | AG203: 226360.64 | AH203: 226762.11 | AI203: 226252.83 | AJ203: 226252.83 | AK203: 226252.83 | AL203: 226496.59 | AM203: 227580.47 | AN203: 226622.68 | AO203: 227672.82 | AP203: 226252.84 | AQ203: 227923.16 | AR203: 226461.13 | AS203: 226803.83 | AT203: 226918.62 | AU203: 226252.83 | AV203: 226681.14 | AW203: 226759.4 | AX203: 226252.84 | AY203: 226290.43 | AZ203: 226252.84
S204: Figure 10a | U204: Mixtes résineux | V204: =V223 -> 46143.8 | W204: =W223 -> 46633.86 | X204: 47397.95 | Y204: 47010.33 | Z204: 46433.95 | AA204: 45884.6 | AB204: 45895.74 | AC204: 45131.19 | AD204: 46715.69 | AE204: 47213.3 | AF204: 46726.09 | AG204: 48675.76 | AH204: 47569.77 | AI204: 47599.37 | AJ204: 46647.93 | AK204: 46037.39 | AL204: 44922.01 | AM204: 42841.21 | AN204: 42090.56 | AO204: 41747.33 | AP204: 42365.09 | AQ204: 41402.06 | AR204: 41507.8 | AS204: 40738.28 | AT204: 40123.9 | AU204: 39877.61 | AV204: 39322.19 | AW204: 38990.36 | AX204: 39279.31 | AY204: 40050.07 | AZ204: 40978.86
S205: Figure 10a | U205: Mixtes feuillus intolérants | V205: =V213+V219 -> 26360.7 | W205: =W213+W219 -> 25683.5 | X205: =X213+X219 -> 24290.17 | Y205: =Y213+Y219 -> 22842.09 | Z205: 22224.23 | AA205: 20893.31 | AB205: 20868.04 | AC205: 19791.6 | AD205: 18921.59 | AE205: 19181.66 | AF205: 18753.22 | AG205: 19394.25 | AH205: 19337.8 | AI205: 19150.59 | AJ205: 19573.62 | AK205: 19624.92 | AL205: 20223.48 | AM205: 20556.48 | AN205: 20988.12 | AO205: 20960.3 | AP205: 21365.48 | AQ205: 20949.67 | AR205: 21886.61 | AS205: 22928.99 | AT205: 23001.76 | AU205: 24174.36 | AV205: 24248.67 | AW205: 24500.43 | AX205: 24752.06 | AY205: 24344.65 | AZ205: 23837.31
S206: Figure 10a | U206: Mixtes feuillus tolérants | V206: =V217 -> 5691.6 | W206: =W217 -> 5646.5 | X206: 5639.01 | Y206: 5639.01 | Z206: 5639.01 | AA206: 5639.01 | AB206: 5639.01 | AC206: 5639.01 | AD206: 5639.01 | AE206: 5639.01 | AF206: 5639.01 | AG206: 5639.01 | AH206: 5639.01 | AI206: 5639.01 | AJ206: 5639.01 | AK206: 5639.01 | AL206: 5639.01 | AM206: 5639.01 | AN206: 5639.01 | AO206: 5639.01 | AP206: 5639.01 | AQ206: 5632.31 | AR206: 5632.31 | AS206: 5632.31 | AT206: 5630.82 | AU206: 5630.82 | AV206: 5630.82 | AW206: 5630.82 | AX206: 5630.82 | AY206: 5630.82 | AZ206: 5630.82
S207: Figure 10a | U207: Feuillus intolérants | V207: =V212+V215+V218 -> 23495.3 | W207: =W212+W215+W218 -> 24321.96 | X207: =X212+X215+X218 -> 23828.66 | Y207: 23172.4 | Z207: 23621.36 | AA207: 23657.59 | AB207: 23968.67 | AC207: 24000.28 | AD207: 24356.67 | AE207: 24012.84 | AF207: 23445.23 | AG207: 23483.9 | AH207: 23640.37 | AI207: 23619.17 | AJ207: 23636.05 | AK207: 23686.82 | AL207: 23372.39 | AM207: 23792.25 | AN207: 24857.04 | AO207: 24020.47 | AP207: 24211.71 | AQ207: 23869.36 | AR207: 24207.93 | AS207: 23572.63 | AT207: 23999.46 | AU207: 23652.85 | AV207: 23705.66 | AW207: 23696.68 | AX207: 23659.74 | AY207: 23257.97 | AZ207: 22778.23
S208: Figure 10a | U208: Feuillus tolérants | V208: =V216 -> 3763.1 | W208: =W216 -> 3761.5 | X208: 3761.5 | Y208: 3761.5 | Z208: 3761.5 | AA208: 3761.5 | AB208: 3761.5 | AC208: 3761.5 | AD208: 3761.5 | AE208: 3761.5 | AF208: 3761.5 | AG208: 3761.5 | AH208: 3761.5 | AI208: 3761.5 | AJ208: 3761.5 | AK208: 3761.5 | AL208: 3761.5 | AM208: 3761.5 | AN208: 3761.5 | AO208: 3759.57 | AP208: 3759.57 | AQ208: 3759.57 | AR208: 3759.57 | AS208: 3759.57 | AT208: 3746.11 | AU208: 3746.11 | AV208: 3741.32 | AW208: 3741.32 | AX208: 3741.32 | AY208: 3741.32 | AZ208: 3741.32
S209: Figure 10a | U209: Total | V209: =SUM(V203:V208) -> 332024.8 | W209: =SUM(W203:W208) -> 331607.71 | X209: =SUM(X203:X208) -> 331170.13 | Y209: 330705.51 | Z209: 330316.07 | AA209: 329889.47 | AB209: 329581.05 | AC209: 329176.48 | AD209: 328800.57 | AE209: 328203.42 | AF209: 327629.97 | AG209: 327315.06 | AH209: 326710.56 | AI209: 326022.47 | AJ209: 325510.94 | AK209: 325002.47 | AL209: 324414.98 | AM209: 324170.92 | AN209: 323958.91 | AO209: 323799.5 | AP209: 323593.7 | AQ209: 323536.13 | AR209: 323455.35 | AS209: 323435.61 | AT209: 323420.67 | AU209: 323334.58 | AV209: 323329.8 | AW209: 323319.01 | AX209: 323316.09 | AY209: 323315.26 | AZ209: 323219.38
S210: Figure 10a
S211: Figure 10a
S212: Figure 10a | T212: Bétulaies blanches | U212: (FCTYF_BOP) | V212: =VLOOKUP($U$202&$U212,GTYF!$C:$AP,V$201,FALSE) -> 10610.9 | W212: =VLOOKUP($U$202&$U212,GTYF!$C:$AP,W$201,FALSE) -> 10564.71 | X212: =VLOOKUP($U$202&$U212,GTYF!$C:$AP,X$201,FALSE) -> 10349.91 | Y212: =VLOOKUP($U$202&$U212,GTYF!$C:$AP,Y$201,FALSE) -> 10247.11 | Z212: =VLOOKUP($U$202&$U212,GTYF!$C:$AP,Z$201,FALSE) -> 10214.95 | AA212: =VLOOKUP($U$202&$U212,GTYF!$C:$AP,AA$201,FALSE) -> 9979.32 | AB212: =VLOOKUP($U$202&$U212,GTYF!$C:$AP,AB$201,FALSE) -> 9942.79 | AC212: =VLOOKUP($U$202&$U212,GTYF!$C:$AP,AC$201,FALSE) -> 9913 | AD212: =VLOOKUP($U$202&$U212,GTYF!$C:$AP,AD$201,FALSE) -> 9905.85 | AE212: =VLOOKUP($U$202&$U212,GTYF!$C:$AP,AE$201,FALSE) -> 9862.76 | AF212: =VLOOKUP($U$202&$U212,GTYF!$C:$AP,AF$201,FALSE) -> 9119.1 | AG212: =VLOOKUP($U$202&$U212,GTYF!$C:$AP,AG$201,FALSE) -> 9076.64 | AH212: =VLOOKUP($U$202&$U212,GTYF!$C:$AP,AH$201,FALSE) -> 9060.7 | AI212: =VLOOKUP($U$202&$U212,GTYF!$C:$AP,AI$201,FALSE) -> 9043.39 | AJ212: =VLOOKUP($U$202&$U212,GTYF!$C:$AP,AJ$201,FALSE) -> 9029.46 | AK212: =VLOOKUP($U$202&$U212,GTYF!$C:$AP,AK$201,FALSE) -> 9014.59 | AL212: =VLOOKUP($U$202&$U212,GTYF!$C:$AP,AL$201,FALSE) -> 8990.92 | AM212: =VLOOKUP($U$202&$U212,GTYF!$C:$AP,AM$201,FALSE) -> 8981.6 | AN212: =VLOOKUP($U$202&$U212,GTYF!$C:$AP,AN$201,FALSE) -> 8773.76 | AO212: =VLOOKUP($U$202&$U212,GTYF!$C:$AP,AO$201,FALSE) -> 8163.13 | AP212: =VLOOKUP($U$202&$U212,GTYF!$C:$AP,AP$201,FALSE) -> 8154.5 | AQ212: =VLOOKUP($U$202&$U212,GTYF!$C:$AP,AQ$201,FALSE) -> 7887.65 | AR212: =VLOOKUP($U$202&$U212,GTYF!$C:$AP,AR$201,FALSE) -> 7780.99 | AS212: =VLOOKUP($U$202&$U212,GTYF!$C:$AP,AS$201,FALSE) -> 7395.41 | AT212: =VLOOKUP($U$202&$U212,GTYF!$C:$AP,AT$201,FALSE) -> 7395.41 | AU212: =VLOOKUP($U$202&$U212,GTYF!$C:$AP,AU$201,FALSE) -> 7264.25 | AV212: =VLOOKUP($U$202&$U212,GTYF!$C:$AP,AV$201,FALSE) -> 7081.65 | AW212: =VLOOKUP($U$202&$U212,GTYF!$C:$AP,AW$201,FALSE) -> 7081.65 | AX212: =VLOOKUP($U$202&$U212,GTYF!$C:$AP,AX$201,FALSE) -> 7041.51 | AY212: =VLOOKUP($U$202&$U212,GTYF!$C:$AP,AY$201,FALSE) -> 6806.84 | AZ212: =VLOOKUP($U$202&$U212,GTYF!$C:$AP,AZ$201,FALSE) -> 6806.84
S213: Figure 10a | T213: Bétulaies blanches à résineux | U213: (FCTYF_BOPR) | V213: =VLOOKUP($U$202&$U213,GTYF!$C:$AP,V$201,FALSE) -> 19872.3 | W213: =VLOOKUP($U$202&$U213,GTYF!$C:$AP,W$201,FALSE) -> 20138.02 | X213: =VLOOKUP($U$202&$U213,GTYF!$C:$AP,X$201,FALSE) -> 19694.11 | Y213: =VLOOKUP($U$202&$U213,GTYF!$C:$AP,Y$201,FALSE) -> 19018.7 | Z213: =VLOOKUP($U$202&$U213,GTYF!$C:$AP,Z$201,FALSE) -> 18996.74 | AA213: =VLOOKUP($U$202&$U213,GTYF!$C:$AP,AA$201,FALSE) -> 18166.24 | AB213: =VLOOKUP($U$202&$U213,GTYF!$C:$AP,AB$201,FALSE) -> 18545.87 | AC213: =VLOOKUP($U$202&$U213,GTYF!$C:$AP,AC$201,FALSE) -> 18008.93 | AD213: =VLOOKUP($U$202&$U213,GTYF!$C:$AP,AD$201,FALSE) -> 17517.52 | AE213: =VLOOKUP($U$202&$U213,GTYF!$C:$AP,AE$201,FALSE) -> 17927.99 | AF213: =VLOOKUP($U$202&$U213,GTYF!$C:$AP,AF$201,FALSE) -> 17722.35 | AG213: =VLOOKUP($U$202&$U213,GTYF!$C:$AP,AG$201,FALSE) -> 18685.78 | AH213: =VLOOKUP($U$202&$U213,GTYF!$C:$AP,AH$201,FALSE) -> 18807.31 | AI213: =VLOOKUP($U$202&$U213,GTYF!$C:$AP,AI$201,FALSE) -> 18621.4 | AJ213: =VLOOKUP($U$202&$U213,GTYF!$C:$AP,AJ$201,FALSE) -> 19075.47 | AK213: =VLOOKUP($U$202&$U213,GTYF!$C:$AP,AK$201,FALSE) -> 19187.41 | AL213: =VLOOKUP($U$202&$U213,GTYF!$C:$AP,AL$201,FALSE) -> 19851.02 | AM213: =VLOOKUP($U$202&$U213,GTYF!$C:$AP,AM$201,FALSE) -> 20266.9 | AN213: =VLOOKUP($U$202&$U213,GTYF!$C:$AP,AN$201,FALSE) -> 20745.32 | AO213: =VLOOKUP($U$202&$U213,GTYF!$C:$AP,AO$201,FALSE) -> 20717.5 | AP213: =VLOOKUP($U$202&$U213,GTYF!$C:$AP,AP$201,FALSE) -> 21153.86 | AQ213: =VLOOKUP($U$202&$U213,GTYF!$C:$AP,AQ$201,FALSE) -> 20738.05 | AR213: =VLOOKUP($U$202&$U213,GTYF!$C:$AP,AR$201,FALSE) -> 21674.99 | AS213: =VLOOKUP($U$202&$U213,GTYF!$C:$AP,AS$201,FALSE) -> 22717.37 | AT213: =VLOOKUP($U$202&$U213,GTYF!$C:$AP,AT$201,FALSE) -> 22790.14 | AU213: =VLOOKUP($U$202&$U213,GTYF!$C:$AP,AU$201,FALSE) -> 23962.74 | AV213: =VLOOKUP($U$202&$U213,GTYF!$C:$AP,AV$201,FALSE) -> 24037.05 | AW213: =VLOOKUP($U$202&$U213,GTYF!$C:$AP,AW$201,FALSE) -> 24279.82 | AX213: =VLOOKUP($U$202&$U213,GTYF!$C:$AP,AX$201,FALSE) -> 24533.35 | AY213: =VLOOKUP($U$202&$U213,GTYF!$C:$AP,AY$201,FALSE) -> 24129.82 | AZ213: =VLOOKUP($U$202&$U213,GTYF!$C:$AP,AZ$201,FALSE) -> 23752.81
S214: Figure 10a | T214: Pessières | U214: (FCTYF_EPX) | V214: =VLOOKUP($U$202&$U214,GTYF!$C:$AP,V$201,FALSE) -> 114218.1 | W214: =VLOOKUP($U$202&$U214,GTYF!$C:$AP,W$201,FALSE) -> 116330.81 | X214: =VLOOKUP($U$202&$U214,GTYF!$C:$AP,X$201,FALSE) -> 119612.96 | Y214: =VLOOKUP($U$202&$U214,GTYF!$C:$AP,Y$201,FALSE) -> 122534.58 | Z214: =VLOOKUP($U$202&$U214,GTYF!$C:$AP,Z$201,FALSE) -> 124634.47 | AA214: =VLOOKUP($U$202&$U214,GTYF!$C:$AP,AA$201,FALSE) -> 126665.73 | AB214: =VLOOKUP($U$202&$U214,GTYF!$C:$AP,AB$201,FALSE) -> 127366.31 | AC214: =VLOOKUP($U$202&$U214,GTYF!$C:$AP,AC$201,FALSE) -> 127921.86 | AD214: =VLOOKUP($U$202&$U214,GTYF!$C:$AP,AD$201,FALSE) -> 127197.09 | AE214: =VLOOKUP($U$202&$U214,GTYF!$C:$AP,AE$201,FALSE) -> 124803.41 | AF214: =VLOOKUP($U$202&$U214,GTYF!$C:$AP,AF$201,FALSE) -> 125235.51 | AG214: =VLOOKUP($U$202&$U214,GTYF!$C:$AP,AG$201,FALSE) -> 123303.2 | AH214: =VLOOKUP($U$202&$U214,GTYF!$C:$AP,AH$201,FALSE) -> 122095.51 | AI214: =VLOOKUP($U$202&$U214,GTYF!$C:$AP,AI$201,FALSE) -> 120940.67 | AJ214: =VLOOKUP($U$202&$U214,GTYF!$C:$AP,AJ$201,FALSE) -> 119579.72 | AK214: =VLOOKUP($U$202&$U214,GTYF!$C:$AP,AK$201,FALSE) -> 117795.68 | AL214: =VLOOKUP($U$202&$U214,GTYF!$C:$AP,AL$201,FALSE) -> 115844.39 | AM214: =VLOOKUP($U$202&$U214,GTYF!$C:$AP,AM$201,FALSE) -> 114564.96 | AN214: =VLOOKUP($U$202&$U214,GTYF!$C:$AP,AN$201,FALSE) -> 113394.06 | AO214: =VLOOKUP($U$202&$U214,GTYF!$C:$AP,AO$201,FALSE) -> 109868.04 | AP214: =VLOOKUP($U$202&$U214,GTYF!$C:$AP,AP$201,FALSE) -> 105952.65 | AQ214: =VLOOKUP($U$202&$U214,GTYF!$C:$AP,AQ$201,FALSE) -> 103617.33 | AR214: =VLOOKUP($U$202&$U214,GTYF!$C:$AP,AR$201,FALSE) -> 102216.07 | AS214: =VLOOKUP($U$202&$U214,GTYF!$C:$AP,AS$201,FALSE) -> 101372.55 | AT214: =VLOOKUP($U$202&$U214,GTYF!$C:$AP,AT$201,FALSE) -> 101210.86 | AU214: =VLOOKUP($U$202&$U214,GTYF!$C:$AP,AU$201,FALSE) -> 99198.95 | AV214: =VLOOKUP($U$202&$U214,GTYF!$C:$AP,AV$201,FALSE) -> 98001.94 | AW214: =VLOOKUP($U$202&$U214,GTYF!$C:$AP,AW$201,FALSE) -> 97118.55 | AX214: =VLOOKUP($U$202&$U214,GTYF!$C:$AP,AX$201,FALSE) -> 96566.04 | AY214: =VLOOKUP($U$202&$U214,GTYF!$C:$AP,AY$201,FALSE) -> 96747.61 | AZ214: =VLOOKUP($U$202&$U214,GTYF!$C:$AP,AZ$201,FALSE) -> 97471.29
S215: Figure 10a | T215: Érablières rouges | U215: (FCTYF_ERO) | V215: =VLOOKUP($U$202&$U215,GTYF!$C:$AP,V$201,FALSE) -> 1144.6 | W215: =VLOOKUP($U$202&$U215,GTYF!$C:$AP,W$201,FALSE) -> 1124.73 | X215: =VLOOKUP($U$202&$U215,GTYF!$C:$AP,X$201,FALSE) -> 1101.74 | Y215: =VLOOKUP($U$202&$U215,GTYF!$C:$AP,Y$201,FALSE) -> 1101.74 | Z215: =VLOOKUP($U$202&$U215,GTYF!$C:$AP,Z$201,FALSE) -> 1101.74 | AA215: =VLOOKUP($U$202&$U215,GTYF!$C:$AP,AA$201,FALSE) -> 1101.74 | AB215: =VLOOKUP($U$202&$U215,GTYF!$C:$AP,AB$201,FALSE) -> 1101.74 | AC215: =VLOOKUP($U$202&$U215,GTYF!$C:$AP,AC$201,FALSE) -> 1101.74 | AD215: =VLOOKUP($U$202&$U215,GTYF!$C:$AP,AD$201,FALSE) -> 1101.74 | AE215: =VLOOKUP($U$202&$U215,GTYF!$C:$AP,AE$201,FALSE) -> 1101.74 | AF215: =VLOOKUP($U$202&$U215,GTYF!$C:$AP,AF$201,FALSE) -> 1101.74 | AG215: =VLOOKUP($U$202&$U215,GTYF!$C:$AP,AG$201,FALSE) -> 1101.74 | AH215: =VLOOKUP($U$202&$U215,GTYF!$C:$AP,AH$201,FALSE) -> 1101.74 | AI215: =VLOOKUP($U$202&$U215,GTYF!$C:$AP,AI$201,FALSE) -> 1101.74 | AJ215: =VLOOKUP($U$202&$U215,GTYF!$C:$AP,AJ$201,FALSE) -> 1101.74 | AK215: =VLOOKUP($U$202&$U215,GTYF!$C:$AP,AK$201,FALSE) -> 1101.74 | AL215: =VLOOKUP($U$202&$U215,GTYF!$C:$AP,AL$201,FALSE) -> 1108.39 | AM215: =VLOOKUP($U$202&$U215,GTYF!$C:$AP,AM$201,FALSE) -> 1130.11 | AN215: =VLOOKUP($U$202&$U215,GTYF!$C:$AP,AN$201,FALSE) -> 1130.11 | AO215: =VLOOKUP($U$202&$U215,GTYF!$C:$AP,AO$201,FALSE) -> 1130.11 | AP215: =VLOOKUP($U$202&$U215,GTYF!$C:$AP,AP$201,FALSE) -> 1130.11 | AQ215: =VLOOKUP($U$202&$U215,GTYF!$C:$AP,AQ$201,FALSE) -> 1130.11 | AR215: =VLOOKUP($U$202&$U215,GTYF!$C:$AP,AR$201,FALSE) -> 1130.11 | AS215: =VLOOKUP($U$202&$U215,GTYF!$C:$AP,AS$201,FALSE) -> 1130.11 | AT215: =VLOOKUP($U$202&$U215,GTYF!$C:$AP,AT$201,FALSE) -> 1130.11 | AU215: =VLOOKUP($U$202&$U215,GTYF!$C:$AP,AU$201,FALSE) -> 1130.11 | AV215: =VLOOKUP($U$202&$U215,GTYF!$C:$AP,AV$201,FALSE) -> 1130.11 | AW215: =VLOOKUP($U$202&$U215,GTYF!$C:$AP,AW$201,FALSE) -> 1130.11 | AX215: =VLOOKUP($U$202&$U215,GTYF!$C:$AP,AX$201,FALSE) -> 1130.11 | AY215: =VLOOKUP($U$202&$U215,GTYF!$C:$AP,AY$201,FALSE) -> 1130.11 | AZ215: =VLOOKUP($U$202&$U215,GTYF!$C:$AP,AZ$201,FALSE) -> 1130.11
S216: Figure 10a | T216: Feuillus tolérants | U216: (FCTYF_FT) | V216: =VLOOKUP($U$202&$U216,GTYF!$C:$AP,V$201,FALSE) -> 3763.1 | W216: =VLOOKUP($U$202&$U216,GTYF!$C:$AP,W$201,FALSE) -> 3761.5 | X216: =VLOOKUP($U$202&$U216,GTYF!$C:$AP,X$201,FALSE) -> 3761.5 | Y216: =VLOOKUP($U$202&$U216,GTYF!$C:$AP,Y$201,FALSE) -> 3761.5 | Z216: =VLOOKUP($U$202&$U216,GTYF!$C:$AP,Z$201,FALSE) -> 3761.5 | AA216: =VLOOKUP($U$202&$U216,GTYF!$C:$AP,AA$201,FALSE) -> 3761.5 | AB216: =VLOOKUP($U$202&$U216,GTYF!$C:$AP,AB$201,FALSE) -> 3761.5 | AC216: =VLOOKUP($U$202&$U216,GTYF!$C:$AP,AC$201,FALSE) -> 3761.5 | AD216: =VLOOKUP($U$202&$U216,GTYF!$C:$AP,AD$201,FALSE) -> 3761.5 | AE216: =VLOOKUP($U$202&$U216,GTYF!$C:$AP,AE$201,FALSE) -> 3761.5 | AF216: =VLOOKUP($U$202&$U216,GTYF!$C:$AP,AF$201,FALSE) -> 3761.5 | AG216: =VLOOKUP($U$202&$U216,GTYF!$C:$AP,AG$201,FALSE) -> 3761.5 | AH216: =VLOOKUP($U$202&$U216,GTYF!$C:$AP,AH$201,FALSE) -> 3761.5 | AI216: =VLOOKUP($U$202&$U216,GTYF!$C:$AP,AI$201,FALSE) -> 3761.5 | AJ216: =VLOOKUP($U$202&$U216,GTYF!$C:$AP,AJ$201,FALSE) -> 3761.5 | AK216: =VLOOKUP($U$202&$U216,GTYF!$C:$AP,AK$201,FALSE) -> 3761.5 | AL216: =VLOOKUP($U$202&$U216,GTYF!$C:$AP,AL$201,FALSE) -> 3761.5 | AM216: =VLOOKUP($U$202&$U216,GTYF!$C:$AP,AM$201,FALSE) -> 3761.5 | AN216: =VLOOKUP($U$202&$U216,GTYF!$C:$AP,AN$201,FALSE) -> 3761.5 | AO216: =VLOOKUP($U$202&$U216,GTYF!$C:$AP,AO$201,FALSE) -> 3759.57 | AP216: =VLOOKUP($U$202&$U216,GTYF!$C:$AP,AP$201,FALSE) -> 3759.57 | AQ216: =VLOOKUP($U$202&$U216,GTYF!$C:$AP,AQ$201,FALSE) -> 3759.57 | AR216: =VLOOKUP($U$202&$U216,GTYF!$C:$AP,AR$201,FALSE) -> 3759.57 | AS216: =VLOOKUP($U$202&$U216,GTYF!$C:$AP,AS$201,FALSE) -> 3759.57 | AT216: =VLOOKUP($U$202&$U216,GTYF!$C:$AP,AT$201,FALSE) -> 3746.11 | AU216: =VLOOKUP($U$202&$U216,GTYF!$C:$AP,AU$201,FALSE) -> 3746.11 | AV216: =VLOOKUP($U$202&$U216,GTYF!$C:$AP,AV$201,FALSE) -> 3741.32 | AW216: =VLOOKUP($U$202&$U216,GTYF!$C:$AP,AW$201,FALSE) -> 3741.32 | AX216: =VLOOKUP($U$202&$U216,GTYF!$C:$AP,AX$201,FALSE) -> 3741.32 | AY216: =VLOOKUP($U$202&$U216,GTYF!$C:$AP,AY$201,FALSE) -> 3741.32 | AZ216: =VLOOKUP($U$202&$U216,GTYF!$C:$AP,AZ$201,FALSE) -> 3741.32
S217: Figure 10a | T217: Feuillus tolérants à résineux | U217: (FCTYF_FTR) | V217: =VLOOKUP($U$202&$U217,GTYF!$C:$AP,V$201,FALSE) -> 5691.6 | W217: =VLOOKUP($U$202&$U217,GTYF!$C:$AP,W$201,FALSE) -> 5646.5 | X217: =VLOOKUP($U$202&$U217,GTYF!$C:$AP,X$201,FALSE) -> 5639.01 | Y217: =VLOOKUP($U$202&$U217,GTYF!$C:$AP,Y$201,FALSE) -> 5639.01 | Z217: =VLOOKUP($U$202&$U217,GTYF!$C:$AP,Z$201,FALSE) -> 5639.01 | AA217: =VLOOKUP($U$202&$U217,GTYF!$C:$AP,AA$201,FALSE) -> 5639.01 | AB217: =VLOOKUP($U$202&$U217,GTYF!$C:$AP,AB$201,FALSE) -> 5639.01 | AC217: =VLOOKUP($U$202&$U217,GTYF!$C:$AP,AC$201,FALSE) -> 5639.01 | AD217: =VLOOKUP($U$202&$U217,GTYF!$C:$AP,AD$201,FALSE) -> 5639.01 | AE217: =VLOOKUP($U$202&$U217,GTYF!$C:$AP,AE$201,FALSE) -> 5639.01 | AF217: =VLOOKUP($U$202&$U217,GTYF!$C:$AP,AF$201,FALSE) -> 5639.01 | AG217: =VLOOKUP($U$202&$U217,GTYF!$C:$AP,AG$201,FALSE) -> 5639.01 | AH217: =VLOOKUP($U$202&$U217,GTYF!$C:$AP,AH$201,FALSE) -> 5639.01 | AI217: =VLOOKUP($U$202&$U217,GTYF!$C:$AP,AI$201,FALSE) -> 5639.01 | AJ217: =VLOOKUP($U$202&$U217,GTYF!$C:$AP,AJ$201,FALSE) -> 5639.01 | AK217: =VLOOKUP($U$202&$U217,GTYF!$C:$AP,AK$201,FALSE) -> 5639.01 | AL217: =VLOOKUP($U$202&$U217,GTYF!$C:$AP,AL$201,FALSE) -> 5639.01 | AM217: =VLOOKUP($U$202&$U217,GTYF!$C:$AP,AM$201,FALSE) -> 5639.01 | AN217: =VLOOKUP($U$202&$U217,GTYF!$C:$AP,AN$201,FALSE) -> 5639.01 | AO217: =VLOOKUP($U$202&$U217,GTYF!$C:$AP,AO$201,FALSE) -> 5639.01 | AP217: =VLOOKUP($U$202&$U217,GTYF!$C:$AP,AP$201,FALSE) -> 5639.01 | AQ217: =VLOOKUP($U$202&$U217,GTYF!$C:$AP,AQ$201,FALSE) -> 5632.31 | AR217: =VLOOKUP($U$202&$U217,GTYF!$C:$AP,AR$201,FALSE) -> 5632.31 | AS217: =VLOOKUP($U$202&$U217,GTYF!$C:$AP,AS$201,FALSE) -> 5632.31 | AT217: =VLOOKUP($U$202&$U217,GTYF!$C:$AP,AT$201,FALSE) -> 5630.82 | AU217: =VLOOKUP($U$202&$U217,GTYF!$C:$AP,AU$201,FALSE) -> 5630.82 | AV217: =VLOOKUP($U$202&$U217,GTYF!$C:$AP,AV$201,FALSE) -> 5630.82 | AW217: =VLOOKUP($U$202&$U217,GTYF!$C:$AP,AW$201,FALSE) -> 5630.82 | AX217: =VLOOKUP($U$202&$U217,GTYF!$C:$AP,AX$201,FALSE) -> 5630.82 | AY217: =VLOOKUP($U$202&$U217,GTYF!$C:$AP,AY$201,FALSE) -> 5630.82 | AZ217: =VLOOKUP($U$202&$U217,GTYF!$C:$AP,AZ$201,FALSE) -> 5630.82
S218: Figure 10a | T218: Peupleraies | U218: (FCTYF_PEU) | V218: =VLOOKUP($U$202&$U218,GTYF!$C:$AP,V$201,FALSE) -> 11739.8 | W218: =VLOOKUP($U$202&$U218,GTYF!$C:$AP,W$201,FALSE) -> 12632.52 | X218: =VLOOKUP($U$202&$U218,GTYF!$C:$AP,X$201,FALSE) -> 12377.01 | Y218: =VLOOKUP($U$202&$U218,GTYF!$C:$AP,Y$201,FALSE) -> 11823.55 | Z218: =VLOOKUP($U$202&$U218,GTYF!$C:$AP,Z$201,FALSE) -> 12304.67 | AA218: =VLOOKUP($U$202&$U218,GTYF!$C:$AP,AA$201,FALSE) -> 12576.53 | AB218: =VLOOKUP($U$202&$U218,GTYF!$C:$AP,AB$201,FALSE) -> 12924.14 | AC218: =VLOOKUP($U$202&$U218,GTYF!$C:$AP,AC$201,FALSE) -> 12985.54 | AD218: =VLOOKUP($U$202&$U218,GTYF!$C:$AP,AD$201,FALSE) -> 13349.08 | AE218: =VLOOKUP($U$202&$U218,GTYF!$C:$AP,AE$201,FALSE) -> 13048.34 | AF218: =VLOOKUP($U$202&$U218,GTYF!$C:$AP,AF$201,FALSE) -> 13224.39 | AG218: =VLOOKUP($U$202&$U218,GTYF!$C:$AP,AG$201,FALSE) -> 13305.52 | AH218: =VLOOKUP($U$202&$U218,GTYF!$C:$AP,AH$201,FALSE) -> 13477.93 | AI218: =VLOOKUP($U$202&$U218,GTYF!$C:$AP,AI$201,FALSE) -> 13474.04 | AJ218: =VLOOKUP($U$202&$U218,GTYF!$C:$AP,AJ$201,FALSE) -> 13504.85 | AK218: =VLOOKUP($U$202&$U218,GTYF!$C:$AP,AK$201,FALSE) -> 13570.49 | AL218: =VLOOKUP($U$202&$U218,GTYF!$C:$AP,AL$201,FALSE) -> 13273.08 | AM218: =VLOOKUP($U$202&$U218,GTYF!$C:$AP,AM$201,FALSE) -> 13680.54 | AN218: =VLOOKUP($U$202&$U218,GTYF!$C:$AP,AN$201,FALSE) -> 14953.17 | AO218: =VLOOKUP($U$202&$U218,GTYF!$C:$AP,AO$201,FALSE) -> 14727.23 | AP218: =VLOOKUP($U$202&$U218,GTYF!$C:$AP,AP$201,FALSE) -> 14927.1 | AQ218: =VLOOKUP($U$202&$U218,GTYF!$C:$AP,AQ$201,FALSE) -> 14851.6 | AR218: =VLOOKUP($U$202&$U218,GTYF!$C:$AP,AR$201,FALSE) -> 15296.83 | AS218: =VLOOKUP($U$202&$U218,GTYF!$C:$AP,AS$201,FALSE) -> 15047.11 | AT218: =VLOOKUP($U$202&$U218,GTYF!$C:$AP,AT$201,FALSE) -> 15473.94 | AU218: =VLOOKUP($U$202&$U218,GTYF!$C:$AP,AU$201,FALSE) -> 15258.49 | AV218: =VLOOKUP($U$202&$U218,GTYF!$C:$AP,AV$201,FALSE) -> 15493.9 | AW218: =VLOOKUP($U$202&$U218,GTYF!$C:$AP,AW$201,FALSE) -> 15484.92 | AX218: =VLOOKUP($U$202&$U218,GTYF!$C:$AP,AX$201,FALSE) -> 15488.12 | AY218: =VLOOKUP($U$202&$U218,GTYF!$C:$AP,AY$201,FALSE) -> 15321.02 | AZ218: =VLOOKUP($U$202&$U218,GTYF!$C:$AP,AZ$201,FALSE) -> 14841.28
S219: Figure 10a | T219: Peupleraies à résineux | U219: (FCTYF_PEUR) | V219: =VLOOKUP($U$202&$U219,GTYF!$C:$AP,V$201,FALSE) -> 6488.4 | W219: =VLOOKUP($U$202&$U219,GTYF!$C:$AP,W$201,FALSE) -> 5545.48 | X219: =VLOOKUP($U$202&$U219,GTYF!$C:$AP,X$201,FALSE) -> 4596.06 | Y219: =VLOOKUP($U$202&$U219,GTYF!$C:$AP,Y$201,FALSE) -> 3823.39 | Z219: =VLOOKUP($U$202&$U219,GTYF!$C:$AP,Z$201,FALSE) -> 3227.49 | AA219: =VLOOKUP($U$202&$U219,GTYF!$C:$AP,AA$201,FALSE) -> 2727.07 | AB219: =VLOOKUP($U$202&$U219,GTYF!$C:$AP,AB$201,FALSE) -> 2322.17 | AC219: =VLOOKUP($U$202&$U219,GTYF!$C:$AP,AC$201,FALSE) -> 1782.67 | AD219: =VLOOKUP($U$202&$U219,GTYF!$C:$AP,AD$201,FALSE) -> 1404.07 | AE219: =VLOOKUP($U$202&$U219,GTYF!$C:$AP,AE$201,FALSE) -> 1253.67 | AF219: =VLOOKUP($U$202&$U219,GTYF!$C:$AP,AF$201,FALSE) -> 1030.87 | AG219: =VLOOKUP($U$202&$U219,GTYF!$C:$AP,AG$201,FALSE) -> 708.47 | AH219: =VLOOKUP($U$202&$U219,GTYF!$C:$AP,AH$201,FALSE) -> 530.49 | AI219: =VLOOKUP($U$202&$U219,GTYF!$C:$AP,AI$201,FALSE) -> 529.19 | AJ219: =VLOOKUP($U$202&$U219,GTYF!$C:$AP,AJ$201,FALSE) -> 498.15 | AK219: =VLOOKUP($U$202&$U219,GTYF!$C:$AP,AK$201,FALSE) -> 437.51 | AL219: =VLOOKUP($U$202&$U219,GTYF!$C:$AP,AL$201,FALSE) -> 372.46 | AM219: =VLOOKUP($U$202&$U219,GTYF!$C:$AP,AM$201,FALSE) -> 289.58 | AN219: =VLOOKUP($U$202&$U219,GTYF!$C:$AP,AN$201,FALSE) -> 242.8 | AO219: =VLOOKUP($U$202&$U219,GTYF!$C:$AP,AO$201,FALSE) -> 242.8 | AP219: =VLOOKUP($U$202&$U219,GTYF!$C:$AP,AP$201,FALSE) -> 211.62 | AQ219: =VLOOKUP($U$202&$U219,GTYF!$C:$AP,AQ$201,FALSE) -> 211.62 | AR219: =VLOOKUP($U$202&$U219,GTYF!$C:$AP,AR$201,FALSE) -> 211.62 | AS219: =VLOOKUP($U$202&$U219,GTYF!$C:$AP,AS$201,FALSE) -> 211.62 | AT219: =VLOOKUP($U$202&$U219,GTYF!$C:$AP,AT$201,FALSE) -> 211.62 | AU219: =VLOOKUP($U$202&$U219,GTYF!$C:$AP,AU$201,FALSE) -> 211.62 | AV219: =VLOOKUP($U$202&$U219,GTYF!$C:$AP,AV$201,FALSE) -> 211.62 | AW219: =VLOOKUP($U$202&$U219,GTYF!$C:$AP,AW$201,FALSE) -> 220.61 | AX219: =VLOOKUP($U$202&$U219,GTYF!$C:$AP,AX$201,FALSE) -> 218.71 | AY219: =VLOOKUP($U$202&$U219,GTYF!$C:$AP,AY$201,FALSE) -> 214.83 | AZ219: =VLOOKUP($U$202&$U219,GTYF!$C:$AP,AZ$201,FALSE) -> 84.5
S220: Figure 10a | T220: Pinèdes grises | U220: (FCTYF_PIG) | V220: =VLOOKUP($U$202&$U220,GTYF!$C:$AP,V$201,FALSE) -> 1327.1 | W220: =VLOOKUP($U$202&$U220,GTYF!$C:$AP,W$201,FALSE) -> 1327.1 | X220: =VLOOKUP($U$202&$U220,GTYF!$C:$AP,X$201,FALSE) -> 1327.1 | Y220: =VLOOKUP($U$202&$U220,GTYF!$C:$AP,Y$201,FALSE) -> 1327.1 | Z220: =VLOOKUP($U$202&$U220,GTYF!$C:$AP,Z$201,FALSE) -> 1222.57 | AA220: =VLOOKUP($U$202&$U220,GTYF!$C:$AP,AA$201,FALSE) -> 1222.57 | AB220: =VLOOKUP($U$202&$U220,GTYF!$C:$AP,AB$201,FALSE) -> 1046.37 | AC220: =VLOOKUP($U$202&$U220,GTYF!$C:$AP,AC$201,FALSE) -> 804.17 | AD220: =VLOOKUP($U$202&$U220,GTYF!$C:$AP,AD$201,FALSE) -> 214.1 | AE220: =VLOOKUP($U$202&$U220,GTYF!$C:$AP,AE$201,FALSE) -> 164.7 | AF220: =VLOOKUP($U$202&$U220,GTYF!$C:$AP,AF$201,FALSE) -> 120.1 | AG220: =VLOOKUP($U$202&$U220,GTYF!$C:$AP,AG$201,FALSE) -> 120.1 | AH220: =VLOOKUP($U$202&$U220,GTYF!$C:$AP,AH$201,FALSE) -> 120.1 | AI220: =VLOOKUP($U$202&$U220,GTYF!$C:$AP,AI$201,FALSE) -> 114.9 | AJ220: =VLOOKUP($U$202&$U220,GTYF!$C:$AP,AJ$201,FALSE) -> 114.9 | AK220: =VLOOKUP($U$202&$U220,GTYF!$C:$AP,AK$201,FALSE) -> 114.9 | AL220: =VLOOKUP($U$202&$U220,GTYF!$C:$AP,AL$201,FALSE) -> 112.5 | AM220: =VLOOKUP($U$202&$U220,GTYF!$C:$AP,AM$201,FALSE) -> 112.5 | AN220: =VLOOKUP($U$202&$U220,GTYF!$C:$AP,AN$201,FALSE) -> 112.5 | AO220: =VLOOKUP($U$202&$U220,GTYF!$C:$AP,AO$201,FALSE) -> 112.5 | AP220: =VLOOKUP($U$202&$U220,GTYF!$C:$AP,AP$201,FALSE) -> 112.5 | AQ220: =VLOOKUP($U$202&$U220,GTYF!$C:$AP,AQ$201,FALSE) -> 112.5 | AR220: =VLOOKUP($U$202&$U220,GTYF!$C:$AP,AR$201,FALSE) -> 112.5 | AS220: =VLOOKUP($U$202&$U220,GTYF!$C:$AP,AS$201,FALSE) -> 112.5 | AT220: =VLOOKUP($U$202&$U220,GTYF!$C:$AP,AT$201,FALSE) -> 112.5 | AU220: =VLOOKUP($U$202&$U220,GTYF!$C:$AP,AU$201,FALSE) -> 112.5 | AV220: =VLOOKUP($U$202&$U220,GTYF!$C:$AP,AV$201,FALSE) -> 112.5 | AW220: =VLOOKUP($U$202&$U220,GTYF!$C:$AP,AW$201,FALSE) -> 112.5 | AX220: =VLOOKUP($U$202&$U220,GTYF!$C:$AP,AX$201,FALSE) -> 112.5 | AY220: =VLOOKUP($U$202&$U220,GTYF!$C:$AP,AY$201,FALSE) -> 112.5 | AZ220: =VLOOKUP($U$202&$U220,GTYF!$C:$AP,AZ$201,FALSE) -> 112.5
S221: Figure 10a | T221: Pinèdes blanches | U221: (FCTYF_PIN) | V221: =VLOOKUP($U$202&$U221,GTYF!$C:$AP,V$201,FALSE) -> 0 | W221: =VLOOKUP($U$202&$U221,GTYF!$C:$AP,W$201,FALSE) -> 0 | X221: =VLOOKUP($U$202&$U221,GTYF!$C:$AP,X$201,FALSE) -> 0 | Y221: =VLOOKUP($U$202&$U221,GTYF!$C:$AP,Y$201,FALSE) -> 0 | Z221: =VLOOKUP($U$202&$U221,GTYF!$C:$AP,Z$201,FALSE) -> 0 | AA221: =VLOOKUP($U$202&$U221,GTYF!$C:$AP,AA$201,FALSE) -> 0 | AB221: =VLOOKUP($U$202&$U221,GTYF!$C:$AP,AB$201,FALSE) -> 0 | AC221: =VLOOKUP($U$202&$U221,GTYF!$C:$AP,AC$201,FALSE) -> 0 | AD221: =VLOOKUP($U$202&$U221,GTYF!$C:$AP,AD$201,FALSE) -> 0 | AE221: =VLOOKUP($U$202&$U221,GTYF!$C:$AP,AE$201,FALSE) -> 0 | AF221: =VLOOKUP($U$202&$U221,GTYF!$C:$AP,AF$201,FALSE) -> 0 | AG221: =VLOOKUP($U$202&$U221,GTYF!$C:$AP,AG$201,FALSE) -> 0 | AH221: =VLOOKUP($U$202&$U221,GTYF!$C:$AP,AH$201,FALSE) -> 0 | AI221: =VLOOKUP($U$202&$U221,GTYF!$C:$AP,AI$201,FALSE) -> 0 | AJ221: =VLOOKUP($U$202&$U221,GTYF!$C:$AP,AJ$201,FALSE) -> 0 | AK221: =VLOOKUP($U$202&$U221,GTYF!$C:$AP,AK$201,FALSE) -> 0 | AL221: =VLOOKUP($U$202&$U221,GTYF!$C:$AP,AL$201,FALSE) -> 0 | AM221: =VLOOKUP($U$202&$U221,GTYF!$C:$AP,AM$201,FALSE) -> 0 | AN221: =VLOOKUP($U$202&$U221,GTYF!$C:$AP,AN$201,FALSE) -> 0 | AO221: =VLOOKUP($U$202&$U221,GTYF!$C:$AP,AO$201,FALSE) -> 0 | AP221: =VLOOKUP($U$202&$U221,GTYF!$C:$AP,AP$201,FALSE) -> 0 | AQ221: =VLOOKUP($U$202&$U221,GTYF!$C:$AP,AQ$201,FALSE) -> 0 | AR221: =VLOOKUP($U$202&$U221,GTYF!$C:$AP,AR$201,FALSE) -> 0 | AS221: =VLOOKUP($U$202&$U221,GTYF!$C:$AP,AS$201,FALSE) -> 0 | AT221: =VLOOKUP($U$202&$U221,GTYF!$C:$AP,AT$201,FALSE) -> 0 | AU221: =VLOOKUP($U$202&$U221,GTYF!$C:$AP,AU$201,FALSE) -> 0 | AV221: =VLOOKUP($U$202&$U221,GTYF!$C:$AP,AV$201,FALSE) -> 0 | AW221: =VLOOKUP($U$202&$U221,GTYF!$C:$AP,AW$201,FALSE) -> 0 | AX221: =VLOOKUP($U$202&$U221,GTYF!$C:$AP,AX$201,FALSE) -> 0 | AY221: =VLOOKUP($U$202&$U221,GTYF!$C:$AP,AY$201,FALSE) -> 0 | AZ221: =VLOOKUP($U$202&$U221,GTYF!$C:$AP,AZ$201,FALSE) -> 0
S222: Figure 10a | T222: Prucheraies | U222: (FCTYF_PRU) | V222: =VLOOKUP($U$202&$U222,GTYF!$C:$AP,V$201,FALSE) -> 0 | W222: =VLOOKUP($U$202&$U222,GTYF!$C:$AP,W$201,FALSE) -> 0 | X222: =VLOOKUP($U$202&$U222,GTYF!$C:$AP,X$201,FALSE) -> 0 | Y222: =VLOOKUP($U$202&$U222,GTYF!$C:$AP,Y$201,FALSE) -> 0 | Z222: =VLOOKUP($U$202&$U222,GTYF!$C:$AP,Z$201,FALSE) -> 0 | AA222: =VLOOKUP($U$202&$U222,GTYF!$C:$AP,AA$201,FALSE) -> 0 | AB222: =VLOOKUP($U$202&$U222,GTYF!$C:$AP,AB$201,FALSE) -> 0 | AC222: =VLOOKUP($U$202&$U222,GTYF!$C:$AP,AC$201,FALSE) -> 0 | AD222: =VLOOKUP($U$202&$U222,GTYF!$C:$AP,AD$201,FALSE) -> 0 | AE222: =VLOOKUP($U$202&$U222,GTYF!$C:$AP,AE$201,FALSE) -> 0 | AF222: =VLOOKUP($U$202&$U222,GTYF!$C:$AP,AF$201,FALSE) -> 0 | AG222: =VLOOKUP($U$202&$U222,GTYF!$C:$AP,AG$201,FALSE) -> 0 | AH222: =VLOOKUP($U$202&$U222,GTYF!$C:$AP,AH$201,FALSE) -> 0 | AI222: =VLOOKUP($U$202&$U222,GTYF!$C:$AP,AI$201,FALSE) -> 0 | AJ222: =VLOOKUP($U$202&$U222,GTYF!$C:$AP,AJ$201,FALSE) -> 0 | AK222: =VLOOKUP($U$202&$U222,GTYF!$C:$AP,AK$201,FALSE) -> 0 | AL222: =VLOOKUP($U$202&$U222,GTYF!$C:$AP,AL$201,FALSE) -> 0 | AM222: =VLOOKUP($U$202&$U222,GTYF!$C:$AP,AM$201,FALSE) -> 0 | AN222: =VLOOKUP($U$202&$U222,GTYF!$C:$AP,AN$201,FALSE) -> 0 | AO222: =VLOOKUP($U$202&$U222,GTYF!$C:$AP,AO$201,FALSE) -> 0 | AP222: =VLOOKUP($U$202&$U222,GTYF!$C:$AP,AP$201,FALSE) -> 0 | AQ222: =VLOOKUP($U$202&$U222,GTYF!$C:$AP,AQ$201,FALSE) -> 0 | AR222: =VLOOKUP($U$202&$U222,GTYF!$C:$AP,AR$201,FALSE) -> 0 | AS222: =VLOOKUP($U$202&$U222,GTYF!$C:$AP,AS$201,FALSE) -> 0 | AT222: =VLOOKUP($U$202&$U222,GTYF!$C:$AP,AT$201,FALSE) -> 0 | AU222: =VLOOKUP($U$202&$U222,GTYF!$C:$AP,AU$201,FALSE) -> 0 | AV222: =VLOOKUP($U$202&$U222,GTYF!$C:$AP,AV$201,FALSE) -> 0 | AW222: =VLOOKUP($U$202&$U222,GTYF!$C:$AP,AW$201,FALSE) -> 0 | AX222: =VLOOKUP($U$202&$U222,GTYF!$C:$AP,AX$201,FALSE) -> 0 | AY222: =VLOOKUP($U$202&$U222,GTYF!$C:$AP,AY$201,FALSE) -> 0 | AZ222: =VLOOKUP($U$202&$U222,GTYF!$C:$AP,AZ$201,FALSE) -> 0
S223: Figure 10a | T223: Résineux à feuillus | U223: (FCTYF_RF) | V223: =VLOOKUP($U$202&$U223,GTYF!$C:$AP,V$201,FALSE) -> 46143.8 | W223: =VLOOKUP($U$202&$U223,GTYF!$C:$AP,W$201,FALSE) -> 46633.86 | X223: =VLOOKUP($U$202&$U223,GTYF!$C:$AP,X$201,FALSE) -> 47397.95 | Y223: =VLOOKUP($U$202&$U223,GTYF!$C:$AP,Y$201,FALSE) -> 47010.33 | Z223: =VLOOKUP($U$202&$U223,GTYF!$C:$AP,Z$201,FALSE) -> 46433.95 | AA223: =VLOOKUP($U$202&$U223,GTYF!$C:$AP,AA$201,FALSE) -> 45884.6 | AB223: =VLOOKUP($U$202&$U223,GTYF!$C:$AP,AB$201,FALSE) -> 45895.74 | AC223: =VLOOKUP($U$202&$U223,GTYF!$C:$AP,AC$201,FALSE) -> 45131.19 | AD223: =VLOOKUP($U$202&$U223,GTYF!$C:$AP,AD$201,FALSE) -> 46715.69 | AE223: =VLOOKUP($U$202&$U223,GTYF!$C:$AP,AE$201,FALSE) -> 47213.3 | AF223: =VLOOKUP($U$202&$U223,GTYF!$C:$AP,AF$201,FALSE) -> 46726.09 | AG223: =VLOOKUP($U$202&$U223,GTYF!$C:$AP,AG$201,FALSE) -> 48675.76 | AH223: =VLOOKUP($U$202&$U223,GTYF!$C:$AP,AH$201,FALSE) -> 47569.77 | AI223: =VLOOKUP($U$202&$U223,GTYF!$C:$AP,AI$201,FALSE) -> 47599.37 | AJ223: =VLOOKUP($U$202&$U223,GTYF!$C:$AP,AJ$201,FALSE) -> 46647.93 | AK223: =VLOOKUP($U$202&$U223,GTYF!$C:$AP,AK$201,FALSE) -> 46037.39 | AL223: =VLOOKUP($U$202&$U223,GTYF!$C:$AP,AL$201,FALSE) -> 44922.01 | AM223: =VLOOKUP($U$202&$U223,GTYF!$C:$AP,AM$201,FALSE) -> 42841.21 | AN223: =VLOOKUP($U$202&$U223,GTYF!$C:$AP,AN$201,FALSE) -> 42090.56 | AO223: =VLOOKUP($U$202&$U223,GTYF!$C:$AP,AO$201,FALSE) -> 41747.33 | AP223: =VLOOKUP($U$202&$U223,GTYF!$C:$AP,AP$201,FALSE) -> 42365.09 | AQ223: =VLOOKUP($U$202&$U223,GTYF!$C:$AP,AQ$201,FALSE) -> 41402.06 | AR223: =VLOOKUP($U$202&$U223,GTYF!$C:$AP,AR$201,FALSE) -> 41507.8 | AS223: =VLOOKUP($U$202&$U223,GTYF!$C:$AP,AS$201,FALSE) -> 40738.28 | AT223: =VLOOKUP($U$202&$U223,GTYF!$C:$AP,AT$201,FALSE) -> 40123.9 | AU223: =VLOOKUP($U$202&$U223,GTYF!$C:$AP,AU$201,FALSE) -> 39877.61 | AV223: =VLOOKUP($U$202&$U223,GTYF!$C:$AP,AV$201,FALSE) -> 39322.19 | AW223: =VLOOKUP($U$202&$U223,GTYF!$C:$AP,AW$201,FALSE) -> 38990.36 | AX223: =VLOOKUP($U$202&$U223,GTYF!$C:$AP,AX$201,FALSE) -> 39279.31 | AY223: =VLOOKUP($U$202&$U223,GTYF!$C:$AP,AY$201,FALSE) -> 40050.07 | AZ223: =VLOOKUP($U$202&$U223,GTYF!$C:$AP,AZ$201,FALSE) -> 40978.86
S224: Figure 10a | T224: Sapinières | U224: (FCTYF_SAB) | V224: =VLOOKUP($U$202&$U224,GTYF!$C:$AP,V$201,FALSE) -> 111025.1 | W224: =VLOOKUP($U$202&$U224,GTYF!$C:$AP,W$201,FALSE) -> 107902.48 | X224: =VLOOKUP($U$202&$U224,GTYF!$C:$AP,X$201,FALSE) -> 105312.78 | Y224: =VLOOKUP($U$202&$U224,GTYF!$C:$AP,Y$201,FALSE) -> 104418.5 | Z224: =VLOOKUP($U$202&$U224,GTYF!$C:$AP,Z$201,FALSE) -> 102778.98 | AA224: =VLOOKUP($U$202&$U224,GTYF!$C:$AP,AA$201,FALSE) -> 102165.16 | AB224: =VLOOKUP($U$202&$U224,GTYF!$C:$AP,AB$201,FALSE) -> 101035.41 | AC224: =VLOOKUP($U$202&$U224,GTYF!$C:$AP,AC$201,FALSE) -> 102126.87 | AD224: =VLOOKUP($U$202&$U224,GTYF!$C:$AP,AD$201,FALSE) -> 101994.92 | AE224: =VLOOKUP($U$202&$U224,GTYF!$C:$AP,AE$201,FALSE) -> 103427 | AF224: =VLOOKUP($U$202&$U224,GTYF!$C:$AP,AF$201,FALSE) -> 103949.31 | AG224: =VLOOKUP($U$202&$U224,GTYF!$C:$AP,AG$201,FALSE) -> 102937.34 | AH224: =VLOOKUP($U$202&$U224,GTYF!$C:$AP,AH$201,FALSE) -> 104546.5 | AI224: =VLOOKUP($U$202&$U224,GTYF!$C:$AP,AI$201,FALSE) -> 105197.26 | AJ224: =VLOOKUP($U$202&$U224,GTYF!$C:$AP,AJ$201,FALSE) -> 106558.21 | AK224: =VLOOKUP($U$202&$U224,GTYF!$C:$AP,AK$201,FALSE) -> 108342.25 | AL224: =VLOOKUP($U$202&$U224,GTYF!$C:$AP,AL$201,FALSE) -> 110539.7 | AM224: =VLOOKUP($U$202&$U224,GTYF!$C:$AP,AM$201,FALSE) -> 112903.01 | AN224: =VLOOKUP($U$202&$U224,GTYF!$C:$AP,AN$201,FALSE) -> 113116.12 | AO224: =VLOOKUP($U$202&$U224,GTYF!$C:$AP,AO$201,FALSE) -> 117692.28 | AP224: =VLOOKUP($U$202&$U224,GTYF!$C:$AP,AP$201,FALSE) -> 120187.69 | AQ224: =VLOOKUP($U$202&$U224,GTYF!$C:$AP,AQ$201,FALSE) -> 124193.33 | AR224: =VLOOKUP($U$202&$U224,GTYF!$C:$AP,AR$201,FALSE) -> 124132.56 | AS224: =VLOOKUP($U$202&$U224,GTYF!$C:$AP,AS$201,FALSE) -> 125318.78 | AT224: =VLOOKUP($U$202&$U224,GTYF!$C:$AP,AT$201,FALSE) -> 125595.26 | AU224: =VLOOKUP($U$202&$U224,GTYF!$C:$AP,AU$201,FALSE) -> 126941.38 | AV224: =VLOOKUP($U$202&$U224,GTYF!$C:$AP,AV$201,FALSE) -> 128566.7 | AW224: =VLOOKUP($U$202&$U224,GTYF!$C:$AP,AW$201,FALSE) -> 129528.35 | AX224: =VLOOKUP($U$202&$U224,GTYF!$C:$AP,AX$201,FALSE) -> 129574.3 | AY224: =VLOOKUP($U$202&$U224,GTYF!$C:$AP,AY$201,FALSE) -> 129430.32 | AZ224: =VLOOKUP($U$202&$U224,GTYF!$C:$AP,AZ$201,FALSE) -> 128669.05
B225: * Attention, étant donné que le graphique fait appel aux GTYF, certains TYF ne paraissent pas dans les bons types de couvert (ex: EoRx, PbFx, PuFx, ToFx) | S225: Figure 10a | T225: Cédrières | U225: (FCTYF_THO) | V225: =VLOOKUP($U$202&$U225,GTYF!$C:$AP,V$201,FALSE) -> 0 | W225: =VLOOKUP($U$202&$U225,GTYF!$C:$AP,W$201,FALSE) -> 0 | X225: =VLOOKUP($U$202&$U225,GTYF!$C:$AP,X$201,FALSE) -> 0 | Y225: =VLOOKUP($U$202&$U225,GTYF!$C:$AP,Y$201,FALSE) -> 0 | Z225: =VLOOKUP($U$202&$U225,GTYF!$C:$AP,Z$201,FALSE) -> 0 | AA225: =VLOOKUP($U$202&$U225,GTYF!$C:$AP,AA$201,FALSE) -> 0 | AB225: =VLOOKUP($U$202&$U225,GTYF!$C:$AP,AB$201,FALSE) -> 0 | AC225: =VLOOKUP($U$202&$U225,GTYF!$C:$AP,AC$201,FALSE) -> 0 | AD225: =VLOOKUP($U$202&$U225,GTYF!$C:$AP,AD$201,FALSE) -> 0 | AE225: =VLOOKUP($U$202&$U225,GTYF!$C:$AP,AE$201,FALSE) -> 0 | AF225: =VLOOKUP($U$202&$U225,GTYF!$C:$AP,AF$201,FALSE) -> 0 | AG225: =VLOOKUP($U$202&$U225,GTYF!$C:$AP,AG$201,FALSE) -> 0 | AH225: =VLOOKUP($U$202&$U225,GTYF!$C:$AP,AH$201,FALSE) -> 0 | AI225: =VLOOKUP($U$202&$U225,GTYF!$C:$AP,AI$201,FALSE) -> 0 | AJ225: =VLOOKUP($U$202&$U225,GTYF!$C:$AP,AJ$201,FALSE) -> 0 | AK225: =VLOOKUP($U$202&$U225,GTYF!$C:$AP,AK$201,FALSE) -> 0 | AL225: =VLOOKUP($U$202&$U225,GTYF!$C:$AP,AL$201,FALSE) -> 0 | AM225: =VLOOKUP($U$202&$U225,GTYF!$C:$AP,AM$201,FALSE) -> 0 | AN225: =VLOOKUP($U$202&$U225,GTYF!$C:$AP,AN$201,FALSE) -> 0 | AO225: =VLOOKUP($U$202&$U225,GTYF!$C:$AP,AO$201,FALSE) -> 0 | AP225: =VLOOKUP($U$202&$U225,GTYF!$C:$AP,AP$201,FALSE) -> 0 | AQ225: =VLOOKUP($U$202&$U225,GTYF!$C:$AP,AQ$201,FALSE) -> 0 | AR225: =VLOOKUP($U$202&$U225,GTYF!$C:$AP,AR$201,FALSE) -> 0 | AS225: =VLOOKUP($U$202&$U225,GTYF!$C:$AP,AS$201,FALSE) -> 0 | AT225: =VLOOKUP($U$202&$U225,GTYF!$C:$AP,AT$201,FALSE) -> 0 | AU225: =VLOOKUP($U$202&$U225,GTYF!$C:$AP,AU$201,FALSE) -> 0 | AV225: =VLOOKUP($U$202&$U225,GTYF!$C:$AP,AV$201,FALSE) -> 0 | AW225: =VLOOKUP($U$202&$U225,GTYF!$C:$AP,AW$201,FALSE) -> 0 | AX225: =VLOOKUP($U$202&$U225,GTYF!$C:$AP,AX$201,FALSE) -> 0 | AY225: =VLOOKUP($U$202&$U225,GTYF!$C:$AP,AY$201,FALSE) -> 0 | AZ225: =VLOOKUP($U$202&$U225,GTYF!$C:$AP,AZ$201,FALSE) -> 0
U228: Colonne | V228: 6 | W228: 7 | X228: 8 | Y228: 9 | Z228: 10 | AA228: 11 | AB228: 12 | AC228: 13 | AD228: 14 | AE228: 15 | AF228: 16 | AG228: 17 | AH228: 18 | AI228: 19 | AJ228: 20 | AK228: 21 | AL228: 22 | AM228: 23 | AN228: 24 | AO228: 25 | AP228: 26 | AQ228: 27 | AR228: 28 | AS228: 29 | AT228: 30 | AU228: 31 | AV228: 32 | AW228: 33 | AX228: 34 | AY228: 35 | AZ228: 36
B229: Figure 10c Évolution des superficies de hêtraie et d'érablière à hêtre | U229: Période | V229: P0 | W229: P1 | X229: P2 | Y229: P3 | Z229: P4 | AA229: P5 | AB229: P6 | AC229: P7 | AD229: P8 | AE229: P9 | AF229: P10 | AG229: P11 | AH229: P12 | AI229: P13 | AJ229: P14 | AK229: P15 | AL229: P16 | AM229: P17 | AN229: P18 | AO229: P19 | AP229: P20 | AQ229: P21 | AR229: P22 | AS229: P23 | AT229: P24 | AU229: P25 | AV229: P26 | AW229: P27 | AX229: P28 | AY229: P29 | AZ229: P30
U230: Axe des "X" Fin de période | V230: 2018 | W230: 2023 | X230: 2028 | Y230: 2033 | Z230: 2038 | AA230: 2043 | AB230: 2048 | AC230: 2053 | AD230: 2058 | AE230: 2063 | AF230: 2068 | AG230: 2073 | AH230: 2078 | AI230: 2083 | AJ230: 2088 | AK230: 2093 | AL230: 2098 | AM230: 2103 | AN230: 2108 | AO230: 2113 | AP230: 2118 | AQ230: 2123 | AR230: 2128 | AS230: 2133 | AT230: 2138 | AU230: 2143 | AV230: 2148 | AW230: 2153 | AX230: 2158 | AY230: 2163 | AZ230: 2168
S231: =LEFT(B$229,10) -> Figure 10c | T231: Hêtraie | U231: OSUPESHG_FX | V231: =VLOOKUP($U231,Output!$C:$AQ,V$228,FALSE) ->  | W231: =VLOOKUP($U231,Output!$C:$AQ,W$228,FALSE) ->  | X231: =VLOOKUP($U231,Output!$C:$AQ,X$228,FALSE) ->  | Y231: =VLOOKUP($U231,Output!$C:$AQ,Y$228,FALSE) ->  | Z231: =VLOOKUP($U231,Output!$C:$AQ,Z$228,FALSE) ->  | AA231: =VLOOKUP($U231,Output!$C:$AQ,AA$228,FALSE) ->  | AB231: =VLOOKUP($U231,Output!$C:$AQ,AB$228,FALSE) ->  | AC231: =VLOOKUP($U231,Output!$C:$AQ,AC$228,FALSE) ->  | AD231: =VLOOKUP($U231,Output!$C:$AQ,AD$228,FALSE) ->  | AE231: =VLOOKUP($U231,Output!$C:$AQ,AE$228,FALSE) ->  | AF231: =VLOOKUP($U231,Output!$C:$AQ,AF$228,FALSE) ->  | AG231: =VLOOKUP($U231,Output!$C:$AQ,AG$228,FALSE) ->  | AH231: =VLOOKUP($U231,Output!$C:$AQ,AH$228,FALSE) ->  | AI231: =VLOOKUP($U231,Output!$C:$AQ,AI$228,FALSE) ->  | AJ231: =VLOOKUP($U231,Output!$C:$AQ,AJ$228,FALSE) ->  | AK231: =VLOOKUP($U231,Output!$C:$AQ,AK$228,FALSE) ->  | AL231: =VLOOKUP($U231,Output!$C:$AQ,AL$228,FALSE) ->  | AM231: =VLOOKUP($U231,Output!$C:$AQ,AM$228,FALSE) ->  | AN231: =VLOOKUP($U231,Output!$C:$AQ,AN$228,FALSE) ->  | AO231: =VLOOKUP($U231,Output!$C:$AQ,AO$228,FALSE) ->  | AP231: =VLOOKUP($U231,Output!$C:$AQ,AP$228,FALSE) ->  | AQ231: =VLOOKUP($U231,Output!$C:$AQ,AQ$228,FALSE) ->  | AR231: =VLOOKUP($U231,Output!$C:$AQ,AR$228,FALSE) ->  | AS231: =VLOOKUP($U231,Output!$C:$AQ,AS$228,FALSE) ->  | AT231: =VLOOKUP($U231,Output!$C:$AQ,AT$228,FALSE) ->  | AU231: =VLOOKUP($U231,Output!$C:$AQ,AU$228,FALSE) ->  | AV231: =VLOOKUP($U231,Output!$C:$AQ,AV$228,FALSE) ->  | AW231: =VLOOKUP($U231,Output!$C:$AQ,AW$228,FALSE) ->  | AX231: =VLOOKUP($U231,Output!$C:$AQ,AX$228,FALSE) ->  | AY231: =VLOOKUP($U231,Output!$C:$AQ,AY$228,FALSE) ->  | AZ231: =VLOOKUP($U231,Output!$C:$AQ,AZ$228,FALSE) -> 
S232: =LEFT(B$229,10) -> Figure 10c | T232: Érablière à hêtre | U232: OSUPESHG | V232: =VLOOKUP($U232,Output!$C:$AQ,V$228,FALSE) ->  | W232: =VLOOKUP($U232,Output!$C:$AQ,W$228,FALSE) ->  | X232: =VLOOKUP($U232,Output!$C:$AQ,X$228,FALSE) ->  | Y232: =VLOOKUP($U232,Output!$C:$AQ,Y$228,FALSE) ->  | Z232: =VLOOKUP($U232,Output!$C:$AQ,Z$228,FALSE) ->  | AA232: =VLOOKUP($U232,Output!$C:$AQ,AA$228,FALSE) ->  | AB232: =VLOOKUP($U232,Output!$C:$AQ,AB$228,FALSE) ->  | AC232: =VLOOKUP($U232,Output!$C:$AQ,AC$228,FALSE) ->  | AD232: =VLOOKUP($U232,Output!$C:$AQ,AD$228,FALSE) ->  | AE232: =VLOOKUP($U232,Output!$C:$AQ,AE$228,FALSE) ->  | AF232: =VLOOKUP($U232,Output!$C:$AQ,AF$228,FALSE) ->  | AG232: =VLOOKUP($U232,Output!$C:$AQ,AG$228,FALSE) ->  | AH232: =VLOOKUP($U232,Output!$C:$AQ,AH$228,FALSE) ->  | AI232: =VLOOKUP($U232,Output!$C:$AQ,AI$228,FALSE) ->  | AJ232: =VLOOKUP($U232,Output!$C:$AQ,AJ$228,FALSE) ->  | AK232: =VLOOKUP($U232,Output!$C:$AQ,AK$228,FALSE) ->  | AL232: =VLOOKUP($U232,Output!$C:$AQ,AL$228,FALSE) ->  | AM232: =VLOOKUP($U232,Output!$C:$AQ,AM$228,FALSE) ->  | AN232: =VLOOKUP($U232,Output!$C:$AQ,AN$228,FALSE) ->  | AO232: =VLOOKUP($U232,Output!$C:$AQ,AO$228,FALSE) ->  | AP232: =VLOOKUP($U232,Output!$C:$AQ,AP$228,FALSE) ->  | AQ232: =VLOOKUP($U232,Output!$C:$AQ,AQ$228,FALSE) ->  | AR232: =VLOOKUP($U232,Output!$C:$AQ,AR$228,FALSE) ->  | AS232: =VLOOKUP($U232,Output!$C:$AQ,AS$228,FALSE) ->  | AT232: =VLOOKUP($U232,Output!$C:$AQ,AT$228,FALSE) ->  | AU232: =VLOOKUP($U232,Output!$C:$AQ,AU$228,FALSE) ->  | AV232: =VLOOKUP($U232,Output!$C:$AQ,AV$228,FALSE) ->  | AW232: =VLOOKUP($U232,Output!$C:$AQ,AW$228,FALSE) ->  | AX232: =VLOOKUP($U232,Output!$C:$AQ,AX$228,FALSE) ->  | AY232: =VLOOKUP($U232,Output!$C:$AQ,AY$228,FALSE) ->  | AZ232: =VLOOKUP($U232,Output!$C:$AQ,AZ$228,FALSE) -> 
S233: =LEFT(B$229,10) -> Figure 10c | T233: Total | U233: Total | V233: =SUM(V231:V232) ->  | W233: =SUM(W231:W232) -> 
B255: Figure 11b Évolution du volume de sapin et d'épinettes sur pied dans la composante SEPM
U262: Colonne | V262: 6 | W262: 7 | X262: 8 | Y262: 9 | Z262: 10 | AA262: 11 | AB262: 12 | AC262: 13 | AD262: 14 | AE262: 15 | AF262: 16 | AG262: 17 | AH262: 18 | AI262: 19 | AJ262: 20 | AK262: 21 | AL262: 22 | AM262: 23 | AN262: 24 | AO262: 25 | AP262: 26 | AQ262: 27 | AR262: 28 | AS262: 29 | AT262: 30 | AU262: 31 | AV262: 32 | AW262: 33 | AX262: 34 | AY262: 35 | AZ262: 36
U263: Axe des "X" Fin de période | V263: 2018 | W263: 2023 | X263: 2028 | Y263: 2033 | Z263: 2038 | AA263: 2043 | AB263: 2048 | AC263: 2053 | AD263: 2058 | AE263: 2063 | AF263: 2068 | AG263: 2073 | AH263: 2078 | AI263: 2083 | AJ263: 2088 | AK263: 2093 | AL263: 2098 | AM263: 2103 | AN263: 2108 | AO263: 2113 | AP263: 2118 | AQ263: 2123 | AR263: 2128 | AS263: 2133 | AT263: 2138 | AU263: 2143 | AV263: 2148 | AW263: 2153 | AX263: 2158 | AY263: 2163 | AZ263: 2168
S264: =LEFT(B$255,10) -> Figure 11b | U264: Période | V264: P0 | W264: P1 | X264: P2 | Y264: P3 | Z264: P4 | AA264: P5 | AB264: P6 | AC264: P7 | AD264: P8 | AE264: P9 | AF264: P10 | AG264: P11 | AH264: P12 | AI264: P13 | AJ264: P14 | AK264: P15 | AL264: P16 | AM264: P17 | AN264: P18 | AO264: P19 | AP264: P20 | AQ264: P21 | AR264: P22 | AS264: P23 | AT264: P24 | AU264: P25 | AV264: P26 | AW264: P27 | AX264: P28 | AY264: P29 | AZ264: P30
S265: Figure 11b | T265: Légende | Y265: PERIOD3 | Z265: PERIOD4 | AA265: PERIOD5 | AB265: PERIOD6 | AC265: PERIOD7 | AD265: PERIOD8 | AE265: PERIOD9 | AF265: PERIOD10 | AG265: PERIOD11 | AH265: PERIOD12 | AI265: PERIOD13 | AJ265: PERIOD14 | AK265: PERIOD15 | AL265: PERIOD16 | AM265: PERIOD17 | AN265: PERIOD18 | AO265: PERIOD19 | AP265: PERIOD20 | AQ265: PERIOD21 | AR265: PERIOD22 | AS265: PERIOD23 | AT265: PERIOD24 | AU265: PERIOD25 | AV265: PERIOD26 | AW265: PERIOD27 | AX265: PERIOD28 | AY265: PERIOD29 | AZ265: PERIOD30
S266: Figure 11b | T266: Volume Sapin | U266: OVOLSABPIEDINC(FCTYF_SEPM) | V266: =VLOOKUP($U266,GTYF!$C:$AL,Figures!V$262,FALSE) -> 4238374.47 | W266: =VLOOKUP($U266,GTYF!$C:$AL,Figures!W$262,FALSE) -> 4847993.87 | X266: =VLOOKUP($U266,GTYF!$C:$AL,Figures!X$262,FALSE) -> 5306647.58 | Y266: =VLOOKUP($U266,GTYF!$C:$AL,Figures!Y$262,FALSE) -> 5774867.41 | Z266: =VLOOKUP($U266,GTYF!$C:$AL,Figures!Z$262,FALSE) -> 6177463.34 | AA266: =VLOOKUP($U266,GTYF!$C:$AL,Figures!AA$262,FALSE) -> 6539701.79 | AB266: =VLOOKUP($U266,GTYF!$C:$AL,Figures!AB$262,FALSE) -> 6885952.55 | AC266: =VLOOKUP($U266,GTYF!$C:$AL,Figures!AC$262,FALSE) -> 7034270.84 | AD266: =VLOOKUP($U266,GTYF!$C:$AL,Figures!AD$262,FALSE) -> 7110784.93 | AE266: =VLOOKUP($U266,GTYF!$C:$AL,Figures!AE$262,FALSE) -> 6983465.37 | AF266: =VLOOKUP($U266,GTYF!$C:$AL,Figures!AF$262,FALSE) -> 6740977.98 | AG266: =VLOOKUP($U266,GTYF!$C:$AL,Figures!AG$262,FALSE) -> 6644349.67 | AH266: =VLOOKUP($U266,GTYF!$C:$AL,Figures!AH$262,FALSE) -> 6299090.31 | AI266: =VLOOKUP($U266,GTYF!$C:$AL,Figures!AI$262,FALSE) -> 5861198.81 | AJ266: =VLOOKUP($U266,GTYF!$C:$AL,Figures!AJ$262,FALSE) -> 5376180.07 | AK266: =VLOOKUP($U266,GTYF!$C:$AL,Figures!AK$262,FALSE) -> 4991293.3 | AL266: =VLOOKUP($U266,GTYF!$C:$AL,Figures!AL$262,FALSE) -> 4519787.99 | AM266: =VLOOKUP($U266,GTYF!$C:$AL,Figures!AM$262,FALSE) -> 4358862.29 | AN266: =VLOOKUP($U266,GTYF!$C:$AL,Figures!AN$262,FALSE) -> 4307154.08 | AO266: =VLOOKUP($U266,GTYF!$C:$AL,Figures!AO$262,FALSE) -> 4394102.24 | AP266: =VLOOKUP($U266,GTYF!$C:$AL,Figures!AP$262,FALSE) -> 4598642 | AQ266: =VLOOKUP($U266,GTYF!$C:$AL,Figures!AQ$262,FALSE) -> 4986743.04 | AR266: =VLOOKUP($U266,GTYF!$C:$AL,Figures!AR$262,FALSE) -> 5194290.58 | AS266: =VLOOKUP($U266,GTYF!$C:$AL,Figures!AS$262,FALSE) -> 5481079.63 | AT266: =VLOOKUP($U266,GTYF!$C:$AL,Figures!AT$262,FALSE) -> 5777606.19 | AU266: =VLOOKUP($U266,GTYF!$C:$AL,Figures!AU$262,FALSE) -> 5958377.2 | AV266: =VLOOKUP($U266,GTYF!$C:$AL,Figures!AV$262,FALSE) -> 6108867.92 | AW266: =VLOOKUP($U266,GTYF!$C:$AL,Figures!AW$262,FALSE) -> 6358635.47 | AX266: =VLOOKUP($U266,GTYF!$C:$AL,Figures!AX$262,FALSE) -> 6366030.82 | AY266: =VLOOKUP($U266,GTYF!$C:$AL,Figures!AY$262,FALSE) -> 6398087.33 | AZ266: =VLOOKUP($U266,GTYF!$C:$AL,Figures!AZ$262,FALSE) -> 6239964.7
S267: Figure 11b | T267: Volume Épinettes | U267: OVOLGEPXPIEDINC(FCTYF_SEPM) | V267: =VLOOKUP($U267,GTYF!$C:$AL,Figures!V$262,FALSE) -> 5294104.31 | W267: =VLOOKUP($U267,GTYF!$C:$AL,Figures!W$262,FALSE) -> 6199845.43 | X267: =VLOOKUP($U267,GTYF!$C:$AL,Figures!X$262,FALSE) -> 7143907.79 | Y267: =VLOOKUP($U267,GTYF!$C:$AL,Figures!Y$262,FALSE) -> 8137962.08 | Z267: =VLOOKUP($U267,GTYF!$C:$AL,Figures!Z$262,FALSE) -> 9148255.92 | AA267: =VLOOKUP($U267,GTYF!$C:$AL,Figures!AA$262,FALSE) -> 10264393.95 | AB267: =VLOOKUP($U267,GTYF!$C:$AL,Figures!AB$262,FALSE) -> 11247348.28 | AC267: =VLOOKUP($U267,GTYF!$C:$AL,Figures!AC$262,FALSE) -> 12280200.66 | AD267: =VLOOKUP($U267,GTYF!$C:$AL,Figures!AD$262,FALSE) -> 13033840.21 | AE267: =VLOOKUP($U267,GTYF!$C:$AL,Figures!AE$262,FALSE) -> 13609500.66 | AF267: =VLOOKUP($U267,GTYF!$C:$AL,Figures!AF$262,FALSE) -> 14295761.25 | AG267: =VLOOKUP($U267,GTYF!$C:$AL,Figures!AG$262,FALSE) -> 14552111.14 | AH267: =VLOOKUP($U267,GTYF!$C:$AL,Figures!AH$262,FALSE) -> 15260828.56 | AI267: =VLOOKUP($U267,GTYF!$C:$AL,Figures!AI$262,FALSE) -> 15934299.19 | AJ267: =VLOOKUP($U267,GTYF!$C:$AL,Figures!AJ$262,FALSE) -> 16377997.04 | AK267: =VLOOKUP($U267,GTYF!$C:$AL,Figures!AK$262,FALSE) -> 16909336.42 | AL267: =VLOOKUP($U267,GTYF!$C:$AL,Figures!AL$262,FALSE) -> 17254383.99 | AM267: =VLOOKUP($U267,GTYF!$C:$AL,Figures!AM$262,FALSE) -> 17420545.93 | AN267: =VLOOKUP($U267,GTYF!$C:$AL,Figures!AN$262,FALSE) -> 17343986.27 | AO267: =VLOOKUP($U267,GTYF!$C:$AL,Figures!AO$262,FALSE) -> 17027393.02 | AP267: =VLOOKUP($U267,GTYF!$C:$AL,Figures!AP$262,FALSE) -> 16590936.21 | AQ267: =VLOOKUP($U267,GTYF!$C:$AL,Figures!AQ$262,FALSE) -> 16076261.31 | AR267: =VLOOKUP($U267,GTYF!$C:$AL,Figures!AR$262,FALSE) -> 15562255.49 | AS267: =VLOOKUP($U267,GTYF!$C:$AL,Figures!AS$262,FALSE) -> 15187673.22 | AT267: =VLOOKUP($U267,GTYF!$C:$AL,Figures!AT$262,FALSE) -> 14817965.95 | AU267: =VLOOKUP($U267,GTYF!$C:$AL,Figures!AU$262,FALSE) -> 14429028.6 | AV267: =VLOOKUP($U267,GTYF!$C:$AL,Figures!AV$262,FALSE) -> 14255225.88 | AW267: =VLOOKUP($U267,GTYF!$C:$AL,Figures!AW$262,FALSE) -> 14188590.25 | AX267: =VLOOKUP($U267,GTYF!$C:$AL,Figures!AX$262,FALSE) -> 14136264.3 | AY267: =VLOOKUP($U267,GTYF!$C:$AL,Figures!AY$262,FALSE) -> 14153418.54 | AZ267: =VLOOKUP($U267,GTYF!$C:$AL,Figures!AZ$262,FALSE) -> 14358641.17
S268: Figure 11b
S269: Figure 11b | T269: SEPM sur pied | U269: OVOLGSEPMPIEDINC(FCTYF_SEPM) | V269: =VLOOKUP($U269,GTYF!$C:$AL,Figures!V$262,FALSE) -> 10216303.19 | W269: =VLOOKUP($U269,GTYF!$C:$AL,Figures!W$262,FALSE) -> 11835286.87 | X269: =VLOOKUP($U269,GTYF!$C:$AL,Figures!X$262,FALSE) -> 13334098.57 | Y269: =VLOOKUP($U269,GTYF!$C:$AL,Figures!Y$262,FALSE) -> 14876813.95 | Z269: =VLOOKUP($U269,GTYF!$C:$AL,Figures!Z$262,FALSE) -> 16341876.1 | AA269: =VLOOKUP($U269,GTYF!$C:$AL,Figures!AA$262,FALSE) -> 17877665.37 | AB269: =VLOOKUP($U269,GTYF!$C:$AL,Figures!AB$262,FALSE) -> 19210903.14 | AC269: =VLOOKUP($U269,GTYF!$C:$AL,Figures!AC$262,FALSE) -> 20377408.11 | AD269: =VLOOKUP($U269,GTYF!$C:$AL,Figures!AD$262,FALSE) -> 21034579.74 | AE269: =VLOOKUP($U269,GTYF!$C:$AL,Figures!AE$262,FALSE) -> 21457772.93 | AF269: =VLOOKUP($U269,GTYF!$C:$AL,Figures!AF$262,FALSE) -> 21836278.53 | AG269: =VLOOKUP($U269,GTYF!$C:$AL,Figures!AG$262,FALSE) -> 22024840.61 | AH269: =VLOOKUP($U269,GTYF!$C:$AL,Figures!AH$262,FALSE) -> 22406846.36 | AI269: =VLOOKUP($U269,GTYF!$C:$AL,Figures!AI$262,FALSE) -> 22664302.68 | AJ269: =VLOOKUP($U269,GTYF!$C:$AL,Figures!AJ$262,FALSE) -> 22654845.23 | AK269: =VLOOKUP($U269,GTYF!$C:$AL,Figures!AK$262,FALSE) -> 22810462.47 | AL269: =VLOOKUP($U269,GTYF!$C:$AL,Figures!AL$262,FALSE) -> 22688034.29 | AM269: =VLOOKUP($U269,GTYF!$C:$AL,Figures!AM$262,FALSE) -> 22682254.63 | AN269: =VLOOKUP($U269,GTYF!$C:$AL,Figures!AN$262,FALSE) -> 22531095.97 | AO269: =VLOOKUP($U269,GTYF!$C:$AL,Figures!AO$262,FALSE) -> 22202978.12 | AP269: =VLOOKUP($U269,GTYF!$C:$AL,Figures!AP$262,FALSE) -> 21912065.16 | AQ269: =VLOOKUP($U269,GTYF!$C:$AL,Figures!AQ$262,FALSE) -> 21690213.06 | AR269: =VLOOKUP($U269,GTYF!$C:$AL,Figures!AR$262,FALSE) -> 21359086.63 | AS269: =VLOOKUP($U269,GTYF!$C:$AL,Figures!AS$262,FALSE) -> 21227907.78 | AT269: =VLOOKUP($U269,GTYF!$C:$AL,Figures!AT$262,FALSE) -> 21109744.88 | AU269: =VLOOKUP($U269,GTYF!$C:$AL,Figures!AU$262,FALSE) -> 20884912.37 | AV269: =VLOOKUP($U269,GTYF!$C:$AL,Figures!AV$262,FALSE) -> 20850347.52 | AW269: =VLOOKUP($U269,GTYF!$C:$AL,Figures!AW$262,FALSE) -> 21068099.71 | AX269: =VLOOKUP($U269,GTYF!$C:$AL,Figures!AX$262,FALSE) -> 21050267.16 | AY269: =VLOOKUP($U269,GTYF!$C:$AL,Figures!AY$262,FALSE) -> 21137498.57 | AZ269: =VLOOKUP($U269,GTYF!$C:$AL,Figures!AZ$262,FALSE) -> 21209823.58
S270: Figure 11b
S271: Figure 11b | T271: % Sapin | V271: =IF(ISERROR(V266),0,V266/V269) -> 0.4148638104 | W271: 0.4096219993 | X271: 0.3979757276 | Y271: 0.3881790435 | Z271: 0.3780143297 | AA271: 0.3658028973 | AB271: 0.3584398141 | AC271: 0.3451994877 | AD271: 0.3380521512 | AE271: 0.3254515458 | AF271: 0.3087054404 | AG271: 0.3016752669 | AH271: 0.281123466 | AI271: 0.2586092717 | AJ271: 0.2373081791 | AK271: 0.2188159625 | AL271: 0.1992146138 | AM271: 0.1921705916 | AN271: 0.1911648721 | AO271: 0.1979059843 | AP271: 0.2098680324 | AQ271: 0.2299075176 | AR271: 0.2431887969 | AS271: 0.2582015942 | AT271: 0.2736937951 | AU271: 0.2852957721 | AV271: 0.2929863838 | AW271: 0.3018134316 | AX271: 0.3024204288 | AY271: 0.3026889539 | AZ271: 0.2942016314
S272: Figure 11b | T272: % Épinettes | V272: =IF(ISERROR(V267),0,V267/V269) -> 0.5182015658 | W272: =IF(ISERROR(W267),0,W267/W269) -> 0.5238441195 | X272: 0.5357623354 | Y272: 0.5470231803 | Z272: 0.5598045086 | AA272: 0.5741462175 | AB272: 0.5854669194 | AC272: 0.6026380094 | AD272: 0.6196387269 | AE272: 0.6342457209 | AF272: 0.6546793782 | AG272: 0.6607135733 | AH272: 0.6810788236 | AI272: 0.7030571121 | AJ272: 0.7229357285 | AK272: 0.7412973955 | AL272: 0.7605059023 | AM272: 0.7680253226 | AN272: 0.7697799651 | AO272: 0.7668968067 | AP272: 0.757159861 | AQ272: 0.7411758135 | AR272: 0.7286011691 | AS272: 0.7154578481 | AT272: 0.7019490777 | AU272: 0.6908828893 | AV272: 0.6836924836 | AW272: 0.6734632191 | AX272: 0.6715479757 | AY272: 0.6695881489 | AZ272: 0.6769806979
S273: Figure 11b | T273: % Volume autre | V273: =1-(V272+V271) -> 0.06693462374 | W273: 0.06653388115 | X273: 0.06626193705 | Y273: 0.06479777614 | Z273: 0.06218116168 | AA273: 0.06005088516 | AB273: 0.05609326652 | AC273: 0.05216250292 | AD273: 0.04230912198 | AE273: 0.04030273332 | AF273: 0.03661518142 | AG273: 0.03761115981 | AH273: 0.03779771041 | AI273: 0.03833361618 | AJ273: 0.03975609239 | AK273: 0.03988664198 | AL273: 0.04027948382 | AM273: 0.03980408583 | AN273: 0.03905516275 | AO273: 0.03519720894 | AP273: 0.03297210668 | AQ273: 0.02891666893 | AR273: 0.028210034 | AS273: 0.02634055771 | AT273: 0.02435712714 | AU273: 0.02382133864 | AV273: 0.02332113264 | AW273: 0.02472334938 | AX273: 0.02603159551 | AY273: 0.0277228972 | AZ273: 0.02881767063
B278: Figure 14 Indicateur de productivité
... 278 more rows

Sheet UTA
M1: Jeune forêt | R1: Niveau d'altération des vieilles forêts | W1: Niveau d'altération combiné | AA1: Info à récupérer par le SSP Niveau d'altération des vieilles forêts
A2: Inscrire la liste des numéros d'UTA de l'UA: | B2: VieuxAlerte (%) | C2: VieuxAccept (%) | D2: RegeAlerte (%) | E2: RegeAccept (%) | G2: VieuxAlerte (ha) | H2: VieuxAccept (ha) | I2: RegeAlerte (ha) | J2: RegeAccept (ha) | K2: SupUTA | M2: OSUPJEUNEREGECO PERIOD1 (%) | N2: État Jeune 2023 | O2: OSUPJEUNEREGECO PERIOD6 (%) | P2: État Jeune 2048 | R2: OSUPVIEUXTOTREGECO PERIOD1 (%) | S2: État Vielle 2023 | T2: OSUPVIEUXTOTREGECO PERIOD6 (%) | U2: État Vielle 2048 | W2: UTA | X2: 2023 | Y2: 2048 | AA2: UA | AB2: UTA | AC2: 2023 | AD2: 2048 | AE2: Mode de répartition spatiale | AP2: Mode de répartition spatiale
A3: UTA002 | B3: =ROUND(G3/$K3,3) -> 0.258 | C3: =ROUND(H3/$K3,3) -> 0.43 | D3: =ROUND(I3/$K3,3) -> 0.3 | E3: =ROUND(J3/$K3,3) -> 0.2 | G3: =VLOOKUP(CONCATENATE("OSUPVIEUXALERTEREGECO_"&A3),Output!$C:$AQ,6,FALSE) -> 15912.85 | H3: =VLOOKUP(CONCATENATE("OSUPVIEUXACCEPTREGECO_"&A3),Output!$C:$AQ,6,FALSE) -> 26521.41 | I3: =VLOOKUP(CONCATENATE("OSUPJEUNEALERTEREGECO_"&A3),Output!$C:$AQ,6,FALSE) -> 18503.31 | J3: =VLOOKUP(CONCATENATE("OSUPJEUNEACCEPTREGECO_"&A3),Output!$C:$AQ,6,FALSE) -> 12335.54 | K3: =VLOOKUP(CONCATENATE("OSUPREGECO_"&A3),Output!$C:$AQ,6,FALSE) -> 61677.7 | M3: =ROUND(VLOOKUP("OSUPJEUNEREGECO_"&A3,Output!$C:$AQ,7,FALSE)/VLOOKUP("OSUPREGECO_"&A3,Output!$C:$AQ,6,FALSE),3) -> 0 | N3: =IF(M3<=$E3,"Faible",IF(M3<$D3,"Modéré","Supérieur")) -> Faible | O3: =ROUND(VLOOKUP("OSUPJEUNEREGECO_"&$A3,Output!$C:$AQ,12,FALSE)/VLOOKUP("OSUPREGECO_"&A3,Output!$C:$AQ,6,FALSE),3) -> 0 | P3: =IF(O3<=$E3,"Faible",IF(O3<$D3,"Modéré","Supérieur")) -> Faible | R3: =ROUND(VLOOKUP("OSUPVIEUXTOTREGECO_"&$A3,Output!$C:$AQ,7,FALSE)/VLOOKUP("OSUPREGECO_"&A3,Output!$C:$AQ,6,FALSE),3) -> 0.419 | S3: =IF(R3<$B3,"Supérieur",IF(R3<$C3,"Modéré","Faible")) -> Modéré | T3: =ROUND(VLOOKUP("OSUPVIEUXTOTREGECO_"&$A3,Output!$C:$AQ,12,FALSE)/VLOOKUP("OSUPREGECO_"&A3,Output!$C:$AQ,6,FALSE),3) -> 0.753 | U3: =IF(T3<$B3,"Supérieur",IF(T3<$C3,"Modéré","Faible")) -> Faible | W3: =A3 -> UTA002 | X3: =IF(S3>N3,S3,N3) -> Modéré | Y3: =IF(U3>P3,U3,P3) -> Faible | AA3: =Tableaux!$O$33 -> 03772 | AB3: =W3 -> UTA002 | AC3: =S3 -> Modéré | AD3: =U3 -> Faible | AE3: COS sapinière | AG3: Note: "Élevé" a été renommé "Supérieur" pour le bon fonctionnement des formules. | AP3: COS sapinière
A4: UTA003 | B4: =ROUND(G4/$K4,3) -> 0.258 | C4: 0.43 | D4: 0.3 | E4: 0.2 | G4: =VLOOKUP(CONCATENATE("OSUPVIEUXALERTEREGECO_"&A4),Output!$C:$AQ,6,FALSE) -> 7129.44 | H4: =VLOOKUP(CONCATENATE("OSUPVIEUXACCEPTREGECO_"&A4),Output!$C:$AQ,6,FALSE) -> 11882.41 | I4: =VLOOKUP(CONCATENATE("OSUPJEUNEALERTEREGECO_"&A4),Output!$C:$AQ,6,FALSE) -> 8290.05 | J4: =VLOOKUP(CONCATENATE("OSUPJEUNEACCEPTREGECO_"&A4),Output!$C:$AQ,6,FALSE) -> 5526.7 | K4: =VLOOKUP(CONCATENATE("OSUPREGECO_"&A4),Output!$C:$AQ,6,FALSE) -> 27633.5 | M4: =ROUND(VLOOKUP("OSUPJEUNEREGECO_"&A4,Output!$C:$AQ,7,FALSE)/VLOOKUP("OSUPREGECO_"&A4,Output!$C:$AQ,6,FALSE),3) -> 0 | N4: =IF(M4<=$E4,"Faible",IF(M4<$D4,"Modéré","Supérieur")) -> Faible | O4: =ROUND(VLOOKUP("OSUPJEUNEREGECO_"&$A4,Output!$C:$AQ,12,FALSE)/VLOOKUP("OSUPREGECO_"&A4,Output!$C:$AQ,6,FALSE),3) -> 0 | P4: =IF(O4<=$E4,"Faible",IF(O4<$D4,"Modéré","Supérieur")) -> Faible | R4: =ROUND(VLOOKUP("OSUPVIEUXTOTREGECO_"&$A4,Output!$C:$AQ,7,FALSE)/VLOOKUP("OSUPREGECO_"&A4,Output!$C:$AQ,6,FALSE),3) -> 0.349 | S4: =IF(R4<$B4,"Supérieur",IF(R4<$C4,"Modéré","Faible")) -> Modéré | T4: =ROUND(VLOOKUP("OSUPVIEUXTOTREGECO_"&$A4,Output!$C:$AQ,12,FALSE)/VLOOKUP("OSUPREGECO_"&A4,Output!$C:$AQ,6,FALSE),3) -> 0.609 | U4: =IF(T4<$B4,"Supérieur",IF(T4<$C4,"Modéré","Faible")) -> Faible | W4: =A4 -> UTA003 | X4: =IF(S4>N4,S4,N4) -> Modéré | Y4: =IF(U4>P4,U4,P4) -> Faible | AA4: =Tableaux!$O$33 -> 03772 | AB4: =W4 -> UTA003 | AC4: =S4 -> Modéré | AD4: =U4 -> Faible | AE4: COS sapinière | AP4: COS pessière
A5: UTA004 | B5: 0.258 | C5: 0.43 | D5: 0.3 | E5: 0.2 | G5: =VLOOKUP(CONCATENATE("OSUPVIEUXALERTEREGECO_"&A5),Output!$C:$AQ,6,FALSE) -> 5104.53 | H5: =VLOOKUP(CONCATENATE("OSUPVIEUXACCEPTREGECO_"&A5),Output!$C:$AQ,6,FALSE) -> 8507.55 | I5: =VLOOKUP(CONCATENATE("OSUPJEUNEALERTEREGECO_"&A5),Output!$C:$AQ,6,FALSE) -> 5935.5 | J5: =VLOOKUP(CONCATENATE("OSUPJEUNEACCEPTREGECO_"&A5),Output!$C:$AQ,6,FALSE) -> 3957 | K5: =VLOOKUP(CONCATENATE("OSUPREGECO_"&A5),Output!$C:$AQ,6,FALSE) -> 19785 | M5: =ROUND(VLOOKUP("OSUPJEUNEREGECO_"&A5,Output!$C:$AQ,7,FALSE)/VLOOKUP("OSUPREGECO_"&A5,Output!$C:$AQ,6,FALSE),3) -> 0 | N5: Faible | O5: =ROUND(VLOOKUP("OSUPJEUNEREGECO_"&$A5,Output!$C:$AQ,12,FALSE)/VLOOKUP("OSUPREGECO_"&A5,Output!$C:$AQ,6,FALSE),3) -> 0 | P5: Faible | R5: =ROUND(VLOOKUP("OSUPVIEUXTOTREGECO_"&$A5,Output!$C:$AQ,7,FALSE)/VLOOKUP("OSUPREGECO_"&A5,Output!$C:$AQ,6,FALSE),3) -> 0.291 | S5: Modéré | T5: =ROUND(VLOOKUP("OSUPVIEUXTOTREGECO_"&$A5,Output!$C:$AQ,12,FALSE)/VLOOKUP("OSUPREGECO_"&A5,Output!$C:$AQ,6,FALSE),3) -> 0.552 | U5: Faible | W5: UTA004 | X5: Modéré | Y5: Faible | AA5: =Tableaux!$O$33 -> 03772 | AB5: =W5 -> UTA004 | AC5: =S5 -> Modéré | AD5: =U5 -> Faible | AE5: COS sapinière | AP5: CMO
A6: UTA005 | B6: 0.174 | C6: 0.29 | D6: 0.3 | E6: 0.2 | G6: =VLOOKUP(CONCATENATE("OSUPVIEUXALERTEREGECO_"&A6),Output!$C:$AQ,6,FALSE) -> 2589.14 | H6: =VLOOKUP(CONCATENATE("OSUPVIEUXACCEPTREGECO_"&A6),Output!$C:$AQ,6,FALSE) -> 4315.23 | I6: =VLOOKUP(CONCATENATE("OSUPJEUNEALERTEREGECO_"&A6),Output!$C:$AQ,6,FALSE) -> 4464.03 | J6: =VLOOKUP(CONCATENATE("OSUPJEUNEACCEPTREGECO_"&A6),Output!$C:$AQ,6,FALSE) -> 2976.02 | K6: =VLOOKUP(CONCATENATE("OSUPREGECO_"&A6),Output!$C:$AQ,6,FALSE) -> 14880.1 | M6: =ROUND(VLOOKUP("OSUPJEUNEREGECO_"&A6,Output!$C:$AQ,7,FALSE)/VLOOKUP("OSUPREGECO_"&A6,Output!$C:$AQ,6,FALSE),3) -> 0.002 | N6: Faible | O6: =ROUND(VLOOKUP("OSUPJEUNEREGECO_"&$A6,Output!$C:$AQ,12,FALSE)/VLOOKUP("OSUPREGECO_"&A6,Output!$C:$AQ,6,FALSE),3) -> 0 | P6: Faible | R6: =ROUND(VLOOKUP("OSUPVIEUXTOTREGECO_"&$A6,Output!$C:$AQ,7,FALSE)/VLOOKUP("OSUPREGECO_"&A6,Output!$C:$AQ,6,FALSE),3) -> 0.515 | S6: Faible | T6: =ROUND(VLOOKUP("OSUPVIEUXTOTREGECO_"&$A6,Output!$C:$AQ,12,FALSE)/VLOOKUP("OSUPREGECO_"&A6,Output!$C:$AQ,6,FALSE),3) -> 0.905 | U6: Faible | W6: UTA005 | X6: Faible | Y6: Faible | AA6: =Tableaux!$O$33 -> 03772 | AB6: UTA005 | AC6: Faible | AD6: =U6 -> Faible | AE6: COS sapinière | AP6: CMO entente Cris
A7: UTA006 | B7: 0.222 | C7: 0.37 | D7: 0.3 | E7: 0.2 | G7: =VLOOKUP(CONCATENATE("OSUPVIEUXALERTEREGECO_"&A7),Output!$C:$AQ,6,FALSE) -> 1220.38 | H7: =VLOOKUP(CONCATENATE("OSUPVIEUXACCEPTREGECO_"&A7),Output!$C:$AQ,6,FALSE) -> 2033.96 | I7: =VLOOKUP(CONCATENATE("OSUPJEUNEALERTEREGECO_"&A7),Output!$C:$AQ,6,FALSE) -> 1649.16 | J7: =VLOOKUP(CONCATENATE("OSUPJEUNEACCEPTREGECO_"&A7),Output!$C:$AQ,6,FALSE) -> 1099.44 | K7: =VLOOKUP(CONCATENATE("OSUPREGECO_"&A7),Output!$C:$AQ,6,FALSE) -> 5497.2 | M7: =ROUND(VLOOKUP("OSUPJEUNEREGECO_"&A7,Output!$C:$AQ,7,FALSE)/VLOOKUP("OSUPREGECO_"&A7,Output!$C:$AQ,6,FALSE),3) -> 0.001 | N7: Faible | O7: =ROUND(VLOOKUP("OSUPJEUNEREGECO_"&$A7,Output!$C:$AQ,12,FALSE)/VLOOKUP("OSUPREGECO_"&A7,Output!$C:$AQ,6,FALSE),3) -> 0 | P7: Faible | R7: =ROUND(VLOOKUP("OSUPVIEUXTOTREGECO_"&$A7,Output!$C:$AQ,7,FALSE)/VLOOKUP("OSUPREGECO_"&A7,Output!$C:$AQ,6,FALSE),3) -> 0.426 | S7: Faible | T7: =ROUND(VLOOKUP("OSUPVIEUXTOTREGECO_"&$A7,Output!$C:$AQ,12,FALSE)/VLOOKUP("OSUPREGECO_"&A7,Output!$C:$AQ,6,FALSE),3) -> 0.841 | U7: Faible | W7: UTA006 | X7: Faible | Y7: Faible | AA7: =Tableaux!$O$33 -> 03772 | AB7: UTA006 | AC7: =S7 -> Faible | AD7: =U7 -> Faible | AE7: COS sapinière | AG7: Voir à renommer "Élevé" dans la légende des figures | AP7: CMO entente BM
A8: UTA200 | B8: 0.258 | C8: 0.43 | D8: 0.3 | E8: 0.2 | G8: =VLOOKUP(CONCATENATE("OSUPVIEUXALERTEREGECO_"&A8),Output!$C:$AQ,6,FALSE) -> 6555.5 | H8: =VLOOKUP(CONCATENATE("OSUPVIEUXACCEPTREGECO_"&A8),Output!$C:$AQ,6,FALSE) -> 10925.83 | I8: =VLOOKUP(CONCATENATE("OSUPJEUNEALERTEREGECO_"&A8),Output!$C:$AQ,6,FALSE) -> 7622.67 | J8: =VLOOKUP(CONCATENATE("OSUPJEUNEACCEPTREGECO_"&A8),Output!$C:$AQ,6,FALSE) -> 5081.78 | K8: =VLOOKUP(CONCATENATE("OSUPREGECO_"&A8),Output!$C:$AQ,6,FALSE) -> 25408.9 | M8: =ROUND(VLOOKUP("OSUPJEUNEREGECO_"&A8,Output!$C:$AQ,7,FALSE)/VLOOKUP("OSUPREGECO_"&A8,Output!$C:$AQ,6,FALSE),3) -> 0.056 | N8: Faible | O8: =ROUND(VLOOKUP("OSUPJEUNEREGECO_"&$A8,Output!$C:$AQ,12,FALSE)/VLOOKUP("OSUPREGECO_"&A8,Output!$C:$AQ,6,FALSE),3) -> 0.051 | P8: Faible | R8: =ROUND(VLOOKUP("OSUPVIEUXTOTREGECO_"&$A8,Output!$C:$AQ,7,FALSE)/VLOOKUP("OSUPREGECO_"&A8,Output!$C:$AQ,6,FALSE),3) -> 0.171 | S8: Supérieur | T8: =ROUND(VLOOKUP("OSUPVIEUXTOTREGECO_"&$A8,Output!$C:$AQ,12,FALSE)/VLOOKUP("OSUPREGECO_"&A8,Output!$C:$AQ,6,FALSE),3) -> 0.387 | U8: Modéré | W8: UTA200 | X8: Supérieur | Y8: Modéré | AA8: =Tableaux!$O$33 -> 03772 | AB8: UTA200 | AC8: Supérieur | AD8: Modéré | AE8: COS sapinière
A9: UTA201 | B9: 0.258 | C9: 0.43 | D9: 0.3 | E9: 0.2 | G9: =VLOOKUP(CONCATENATE("OSUPVIEUXALERTEREGECO_"&A9),Output!$C:$AQ,6,FALSE) -> 9340.58 | H9: =VLOOKUP(CONCATENATE("OSUPVIEUXACCEPTREGECO_"&A9),Output!$C:$AQ,6,FALSE) -> 15567.63 | I9: =VLOOKUP(CONCATENATE("OSUPJEUNEALERTEREGECO_"&A9),Output!$C:$AQ,6,FALSE) -> 10861.14 | J9: =VLOOKUP(CONCATENATE("OSUPJEUNEACCEPTREGECO_"&A9),Output!$C:$AQ,6,FALSE) -> 7240.76 | K9: =VLOOKUP(CONCATENATE("OSUPREGECO_"&A9),Output!$C:$AQ,6,FALSE) -> 36203.8 | M9: =ROUND(VLOOKUP("OSUPJEUNEREGECO_"&A9,Output!$C:$AQ,7,FALSE)/VLOOKUP("OSUPREGECO_"&A9,Output!$C:$AQ,6,FALSE),3) -> 0.096 | N9: Faible | O9: =ROUND(VLOOKUP("OSUPJEUNEREGECO_"&$A9,Output!$C:$AQ,12,FALSE)/VLOOKUP("OSUPREGECO_"&A9,Output!$C:$AQ,6,FALSE),3) -> 0.039 | P9: Faible | R9: =ROUND(VLOOKUP("OSUPVIEUXTOTREGECO_"&$A9,Output!$C:$AQ,7,FALSE)/VLOOKUP("OSUPREGECO_"&A9,Output!$C:$AQ,6,FALSE),3) -> 0.179 | S9: Supérieur | T9: =ROUND(VLOOKUP("OSUPVIEUXTOTREGECO_"&$A9,Output!$C:$AQ,12,FALSE)/VLOOKUP("OSUPREGECO_"&A9,Output!$C:$AQ,6,FALSE),3) -> 0.395 | U9: Modéré | W9: UTA201 | X9: Supérieur | Y9: Modéré | AA9: =Tableaux!$O$33 -> 03772 | AB9: UTA201 | AC9: Supérieur | AD9: Modéré | AE9: COS sapinière
A10: UTA202 | B10: 0.258 | C10: 0.43 | D10: 0.3 | E10: 0.2 | G10: =VLOOKUP(CONCATENATE("OSUPVIEUXALERTEREGECO_"&A10),Output!$C:$AQ,6,FALSE) -> 7566.44 | H10: =VLOOKUP(CONCATENATE("OSUPVIEUXACCEPTREGECO_"&A10),Output!$C:$AQ,6,FALSE) -> 12610.74 | I10: =VLOOKUP(CONCATENATE("OSUPJEUNEALERTEREGECO_"&A10),Output!$C:$AQ,6,FALSE) -> 8798.19 | J10: =VLOOKUP(CONCATENATE("OSUPJEUNEACCEPTREGECO_"&A10),Output!$C:$AQ,6,FALSE) -> 5865.46 | K10: =VLOOKUP(CONCATENATE("OSUPREGECO_"&A10),Output!$C:$AQ,6,FALSE) -> 29327.3 | M10: =ROUND(VLOOKUP("OSUPJEUNEREGECO_"&A10,Output!$C:$AQ,7,FALSE)/VLOOKUP("OSUPREGECO_"&A10,Output!$C:$AQ,6,FALSE),3) -> 0.005 | N10: Faible | O10: =ROUND(VLOOKUP("OSUPJEUNEREGECO_"&$A10,Output!$C:$AQ,12,FALSE)/VLOOKUP("OSUPREGECO_"&A10,Output!$C:$AQ,6,FALSE),3) -> 0.032 | P10: Faible | R10: =ROUND(VLOOKUP("OSUPVIEUXTOTREGECO_"&$A10,Output!$C:$AQ,7,FALSE)/VLOOKUP("OSUPREGECO_"&A10,Output!$C:$AQ,6,FALSE),3) -> 0.135 | S10: Supérieur | T10: =ROUND(VLOOKUP("OSUPVIEUXTOTREGECO_"&$A10,Output!$C:$AQ,12,FALSE)/VLOOKUP("OSUPREGECO_"&A10,Output!$C:$AQ,6,FALSE),3) -> 0.31 | U10: Modéré | W10: UTA202 | X10: Supérieur | Y10: Modéré | AA10: =Tableaux!$O$33 -> 03772 | AB10: UTA202 | AC10: Supérieur | AD10: Modéré | AE10: COS sapinière
A11: UTA300 | B11: 0.258 | C11: 0.43 | D11: 0.3 | E11: =ROUND(J11/$K11,3) -> 0.2 | G11: =VLOOKUP(CONCATENATE("OSUPVIEUXALERTEREGECO_"&A11),Output!$C:$AQ,6,FALSE) -> 5904.07 | H11: =VLOOKUP(CONCATENATE("OSUPVIEUXACCEPTREGECO_"&A11),Output!$C:$AQ,6,FALSE) -> 9840.12 | I11: =VLOOKUP(CONCATENATE("OSUPJEUNEALERTEREGECO_"&A11),Output!$C:$AQ,6,FALSE) -> 6865.2 | J11: =VLOOKUP(CONCATENATE("OSUPJEUNEACCEPTREGECO_"&A11),Output!$C:$AQ,6,FALSE) -> 4576.8 | K11: =VLOOKUP(CONCATENATE("OSUPREGECO_"&A11),Output!$C:$AQ,6,FALSE) -> 22884 | M11: =ROUND(VLOOKUP("OSUPJEUNEREGECO_"&A11,Output!$C:$AQ,7,FALSE)/VLOOKUP("OSUPREGECO_"&A11,Output!$C:$AQ,6,FALSE),3) -> 0.064 | N11: Faible | O11: =ROUND(VLOOKUP("OSUPJEUNEREGECO_"&$A11,Output!$C:$AQ,12,FALSE)/VLOOKUP("OSUPREGECO_"&A11,Output!$C:$AQ,6,FALSE),3) -> 0.022 | P11: Faible | R11: =ROUND(VLOOKUP("OSUPVIEUXTOTREGECO_"&$A11,Output!$C:$AQ,7,FALSE)/VLOOKUP("OSUPREGECO_"&A11,Output!$C:$AQ,6,FALSE),3) -> 0.205 | S11: Supérieur | T11: =ROUND(VLOOKUP("OSUPVIEUXTOTREGECO_"&$A11,Output!$C:$AQ,12,FALSE)/VLOOKUP("OSUPREGECO_"&A11,Output!$C:$AQ,6,FALSE),3) -> 0.51 | U11: Faible | W11: UTA300 | X11: Supérieur | Y11: Faible | AA11: =Tableaux!$O$33 -> 03772 | AB11: UTA300 | AC11: Supérieur | AD11: Faible | AE11: COS sapinière
A12: UTA301 | B12: 0.258 | C12: 0.43 | D12: 0.3 | E12: 0.2 | G12: =VLOOKUP(CONCATENATE("OSUPVIEUXALERTEREGECO_"&A12),Output!$C:$AQ,6,FALSE) -> 7019.43 | H12: =VLOOKUP(CONCATENATE("OSUPVIEUXACCEPTREGECO_"&A12),Output!$C:$AQ,6,FALSE) -> 11699.05 | I12: =VLOOKUP(CONCATENATE("OSUPJEUNEALERTEREGECO_"&A12),Output!$C:$AQ,6,FALSE) -> 8162.13 | J12: =VLOOKUP(CONCATENATE("OSUPJEUNEACCEPTREGECO_"&A12),Output!$C:$AQ,6,FALSE) -> 5441.42 | K12: =VLOOKUP(CONCATENATE("OSUPREGECO_"&A12),Output!$C:$AQ,6,FALSE) -> 27207.1 | M12: =ROUND(VLOOKUP("OSUPJEUNEREGECO_"&A12,Output!$C:$AQ,7,FALSE)/VLOOKUP("OSUPREGECO_"&A12,Output!$C:$AQ,6,FALSE),3) -> 0.025 | N12: Faible | O12: =ROUND(VLOOKUP("OSUPJEUNEREGECO_"&$A12,Output!$C:$AQ,12,FALSE)/VLOOKUP("OSUPREGECO_"&A12,Output!$C:$AQ,6,FALSE),3) -> 0.001 | P12: Faible | R12: =ROUND(VLOOKUP("OSUPVIEUXTOTREGECO_"&$A12,Output!$C:$AQ,7,FALSE)/VLOOKUP("OSUPREGECO_"&A12,Output!$C:$AQ,6,FALSE),3) -> 0.195 | S12: Supérieur | T12: =ROUND(VLOOKUP("OSUPVIEUXTOTREGECO_"&$A12,Output!$C:$AQ,12,FALSE)/VLOOKUP("OSUPREGECO_"&A12,Output!$C:$AQ,6,FALSE),3) -> 0.405 | U12: Modéré | W12: UTA301 | X12: Supérieur | Y12: Modéré | AA12: =Tableaux!$O$33 -> 03772 | AB12: UTA301 | AC12: Supérieur | AD12: Modéré | AE12: COS sapinière | AG12: Compléter cellules en jaune
A13: UTA302 | B13: 0.258 | C13: 0.43 | D13: 0.3 | E13: 0.2 | G13: =VLOOKUP(CONCATENATE("OSUPVIEUXALERTEREGECO_"&A13),Output!$C:$AQ,6,FALSE) -> 7935.85 | H13: =VLOOKUP(CONCATENATE("OSUPVIEUXACCEPTREGECO_"&A13),Output!$C:$AQ,6,FALSE) -> 13226.41 | I13: =VLOOKUP(CONCATENATE("OSUPJEUNEALERTEREGECO_"&A13),Output!$C:$AQ,6,FALSE) -> 9227.73 | J13: =VLOOKUP(CONCATENATE("OSUPJEUNEACCEPTREGECO_"&A13),Output!$C:$AQ,6,FALSE) -> 6151.82 | K13: =VLOOKUP(CONCATENATE("OSUPREGECO_"&A13),Output!$C:$AQ,6,FALSE) -> 30759.1 | M13: =ROUND(VLOOKUP("OSUPJEUNEREGECO_"&A13,Output!$C:$AQ,7,FALSE)/VLOOKUP("OSUPREGECO_"&A13,Output!$C:$AQ,6,FALSE),3) -> 0.027 | N13: Faible | O13: =ROUND(VLOOKUP("OSUPJEUNEREGECO_"&$A13,Output!$C:$AQ,12,FALSE)/VLOOKUP("OSUPREGECO_"&A13,Output!$C:$AQ,6,FALSE),3) -> 0.021 | P13: Faible | R13: =ROUND(VLOOKUP("OSUPVIEUXTOTREGECO_"&$A13,Output!$C:$AQ,7,FALSE)/VLOOKUP("OSUPREGECO_"&A13,Output!$C:$AQ,6,FALSE),3) -> 0.185 | S13: Supérieur | T13: =ROUND(VLOOKUP("OSUPVIEUXTOTREGECO_"&$A13,Output!$C:$AQ,12,FALSE)/VLOOKUP("OSUPREGECO_"&A13,Output!$C:$AQ,6,FALSE),3) -> 0.387 | U13: Modéré | W13: UTA302 | X13: Supérieur | Y13: Modéré | AA13: =Tableaux!$O$33 -> 03772 | AB13: UTA302 | AC13: Supérieur | AD13: Modéré | AE13: COS sapinière
A14: UTA303 | B14: 0.258 | C14: 0.43 | D14: 0.3 | E14: 0.2 | G14: =VLOOKUP(CONCATENATE("OSUPVIEUXALERTEREGECO_"&A14),Output!$C:$AQ,6,FALSE) -> 7117.81 | H14: =VLOOKUP(CONCATENATE("OSUPVIEUXACCEPTREGECO_"&A14),Output!$C:$AQ,6,FALSE) -> 11863.01 | I14: =VLOOKUP(CONCATENATE("OSUPJEUNEALERTEREGECO_"&A14),Output!$C:$AQ,6,FALSE) -> 8276.52 | J14: =VLOOKUP(CONCATENATE("OSUPJEUNEACCEPTREGECO_"&A14),Output!$C:$AQ,6,FALSE) -> 5517.68 | K14: =VLOOKUP(CONCATENATE("OSUPREGECO_"&A14),Output!$C:$AQ,6,FALSE) -> 27588.4 | M14: =ROUND(VLOOKUP("OSUPJEUNEREGECO_"&A14,Output!$C:$AQ,7,FALSE)/VLOOKUP("OSUPREGECO_"&A14,Output!$C:$AQ,6,FALSE),3) -> 0.012 | N14: Faible | O14: =ROUND(VLOOKUP("OSUPJEUNEREGECO_"&$A14,Output!$C:$AQ,12,FALSE)/VLOOKUP("OSUPREGECO_"&A14,Output!$C:$AQ,6,FALSE),3) -> 0.038 | P14: Faible | R14: =ROUND(VLOOKUP("OSUPVIEUXTOTREGECO_"&$A14,Output!$C:$AQ,7,FALSE)/VLOOKUP("OSUPREGECO_"&A14,Output!$C:$AQ,6,FALSE),3) -> 0.129 | S14: Supérieur | T14: =ROUND(VLOOKUP("OSUPVIEUXTOTREGECO_"&$A14,Output!$C:$AQ,12,FALSE)/VLOOKUP("OSUPREGECO_"&A14,Output!$C:$AQ,6,FALSE),3) -> 0.323 | U14: Modéré | W14: UTA303 | X14: Supérieur | Y14: Modéré | AA14: =Tableaux!$O$33 -> 03772 | AB14: UTA303 | AC14: Supérieur | AD14: Modéré | AE14: COS sapinière
A15: UTA304 | B15: 0.258 | C15: 0.43 | D15: 0.3 | E15: 0.2 | G15: =VLOOKUP(CONCATENATE("OSUPVIEUXALERTEREGECO_"&A15),Output!$C:$AQ,6,FALSE) -> 5684.38 | H15: =VLOOKUP(CONCATENATE("OSUPVIEUXACCEPTREGECO_"&A15),Output!$C:$AQ,6,FALSE) -> 9473.98 | I15: =VLOOKUP(CONCATENATE("OSUPJEUNEALERTEREGECO_"&A15),Output!$C:$AQ,6,FALSE) -> 6609.75 | J15: =VLOOKUP(CONCATENATE("OSUPJEUNEACCEPTREGECO_"&A15),Output!$C:$AQ,6,FALSE) -> 4406.5 | K15: =VLOOKUP(CONCATENATE("OSUPREGECO_"&A15),Output!$C:$AQ,6,FALSE) -> 22032.5 | M15: =ROUND(VLOOKUP("OSUPJEUNEREGECO_"&A15,Output!$C:$AQ,7,FALSE)/VLOOKUP("OSUPREGECO_"&A15,Output!$C:$AQ,6,FALSE),3) -> 0.024 | N15: Faible | O15: =ROUND(VLOOKUP("OSUPJEUNEREGECO_"&$A15,Output!$C:$AQ,12,FALSE)/VLOOKUP("OSUPREGECO_"&A15,Output!$C:$AQ,6,FALSE),3) -> 0.038 | P15: Faible | R15: =ROUND(VLOOKUP("OSUPVIEUXTOTREGECO_"&$A15,Output!$C:$AQ,7,FALSE)/VLOOKUP("OSUPREGECO_"&A15,Output!$C:$AQ,6,FALSE),3) -> 0.237 | S15: Supérieur | T15: =ROUND(VLOOKUP("OSUPVIEUXTOTREGECO_"&$A15,Output!$C:$AQ,12,FALSE)/VLOOKUP("OSUPREGECO_"&A15,Output!$C:$AQ,6,FALSE),3) -> 0.448 | U15: Faible | W15: UTA304 | X15: Supérieur | Y15: Faible | AA15: =Tableaux!$O$33 -> 03772 | AB15: UTA304 | AC15: Supérieur | AD15: Faible | AE15: COS sapinière
A16: UTA305 | B16: 0.174 | C16: 0.29 | D16: 0.3 | E16: 0.2 | G16: =VLOOKUP(CONCATENATE("OSUPVIEUXALERTEREGECO_"&A16),Output!$C:$AQ,6,FALSE) -> 3785.93 | H16: =VLOOKUP(CONCATENATE("OSUPVIEUXACCEPTREGECO_"&A16),Output!$C:$AQ,6,FALSE) -> 6309.88 | I16: =VLOOKUP(CONCATENATE("OSUPJEUNEALERTEREGECO_"&A16),Output!$C:$AQ,6,FALSE) -> 6527.46 | J16: =VLOOKUP(CONCATENATE("OSUPJEUNEACCEPTREGECO_"&A16),Output!$C:$AQ,6,FALSE) -> 4351.64 | K16: =VLOOKUP(CONCATENATE("OSUPREGECO_"&A16),Output!$C:$AQ,6,FALSE) -> 21758.2 | M16: =ROUND(VLOOKUP("OSUPJEUNEREGECO_"&A16,Output!$C:$AQ,7,FALSE)/VLOOKUP("OSUPREGECO_"&A16,Output!$C:$AQ,6,FALSE),3) -> 0.027 | N16: Faible | O16: =ROUND(VLOOKUP("OSUPJEUNEREGECO_"&$A16,Output!$C:$AQ,12,FALSE)/VLOOKUP("OSUPREGECO_"&A16,Output!$C:$AQ,6,FALSE),3) -> 0.036 | P16: Faible | R16: =ROUND(VLOOKUP("OSUPVIEUXTOTREGECO_"&$A16,Output!$C:$AQ,7,FALSE)/VLOOKUP("OSUPREGECO_"&A16,Output!$C:$AQ,6,FALSE),3) -> 0.316 | S16: Faible | T16: =ROUND(VLOOKUP("OSUPVIEUXTOTREGECO_"&$A16,Output!$C:$AQ,12,FALSE)/VLOOKUP("OSUPREGECO_"&A16,Output!$C:$AQ,6,FALSE),3) -> 0.742 | U16: Faible | W16: UTA305 | X16: Faible | Y16: Faible | AA16: =Tableaux!$O$33 -> 03772 | AB16: UTA305 | AC16: Faible | AD16: Faible | AE16: COS sapinière
A17: UTA306 | B17: 0.174 | C17: 0.29 | D17: 0.3 | E17: 0.2 | G17: =VLOOKUP(CONCATENATE("OSUPVIEUXALERTEREGECO_"&A17),Output!$C:$AQ,6,FALSE) -> 4705.99 | H17: =VLOOKUP(CONCATENATE("OSUPVIEUXACCEPTREGECO_"&A17),Output!$C:$AQ,6,FALSE) -> 7843.31 | I17: =VLOOKUP(CONCATENATE("OSUPJEUNEALERTEREGECO_"&A17),Output!$C:$AQ,6,FALSE) -> 8113.77 | J17: =VLOOKUP(CONCATENATE("OSUPJEUNEACCEPTREGECO_"&A17),Output!$C:$AQ,6,FALSE) -> 5409.18 | K17: =VLOOKUP(CONCATENATE("OSUPREGECO_"&A17),Output!$C:$AQ,6,FALSE) -> 27045.9 | M17: =ROUND(VLOOKUP("OSUPJEUNEREGECO_"&A17,Output!$C:$AQ,7,FALSE)/VLOOKUP("OSUPREGECO_"&A17,Output!$C:$AQ,6,FALSE),3) -> 0.093 | N17: Faible | O17: =ROUND(VLOOKUP("OSUPJEUNEREGECO_"&$A17,Output!$C:$AQ,12,FALSE)/VLOOKUP("OSUPREGECO_"&A17,Output!$C:$AQ,6,FALSE),3) -> 0.047 | P17: Faible | R17: =ROUND(VLOOKUP("OSUPVIEUXTOTREGECO_"&$A17,Output!$C:$AQ,7,FALSE)/VLOOKUP("OSUPREGECO_"&A17,Output!$C:$AQ,6,FALSE),3) -> 0.264 | S17: Modéré | T17: =ROUND(VLOOKUP("OSUPVIEUXTOTREGECO_"&$A17,Output!$C:$AQ,12,FALSE)/VLOOKUP("OSUPREGECO_"&A17,Output!$C:$AQ,6,FALSE),3) -> 0.425 | U17: Faible | W17: UTA306 | X17: Modéré | Y17: Faible | AA17: =Tableaux!$O$33 -> 03772 | AB17: UTA306 | AC17: Modéré | AD17: Faible | AE17: COS sapinière
A18: UTA307 | B18: 0.174 | C18: 0.29 | D18: 0.3 | E18: 0.2 | G18: =VLOOKUP(CONCATENATE("OSUPVIEUXALERTEREGECO_"&A18),Output!$C:$AQ,6,FALSE) -> 4015.19 | H18: =VLOOKUP(CONCATENATE("OSUPVIEUXACCEPTREGECO_"&A18),Output!$C:$AQ,6,FALSE) -> 6691.98 | I18: =VLOOKUP(CONCATENATE("OSUPJEUNEALERTEREGECO_"&A18),Output!$C:$AQ,6,FALSE) -> 6922.74 | J18: =VLOOKUP(CONCATENATE("OSUPJEUNEACCEPTREGECO_"&A18),Output!$C:$AQ,6,FALSE) -> 4615.16 | K18: =VLOOKUP(CONCATENATE("OSUPREGECO_"&A18),Output!$C:$AQ,6,FALSE) -> 23075.8 | M18: =ROUND(VLOOKUP("OSUPJEUNEREGECO_"&A18,Output!$C:$AQ,7,FALSE)/VLOOKUP("OSUPREGECO_"&A18,Output!$C:$AQ,6,FALSE),3) -> 0.056 | N18: Faible | O18: =ROUND(VLOOKUP("OSUPJEUNEREGECO_"&$A18,Output!$C:$AQ,12,FALSE)/VLOOKUP("OSUPREGECO_"&A18,Output!$C:$AQ,6,FALSE),3) -> 0.107 | P18: Faible | R18: =ROUND(VLOOKUP("OSUPVIEUXTOTREGECO_"&$A18,Output!$C:$AQ,7,FALSE)/VLOOKUP("OSUPREGECO_"&A18,Output!$C:$AQ,6,FALSE),3) -> 0.18 | S18: Modéré | T18: =ROUND(VLOOKUP("OSUPVIEUXTOTREGECO_"&$A18,Output!$C:$AQ,12,FALSE)/VLOOKUP("OSUPREGECO_"&A18,Output!$C:$AQ,6,FALSE),3) -> 0.393 | U18: Faible | W18: UTA307 | X18: Modéré | Y18: Faible | AA18: =Tableaux!$O$33 -> 03772 | AB18: UTA307 | AC18: Modéré | AD18: Faible | AE18: COS sapinière
A19: UTA308 | B19: 0.174 | C19: 0.29 | D19: 0.3 | E19: 0.2 | G19: =VLOOKUP(CONCATENATE("OSUPVIEUXALERTEREGECO_"&A19),Output!$C:$AQ,6,FALSE) -> 4876.23 | H19: =VLOOKUP(CONCATENATE("OSUPVIEUXACCEPTREGECO_"&A19),Output!$C:$AQ,6,FALSE) -> 8127.05 | I19: =VLOOKUP(CONCATENATE("OSUPJEUNEALERTEREGECO_"&A19),Output!$C:$AQ,6,FALSE) -> 8407.29 | J19: =VLOOKUP(CONCATENATE("OSUPJEUNEACCEPTREGECO_"&A19),Output!$C:$AQ,6,FALSE) -> 5604.86 | K19: =VLOOKUP(CONCATENATE("OSUPREGECO_"&A19),Output!$C:$AQ,6,FALSE) -> 28024.3 | M19: =ROUND(VLOOKUP("OSUPJEUNEREGECO_"&A19,Output!$C:$AQ,7,FALSE)/VLOOKUP("OSUPREGECO_"&A19,Output!$C:$AQ,6,FALSE),3) -> 0.032 | N19: Faible | O19: =ROUND(VLOOKUP("OSUPJEUNEREGECO_"&$A19,Output!$C:$AQ,12,FALSE)/VLOOKUP("OSUPREGECO_"&A19,Output!$C:$AQ,6,FALSE),3) -> 0.065 | P19: Faible | R19: =ROUND(VLOOKUP("OSUPVIEUXTOTREGECO_"&$A19,Output!$C:$AQ,7,FALSE)/VLOOKUP("OSUPREGECO_"&A19,Output!$C:$AQ,6,FALSE),3) -> 0.225 | S19: Modéré | T19: =ROUND(VLOOKUP("OSUPVIEUXTOTREGECO_"&$A19,Output!$C:$AQ,12,FALSE)/VLOOKUP("OSUPREGECO_"&A19,Output!$C:$AQ,6,FALSE),3) -> 0.483 | U19: Faible | W19: UTA308 | X19: Modéré | Y19: Faible | AA19: =Tableaux!$O$33 -> 03772 | AB19: UTA308 | AC19: Modéré | AD19: Faible | AE19: COS sapinière
A20: UTA309 | B20: 0.174 | C20: 0.29 | D20: 0.3 | E20: 0.2 | G20: =VLOOKUP(CONCATENATE("OSUPVIEUXALERTEREGECO_"&A20),Output!$C:$AQ,6,FALSE) -> 3877.78 | H20: =VLOOKUP(CONCATENATE("OSUPVIEUXACCEPTREGECO_"&A20),Output!$C:$AQ,6,FALSE) -> 6462.97 | I20: =VLOOKUP(CONCATENATE("OSUPJEUNEALERTEREGECO_"&A20),Output!$C:$AQ,6,FALSE) -> 6685.83 | J20: =VLOOKUP(CONCATENATE("OSUPJEUNEACCEPTREGECO_"&A20),Output!$C:$AQ,6,FALSE) -> 4457.22 | K20: =VLOOKUP(CONCATENATE("OSUPREGECO_"&A20),Output!$C:$AQ,6,FALSE) -> 22286.1 | M20: =ROUND(VLOOKUP("OSUPJEUNEREGECO_"&A20,Output!$C:$AQ,7,FALSE)/VLOOKUP("OSUPREGECO_"&A20,Output!$C:$AQ,6,FALSE),3) -> 0.027 | N20: Faible | O20: =ROUND(VLOOKUP("OSUPJEUNEREGECO_"&$A20,Output!$C:$AQ,12,FALSE)/VLOOKUP("OSUPREGECO_"&A20,Output!$C:$AQ,6,FALSE),3) -> 0.047 | P20: Faible | R20: =ROUND(VLOOKUP("OSUPVIEUXTOTREGECO_"&$A20,Output!$C:$AQ,7,FALSE)/VLOOKUP("OSUPREGECO_"&A20,Output!$C:$AQ,6,FALSE),3) -> 0.42 | S20: Faible | T20: =ROUND(VLOOKUP("OSUPVIEUXTOTREGECO_"&$A20,Output!$C:$AQ,12,FALSE)/VLOOKUP("OSUPREGECO_"&A20,Output!$C:$AQ,6,FALSE),3) -> 0.728 | U20: Faible | W20: UTA309 | X20: Faible | Y20: Faible | AA20: =Tableaux!$O$33 -> 03772 | AB20: UTA309 | AC20: Faible | AD20: Faible | AE20: COS sapinière
A21: UTA310 | B21: =ROUND(G21/$K21,2) -> 0.22 | C21: =H21/$K21 -> 0.3699999556 | D21: =ROUND(I21/$K21,3) -> 0.3 | E21: 0.2 | G21: =VLOOKUP(CONCATENATE("OSUPVIEUXALERTEREGECO_"&A21),Output!$C:$AQ,6,FALSE) -> 5002.84 | H21: =VLOOKUP(CONCATENATE("OSUPVIEUXACCEPTREGECO_"&A21),Output!$C:$AQ,6,FALSE) -> 8338.06 | I21: =VLOOKUP(CONCATENATE("OSUPJEUNEALERTEREGECO_"&A21),Output!$C:$AQ,6,FALSE) -> 6760.59 | J21: =VLOOKUP(CONCATENATE("OSUPJEUNEACCEPTREGECO_"&A21),Output!$C:$AQ,6,FALSE) -> 4507.06 | K21: =VLOOKUP(CONCATENATE("OSUPREGECO_"&A21),Output!$C:$AQ,6,FALSE) -> 22535.3 | M21: =ROUND(VLOOKUP("OSUPJEUNEREGECO_"&A21,Output!$C:$AQ,7,FALSE)/VLOOKUP("OSUPREGECO_"&A21,Output!$C:$AQ,6,FALSE),3) -> 0.062 | N21: Faible | O21: =ROUND(VLOOKUP("OSUPJEUNEREGECO_"&$A21,Output!$C:$AQ,12,FALSE)/VLOOKUP("OSUPREGECO_"&A21,Output!$C:$AQ,6,FALSE),3) -> 0.081 | P21: Faible | R21: =ROUND(VLOOKUP("OSUPVIEUXTOTREGECO_"&$A21,Output!$C:$AQ,7,FALSE)/VLOOKUP("OSUPREGECO_"&A21,Output!$C:$AQ,6,FALSE),3) -> 0.351 | S21: Modéré | T21: =ROUND(VLOOKUP("OSUPVIEUXTOTREGECO_"&$A21,Output!$C:$AQ,12,FALSE)/VLOOKUP("OSUPREGECO_"&A21,Output!$C:$AQ,6,FALSE),3) -> 0.476 | U21: Faible | W21: UTA310 | X21: Modéré | Y21: Faible | AA21: =Tableaux!$O$33 -> 03772 | AB21: UTA310 | AC21: Modéré | AD21: Faible | AE21: COS sapinière
A22: UTA311 | B22: 0.22 | C22: 0.3700002067 | D22: 0.3 | E22: 0.2 | G22: =VLOOKUP(CONCATENATE("OSUPVIEUXALERTEREGECO_"&A22),Output!$C:$AQ,6,FALSE) -> 5369.85 | H22: =VLOOKUP(CONCATENATE("OSUPVIEUXACCEPTREGECO_"&A22),Output!$C:$AQ,6,FALSE) -> 8949.75 | I22: =VLOOKUP(CONCATENATE("OSUPJEUNEALERTEREGECO_"&A22),Output!$C:$AQ,6,FALSE) -> 7256.55 | J22: =VLOOKUP(CONCATENATE("OSUPJEUNEACCEPTREGECO_"&A22),Output!$C:$AQ,6,FALSE) -> 4837.7 | K22: =VLOOKUP(CONCATENATE("OSUPREGECO_"&A22),Output!$C:$AQ,6,FALSE) -> 24188.5 | M22: =ROUND(VLOOKUP("OSUPJEUNEREGECO_"&A22,Output!$C:$AQ,7,FALSE)/VLOOKUP("OSUPREGECO_"&A22,Output!$C:$AQ,6,FALSE),3) -> 0.127 | N22: Faible | O22: =ROUND(VLOOKUP("OSUPJEUNEREGECO_"&$A22,Output!$C:$AQ,12,FALSE)/VLOOKUP("OSUPREGECO_"&A22,Output!$C:$AQ,6,FALSE),3) -> 0.165 | P22: Faible | R22: =ROUND(VLOOKUP("OSUPVIEUXTOTREGECO_"&$A22,Output!$C:$AQ,7,FALSE)/VLOOKUP("OSUPREGECO_"&A22,Output!$C:$AQ,6,FALSE),3) -> 0.269 | S22: Modéré | T22: =ROUND(VLOOKUP("OSUPVIEUXTOTREGECO_"&$A22,Output!$C:$AQ,12,FALSE)/VLOOKUP("OSUPREGECO_"&A22,Output!$C:$AQ,6,FALSE),3) -> 0.449 | U22: Faible | W22: UTA311 | X22: Modéré | Y22: Faible | AA22: =Tableaux!$O$33 -> 03772 | AB22: UTA311 | AC22: Modéré | AD22: Faible | AE22: COS sapinière
A23: UTA312 | B23: 0.22 | C23: 0.3700002021 | D23: 0.3 | E23: 0.2 | G23: =VLOOKUP(CONCATENATE("OSUPVIEUXALERTEREGECO_"&A23),Output!$C:$AQ,6,FALSE) -> 5492.39 | H23: =VLOOKUP(CONCATENATE("OSUPVIEUXACCEPTREGECO_"&A23),Output!$C:$AQ,6,FALSE) -> 9153.99 | I23: =VLOOKUP(CONCATENATE("OSUPJEUNEALERTEREGECO_"&A23),Output!$C:$AQ,6,FALSE) -> 7422.15 | J23: =VLOOKUP(CONCATENATE("OSUPJEUNEACCEPTREGECO_"&A23),Output!$C:$AQ,6,FALSE) -> 4948.1 | K23: =VLOOKUP(CONCATENATE("OSUPREGECO_"&A23),Output!$C:$AQ,6,FALSE) -> 24740.5 | M23: =ROUND(VLOOKUP("OSUPJEUNEREGECO_"&A23,Output!$C:$AQ,7,FALSE)/VLOOKUP("OSUPREGECO_"&A23,Output!$C:$AQ,6,FALSE),3) -> 0.054 | N23: Faible | O23: =ROUND(VLOOKUP("OSUPJEUNEREGECO_"&$A23,Output!$C:$AQ,12,FALSE)/VLOOKUP("OSUPREGECO_"&A23,Output!$C:$AQ,6,FALSE),3) -> 0.153 | P23: Faible | R23: =ROUND(VLOOKUP("OSUPVIEUXTOTREGECO_"&$A23,Output!$C:$AQ,7,FALSE)/VLOOKUP("OSUPREGECO_"&A23,Output!$C:$AQ,6,FALSE),3) -> 0.142 | S23: Supérieur | T23: =ROUND(VLOOKUP("OSUPVIEUXTOTREGECO_"&$A23,Output!$C:$AQ,12,FALSE)/VLOOKUP("OSUPREGECO_"&A23,Output!$C:$AQ,6,FALSE),3) -> 0.292 | U23: Modéré | W23: UTA312 | X23: Supérieur | Y23: Modéré | AA23: =Tableaux!$O$33 -> 03772 | AB23: UTA312 | AC23: Supérieur | AD23: Modéré | AE23: COS sapinière
A24: UTA313 | B24: 0.22 | C24: 0.3700001274 | D24: 0.3 | E24: 0.2 | G24: =VLOOKUP(CONCATENATE("OSUPVIEUXALERTEREGECO_"&A24),Output!$C:$AQ,6,FALSE) -> 6968.31 | H24: =VLOOKUP(CONCATENATE("OSUPVIEUXACCEPTREGECO_"&A24),Output!$C:$AQ,6,FALSE) -> 11613.86 | I24: =VLOOKUP(CONCATENATE("OSUPJEUNEALERTEREGECO_"&A24),Output!$C:$AQ,6,FALSE) -> 9416.64 | J24: =VLOOKUP(CONCATENATE("OSUPJEUNEACCEPTREGECO_"&A24),Output!$C:$AQ,6,FALSE) -> 6277.76 | K24: =VLOOKUP(CONCATENATE("OSUPREGECO_"&A24),Output!$C:$AQ,6,FALSE) -> 31388.8 | M24: =ROUND(VLOOKUP("OSUPJEUNEREGECO_"&A24,Output!$C:$AQ,7,FALSE)/VLOOKUP("OSUPREGECO_"&A24,Output!$C:$AQ,6,FALSE),3) -> 0.12 | N24: Faible | O24: =ROUND(VLOOKUP("OSUPJEUNEREGECO_"&$A24,Output!$C:$AQ,12,FALSE)/VLOOKUP("OSUPREGECO_"&A24,Output!$C:$AQ,6,FALSE),3) -> 0.098 | P24: Faible | R24: =ROUND(VLOOKUP("OSUPVIEUXTOTREGECO_"&$A24,Output!$C:$AQ,7,FALSE)/VLOOKUP("OSUPREGECO_"&A24,Output!$C:$AQ,6,FALSE),3) -> 0.173 | S24: Supérieur | T24: =ROUND(VLOOKUP("OSUPVIEUXTOTREGECO_"&$A24,Output!$C:$AQ,12,FALSE)/VLOOKUP("OSUPREGECO_"&A24,Output!$C:$AQ,6,FALSE),3) -> 0.365 | U24: Modéré | W24: UTA313 | X24: Supérieur | Y24: Modéré | AA24: =Tableaux!$O$33 -> 03772 | AB24: UTA313 | AC24: Supérieur | AD24: Modéré | AE24: COS sapinière
G25: =VLOOKUP(CONCATENATE("OSUPVIEUXALERTEREGECO_"&A25),Output!$C:$AQ,6,FALSE) ->  | H25: =VLOOKUP(CONCATENATE("OSUPVIEUXACCEPTREGECO_"&A25),Output!$C:$AQ,6,FALSE) ->  | I25: =VLOOKUP(CONCATENATE("OSUPJEUNEALERTEREGECO_"&A25),Output!$C:$AQ,6,FALSE) ->  | J25: =VLOOKUP(CONCATENATE("OSUPJEUNEACCEPTREGECO_"&A25),Output!$C:$AQ,6,FALSE) ->  | K25: =VLOOKUP(CONCATENATE("OSUPREGECO_"&A25),Output!$C:$AQ,6,FALSE) ->  | M25: =ROUND(VLOOKUP("OSUPJEUNEREGECO_"&A25,Output!$C:$AQ,7,FALSE)/VLOOKUP("OSUPREGECO_"&A25,Output!$C:$AQ,6,FALSE),3) ->  | O25: =ROUND(VLOOKUP("OSUPJEUNEREGECO_"&$A25,Output!$C:$AQ,12,FALSE)/VLOOKUP("OSUPREGECO_"&A25,Output!$C:$AQ,6,FALSE),3) ->  | R25: =ROUND(VLOOKUP("OSUPVIEUXTOTREGECO_"&$A25,Output!$C:$AQ,7,FALSE)/VLOOKUP("OSUPREGECO_"&A25,Output!$C:$AQ,6,FALSE),3) ->  | T25: =ROUND(VLOOKUP("OSUPVIEUXTOTREGECO_"&$A25,Output!$C:$AQ,12,FALSE)/VLOOKUP("OSUPREGECO_"&A25,Output!$C:$AQ,6,FALSE),3) ->  | W25: 0 | AA25: =Tableaux!$O$33 -> 03772 | AB25: 0
G26: =VLOOKUP(CONCATENATE("OSUPVIEUXALERTEREGECO_"&A26),Output!$C:$AQ,6,FALSE) ->  | H26: =VLOOKUP(CONCATENATE("OSUPVIEUXACCEPTREGECO_"&A26),Output!$C:$AQ,6,FALSE) ->  | I26: =VLOOKUP(CONCATENATE("OSUPJEUNEALERTEREGECO_"&A26),Output!$C:$AQ,6,FALSE) ->  | J26: =VLOOKUP(CONCATENATE("OSUPJEUNEACCEPTREGECO_"&A26),Output!$C:$AQ,6,FALSE) ->  | K26: =VLOOKUP(CONCATENATE("OSUPREGECO_"&A26),Output!$C:$AQ,6,FALSE) ->  | M26: =ROUND(VLOOKUP("OSUPJEUNEREGECO_"&A26,Output!$C:$AQ,7,FALSE)/VLOOKUP("OSUPREGECO_"&A26,Output!$C:$AQ,6,FALSE),3) ->  | O26: =ROUND(VLOOKUP("OSUPJEUNEREGECO_"&$A26,Output!$C:$AQ,12,FALSE)/VLOOKUP("OSUPREGECO_"&A26,Output!$C:$AQ,6,FALSE),3) ->  | R26: =ROUND(VLOOKUP("OSUPVIEUXTOTREGECO_"&$A26,Output!$C:$AQ,7,FALSE)/VLOOKUP("OSUPREGECO_"&A26,Output!$C:$AQ,6,FALSE),3) ->  | T26: =ROUND(VLOOKUP("OSUPVIEUXTOTREGECO_"&$A26,Output!$C:$AQ,12,FALSE)/VLOOKUP("OSUPREGECO_"&A26,Output!$C:$AQ,6,FALSE),3) ->  | W26: 0 | AA26: =Tableaux!$O$33 -> 03772 | AB26: 0
C27: =ROUND(H27/$K27,3) ->  | G27: =VLOOKUP(CONCATENATE("OSUPVIEUXALERTEREGECO_"&A27),Output!$C:$AQ,6,FALSE) ->  | H27: =VLOOKUP(CONCATENATE("OSUPVIEUXACCEPTREGECO_"&A27),Output!$C:$AQ,6,FALSE) ->  | I27: =VLOOKUP(CONCATENATE("OSUPJEUNEALERTEREGECO_"&A27),Output!$C:$AQ,6,FALSE) ->  | J27: =VLOOKUP(CONCATENATE("OSUPJEUNEACCEPTREGECO_"&A27),Output!$C:$AQ,6,FALSE) ->  | K27: =VLOOKUP(CONCATENATE("OSUPREGECO_"&A27),Output!$C:$AQ,6,FALSE) ->  | M27: =ROUND(VLOOKUP("OSUPJEUNEREGECO_"&A27,Output!$C:$AQ,7,FALSE)/VLOOKUP("OSUPREGECO_"&A27,Output!$C:$AQ,6,FALSE),3) ->  | O27: =ROUND(VLOOKUP("OSUPJEUNEREGECO_"&$A27,Output!$C:$AQ,12,FALSE)/VLOOKUP("OSUPREGECO_"&A27,Output!$C:$AQ,6,FALSE),3) ->  | R27: =ROUND(VLOOKUP("OSUPVIEUXTOTREGECO_"&$A27,Output!$C:$AQ,7,FALSE)/VLOOKUP("OSUPREGECO_"&A27,Output!$C:$AQ,6,FALSE),3) ->  | T27: =ROUND(VLOOKUP("OSUPVIEUXTOTREGECO_"&$A27,Output!$C:$AQ,12,FALSE)/VLOOKUP("OSUPREGECO_"&A27,Output!$C:$AQ,6,FALSE),3) ->  | W27: 0 | AA27: =Tableaux!$O$33 -> 03772 | AB27: 0
G28: =VLOOKUP(CONCATENATE("OSUPVIEUXALERTEREGECO_"&A28),Output!$C:$AQ,6,FALSE) ->  | H28: =VLOOKUP(CONCATENATE("OSUPVIEUXACCEPTREGECO_"&A28),Output!$C:$AQ,6,FALSE) ->  | I28: =VLOOKUP(CONCATENATE("OSUPJEUNEALERTEREGECO_"&A28),Output!$C:$AQ,6,FALSE) ->  | J28: =VLOOKUP(CONCATENATE("OSUPJEUNEACCEPTREGECO_"&A28),Output!$C:$AQ,6,FALSE) ->  | K28: =VLOOKUP(CONCATENATE("OSUPREGECO_"&A28),Output!$C:$AQ,6,FALSE) ->  | M28: =ROUND(VLOOKUP("OSUPJEUNEREGECO_"&A28,Output!$C:$AQ,7,FALSE)/VLOOKUP("OSUPREGECO_"&A28,Output!$C:$AQ,6,FALSE),3) ->  | O28: =ROUND(VLOOKUP("OSUPJEUNEREGECO_"&$A28,Output!$C:$AQ,12,FALSE)/VLOOKUP("OSUPREGECO_"&A28,Output!$C:$AQ,6,FALSE),3) ->  | R28: =ROUND(VLOOKUP("OSUPVIEUXTOTREGECO_"&$A28,Output!$C:$AQ,7,FALSE)/VLOOKUP("OSUPREGECO_"&A28,Output!$C:$AQ,6,FALSE),3) ->  | T28: =ROUND(VLOOKUP("OSUPVIEUXTOTREGECO_"&$A28,Output!$C:$AQ,12,FALSE)/VLOOKUP("OSUPREGECO_"&A28,Output!$C:$AQ,6,FALSE),3) ->  | W28: 0 | AA28: =Tableaux!$O$33 -> 03772 | AB28: 0
G29: =VLOOKUP(CONCATENATE("OSUPVIEUXALERTEREGECO_"&A29),Output!$C:$AQ,6,FALSE) ->  | H29: =VLOOKUP(CONCATENATE("OSUPVIEUXACCEPTREGECO_"&A29),Output!$C:$AQ,6,FALSE) ->  | I29: =VLOOKUP(CONCATENATE("OSUPJEUNEALERTEREGECO_"&A29),Output!$C:$AQ,6,FALSE) ->  | J29: =VLOOKUP(CONCATENATE("OSUPJEUNEACCEPTREGECO_"&A29),Output!$C:$AQ,6,FALSE) ->  | K29: =VLOOKUP(CONCATENATE("OSUPREGECO_"&A29),Output!$C:$AQ,6,FALSE) ->  | M29: =ROUND(VLOOKUP("OSUPJEUNEREGECO_"&A29,Output!$C:$AQ,7,FALSE)/VLOOKUP("OSUPREGECO_"&A29,Output!$C:$AQ,6,FALSE),3) ->  | O29: =ROUND(VLOOKUP("OSUPJEUNEREGECO_"&$A29,Output!$C:$AQ,12,FALSE)/VLOOKUP("OSUPREGECO_"&A29,Output!$C:$AQ,6,FALSE),3) ->  | R29: =ROUND(VLOOKUP("OSUPVIEUXTOTREGECO_"&$A29,Output!$C:$AQ,7,FALSE)/VLOOKUP("OSUPREGECO_"&A29,Output!$C:$AQ,6,FALSE),3) ->  | T29: =ROUND(VLOOKUP("OSUPVIEUXTOTREGECO_"&$A29,Output!$C:$AQ,12,FALSE)/VLOOKUP("OSUPREGECO_"&A29,Output!$C:$AQ,6,FALSE),3) ->  | W29: 0 | AA29: =Tableaux!$O$33 -> 03772 | AB29: 0
G30: =VLOOKUP(CONCATENATE("OSUPVIEUXALERTEREGECO_"&A30),Output!$C:$AQ,6,FALSE) ->  | H30: =VLOOKUP(CONCATENATE("OSUPVIEUXACCEPTREGECO_"&A30),Output!$C:$AQ,6,FALSE) ->  | I30: =VLOOKUP(CONCATENATE("OSUPJEUNEALERTEREGECO_"&A30),Output!$C:$AQ,6,FALSE) ->  | J30: =VLOOKUP(CONCATENATE("OSUPJEUNEACCEPTREGECO_"&A30),Output!$C:$AQ,6,FALSE) ->  | K30: =VLOOKUP(CONCATENATE("OSUPREGECO_"&A30),Output!$C:$AQ,6,FALSE) ->  | M30: =ROUND(VLOOKUP("OSUPJEUNEREGECO_"&A30,Output!$C:$AQ,7,FALSE)/VLOOKUP("OSUPREGECO_"&A30,Output!$C:$AQ,6,FALSE),3) ->  | O30: =ROUND(VLOOKUP("OSUPJEUNEREGECO_"&$A30,Output!$C:$AQ,12,FALSE)/VLOOKUP("OSUPREGECO_"&A30,Output!$C:$AQ,6,FALSE),3) ->  | R30: =ROUND(VLOOKUP("OSUPVIEUXTOTREGECO_"&$A30,Output!$C:$AQ,7,FALSE)/VLOOKUP("OSUPREGECO_"&A30,Output!$C:$AQ,6,FALSE),3) ->  | T30: =ROUND(VLOOKUP("OSUPVIEUXTOTREGECO_"&$A30,Output!$C:$AQ,12,FALSE)/VLOOKUP("OSUPREGECO_"&A30,Output!$C:$AQ,6,FALSE),3) ->  | W30: 0 | AA30: =Tableaux!$O$33 -> 03772 | AB30: 0
G31: =VLOOKUP(CONCATENATE("OSUPVIEUXALERTEREGECO_"&A31),Output!$C:$AQ,6,FALSE) ->  | H31: =VLOOKUP(CONCATENATE("OSUPVIEUXACCEPTREGECO_"&A31),Output!$C:$AQ,6,FALSE) ->  | I31: =VLOOKUP(CONCATENATE("OSUPJEUNEALERTEREGECO_"&A31),Output!$C:$AQ,6,FALSE) ->  | J31: =VLOOKUP(CONCATENATE("OSUPJEUNEACCEPTREGECO_"&A31),Output!$C:$AQ,6,FALSE) ->  | K31: =VLOOKUP(CONCATENATE("OSUPREGECO_"&A31),Output!$C:$AQ,6,FALSE) ->  | M31: =ROUND(VLOOKUP("OSUPJEUNEREGECO_"&A31,Output!$C:$AQ,7,FALSE)/VLOOKUP("OSUPREGECO_"&A31,Output!$C:$AQ,6,FALSE),3) ->  | O31: =ROUND(VLOOKUP("OSUPJEUNEREGECO_"&$A31,Output!$C:$AQ,12,FALSE)/VLOOKUP("OSUPREGECO_"&A31,Output!$C:$AQ,6,FALSE),3) ->  | R31: =ROUND(VLOOKUP("OSUPVIEUXTOTREGECO_"&$A31,Output!$C:$AQ,7,FALSE)/VLOOKUP("OSUPREGECO_"&A31,Output!$C:$AQ,6,FALSE),3) ->  | T31: =ROUND(VLOOKUP("OSUPVIEUXTOTREGECO_"&$A31,Output!$C:$AQ,12,FALSE)/VLOOKUP("OSUPREGECO_"&A31,Output!$C:$AQ,6,FALSE),3) ->  | W31: 0 | AA31: =Tableaux!$O$33 -> 03772 | AB31: 0
G32: =VLOOKUP(CONCATENATE("OSUPVIEUXALERTEREGECO_"&A32),Output!$C:$AQ,6,FALSE) ->  | H32: =VLOOKUP(CONCATENATE("OSUPVIEUXACCEPTREGECO_"&A32),Output!$C:$AQ,6,FALSE) ->  | I32: =VLOOKUP(CONCATENATE("OSUPJEUNEALERTEREGECO_"&A32),Output!$C:$AQ,6,FALSE) ->  | J32: =VLOOKUP(CONCATENATE("OSUPJEUNEACCEPTREGECO_"&A32),Output!$C:$AQ,6,FALSE) ->  | K32: =VLOOKUP(CONCATENATE("OSUPREGECO_"&A32),Output!$C:$AQ,6,FALSE) ->  | M32: =ROUND(VLOOKUP("OSUPJEUNEREGECO_"&A32,Output!$C:$AQ,7,FALSE)/VLOOKUP("OSUPREGECO_"&A32,Output!$C:$AQ,6,FALSE),3) ->  | O32: =ROUND(VLOOKUP("OSUPJEUNEREGECO_"&$A32,Output!$C:$AQ,12,FALSE)/VLOOKUP("OSUPREGECO_"&A32,Output!$C:$AQ,6,FALSE),3) ->  | R32: =ROUND(VLOOKUP("OSUPVIEUXTOTREGECO_"&$A32,Output!$C:$AQ,7,FALSE)/VLOOKUP("OSUPREGECO_"&A32,Output!$C:$AQ,6,FALSE),3) ->  | T32: =ROUND(VLOOKUP("OSUPVIEUXTOTREGECO_"&$A32,Output!$C:$AQ,12,FALSE)/VLOOKUP("OSUPREGECO_"&A32,Output!$C:$AQ,6,FALSE),3) ->  | W32: 0 | AA32: =Tableaux!$O$33 -> 03772 | AB32: 0
G33: =VLOOKUP(CONCATENATE("OSUPVIEUXALERTEREGECO_"&A33),Output!$C:$AQ,6,FALSE) ->  | H33: =VLOOKUP(CONCATENATE("OSUPVIEUXACCEPTREGECO_"&A33),Output!$C:$AQ,6,FALSE) ->  | I33: =VLOOKUP(CONCATENATE("OSUPJEUNEALERTEREGECO_"&A33),Output!$C:$AQ,6,FALSE) ->  | J33: =VLOOKUP(CONCATENATE("OSUPJEUNEACCEPTREGECO_"&A33),Output!$C:$AQ,6,FALSE) ->  | K33: =VLOOKUP(CONCATENATE("OSUPREGECO_"&A33),Output!$C:$AQ,6,FALSE) ->  | M33: =ROUND(VLOOKUP("OSUPJEUNEREGECO_"&A33,Output!$C:$AQ,7,FALSE)/VLOOKUP("OSUPREGECO_"&A33,Output!$C:$AQ,6,FALSE),3) ->  | O33: =ROUND(VLOOKUP("OSUPJEUNEREGECO_"&$A33,Output!$C:$AQ,12,FALSE)/VLOOKUP("OSUPREGECO_"&A33,Output!$C:$AQ,6,FALSE),3) ->  | R33: =ROUND(VLOOKUP("OSUPVIEUXTOTREGECO_"&$A33,Output!$C:$AQ,7,FALSE)/VLOOKUP("OSUPREGECO_"&A33,Output!$C:$AQ,6,FALSE),3) ->  | T33: =ROUND(VLOOKUP("OSUPVIEUXTOTREGECO_"&$A33,Output!$C:$AQ,12,FALSE)/VLOOKUP("OSUPREGECO_"&A33,Output!$C:$AQ,6,FALSE),3) ->  | W33: 0 | AA33: =Tableaux!$O$33 -> 03772 | AB33: =W33 -> 0
G34: =VLOOKUP(CONCATENATE("OSUPVIEUXALERTEREGECO_"&A34),Output!$C:$AQ,6,FALSE) ->  | H34: =VLOOKUP(CONCATENATE("OSUPVIEUXACCEPTREGECO_"&A34),Output!$C:$AQ,6,FALSE) ->  | I34: =VLOOKUP(CONCATENATE("OSUPJEUNEALERTEREGECO_"&A34),Output!$C:$AQ,6,FALSE) ->  | J34: =VLOOKUP(CONCATENATE("OSUPJEUNEACCEPTREGECO_"&A34),Output!$C:$AQ,6,FALSE) ->  | K34: =VLOOKUP(CONCATENATE("OSUPREGECO_"&A34),Output!$C:$AQ,6,FALSE) ->  | M34: =ROUND(VLOOKUP("OSUPJEUNEREGECO_"&A34,Output!$C:$AQ,7,FALSE)/VLOOKUP("OSUPREGECO_"&A34,Output!$C:$AQ,6,FALSE),3) ->  | O34: =ROUND(VLOOKUP("OSUPJEUNEREGECO_"&$A34,Output!$C:$AQ,12,FALSE)/VLOOKUP("OSUPREGECO_"&A34,Output!$C:$AQ,6,FALSE),3) ->  | R34: =ROUND(VLOOKUP("OSUPVIEUXTOTREGECO_"&$A34,Output!$C:$AQ,7,FALSE)/VLOOKUP("OSUPREGECO_"&A34,Output!$C:$AQ,6,FALSE),3) ->  | T34: =ROUND(VLOOKUP("OSUPVIEUXTOTREGECO_"&$A34,Output!$C:$AQ,12,FALSE)/VLOOKUP("OSUPREGECO_"&A34,Output!$C:$AQ,6,FALSE),3) ->  | W34: 0 | AA34: =Tableaux!$O$33 -> 03772 | AB34: 0
G35: =VLOOKUP(CONCATENATE("OSUPVIEUXALERTEREGECO_"&A35),Output!$C:$AQ,6,FALSE) ->  | H35: =VLOOKUP(CONCATENATE("OSUPVIEUXACCEPTREGECO_"&A35),Output!$C:$AQ,6,FALSE) ->  | I35: =VLOOKUP(CONCATENATE("OSUPJEUNEALERTEREGECO_"&A35),Output!$C:$AQ,6,FALSE) ->  | J35: =VLOOKUP(CONCATENATE("OSUPJEUNEACCEPTREGECO_"&A35),Output!$C:$AQ,6,FALSE) ->  | K35: =VLOOKUP(CONCATENATE("OSUPREGECO_"&A35),Output!$C:$AQ,6,FALSE) ->  | M35: =ROUND(VLOOKUP("OSUPJEUNEREGECO_"&A35,Output!$C:$AQ,7,FALSE)/VLOOKUP("OSUPREGECO_"&A35,Output!$C:$AQ,6,FALSE),3) ->  | O35: =ROUND(VLOOKUP("OSUPJEUNEREGECO_"&$A35,Output!$C:$AQ,12,FALSE)/VLOOKUP("OSUPREGECO_"&A35,Output!$C:$AQ,6,FALSE),3) ->  | R35: =ROUND(VLOOKUP("OSUPVIEUXTOTREGECO_"&$A35,Output!$C:$AQ,7,FALSE)/VLOOKUP("OSUPREGECO_"&A35,Output!$C:$AQ,6,FALSE),3) ->  | T35: =ROUND(VLOOKUP("OSUPVIEUXTOTREGECO_"&$A35,Output!$C:$AQ,12,FALSE)/VLOOKUP("OSUPREGECO_"&A35,Output!$C:$AQ,6,FALSE),3) ->  | W35: 0 | AA35: =Tableaux!$O$33 -> 03772 | AB35: 0
G36: =VLOOKUP(CONCATENATE("OSUPVIEUXALERTEREGECO_"&A36),Output!$C:$AQ,6,FALSE) ->  | H36: =VLOOKUP(CONCATENATE("OSUPVIEUXACCEPTREGECO_"&A36),Output!$C:$AQ,6,FALSE) ->  | I36: =VLOOKUP(CONCATENATE("OSUPJEUNEALERTEREGECO_"&A36),Output!$C:$AQ,6,FALSE) ->  | J36: =VLOOKUP(CONCATENATE("OSUPJEUNEACCEPTREGECO_"&A36),Output!$C:$AQ,6,FALSE) ->  | K36: =VLOOKUP(CONCATENATE("OSUPREGECO_"&A36),Output!$C:$AQ,6,FALSE) ->  | M36: =ROUND(VLOOKUP("OSUPJEUNEREGECO_"&A36,Output!$C:$AQ,7,FALSE)/VLOOKUP("OSUPREGECO_"&A36,Output!$C:$AQ,6,FALSE),3) ->  | O36: =ROUND(VLOOKUP("OSUPJEUNEREGECO_"&$A36,Output!$C:$AQ,12,FALSE)/VLOOKUP("OSUPREGECO_"&A36,Output!$C:$AQ,6,FALSE),3) ->  | R36: =ROUND(VLOOKUP("OSUPVIEUXTOTREGECO_"&$A36,Output!$C:$AQ,7,FALSE)/VLOOKUP("OSUPREGECO_"&A36,Output!$C:$AQ,6,FALSE),3) ->  | T36: =ROUND(VLOOKUP("OSUPVIEUXTOTREGECO_"&$A36,Output!$C:$AQ,12,FALSE)/VLOOKUP("OSUPREGECO_"&A36,Output!$C:$AQ,6,FALSE),3) ->  | W36: 0 | AA36: =Tableaux!$O$33 -> 03772 | AB36: 0
G37: =VLOOKUP(CONCATENATE("OSUPVIEUXALERTEREGECO_"&A37),Output!$C:$AQ,6,FALSE) ->  | H37: =VLOOKUP(CONCATENATE("OSUPVIEUXACCEPTREGECO_"&A37),Output!$C:$AQ,6,FALSE) ->  | I37: =VLOOKUP(CONCATENATE("OSUPJEUNEALERTEREGECO_"&A37),Output!$C:$AQ,6,FALSE) ->  | J37: =VLOOKUP(CONCATENATE("OSUPJEUNEACCEPTREGECO_"&A37),Output!$C:$AQ,6,FALSE) ->  | K37: =VLOOKUP(CONCATENATE("OSUPREGECO_"&A37),Output!$C:$AQ,6,FALSE) ->  | M37: =ROUND(VLOOKUP("OSUPJEUNEREGECO_"&A37,Output!$C:$AQ,7,FALSE)/VLOOKUP("OSUPREGECO_"&A37,Output!$C:$AQ,6,FALSE),3) ->  | O37: =ROUND(VLOOKUP("OSUPJEUNEREGECO_"&$A37,Output!$C:$AQ,12,FALSE)/VLOOKUP("OSUPREGECO_"&A37,Output!$C:$AQ,6,FALSE),3) ->  | R37: =ROUND(VLOOKUP("OSUPVIEUXTOTREGECO_"&$A37,Output!$C:$AQ,7,FALSE)/VLOOKUP("OSUPREGECO_"&A37,Output!$C:$AQ,6,FALSE),3) ->  | T37: =ROUND(VLOOKUP("OSUPVIEUXTOTREGECO_"&$A37,Output!$C:$AQ,12,FALSE)/VLOOKUP("OSUPREGECO_"&A37,Output!$C:$AQ,6,FALSE),3) ->  | W37: 0 | AA37: =Tableaux!$O$33 -> 03772 | AB37: 0
G38: =VLOOKUP(CONCATENATE("OSUPVIEUXALERTEREGECO_"&A38),Output!$C:$AQ,6,FALSE) ->  | H38: =VLOOKUP(CONCATENATE("OSUPVIEUXACCEPTREGECO_"&A38),Output!$C:$AQ,6,FALSE) ->  | I38: =VLOOKUP(CONCATENATE("OSUPJEUNEALERTEREGECO_"&A38),Output!$C:$AQ,6,FALSE) ->  | J38: =VLOOKUP(CONCATENATE("OSUPJEUNEACCEPTREGECO_"&A38),Output!$C:$AQ,6,FALSE) ->  | K38: =VLOOKUP(CONCATENATE("OSUPREGECO_"&A38),Output!$C:$AQ,6,FALSE) ->  | M38: =ROUND(VLOOKUP("OSUPJEUNEREGECO_"&A38,Output!$C:$AQ,7,FALSE)/VLOOKUP("OSUPREGECO_"&A38,Output!$C:$AQ,6,FALSE),3) ->  | O38: =ROUND(VLOOKUP("OSUPJEUNEREGECO_"&$A38,Output!$C:$AQ,12,FALSE)/VLOOKUP("OSUPREGECO_"&A38,Output!$C:$AQ,6,FALSE),3) ->  | R38: =ROUND(VLOOKUP("OSUPVIEUXTOTREGECO_"&$A38,Output!$C:$AQ,7,FALSE)/VLOOKUP("OSUPREGECO_"&A38,Output!$C:$AQ,6,FALSE),3) ->  | T38: =ROUND(VLOOKUP("OSUPVIEUXTOTREGECO_"&$A38,Output!$C:$AQ,12,FALSE)/VLOOKUP("OSUPREGECO_"&A38,Output!$C:$AQ,6,FALSE),3) ->  | W38: 0 | AA38: =Tableaux!$O$33 -> 03772 | AB38: 0
G39: =VLOOKUP(CONCATENATE("OSUPVIEUXALERTEREGECO_"&A39),Output!$C:$AQ,6,FALSE) ->  | H39: =VLOOKUP(CONCATENATE("OSUPVIEUXACCEPTREGECO_"&A39),Output!$C:$AQ,6,FALSE) ->  | I39: =VLOOKUP(CONCATENATE("OSUPJEUNEALERTEREGECO_"&A39),Output!$C:$AQ,6,FALSE) ->  | J39: =VLOOKUP(CONCATENATE("OSUPJEUNEACCEPTREGECO_"&A39),Output!$C:$AQ,6,FALSE) ->  | K39: =VLOOKUP(CONCATENATE("OSUPREGECO_"&A39),Output!$C:$AQ,6,FALSE) ->  | M39: =ROUND(VLOOKUP("OSUPJEUNEREGECO_"&A39,Output!$C:$AQ,7,FALSE)/VLOOKUP("OSUPREGECO_"&A39,Output!$C:$AQ,6,FALSE),3) ->  | O39: =ROUND(VLOOKUP("OSUPJEUNEREGECO_"&$A39,Output!$C:$AQ,12,FALSE)/VLOOKUP("OSUPREGECO_"&A39,Output!$C:$AQ,6,FALSE),3) ->  | R39: =ROUND(VLOOKUP("OSUPVIEUXTOTREGECO_"&$A39,Output!$C:$AQ,7,FALSE)/VLOOKUP("OSUPREGECO_"&A39,Output!$C:$AQ,6,FALSE),3) ->  | T39: =ROUND(VLOOKUP("OSUPVIEUXTOTREGECO_"&$A39,Output!$C:$AQ,12,FALSE)/VLOOKUP("OSUPREGECO_"&A39,Output!$C:$AQ,6,FALSE),3) ->  | W39: 0 | AA39: =Tableaux!$O$33 -> 03772 | AB39: 0
G40: =VLOOKUP(CONCATENATE("OSUPVIEUXALERTEREGECO_"&A40),Output!$C:$AQ,6,FALSE) ->  | H40: =VLOOKUP(CONCATENATE("OSUPVIEUXACCEPTREGECO_"&A40),Output!$C:$AQ,6,FALSE) ->  | I40: =VLOOKUP(CONCATENATE("OSUPJEUNEALERTEREGECO_"&A40),Output!$C:$AQ,6,FALSE) ->  | J40: =VLOOKUP(CONCATENATE("OSUPJEUNEACCEPTREGECO_"&A40),Output!$C:$AQ,6,FALSE) ->  | K40: =VLOOKUP(CONCATENATE("OSUPREGECO_"&A40),Output!$C:$AQ,6,FALSE) ->  | M40: =ROUND(VLOOKUP("OSUPJEUNEREGECO_"&A40,Output!$C:$AQ,7,FALSE)/VLOOKUP("OSUPREGECO_"&A40,Output!$C:$AQ,6,FALSE),3) ->  | O40: =ROUND(VLOOKUP("OSUPJEUNEREGECO_"&$A40,Output!$C:$AQ,12,FALSE)/VLOOKUP("OSUPREGECO_"&A40,Output!$C:$AQ,6,FALSE),3) ->  | R40: =ROUND(VLOOKUP("OSUPVIEUXTOTREGECO_"&$A40,Output!$C:$AQ,7,FALSE)/VLOOKUP("OSUPREGECO_"&A40,Output!$C:$AQ,6,FALSE),3) ->  | T40: =ROUND(VLOOKUP("OSUPVIEUXTOTREGECO_"&$A40,Output!$C:$AQ,12,FALSE)/VLOOKUP("OSUPREGECO_"&A40,Output!$C:$AQ,6,FALSE),3) ->  | W40: 0 | AA40: =Tableaux!$O$33 -> 03772 | AB40: 0
G41: =VLOOKUP(CONCATENATE("OSUPVIEUXALERTEREGECO_"&A41),Output!$C:$AQ,6,FALSE) ->  | H41: =VLOOKUP(CONCATENATE("OSUPVIEUXACCEPTREGECO_"&A41),Output!$C:$AQ,6,FALSE) ->  | I41: =VLOOKUP(CONCATENATE("OSUPJEUNEALERTEREGECO_"&A41),Output!$C:$AQ,6,FALSE) ->  | J41: =VLOOKUP(CONCATENATE("OSUPJEUNEACCEPTREGECO_"&A41),Output!$C:$AQ,6,FALSE) ->  | K41: =VLOOKUP(CONCATENATE("OSUPREGECO_"&A41),Output!$C:$AQ,6,FALSE) ->  | M41: =ROUND(VLOOKUP("OSUPJEUNEREGECO_"&A41,Output!$C:$AQ,7,FALSE)/VLOOKUP("OSUPREGECO_"&A41,Output!$C:$AQ,6,FALSE),3) ->  | O41: =ROUND(VLOOKUP("OSUPJEUNEREGECO_"&$A41,Output!$C:$AQ,12,FALSE)/VLOOKUP("OSUPREGECO_"&A41,Output!$C:$AQ,6,FALSE),3) ->  | R41: =ROUND(VLOOKUP("OSUPVIEUXTOTREGECO_"&$A41,Output!$C:$AQ,7,FALSE)/VLOOKUP("OSUPREGECO_"&A41,Output!$C:$AQ,6,FALSE),3) ->  | T41: =ROUND(VLOOKUP("OSUPVIEUXTOTREGECO_"&$A41,Output!$C:$AQ,12,FALSE)/VLOOKUP("OSUPREGECO_"&A41,Output!$C:$AQ,6,FALSE),3) ->  | W41: 0 | AA41: =Tableaux!$O$33 -> 03772 | AB41: 0
G42: =VLOOKUP(CONCATENATE("OSUPVIEUXALERTEREGECO_"&A42),Output!$C:$AQ,6,FALSE) ->  | H42: =VLOOKUP(CONCATENATE("OSUPVIEUXACCEPTREGECO_"&A42),Output!$C:$AQ,6,FALSE) ->  | I42: =VLOOKUP(CONCATENATE("OSUPJEUNEALERTEREGECO_"&A42),Output!$C:$AQ,6,FALSE) ->  | J42: =VLOOKUP(CONCATENATE("OSUPJEUNEACCEPTREGECO_"&A42),Output!$C:$AQ,6,FALSE) ->  | K42: =VLOOKUP(CONCATENATE("OSUPREGECO_"&A42),Output!$C:$AQ,6,FALSE) ->  | M42: =ROUND(VLOOKUP("OSUPJEUNEREGECO_"&A42,Output!$C:$AQ,7,FALSE)/VLOOKUP("OSUPREGECO_"&A42,Output!$C:$AQ,6,FALSE),3) ->  | O42: =ROUND(VLOOKUP("OSUPJEUNEREGECO_"&$A42,Output!$C:$AQ,12,FALSE)/VLOOKUP("OSUPREGECO_"&A42,Output!$C:$AQ,6,FALSE),3) ->  | R42: =ROUND(VLOOKUP("OSUPVIEUXTOTREGECO_"&$A42,Output!$C:$AQ,7,FALSE)/VLOOKUP("OSUPREGECO_"&A42,Output!$C:$AQ,6,FALSE),3) ->  | T42: =ROUND(VLOOKUP("OSUPVIEUXTOTREGECO_"&$A42,Output!$C:$AQ,12,FALSE)/VLOOKUP("OSUPREGECO_"&A42,Output!$C:$AQ,6,FALSE),3) ->  | W42: 0 | AA42: =Tableaux!$O$33 -> 03772 | AB42: 0

Sheet Output
C1: 1 | D1: 2 | E1: 3 | F1: 4 | G1: 5 | H1: 6 | I1: 7 | J1: 8 | K1: 9 | L1: 10 | M1: 11 | N1: 12 | O1: 13 | P1: 14 | Q1: 15 | R1: 16 | S1: 17 | T1: 18 | U1: 19 | V1: 20 | W1: 21 | X1: 22 | Y1: 23 | Z1: 24 | AA1: 25 | AB1: 26 | AC1: 27 | AD1: 28 | AE1: 29 | AF1: 30 | AG1: 31 | AH1: 32 | AI1: 33 | AJ1: 34 | AK1: 35 | AL1: 36 | AM1: 37 | AN1: 38 | AO1: 39 | AP1: 40 | AQ1: 41
A2: Record | B2: Group | C2: Name | D2: Description | E2: Attribute | F2: Minimum | G2: Maximum | H2: Period0 | I2: Period1 | J2: Period2 | K2: Period3 | L2: Period4 | M2: Period5 | N2: Period6 | O2: Period7 | P2: Period8 | Q2: Period9 | R2: Period10 | S2: Period11 | T2: Period12 | U2: Period13 | V2: Period14 | W2: Period15 | X2: Period16 | Y2: Period17 | Z2: Period18 | AA2: Period19 | AB2: Period20 | AC2: Period21 | AD2: Period22 | AE2: Period23 | AF2: Period24 | AG2: Period25 | AH2: Period26 | AI2: Period27 | AJ2: Period28 | AK2: Period29 | AL2: Period30 | AM2: Moyemme P2 à P6 | AN2: Moyenne P7 à P11 | AO2: Moyenne P12 à P20 | AP2: Moyenne P21 à P30 | AQ2: Moyenne P2 à P30
A3: 1 | B3: <Non regroupé(s)> | C3: OSUPTOT | D3: Superficie Totale | F3: 677115.3 | G3: 677115.3 | H3: 677115.3 | I3: 677115.3 | J3: 677115.3 | K3: 677115.3 | L3: 677115.3 | M3: 677115.3 | N3: 677115.3 | O3: 677115.3 | P3: 677115.3 | Q3: 677115.3 | R3: 677115.3 | S3: 677115.3 | T3: 677115.3 | U3: 677115.3 | V3: 677115.3 | W3: 677115.3 | X3: 677115.3 | Y3: 677115.3 | Z3: 677115.3 | AA3: 677115.3 | AB3: 677115.3 | AC3: 677115.3 | AD3: 677115.3 | AE3: 677115.3 | AF3: 677115.3 | AG3: 677115.3 | AH3: 677115.3 | AI3: 677115.3 | AJ3: 677115.3 | AK3: 677115.3 | AL3: 677115.3 | AM3: =AVERAGE(J3:N3) -> 677115.3 | AN3: =AVERAGE(O3:S3) -> 677115.3 | AO3: =AVERAGE(T3:AB3) -> 677115.3 | AP3: =AVERAGE(AC3:AL3) -> 677115.3 | AQ3: =AVERAGE(J3:AL3) -> 677115.3
A4: 2 | B4: <Non regroupé(s)> | C4: OSUPINC | D4: Superficie InclusActions par courbe | F4: 329360.78 | G4: 338166.2 | H4: 338166.2 | I4: 337749.1 | J4: 337311.52 | K4: 336846.92 | L4: 336457.48 | M4: 336030.88 | N4: 335722.47 | O4: 335317.87 | P4: 334941.97 | Q4: 334344.82 | R4: 333771.38 | S4: 333456.46 | T4: 332851.97 | U4: 332163.87 | V4: 331652.34 | W4: 331143.87 | X4: 330556.37 | Y4: 330312.33 | Z4: 330100.3 | AA4: 329940.91 | AB4: 329735.11 | AC4: 329677.54 | AD4: 329596.77 | AE4: 329577.01 | AF4: 329562.06 | AG4: 329475.99 | AH4: 329471.21 | AI4: 329460.41 | AJ4: 329457.48 | AK4: 329456.66 | AL4: 329360.78 | AM4: =AVERAGE(J4:N4) -> 336473.854 | AN4: =AVERAGE(O4:S4) -> 334366.5 | AO4: =AVERAGE(T4:AB4) -> 330939.6744 | AP4: =AVERAGE(AC4:AL4) -> 329509.591 | AQ4: =AVERAGE(J4:AL4) -> 331991.5431
A5: 3 | B5: <Non regroupé(s)> | C5: OSUPregECO | D5: Superficie Disponible aux Résultats Écologiques | F5: 569325.78 | G5: 578131.2 | H5: 578131.2 | I5: 577714.1 | J5: 577276.52 | K5: 576811.92 | L5: 576422.48 | M5: 575995.88 | N5: 575687.47 | O5: 575282.87 | P5: 574906.97 | Q5: 574309.82 | R5: 573736.38 | S5: 573421.46 | T5: 572816.97 | U5: 572128.87 | V5: 571617.34 | W5: 571108.87 | X5: 570521.37 | Y5: 570277.33 | Z5: 570065.3 | AA5: 569905.91 | AB5: 569700.11 | AC5: 569642.54 | AD5: 569561.77 | AE5: 569542.01 | AF5: 569527.06 | AG5: 569440.99 | AH5: 569436.21 | AI5: 569425.41 | AJ5: 569422.48 | AK5: 569421.66 | AL5: 569325.78 | AM5: 576438.854 | AN5: 574331.5 | AO5: 570904.6744 | AP5: 569474.591 | AQ5: 571956.5431
A6: 4 | B6: <Non regroupé(s)> | C6: OSUPEXIN | D6: Superficie ExcluActionsInclus | F6: 239965 | G6: 239965 | H6: 239965 | I6: 239965 | J6: 239965 | K6: 239965 | L6: 239965 | M6: 239965 | N6: 239965 | O6: 239965 | P6: 239965 | Q6: 239965 | R6: 239965 | S6: 239965 | T6: 239965 | U6: 239965 | V6: 239965 | W6: 239965 | X6: 239965 | Y6: 239965 | Z6: 239965 | AA6: 239965 | AB6: 239965 | AC6: 239965 | AD6: 239965 | AE6: 239965 | AF6: 239965 | AG6: 239965 | AH6: 239965 | AI6: 239965 | AJ6: 239965 | AK6: 239965 | AL6: 239965 | AM6: 239965 | AN6: 239965 | AO6: 239965 | AP6: 239965 | AQ6: 239965
A7: 5 | B7: <Non regroupé(s)> | C7: OSUPEXTI | D7: Superficie Improductive | F7: 21411.1 | G7: 21411.1 | H7: 21411.1 | I7: 21411.1 | J7: 21411.1 | K7: 21411.1 | L7: 21411.1 | M7: 21411.1 | N7: 21411.1 | O7: 21411.1 | P7: 21411.1 | Q7: 21411.1 | R7: 21411.1 | S7: 21411.1 | T7: 21411.1 | U7: 21411.1 | V7: 21411.1 | W7: 21411.1 | X7: 21411.1 | Y7: 21411.1 | Z7: 21411.1 | AA7: 21411.1 | AB7: 21411.1 | AC7: 21411.1 | AD7: 21411.1 | AE7: 21411.1 | AF7: 21411.1 | AG7: 21411.1 | AH7: 21411.1 | AI7: 21411.1 | AJ7: 21411.1 | AK7: 21411.1 | AL7: 21411.1 | AM7: 21411.1 | AN7: 21411.1 | AO7: 21411.1 | AP7: 21411.1 | AQ7: 21411.1
A8: 6 | B8: <Non regroupé(s)> | C8: OSUPLOCK | D8: Superficie Sous Verrous | F8: 5392.18 | G8: 139550.79 | H8: 137357.7 | I8: 139550.79 | J8: 71251.99 | K8: 70931.65 | L8: 69141.28 | M8: 19174.69 | N8: 20171.7 | O8: 21020.62 | P8: 8659.3 | Q8: 7012.41 | R8: 5392.18 | S8: 5891.05 | T8: 7387.52 | U8: 7986.44 | V8: 8881.15 | W8: 10870.41 | X8: 12692.68 | Y8: 12565.75 | Z8: 11232.4 | AA8: 9897.06 | AB8: 8608.62 | AC8: 10347.28 | AD8: 10103.46 | AE8: 9651.05 | AF8: 7886.44 | AG8: 8439.61 | AH8: 9154.25 | AI8: 9379.33 | AJ8: 9455.94 | AK8: 8795.17 | AL8: 7303.83 | AM8: 50134.262 | AN8: 9595.112 | AO8: 10013.55889 | AP8: 9051.636 | AQ8: 16527.07793
A9: 7 | B9: Economique | C9: oSupTcsdDEG_1_T100% | D9: oSupTcsdDEG_1_T100% | F9: 0 | G9: 2959.82 | H9: 0 | I9: 1000 | J9: 2003.37 | K9: 2007.67 | L9: 2392.43 | M9: 2550.39 | N9: 2920.49 | O9: 2648.32 | P9: 2959.82 | Q9: 2552.78 | R9: 2638.37 | S9: 2847.4 | T9: 2562.66 | U9: 2474.97 | V9: 2140.12 | W9: 1521.29 | X9: 1736.85 | Y9: 2029.24 | Z9: 2029.24 | AA9: 2232.17 | AB9: 1931.67 | AC9: 1647.49 | AD9: 2455.39 | AE9: 2688.45 | AF9: 2041.07 | AG9: 2595.21 | AH9: 2400.17 | AI9: 2528.47 | AJ9: 2528.47 | AK9: 2511.17 | AL9: 2781.32 | AM9: 2374.87 | AN9: 2729.338 | AO9: 2073.134444 | AP9: 2417.721 | AQ9: 2357.11931
A10: 8 | B10: Economique | C10: oSupTcsdDEG_2_T100% | D10: oSupTcsdDEG_2_T100% | F10: 0 | G10: 127.9 | H10: 0 | I10: 0 | J10: 0 | K10: 127.9 | L10: 21.2 | M10: 104.6 | N10: 0 | O10: 0 | P10: 0 | Q10: 0 | R10: 0 | S10: 0 | T10: 0 | U10: 0 | V10: 0 | W10: 0 | X10: 0 | Y10: 0 | Z10: 0 | AA10: 0 | AB10: 0 | AC10: 0 | AD10: 0 | AE10: 0 | AF10: 0 | AG10: 74.09 | AH10: 0 | AI10: 16.82 | AJ10: 0 | AK10: 0 | AL10: 0 | AM10: 50.74 | AN10: 0 | AO10: 0 | AP10: 9.091 | AQ10: 11.88310345
A11: 9 | B11: Economique | C11: oSupDEG_1_T100% | D11: oSupDEG_1_T100% | F11: 0 | G11: 2959.82 | H11: 0 | I11: 1000 | J11: 2003.37 | K11: 2007.67 | L11: 2392.43 | M11: 2550.39 | N11: 2920.49 | O11: 2648.32 | P11: 2959.82 | Q11: 2552.78 | R11: 2638.37 | S11: 2847.4 | T11: 2562.66 | U11: 2474.97 | V11: 2140.12 | W11: 1521.29 | X11: 1736.85 | Y11: 2029.24 | Z11: 2029.24 | AA11: 2232.17 | AB11: 1931.67 | AC11: 1647.49 | AD11: 2455.39 | AE11: 2688.45 | AF11: 2041.07 | AG11: 2595.21 | AH11: 2400.17 | AI11: 2528.47 | AJ11: 2528.47 | AK11: 2511.17 | AL11: 2781.32 | AM11: 2374.87 | AN11: 2729.338 | AO11: 2073.134444 | AP11: 2417.721 | AQ11: 2357.11931
A12: 10 | B12: Economique | C12: oSupDEG_2_T100% | D12: oSupDEG_2_T100% | F12: 0 | G12: 127.9 | H12: 0 | I12: 0 | J12: 0 | K12: 127.9 | L12: 21.2 | M12: 104.6 | N12: 0 | O12: 0 | P12: 0 | Q12: 0 | R12: 0 | S12: 0 | T12: 0 | U12: 0 | V12: 0 | W12: 0 | X12: 0 | Y12: 0 | Z12: 0 | AA12: 0 | AB12: 0 | AC12: 0 | AD12: 0 | AE12: 0 | AF12: 0 | AG12: 74.09 | AH12: 0 | AI12: 16.82 | AJ12: 0 | AK12: 0 | AL12: 0 | AM12: 50.74 | AN12: 0 | AO12: 0 | AP12: 9.091 | AQ12: 11.88310345
A13: 11 | B13: Economique | C13: oSupDEG_1 | D13: oSupDEG_1 | F13: 0 | G13: 2959.82 | H13: 0 | I13: 1000 | J13: 2003.37 | K13: 2007.67 | L13: 2392.43 | M13: 2550.39 | N13: 2920.49 | O13: 2648.32 | P13: 2959.82 | Q13: 2552.78 | R13: 2638.37 | S13: 2847.4 | T13: 2562.66 | U13: 2474.97 | V13: 2140.12 | W13: 1521.29 | X13: 1736.85 | Y13: 2029.24 | Z13: 2029.24 | AA13: 2232.17 | AB13: 1931.67 | AC13: 1647.49 | AD13: 2455.39 | AE13: 2688.45 | AF13: 2041.07 | AG13: 2595.21 | AH13: 2400.17 | AI13: 2528.47 | AJ13: 2528.47 | AK13: 2511.17 | AL13: 2781.32 | AM13: 2374.87 | AN13: 2729.338 | AO13: 2073.134444 | AP13: 2417.721 | AQ13: 2357.11931
A14: 12 | B14: Economique | C14: oSupDEG_2 | D14: oSupDEG_2 | F14: 0 | G14: 127.9 | H14: 0 | I14: 0 | J14: 0 | K14: 127.9 | L14: 21.2 | M14: 104.6 | N14: 0 | O14: 0 | P14: 0 | Q14: 0 | R14: 0 | S14: 0 | T14: 0 | U14: 0 | V14: 0 | W14: 0 | X14: 0 | Y14: 0 | Z14: 0 | AA14: 0 | AB14: 0 | AC14: 0 | AD14: 0 | AE14: 0 | AF14: 0 | AG14: 74.09 | AH14: 0 | AI14: 16.82 | AJ14: 0 | AK14: 0 | AL14: 0 | AM14: 50.74 | AN14: 0 | AO14: 0 | AP14: 9.091 | AQ14: 11.88310345
A15: 13 | B15: Economique | C15: oSupTcsdSCA_PART_T100% | D15: oSupTcsdSCA_PART_T100% | F15: 0 | G15: 472.39 | H15: 0 | I15: 239.66 | J15: 180.6 | K15: 201.09 | L15: 242.8 | M15: 275.54 | N15: 379.67 | O15: 112.84 | P15: 243.7 | Q15: 164.64 | R15: 81.43 | S15: 32.46 | T15: 295.66 | U15: 288.54 | V15: 219.88 | W15: 316.49 | X15: 58.17 | Y15: 143.01 | Z15: 148.9 | AA15: 175.79 | AB15: 142.98 | AC15: 98.13 | AD15: 176.32 | AE15: 182.23 | AF15: 190.2 | AG15: 472.39 | AH15: 99.39 | AI15: 85.58 | AJ15: 58.29 | AK15: 0 | AL15: 24.01 | AM15: 255.94 | AN15: 127.014 | AO15: 198.8244444 | AP15: 138.654 | AQ15: 175.5424138
A16: 14 | B16: Economique | C16: oSupTcsdSCA_REG_T100% | D16: oSupTcsdSCA_REG_T100% | F16: 0 | G16: 3263.58 | H16: 0 | I16: 1094.75 | J16: 2029.01 | K16: 2025.06 | L16: 2392.43 | M16: 2550.39 | N16: 2920.49 | O16: 2753.82 | P16: 2966.34 | Q16: 3263.58 | R16: 2859.22 | S16: 2847.4 | T16: 2562.66 | U16: 2443.24 | V16: 2239.99 | W16: 2071.52 | X16: 1610.19 | Y16: 2029.24 | Z16: 2029.24 | AA16: 2232.17 | AB16: 2236.77 | AC16: 2324.07 | AD16: 2455.39 | AE16: 2700.92 | AF16: 2541.97 | AG16: 2595.21 | AH16: 2528.47 | AI16: 2592.12 | AJ16: 2551.75 | AK16: 2566.19 | AL16: 2607.1 | AM16: 2383.476 | AN16: 2938.072 | AO16: 2161.668889 | AP16: 2546.319 | AQ16: 2466.412069
A17: 15 | B17: Economique | C17: oSupSCA_PART_T100% | D17: oSupSCA_PART_T100% | F17: 0 | G17: 472.39 | H17: 0 | I17: 239.66 | J17: 180.6 | K17: 201.09 | L17: 242.8 | M17: 275.54 | N17: 379.67 | O17: 112.84 | P17: 243.7 | Q17: 164.64 | R17: 81.43 | S17: 32.46 | T17: 295.66 | U17: 288.54 | V17: 219.88 | W17: 316.49 | X17: 58.17 | Y17: 143.01 | Z17: 148.9 | AA17: 175.79 | AB17: 142.98 | AC17: 98.13 | AD17: 176.32 | AE17: 182.23 | AF17: 190.2 | AG17: 472.39 | AH17: 99.39 | AI17: 85.58 | AJ17: 58.29 | AK17: 0 | AL17: 24.01 | AM17: 255.94 | AN17: 127.014 | AO17: 198.8244444 | AP17: 138.654 | AQ17: 175.5424138
A18: 16 | B18: Economique | C18: oSupSCA_REG_T100% | D18: oSupSCA_REG_T100% | F18: 0 | G18: 3263.58 | H18: 0 | I18: 1094.75 | J18: 2029.01 | K18: 2025.06 | L18: 2392.43 | M18: 2550.39 | N18: 2920.49 | O18: 2753.82 | P18: 2966.34 | Q18: 3263.58 | R18: 2859.22 | S18: 2847.4 | T18: 2562.66 | U18: 2443.24 | V18: 2239.99 | W18: 2071.52 | X18: 1610.19 | Y18: 2029.24 | Z18: 2029.24 | AA18: 2232.17 | AB18: 2236.77 | AC18: 2324.07 | AD18: 2455.39 | AE18: 2700.92 | AF18: 2541.97 | AG18: 2595.21 | AH18: 2528.47 | AI18: 2592.12 | AJ18: 2551.75 | AK18: 2566.19 | AL18: 2607.1 | AM18: 2383.476 | AN18: 2938.072 | AO18: 2161.668889 | AP18: 2546.319 | AQ18: 2466.412069
A19: 17 | B19: Economique | C19: oSupSCA_PART | D19: oSupSCA_PART | F19: 0 | G19: 472.39 | H19: 0 | I19: 239.66 | J19: 180.6 | K19: 201.09 | L19: 242.8 | M19: 275.54 | N19: 379.67 | O19: 112.84 | P19: 243.7 | Q19: 164.64 | R19: 81.43 | S19: 32.46 | T19: 295.66 | U19: 288.54 | V19: 219.88 | W19: 316.49 | X19: 58.17 | Y19: 143.01 | Z19: 148.9 | AA19: 175.79 | AB19: 142.98 | AC19: 98.13 | AD19: 176.32 | AE19: 182.23 | AF19: 190.2 | AG19: 472.39 | AH19: 99.39 | AI19: 85.58 | AJ19: 58.29 | AK19: 0 | AL19: 24.01 | AM19: 255.94 | AN19: 127.014 | AO19: 198.8244444 | AP19: 138.654 | AQ19: 175.5424138
A20: 18 | B20: Economique | C20: oSupSCA_REG | D20: oSupSCA_REG | F20: 0 | G20: 3263.58 | H20: 0 | I20: 1094.75 | J20: 2029.01 | K20: 2025.06 | L20: 2392.43 | M20: 2550.39 | N20: 2920.49 | O20: 2753.82 | P20: 2966.34 | Q20: 3263.58 | R20: 2859.22 | S20: 2847.4 | T20: 2562.66 | U20: 2443.24 | V20: 2239.99 | W20: 2071.52 | X20: 1610.19 | Y20: 2029.24 | Z20: 2029.24 | AA20: 2232.17 | AB20: 2236.77 | AC20: 2324.07 | AD20: 2455.39 | AE20: 2700.92 | AF20: 2541.97 | AG20: 2595.21 | AH20: 2528.47 | AI20: 2592.12 | AJ20: 2551.75 | AK20: 2566.19 | AL20: 2607.1 | AM20: 2383.476 | AN20: 2938.072 | AO20: 2161.668889 | AP20: 2546.319 | AQ20: 2466.412069
A21: 19 | B21: Economique | C21: oSupActREG_T100% | D21: oSupActREG_T100% | F21: 0 | G21: 335.11 | H21: 0 | I21: 72.77 | J21: 181.25 | K21: 58.92 | L21: 0 | M21: 0 | N21: 0 | O21: 0 | P21: 0.79 | Q21: 0 | R21: 121.21 | S21: 0 | T21: 0 | U21: 45.33 | V21: 0 | W21: 30.85 | X21: 335.11 | Y21: 0 | Z21: 0 | AA21: 0 | AB21: 0 | AC21: 0 | AD21: 0 | AE21: 0 | AF21: 0 | AG21: 0 | AH21: 0 | AI21: 0 | AJ21: 0 | AK21: 0 | AL21: 252.85 | AM21: 48.034 | AN21: 24.4 | AO21: 45.69888889 | AP21: 25.285 | AQ21: 35.39
A22: 20 | B22: Economique | C22: oSupTcsdREG_T100% | D22: oSupTcsdREG_T100% | F22: 0 | G22: 127.9 | H22: 0 | I22: 0 | J22: 0 | K22: 127.9 | L22: 21.2 | M22: 104.6 | N22: 0 | O22: 0 | P22: 0 | Q22: 0 | R22: 0 | S22: 0 | T22: 0 | U22: 0 | V22: 0 | W22: 0 | X22: 0 | Y22: 0 | Z22: 0 | AA22: 0 | AB22: 0 | AC22: 0 | AD22: 0 | AE22: 0 | AF22: 0 | AG22: 74.09 | AH22: 0 | AI22: 16.82 | AJ22: 0 | AK22: 0 | AL22: 0 | AM22: 50.74 | AN22: 0 | AO22: 0 | AP22: 9.091 | AQ22: 11.88310345
A23: 21 | B23: Economique | C23: oSupREG_T100% | D23: oSupREG_T100% | F23: 0 | G23: 335.11 | H23: 0 | I23: 72.77 | J23: 181.25 | K23: 186.82 | L23: 21.2 | M23: 104.6 | N23: 0 | O23: 0 | P23: 0.79 | Q23: 0 | R23: 121.21 | S23: 0 | T23: 0 | U23: 45.33 | V23: 0 | W23: 30.85 | X23: 335.11 | Y23: 0 | Z23: 0 | AA23: 0 | AB23: 0 | AC23: 0 | AD23: 0 | AE23: 0 | AF23: 0 | AG23: 74.09 | AH23: 0 | AI23: 16.82 | AJ23: 0 | AK23: 0 | AL23: 252.85 | AM23: 98.774 | AN23: 24.4 | AO23: 45.69888889 | AP23: 34.376 | AQ23: 47.27310345
A24: 22 | B24: Economique | C24: oSupREG | D24: oSupREG | F24: 0 | G24: 335.11 | H24: 0 | I24: 72.77 | J24: 181.25 | K24: 186.82 | L24: 21.2 | M24: 104.6 | N24: 0 | O24: 0 | P24: 0.79 | Q24: 0 | R24: 121.21 | S24: 0 | T24: 0 | U24: 45.33 | V24: 0 | W24: 30.85 | X24: 335.11 | Y24: 0 | Z24: 0 | AA24: 0 | AB24: 0 | AC24: 0 | AD24: 0 | AE24: 0 | AF24: 0 | AG24: 74.09 | AH24: 0 | AI24: 16.82 | AJ24: 0 | AK24: 0 | AL24: 252.85 | AM24: 98.774 | AN24: 24.4 | AO24: 45.69888889 | AP24: 34.376 | AQ24: 47.27310345
A25: 23 | B25: Economique | C25: oSupActCPICP_T100% | D25: oSupActCPICP_T100% | F25: 0 | G25: 45 | H25: 0 | I25: 2.9 | J25: 0 | K25: 0 | L25: 45 | M25: 0 | N25: 0 | O25: 0 | P25: 0 | Q25: 2.76 | R25: 0 | S25: 0 | T25: 0 | U25: 0 | V25: 45 | W25: 0 | X25: 0 | Y25: 0 | Z25: 0 | AA25: 0 | AB25: 0 | AC25: 0 | AD25: 0 | AE25: 0 | AF25: 0 | AG25: 0 | AH25: 0 | AI25: 0 | AJ25: 0 | AK25: 0 | AL25: 0 | AM25: 9 | AN25: 0.552 | AO25: 5 | AP25: 0 | AQ25: 3.19862069
A26: 24 | B26: Economique | C26: oSupActCPIRL_FIN_T100% | D26: oSupActCPIRL_FIN_T100% | F26: 0 | G26: 1548.92 | H26: 0 | I26: 0 | J26: 0 | K26: 0 | L26: 0 | M26: 0 | N26: 0 | O26: 0 | P26: 711.09 | Q26: 795.72 | R26: 796.77 | S26: 713.25 | T26: 531.26 | U26: 208.73 | V26: 199.98 | W26: 243.2 | X26: 395.72 | Y26: 409.22 | Z26: 1087.51 | AA26: 454.67 | AB26: 1061.69 | AC26: 367.25 | AD26: 1103.25 | AE26: 1548.92 | AF26: 1302.39 | AG26: 830.08 | AH26: 551.66 | AI26: 438.67 | AJ26: 731.32 | AK26: 140.54 | AL26: 0.67 | AM26: 0 | AN26: 603.366 | AO26: 510.22 | AP26: 701.475 | AQ26: 504.2606897
A27: 25 | B27: Economique | C27: oSupActCPIRL_INI_T100% | D27: oSupActCPIRL_INI_T100% | F27: 0 | G27: 1670.69 | H27: 0 | I27: 798.87 | J27: 690 | K27: 800.5 | L27: 877.05 | M27: 1055.75 | N27: 1202.83 | O27: 112.84 | P27: 903.55 | Q27: 562.29 | R27: 272.14 | S27: 165.66 | T27: 1050.62 | U27: 1163.1 | V27: 732.93 | W27: 1054.98 | X27: 193.89 | Y27: 476.7 | Z27: 498.54 | AA27: 644.52 | AB27: 527.98 | AC27: 536.39 | AD27: 834.03 | AE27: 694.53 | AF27: 545.32 | AG27: 1670.69 | AH27: 99.39 | AI27: 523.73 | AJ27: 72.25 | AK27: 0 | AL27: 80.04 | AM27: 925.226 | AN27: 403.296 | AO27: 704.8066667 | AP27: 505.637 | AQ27: 622.1462069
A28: 26 | B28: Economique | C28: oSupCPICP_T100% | D28: oSupCPICP_T100% | F28: 0 | G28: 45 | H28: 0 | I28: 2.9 | J28: 0 | K28: 0 | L28: 45 | M28: 0 | N28: 0 | O28: 0 | P28: 0 | Q28: 2.76 | R28: 0 | S28: 0 | T28: 0 | U28: 0 | V28: 45 | W28: 0 | X28: 0 | Y28: 0 | Z28: 0 | AA28: 0 | AB28: 0 | AC28: 0 | AD28: 0 | AE28: 0 | AF28: 0 | AG28: 0 | AH28: 0 | AI28: 0 | AJ28: 0 | AK28: 0 | AL28: 0 | AM28: 9 | AN28: 0.552 | AO28: 5 | AP28: 0 | AQ28: 3.19862069
A29: 27 | B29: Economique | C29: oSupCPIRL_FIN_T100% | D29: oSupCPIRL_FIN_T100% | F29: 0 | G29: 1548.92 | H29: 0 | I29: 0 | J29: 0 | K29: 0 | L29: 0 | M29: 0 | N29: 0 | O29: 0 | P29: 711.09 | Q29: 795.72 | R29: 796.77 | S29: 713.25 | T29: 531.26 | U29: 208.73 | V29: 199.98 | W29: 243.2 | X29: 395.72 | Y29: 409.22 | Z29: 1087.51 | AA29: 454.67 | AB29: 1061.69 | AC29: 367.25 | AD29: 1103.25 | AE29: 1548.92 | AF29: 1302.39 | AG29: 830.08 | AH29: 551.66 | AI29: 438.67 | AJ29: 731.32 | AK29: 140.54 | AL29: 0.67 | AM29: 0 | AN29: 603.366 | AO29: 510.22 | AP29: 701.475 | AQ29: 504.2606897
A30: 28 | B30: Economique | C30: oSupCPIRL_INI_T100% | D30: oSupCPIRL_INI_T100% | F30: 0 | G30: 1670.69 | H30: 0 | I30: 798.87 | J30: 690 | K30: 800.5 | L30: 877.05 | M30: 1055.75 | N30: 1202.83 | O30: 112.84 | P30: 903.55 | Q30: 562.29 | R30: 272.14 | S30: 165.66 | T30: 1050.62 | U30: 1163.1 | V30: 732.93 | W30: 1054.98 | X30: 193.89 | Y30: 476.7 | Z30: 498.54 | AA30: 644.52 | AB30: 527.98 | AC30: 536.39 | AD30: 834.03 | AE30: 694.53 | AF30: 545.32 | AG30: 1670.69 | AH30: 99.39 | AI30: 523.73 | AJ30: 72.25 | AK30: 0 | AL30: 80.04 | AM30: 925.226 | AN30: 403.296 | AO30: 704.8066667 | AP30: 505.637 | AQ30: 622.1462069
A31: 29 | B31: Economique | C31: oSupCPICP | D31: oSupCPICP | F31: 0 | G31: 45 | H31: 0 | I31: 2.9 | J31: 0 | K31: 0 | L31: 45 | M31: 0 | N31: 0 | O31: 0 | P31: 0 | Q31: 2.76 | R31: 0 | S31: 0 | T31: 0 | U31: 0 | V31: 45 | W31: 0 | X31: 0 | Y31: 0 | Z31: 0 | AA31: 0 | AB31: 0 | AC31: 0 | AD31: 0 | AE31: 0 | AF31: 0 | AG31: 0 | AH31: 0 | AI31: 0 | AJ31: 0 | AK31: 0 | AL31: 0 | AM31: 9 | AN31: 0.552 | AO31: 5 | AP31: 0 | AQ31: 3.19862069
A32: 30 | B32: Economique | C32: oSupCPIRL_FIN | D32: oSupCPIRL_FIN | F32: 0 | G32: 1548.92 | H32: 0 | I32: 0 | J32: 0 | K32: 0 | L32: 0 | M32: 0 | N32: 0 | O32: 0 | P32: 711.09 | Q32: 795.72 | R32: 796.77 | S32: 713.25 | T32: 531.26 | U32: 208.73 | V32: 199.98 | W32: 243.2 | X32: 395.72 | Y32: 409.22 | Z32: 1087.51 | AA32: 454.67 | AB32: 1061.69 | AC32: 367.25 | AD32: 1103.25 | AE32: 1548.92 | AF32: 1302.39 | AG32: 830.08 | AH32: 551.66 | AI32: 438.67 | AJ32: 731.32 | AK32: 140.54 | AL32: 0.67 | AM32: 0 | AN32: 603.366 | AO32: 510.22 | AP32: 701.475 | AQ32: 504.2606897
A33: 31 | B33: Economique | C33: oSupCPIRL_INI | D33: oSupCPIRL_INI | F33: 0 | G33: 1670.69 | H33: 0 | I33: 798.87 | J33: 690 | K33: 800.5 | L33: 877.05 | M33: 1055.75 | N33: 1202.83 | O33: 112.84 | P33: 903.55 | Q33: 562.29 | R33: 272.14 | S33: 165.66 | T33: 1050.62 | U33: 1163.1 | V33: 732.93 | W33: 1054.98 | X33: 193.89 | Y33: 476.7 | Z33: 498.54 | AA33: 644.52 | AB33: 527.98 | AC33: 536.39 | AD33: 834.03 | AE33: 694.53 | AF33: 545.32 | AG33: 1670.69 | AH33: 99.39 | AI33: 523.73 | AJ33: 72.25 | AK33: 0 | AL33: 80.04 | AM33: 925.226 | AN33: 403.296 | AO33: 704.8066667 | AP33: 505.637 | AQ33: 622.1462069
A34: 32 | B34: Economique | C34: oSupActCT_T100% | D34: oSupActCT_T100% | F34: 0 | G34: 17677.98 | H34: 0 | I34: 9510.91 | J34: 10054.69 | K34: 10105.6 | L34: 10163.18 | M34: 10225.37 | N34: 8839.51 | O34: 11815.26 | P34: 12649.49 | Q34: 16532.77 | R34: 16254.77 | S34: 12214.92 | T34: 16517.34 | U34: 17677.98 | V34: 17642.61 | W34: 17123.59 | X34: 17379.74 | Y34: 14270.53 | Z34: 13537.01 | AA34: 14291.69 | AB34: 13245.24 | AC34: 13575.66 | AD34: 11791.71 | AE34: 13045.04 | AF34: 12847.49 | AG34: 13843.76 | AH34: 13930.91 | AI34: 12810.64 | AJ34: 13820.01 | AK34: 14673.1 | AL34: 15718.5 | AM34: 9877.67 | AN34: 13893.442 | AO34: 15742.85889 | AP34: 13605.682 | AQ34: 13675.7969
A35: 33 | B35: Economique | C35: oSupCT_T100% | D35: oSupCT_T100% | F35: 0 | G35: 17677.98 | H35: 0 | I35: 9510.91 | J35: 10054.69 | K35: 10105.6 | L35: 10163.18 | M35: 10225.37 | N35: 8839.51 | O35: 11815.26 | P35: 12649.49 | Q35: 16532.77 | R35: 16254.77 | S35: 12214.92 | T35: 16517.34 | U35: 17677.98 | V35: 17642.61 | W35: 17123.59 | X35: 17379.74 | Y35: 14270.53 | Z35: 13537.01 | AA35: 14291.69 | AB35: 13245.24 | AC35: 13575.66 | AD35: 11791.71 | AE35: 13045.04 | AF35: 12847.49 | AG35: 13843.76 | AH35: 13930.91 | AI35: 12810.64 | AJ35: 13820.01 | AK35: 14673.1 | AL35: 15718.5 | AM35: 9877.67 | AN35: 13893.442 | AO35: 15742.85889 | AP35: 13605.682 | AQ35: 13675.7969
A36: 34 | B36: Economique | C36: oSupCT | D36: oSupCT | F36: 0 | G36: 17677.98 | H36: 0 | I36: 9510.91 | J36: 10054.69 | K36: 10105.6 | L36: 10163.18 | M36: 10225.37 | N36: 8839.51 | O36: 11815.26 | P36: 12649.49 | Q36: 16532.77 | R36: 16254.77 | S36: 12214.92 | T36: 16517.34 | U36: 17677.98 | V36: 17642.61 | W36: 17123.59 | X36: 17379.74 | Y36: 14270.53 | Z36: 13537.01 | AA36: 14291.69 | AB36: 13245.24 | AC36: 13575.66 | AD36: 11791.71 | AE36: 13045.04 | AF36: 12847.49 | AG36: 13843.76 | AH36: 13930.91 | AI36: 12810.64 | AJ36: 13820.01 | AK36: 14673.1 | AL36: 15718.5 | AM36: 9877.67 | AN36: 13893.442 | AO36: 15742.85889 | AP36: 13605.682 | AQ36: 13675.7969
A37: 35 | B37: Economique | C37: oSupActPL_SEPM_E_T100% | D37: oSupActPL_SEPM_E_T100% | F37: 0 | G37: 1263.38 | H37: 0 | I37: 730.48 | J37: 152.51 | K37: 58.64 | L37: 937.16 | M37: 51.61 | N37: 1263.38 | O37: 105.5 | P37: 5.4 | Q37: 776.6 | R37: 462.6 | S37: 655.75 | T37: 5.8 | U37: 422.55 | V37: 87.35 | W37: 617.15 | X37: 107.92 | Y37: 0 | Z37: 0 | AA37: 0 | AB37: 4.6 | AC37: 0 | AD37: 0 | AE37: 172.45 | AF37: 0 | AG37: 66.73 | AH37: 0 | AI37: 0 | AJ37: 0 | AK37: 0 | AL37: 0 | AM37: 492.66 | AN37: 401.17 | AO37: 138.3744444 | AP37: 23.918 | AQ37: 205.3
A38: 36 | B38: Economique | C38: oSupActPL_SEPM_I_T100% | D38: oSupActPL_SEPM_I_T100% | F38: 0 | G38: 2960.7 | H38: 0 | I38: 196.75 | J38: 1822.12 | K38: 1948.75 | L38: 1455.26 | M38: 2498.78 | N38: 1657.12 | O38: 2648.32 | P38: 2960.7 | Q38: 2486.98 | R38: 2360.25 | S38: 2191.65 | T38: 2556.86 | U38: 2007.09 | V38: 2140.12 | W38: 1401.74 | X38: 1401.74 | Y38: 2029.24 | Z38: 2029.24 | AA38: 2232.17 | AB38: 2232.17 | AC38: 2232.17 | AD38: 2455.39 | AE38: 2528.47 | AF38: 2528.47 | AG38: 2528.47 | AH38: 2528.47 | AI38: 2528.47 | AJ38: 2528.47 | AK38: 2528.47 | AL38: 2528.47 | AM38: 1876.406 | AN38: 2529.58 | AO38: 2003.374444 | AP38: 2491.532 | AQ38: 2240.538621
A39: 37 | B39: Economique | C39: oSupPL_SEPM_E_T100% | D39: oSupPL_SEPM_E_T100% | F39: 0 | G39: 1263.38 | H39: 0 | I39: 730.48 | J39: 152.51 | K39: 58.64 | L39: 937.16 | M39: 51.61 | N39: 1263.38 | O39: 105.5 | P39: 5.4 | Q39: 776.6 | R39: 462.6 | S39: 655.75 | T39: 5.8 | U39: 422.55 | V39: 87.35 | W39: 617.15 | X39: 107.92 | Y39: 0 | Z39: 0 | AA39: 0 | AB39: 4.6 | AC39: 0 | AD39: 0 | AE39: 172.45 | AF39: 0 | AG39: 66.73 | AH39: 0 | AI39: 0 | AJ39: 0 | AK39: 0 | AL39: 0 | AM39: 492.66 | AN39: 401.17 | AO39: 138.3744444 | AP39: 23.918 | AQ39: 205.3
A40: 38 | B40: Economique | C40: oSupPL_SEPM_I_T100% | D40: oSupPL_SEPM_I_T100% | F40: 0 | G40: 2960.7 | H40: 0 | I40: 196.75 | J40: 1822.12 | K40: 1948.75 | L40: 1455.26 | M40: 2498.78 | N40: 1657.12 | O40: 2648.32 | P40: 2960.7 | Q40: 2486.98 | R40: 2360.25 | S40: 2191.65 | T40: 2556.86 | U40: 2007.09 | V40: 2140.12 | W40: 1401.74 | X40: 1401.74 | Y40: 2029.24 | Z40: 2029.24 | AA40: 2232.17 | AB40: 2232.17 | AC40: 2232.17 | AD40: 2455.39 | AE40: 2528.47 | AF40: 2528.47 | AG40: 2528.47 | AH40: 2528.47 | AI40: 2528.47 | AJ40: 2528.47 | AK40: 2528.47 | AL40: 2528.47 | AM40: 1876.406 | AN40: 2529.58 | AO40: 2003.374444 | AP40: 2491.532 | AQ40: 2240.538621
A41: 39 | B41: Economique | C41: oSupPL_SEPM_E | D41: oSupPL_SEPM_E | F41: 0 | G41: 1263.38 | H41: 0 | I41: 730.48 | J41: 152.51 | K41: 58.64 | L41: 937.16 | M41: 51.61 | N41: 1263.38 | O41: 105.5 | P41: 5.4 | Q41: 776.6 | R41: 462.6 | S41: 655.75 | T41: 5.8 | U41: 422.55 | V41: 87.35 | W41: 617.15 | X41: 107.92 | Y41: 0 | Z41: 0 | AA41: 0 | AB41: 4.6 | AC41: 0 | AD41: 0 | AE41: 172.45 | AF41: 0 | AG41: 66.73 | AH41: 0 | AI41: 0 | AJ41: 0 | AK41: 0 | AL41: 0 | AM41: 492.66 | AN41: 401.17 | AO41: 138.3744444 | AP41: 23.918 | AQ41: 205.3
A42: 40 | B42: Economique | C42: oSupPL_SEPM_I | D42: oSupPL_SEPM_I | F42: 0 | G42: 2960.7 | H42: 0 | I42: 196.75 | J42: 1822.12 | K42: 1948.75 | L42: 1455.26 | M42: 2498.78 | N42: 1657.12 | O42: 2648.32 | P42: 2960.7 | Q42: 2486.98 | R42: 2360.25 | S42: 2191.65 | T42: 2556.86 | U42: 2007.09 | V42: 2140.12 | W42: 1401.74 | X42: 1401.74 | Y42: 2029.24 | Z42: 2029.24 | AA42: 2232.17 | AB42: 2232.17 | AC42: 2232.17 | AD42: 2455.39 | AE42: 2528.47 | AF42: 2528.47 | AG42: 2528.47 | AH42: 2528.47 | AI42: 2528.47 | AJ42: 2528.47 | AK42: 2528.47 | AL42: 2528.47 | AM42: 1876.406 | AN42: 2529.58 | AO42: 2003.374444 | AP42: 2491.532 | AQ42: 2240.538621
A43: 41 | B43: Economique | C43: oSupActEPC_1_T100% | D43: oSupActEPC_1_T100% | F43: 0 | G43: 2400.09 | H43: 0 | I43: 843 | J43: 2323.59 | K43: 561 | L43: 1238 | M43: 330 | N43: 85 | O43: 240.21 | P43: 130.36 | Q43: 0 | R43: 139.5 | S43: 0 | T43: 0 | U43: 0 | V43: 0 | W43: 0 | X43: 264.67 | Y43: 0 | Z43: 2400.09 | AA43: 587.63 | AB43: 1642.29 | AC43: 0 | AD43: 679.94 | AE43: 818.01 | AF43: 795.01 | AG43: 66.68 | AH43: 0 | AI43: 26.21 | AJ43: 0 | AK43: 252.91 | AL43: 0 | AM43: 907.518 | AN43: 102.014 | AO43: 543.8533333 | AP43: 263.876 | AQ43: 433.8310345
A44: 42 | B44: Economique | C44: oSupEPC_1_T100% | D44: oSupEPC_1_T100% | F44: 0 | G44: 2400.09 | H44: 0 | I44: 843 | J44: 2323.59 | K44: 561 | L44: 1238 | M44: 330 | N44: 85 | O44: 240.21 | P44: 130.36 | Q44: 0 | R44: 139.5 | S44: 0 | T44: 0 | U44: 0 | V44: 0 | W44: 0 | X44: 264.67 | Y44: 0 | Z44: 2400.09 | AA44: 587.63 | AB44: 1642.29 | AC44: 0 | AD44: 679.94 | AE44: 818.01 | AF44: 795.01 | AG44: 66.68 | AH44: 0 | AI44: 26.21 | AJ44: 0 | AK44: 252.91 | AL44: 0 | AM44: 907.518 | AN44: 102.014 | AO44: 543.8533333 | AP44: 263.876 | AQ44: 433.8310345
A45: 43 | B45: Economique | C45: oSupEPC_1 | D45: oSupEPC_1 | F45: 0 | G45: 2400.09 | H45: 0 | I45: 843 | J45: 2323.59 | K45: 561 | L45: 1238 | M45: 330 | N45: 85 | O45: 240.21 | P45: 130.36 | Q45: 0 | R45: 139.5 | S45: 0 | T45: 0 | U45: 0 | V45: 0 | W45: 0 | X45: 264.67 | Y45: 0 | Z45: 2400.09 | AA45: 587.63 | AB45: 1642.29 | AC45: 0 | AD45: 679.94 | AE45: 818.01 | AF45: 795.01 | AG45: 66.68 | AH45: 0 | AI45: 26.21 | AJ45: 0 | AK45: 252.91 | AL45: 0 | AM45: 907.518 | AN45: 102.014 | AO45: 543.8533333 | AP45: 263.876 | AQ45: 433.8310345
A46: 44 | B46: Economique | C46: oSupActEC_SEPM_T100% | D46: oSupActEC_SEPM_T100% | F46: 0 | G46: 3606.63 | H46: 0 | I46: 1429.9 | J46: 415 | K46: 415 | L46: 415 | M46: 415 | N46: 415 | O46: 1666.77 | P46: 342.93 | Q46: 792.56 | R46: 1299.75 | S46: 1726.62 | T46: 1284.2 | U46: 1780.86 | V46: 2490.06 | W46: 2516.58 | X46: 3606.63 | Y46: 2890.69 | Z46: 1812.9 | AA46: 2360.25 | AB46: 2149.75 | AC46: 3209.73 | AD46: 1764.75 | AE46: 1487.25 | AF46: 1509.92 | AG46: 1192.62 | AH46: 2673.01 | AI46: 2029.24 | AJ46: 1888.91 | AK46: 2282.7 | AL46: 2100.2 | AM46: 415 | AN46: 1165.726 | AO46: 2321.324444 | AP46: 2013.833 | AQ46: 1687.375172
A47: 45 | B47: Economique | C47: oSupEC_SEPM_T100% | D47: oSupEC_SEPM_T100% | F47: 0 | G47: 3606.63 | H47: 0 | I47: 1429.9 | J47: 415 | K47: 415 | L47: 415 | M47: 415 | N47: 415 | O47: 1666.77 | P47: 342.93 | Q47: 792.56 | R47: 1299.75 | S47: 1726.62 | T47: 1284.2 | U47: 1780.86 | V47: 2490.06 | W47: 2516.58 | X47: 3606.63 | Y47: 2890.69 | Z47: 1812.9 | AA47: 2360.25 | AB47: 2149.75 | AC47: 3209.73 | AD47: 1764.75 | AE47: 1487.25 | AF47: 1509.92 | AG47: 1192.62 | AH47: 2673.01 | AI47: 2029.24 | AJ47: 1888.91 | AK47: 2282.7 | AL47: 2100.2 | AM47: 415 | AN47: 1165.726 | AO47: 2321.324444 | AP47: 2013.833 | AQ47: 1687.375172
A48: 46 | B48: Economique | C48: oSupEC_SEPM | D48: oSupEC_SEPM | F48: 0 | G48: 3606.63 | H48: 0 | I48: 1429.9 | J48: 415 | K48: 415 | L48: 415 | M48: 415 | N48: 415 | O48: 1666.77 | P48: 342.93 | Q48: 792.56 | R48: 1299.75 | S48: 1726.62 | T48: 1284.2 | U48: 1780.86 | V48: 2490.06 | W48: 2516.58 | X48: 3606.63 | Y48: 2890.69 | Z48: 1812.9 | AA48: 2360.25 | AB48: 2149.75 | AC48: 3209.73 | AD48: 1764.75 | AE48: 1487.25 | AF48: 1509.92 | AG48: 1192.62 | AH48: 2673.01 | AI48: 2029.24 | AJ48: 1888.91 | AK48: 2282.7 | AL48: 2100.2 | AM48: 415 | AN48: 1165.726 | AO48: 2321.324444 | AP48: 2013.833 | AQ48: 1687.375172
A49: 47 | B49: Economique | C49: oSupActNETT_T100% | D49: oSupActNETT_T100% | F49: 0 | G49: 3867.87 | H49: 0 | I49: 3241.31 | J49: 3061.92 | K49: 3867.87 | L49: 1294.17 | M49: 1406.54 | N49: 673.46 | O49: 25.31 | P49: 0 | Q49: 378.26 | R49: 11.56 | S49: 0 | T49: 656.95 | U49: 342.11 | V49: 796.22 | W49: 2023.04 | X49: 1672 | Y49: 2064.89 | Z49: 17.26 | AA49: 647.86 | AB49: 0 | AC49: 1071.32 | AD49: 480.17 | AE49: 207.06 | AF49: 592.13 | AG49: 14.87 | AH49: 520.8 | AI49: 153.92 | AJ49: 797.59 | AK49: 0 | AL49: 0 | AM49: 2060.792 | AN49: 83.026 | AO49: 913.37 | AP49: 383.786 | AQ49: 785.4234483
A50: 48 | B50: Economique | C50: oSupTcsdNETT_T100% | D50: oSupTcsdNETT_T100% | F50: 0 | G50: 145.69 | H50: 0 | I50: 145.69 | J50: 0 | K50: 127.9 | L50: 21.2 | M50: 104.6 | N50: 0 | O50: 0 | P50: 0 | Q50: 0 | R50: 0 | S50: 0 | T50: 0 | U50: 0 | V50: 12.52 | W50: 43.38 | X50: 0 | Y50: 0 | Z50: 0 | AA50: 0 | AB50: 0 | AC50: 91.9 | AD50: 0 | AE50: 0 | AF50: 13.5 | AG50: 74.09 | AH50: 0 | AI50: 80.47 | AJ50: 23.28 | AK50: 37.72 | AL50: 2.78 | AM50: 50.74 | AN50: 0 | AO50: 6.211111111 | AP50: 32.374 | AQ50: 21.83931034
A51: 49 | B51: Economique | C51: oSupTcadNETT_T100% | D51: oSupTcadNETT_T100% | F51: 0 | G51: 2959.82 | H51: 0 | I51: 0 | J51: 0 | K51: 1000 | L51: 2003.37 | M51: 2007.67 | N51: 2392.43 | O51: 2550.39 | P51: 2920.49 | Q51: 2648.32 | R51: 2959.82 | S51: 2552.78 | T51: 2638.37 | U51: 2847.4 | V51: 2562.66 | W51: 2474.97 | X51: 2140.12 | Y51: 1521.29 | Z51: 1635.91 | AA51: 2029.24 | AB51: 2029.24 | AC51: 2232.17 | AD51: 1931.67 | AE51: 1647.49 | AF51: 2455.39 | AG51: 2688.45 | AH51: 2041.07 | AI51: 2595.21 | AJ51: 2400.17 | AK51: 2528.47 | AL51: 2528.47 | AM51: 1480.694 | AN51: 2726.36 | AO51: 2208.8 | AP51: 2304.856 | AQ51: 2205.621724
A52: 50 | B52: Economique | C52: oSupNETT_T100% | D52: oSupNETT_T100% | F52: 0 | G52: 4995.77 | H52: 0 | I52: 3387 | J52: 3061.92 | K52: 4995.77 | L52: 3318.74 | M52: 3518.82 | N52: 3065.89 | O52: 2575.7 | P52: 2920.49 | Q52: 3026.59 | R52: 2971.37 | S52: 2552.78 | T52: 3295.32 | U52: 3189.51 | V52: 3371.4 | W52: 4541.38 | X52: 3812.12 | Y52: 3586.18 | Z52: 1653.17 | AA52: 2677.1 | AB52: 2029.24 | AC52: 3395.39 | AD52: 2411.84 | AE52: 1854.55 | AF52: 3061.02 | AG52: 2777.4 | AH52: 2561.87 | AI52: 2829.59 | AJ52: 3221.05 | AK52: 2566.19 | AL52: 2531.25 | AM52: 3592.228 | AN52: 2809.386 | AO52: 3128.38 | AP52: 2721.015 | AQ52: 3012.884138
A53: 51 | B53: Economique | C53: oSupNETT | D53: oSupNETT | F53: 0 | G53: 4995.77 | H53: 0 | I53: 3387 | J53: 3061.92 | K53: 4995.77 | L53: 3318.74 | M53: 3518.82 | N53: 3065.89 | O53: 2575.7 | P53: 2920.49 | Q53: 3026.59 | R53: 2971.37 | S53: 2552.78 | T53: 3295.32 | U53: 3189.51 | V53: 3371.4 | W53: 4541.38 | X53: 3812.12 | Y53: 3586.18 | Z53: 1653.17 | AA53: 2677.1 | AB53: 2029.24 | AC53: 3395.39 | AD53: 2411.84 | AE53: 1854.55 | AF53: 3061.02 | AG53: 2777.4 | AH53: 2561.87 | AI53: 2829.59 | AJ53: 3221.05 | AK53: 2566.19 | AL53: 2531.25 | AM53: 3592.228 | AN53: 2809.386 | AO53: 3128.38 | AP53: 2721.015 | AQ53: 3012.884138
A54: 52 | B54: Economique | C54: oTauxDEG | D54: oTauxDEG | F54: 0 | G54: 5090886.75 | H54: 0 | I54: 1720000 | J54: 3445800 | K54: 3673183.5 | L54: 4151443.05 | M54: 4566587.35 | N54: 5023246.09 | O54: 4555118.52 | P54: 5090886.75 | Q54: 4390777.12 | R54: 4537989.76 | S54: 4897524.61 | T54: 4407772.15 | U54: 4256942 | V54: 3681007.83 | W54: 2616620.5 | X54: 2987387.07 | Y54: 3490300.96 | Z54: 3490300.96 | AA54: 3839331.06 | AB54: 3322471.06 | AC54: 2833686.44 | AD54: 4223264.16 | AE54: 4624126.83 | AF54: 3510644.38 | AG54: 4591186.07 | AH54: 4128295.54 | AI54: 4377901.97 | AJ54: 4348971.54 | AK54: 4319214.7 | AL54: 4783868.69 | AM54: 4172051.998 | AN54: 4694459.352 | AO54: 3565792.621 | AP54: 4174116.032 | AQ54: 4074684.506
A55: 53 | B55: Economique | C55: oTauxSCA | D55: oTauxSCA | F55: 0 | G55: 1947788.76 | H55: 0 | I55: 788015.23 | J55: 1268083.13 | K55: 1280830.62 | L55: 1517008.09 | M55: 1629361.53 | N55: 1912633.24 | O55: 1624516.51 | P55: 1839052.82 | Q55: 1947788.76 | R55: 1660607.97 | S55: 1618238.7 | T55: 1650922.88 | U55: 1578848.79 | V55: 1414905.69 | W55: 1391093.19 | X55: 944168.07 | Y55: 1240773.37 | Z55: 1245076.81 | AA55: 1378343.1 | AB55: 1356966.16 | AC55: 1373115.72 | AD55: 1503729.99 | AE55: 1645545.82 | AF55: 1562351.2 | AG55: 1798159.99 | AH55: 1488497.54 | AI55: 1514058.77 | AJ55: 1471530.99 | AK55: 1437068.96 | AL55: 1477506.55 | AM55: 1521583.322 | AN55: 1738040.952 | AO55: 1355677.562 | AP55: 1527156.553 | AQ55: 1509337.412
A56: 54 | B56: Economique | C56: oTauxREG | D56: oTauxREG | F56: 0 | G56: 177608.57 | H56: 0 | I56: 38568.63 | J56: 96063.58 | K56: 99016.46 | L56: 11236.12 | M56: 55438 | N56: 0 | O56: 0 | P56: 418.09 | Q56: 0 | R56: 64242.63 | S56: 0 | T56: 0 | U56: 24022.25 | V56: 0 | W56: 16349.73 | X56: 177608.57 | Y56: 0 | Z56: 0 | AA56: 0 | AB56: 0 | AC56: 0 | AD56: 0 | AE56: 0 | AF56: 0 | AG56: 39266.64 | AH56: 0 | AI56: 8914.61 | AJ56: 0 | AK56: 0 | AL56: 134009.01 | AM56: 52350.832 | AN56: 12932.144 | AO56: 24220.06111 | AP56: 18219.026 | AQ56: 25054.67897
A57: 55 | B57: Economique | C57: oTauxCPI | D57: oTauxCPI | F57: 0 | G57: 668274.17 | H57: 0 | I57: 320795 | J57: 276000 | K57: 320200 | L57: 370170 | M57: 422302 | N57: 481132.2 | O57: 45136.81 | P57: 361419.66 | Q57: 226102.64 | R57: 108857.59 | S57: 66265.36 | T57: 420249.96 | U57: 465241.59 | V57: 312520.38 | W57: 421990.73 | X57: 77554.96 | Y57: 190678.19 | Z57: 199416.96 | AA57: 257806.26 | AB57: 211191.6 | AC57: 214555.22 | AD57: 333611.42 | AE57: 277811.84 | AF57: 218129.85 | AG57: 668274.17 | AH57: 39755.24 | AI57: 209493.61 | AJ57: 28901.49 | AK57: 0 | AL57: 32016.6 | AM57: 373960.84 | AN57: 161556.412 | AO57: 284072.2922 | AP57: 202254.944 | AQ57: 250234.0114
A58: 56 | B58: Economique | C58: oTauxCT | D58: oTauxCT | F58: 0 | G58: 0 | H58: 0 | I58: 0 | J58: 0 | K58: 0 | L58: 0 | M58: 0 | N58: 0 | O58: 0 | P58: 0 | Q58: 0 | R58: 0 | S58: 0 | T58: 0 | U58: 0 | V58: 0 | W58: 0 | X58: 0 | Y58: 0 | Z58: 0 | AA58: 0 | AB58: 0 | AC58: 0 | AD58: 0 | AE58: 0 | AF58: 0 | AG58: 0 | AH58: 0 | AI58: 0 | AJ58: 0 | AK58: 0 | AL58: 0 | AM58: 0 | AN58: 0 | AO58: 0 | AP58: 0 | AQ58: 0
A59: 57 | B59: Economique | C59: oTauxPL | D59: oTauxPL | F59: 0 | G59: 4998081.61 | H59: 0 | I59: 1251780.45 | J59: 3128830.56 | K59: 3212540.12 | L59: 3542546.97 | M59: 4089101.64 | N59: 4285077.97 | O59: 4398842.8 | P59: 4773638.52 | Q59: 4998081.61 | R59: 4392136.36 | S59: 4367912.95 | T59: 4123965.75 | U59: 3772280.58 | V59: 3557401.03 | W59: 3046758.85 | X59: 2394936.54 | Y59: 3267084.04 | Z59: 3267084.04 | AA59: 3593792.44 | AB59: 3599680.44 | AC59: 3593792.44 | AD59: 3953171.69 | AE59: 4291579.39 | AF59: 4070839.64 | AG59: 4156259.67 | AH59: 4070839.64 | AI59: 4070839.64 | AJ59: 4070839.64 | AK59: 4070839.64 | AL59: 4070839.64 | AM59: 3651619.452 | AN59: 4586122.448 | AO59: 3402553.746 | AP59: 4041984.103 | AQ59: 3870052.905
A60: 58 | B60: Economique | C60: oTauxEPC | D60: oTauxEPC | F60: 0 | G60: 3744136.89 | H60: 0 | I60: 1315080 | J60: 3624794.22 | K60: 875160 | L60: 1931280 | M60: 514800 | N60: 132600 | O60: 374734.91 | P60: 203357.7 | Q60: 0 | R60: 217625.46 | S60: 0 | T60: 0 | U60: 0 | V60: 0 | W60: 0 | X60: 412881.11 | Y60: 0 | Z60: 3744136.89 | AA60: 916699.89 | AB60: 2561966.98 | AC60: 0 | AD60: 1060704.18 | AE60: 1276096.81 | AF60: 1240220.87 | AG60: 104020.02 | AH60: 0 | AI60: 40890.57 | AJ60: 0 | AK60: 394539.08 | AL60: 0 | AM60: 1415726.844 | AN60: 159143.614 | AO60: 848409.43 | AP60: 411647.153 | AQ60: 676776.1617
A61: 59 | B61: Economique | C61: oTauxEC | D61: oTauxEC | F61: 0 | G61: 4616487.72 | H61: 0 | I61: 1830272 | J61: 531200 | K61: 531200 | L61: 531200 | M61: 531200 | N61: 531200 | O61: 2133467.57 | P61: 438953.94 | Q61: 1014481.53 | R61: 1663683.5 | S61: 2210074.69 | T61: 1643781.46 | U61: 2279502.2 | V61: 3187277.44 | W61: 3221221.78 | X61: 4616487.72 | Y61: 3700089 | Z61: 2320513.89 | AA61: 3021124.66 | AB61: 2751685.24 | AC61: 4108455.05 | AD61: 2258883.25 | AE61: 1903678.14 | AF61: 1932693.14 | AG61: 1526559.85 | AH61: 3421447.5 | AI61: 2597433.27 | AJ61: 2417802.37 | AK61: 2921850.81 | AL61: 2688256.44 | AM61: 531200 | AN61: 1492132.246 | AO61: 2971298.154 | AP61: 2577705.982 | AQ61: 2159841.532
A62: 60 | B62: Economique | C62: oTauxNET | D62: oTauxNET | F62: 0 | G62: 6144802.51 | H62: 0 | I62: 4166010 | J62: 3766161.71 | K62: 6144802.51 | L62: 4082048.96 | M62: 4328142.67 | N62: 3771043.7 | O62: 3168115.41 | P62: 3592205.05 | Q62: 3722700.84 | R62: 3654789.25 | S62: 3139916.2 | T62: 4053240.31 | U62: 3923095.11 | V62: 4146820.17 | W62: 5585897.75 | X62: 4688908.47 | Y62: 4411006.96 | Z62: 2033402.97 | AA62: 3292835.11 | AB62: 2495971.04 | AC62: 4176327.64 | AD62: 2966567.83 | AE62: 2281093.7 | AF62: 3765053.45 | AG62: 3416206.1 | AH62: 3151097.06 | AI62: 3480400.08 | AJ62: 3961886.48 | AK62: 3156419.33 | AL62: 3113435.6 | AM62: 4418439.91 | AN62: 3455545.35 | AO62: 3847908.654 | AP62: 3346848.727 | AQ62: 3705847.981
A63: 61 | B63: Economique | C63: oSupRealDEG | D63: oSupRealDEG | F63: 0 | G63: 2959.82 | H63: 0 | I63: 1000 | J63: 2003.37 | K63: 2135.57 | L63: 2413.63 | M63: 2654.99 | N63: 2920.49 | O63: 2648.32 | P63: 2959.82 | Q63: 2552.78 | R63: 2638.37 | S63: 2847.4 | T63: 2562.66 | U63: 2474.97 | V63: 2140.12 | W63: 1521.29 | X63: 1736.85 | Y63: 2029.24 | Z63: 2029.24 | AA63: 2232.17 | AB63: 1931.67 | AC63: 1647.49 | AD63: 2455.39 | AE63: 2688.45 | AF63: 2041.07 | AG63: 2669.29 | AH63: 2400.17 | AI63: 2545.29 | AJ63: 2528.47 | AK63: 2511.17 | AL63: 2781.32 | AM63: 2425.61 | AN63: 2729.338 | AO63: 2073.134444 | AP63: 2426.811 | AQ63: 2369.002069
A64: 62 | B64: Economique | C64: oSupRealSCA | D64: oSupRealSCA | F64: 0 | G64: 3428.21 | H64: 0 | I64: 1334.42 | J64: 2209.61 | K64: 2226.15 | L64: 2635.23 | M64: 2825.93 | N64: 3300.16 | O64: 2866.67 | P64: 3210.04 | Q64: 3428.21 | R64: 2940.65 | S64: 2879.86 | T64: 2858.32 | U64: 2731.78 | V64: 2459.87 | W64: 2388.02 | X64: 1668.36 | Y64: 2172.25 | Z64: 2178.15 | AA64: 2407.96 | AB64: 2379.75 | AC64: 2422.2 | AD64: 2631.71 | AE64: 2883.15 | AF64: 2732.17 | AG64: 3067.6 | AH64: 2627.86 | AI64: 2677.7 | AJ64: 2610.04 | AK64: 2566.19 | AL64: 2631.12 | AM64: 2639.416 | AN64: 3065.086 | AO64: 2360.495556 | AP64: 2684.974 | AQ64: 2641.955517
A65: 63 | B65: Economique | C65: oSupRealREG | D65: oSupRealREG | F65: 0 | G65: 335.11 | H65: 0 | I65: 72.77 | J65: 181.25 | K65: 186.82 | L65: 21.2 | M65: 104.6 | N65: 0 | O65: 0 | P65: 0.79 | Q65: 0 | R65: 121.21 | S65: 0 | T65: 0 | U65: 45.33 | V65: 0 | W65: 30.85 | X65: 335.11 | Y65: 0 | Z65: 0 | AA65: 0 | AB65: 0 | AC65: 0 | AD65: 0 | AE65: 0 | AF65: 0 | AG65: 74.09 | AH65: 0 | AI65: 16.82 | AJ65: 0 | AK65: 0 | AL65: 252.85 | AM65: 98.774 | AN65: 24.4 | AO65: 45.69888889 | AP65: 34.376 | AQ65: 47.27310345
A66: 64 | B66: Economique | C66: oSupRealCPI | D66: oSupRealCPI | F66: 0 | G66: 2500.77 | H66: 0 | I66: 801.77 | J66: 690 | K66: 800.5 | L66: 922.05 | M66: 1055.75 | N66: 1202.83 | O66: 112.84 | P66: 1614.64 | Q66: 1360.77 | R66: 1068.91 | S66: 878.91 | T66: 1581.88 | U66: 1371.83 | V66: 977.9 | W66: 1298.18 | X66: 589.6 | Y66: 885.92 | Z66: 1586.05 | AA66: 1099.18 | AB66: 1589.67 | AC66: 903.63 | AD66: 1937.28 | AE66: 2243.45 | AF66: 1847.71 | AG66: 2500.77 | AH66: 651.05 | AI66: 962.4 | AJ66: 803.57 | AK66: 140.54 | AL66: 80.71 | AM66: 934.226 | AN66: 1007.214 | AO66: 1220.023333 | AP66: 1207.111 | AQ66: 1129.604138
A67: 65 | B67: Economique | C67: oSupRealCT | D67: oSupRealCT | F67: 0 | G67: 17677.98 | H67: 0 | I67: 9510.91 | J67: 10054.69 | K67: 10105.6 | L67: 10163.18 | M67: 10225.37 | N67: 8839.51 | O67: 11815.26 | P67: 12649.49 | Q67: 16532.77 | R67: 16254.77 | S67: 12214.92 | T67: 16517.34 | U67: 17677.98 | V67: 17642.61 | W67: 17123.59 | X67: 17379.74 | Y67: 14270.53 | Z67: 13537.01 | AA67: 14291.69 | AB67: 13245.24 | AC67: 13575.66 | AD67: 11791.71 | AE67: 13045.04 | AF67: 12847.49 | AG67: 13843.76 | AH67: 13930.91 | AI67: 12810.64 | AJ67: 13820.01 | AK67: 14673.1 | AL67: 15718.5 | AM67: 9877.67 | AN67: 13893.442 | AO67: 15742.85889 | AP67: 13605.682 | AQ67: 13675.7969
A68: 66 | B68: Economique | C68: oSupRealPL | D68: oSupRealPL | F68: 0 | G68: 3263.58 | H68: 0 | I68: 927.23 | J68: 1974.63 | K68: 2007.39 | L68: 2392.43 | M68: 2550.39 | N68: 2920.49 | O68: 2753.82 | P68: 2966.1 | Q68: 3263.58 | R68: 2822.85 | S68: 2847.4 | T68: 2562.66 | U68: 2429.64 | V68: 2227.47 | W68: 2018.89 | X68: 1509.66 | Y68: 2029.24 | Z68: 2029.24 | AA68: 2232.17 | AB68: 2236.77 | AC68: 2232.17 | AD68: 2455.39 | AE68: 2700.92 | AF68: 2528.47 | AG68: 2595.21 | AH68: 2528.47 | AI68: 2528.47 | AJ68: 2528.47 | AK68: 2528.47 | AL68: 2528.47 | AM68: =AVERAGE(J68:N68) -> 2369.066 | AN68: =AVERAGE(O68:S68) -> 2930.75 | AO68: =AVERAGE(T68:AB68) -> 2141.748889 | AP68: =AVERAGE(AC68:AL68) -> 2515.451 | AQ68: =AVERAGE(J68:AL68) -> 2445.838966
A69: 67 | B69: Economique | C69: oSupRealEPC | D69: oSupRealEPC | F69: 0 | G69: 2400.09 | H69: 0 | I69: 843 | J69: 2323.59 | K69: 561 | L69: 1238 | M69: 330 | N69: 85 | O69: 240.21 | P69: 130.36 | Q69: 0 | R69: 139.5 | S69: 0 | T69: 0 | U69: 0 | V69: 0 | W69: 0 | X69: 264.67 | Y69: 0 | Z69: 2400.09 | AA69: 587.63 | AB69: 1642.29 | AC69: 0 | AD69: 679.94 | AE69: 818.01 | AF69: 795.01 | AG69: 66.68 | AH69: 0 | AI69: 26.21 | AJ69: 0 | AK69: 252.91 | AL69: 0 | AM69: 907.518 | AN69: 102.014 | AO69: 543.8533333 | AP69: 263.876 | AQ69: 433.8310345
A70: 68 | B70: Economique | C70: oSupRealEC | D70: oSupRealEC | F70: 0 | G70: 3606.63 | H70: 0 | I70: 1429.9 | J70: 415 | K70: 415 | L70: 415 | M70: 415 | N70: 415 | O70: 1666.77 | P70: 342.93 | Q70: 792.56 | R70: 1299.75 | S70: 1726.62 | T70: 1284.2 | U70: 1780.86 | V70: 2490.06 | W70: 2516.58 | X70: 3606.63 | Y70: 2890.69 | Z70: 1812.9 | AA70: 2360.25 | AB70: 2149.75 | AC70: 3209.73 | AD70: 1764.75 | AE70: 1487.25 | AF70: 1509.92 | AG70: 1192.62 | AH70: 2673.01 | AI70: 2029.24 | AJ70: 1888.91 | AK70: 2282.7 | AL70: 2100.2 | AM70: 415 | AN70: 1165.726 | AO70: 2321.324444 | AP70: 2013.833 | AQ70: 1687.375172
A71: 69 | B71: Economique | C71: oSupRealNET | D71: oSupRealNET | F71: 0 | G71: 4995.77 | H71: 0 | I71: 3387 | J71: 3061.92 | K71: 4995.77 | L71: 3318.74 | M71: 3518.82 | N71: 3065.89 | O71: 2575.7 | P71: 2920.49 | Q71: 3026.59 | R71: 2971.37 | S71: 2552.78 | T71: 3295.32 | U71: 3189.51 | V71: 3371.4 | W71: 4541.38 | X71: 3812.12 | Y71: 3586.18 | Z71: 1653.17 | AA71: 2677.1 | AB71: 2029.24 | AC71: 3395.39 | AD71: 2411.84 | AE71: 1854.55 | AF71: 3061.02 | AG71: 2777.4 | AH71: 2561.87 | AI71: 2829.59 | AJ71: 3221.05 | AK71: 2566.19 | AL71: 2531.25 | AM71: 3592.228 | AN71: 2809.386 | AO71: 3128.38 | AP71: 2721.015 | AQ71: 3012.884138
A72: 70 | B72: Economique | C72: o$InvestisTS | D72: o$InvestisTS | F72: 0 | G72: 16299932.52 | H72: 0 | I72: 11430521.32 | J72: 16136933.19 | K72: 16136933.19 | L72: 16136933.19 | M72: 16136933.19 | N72: 16136933.19 | O72: 16299932.52 | P72: 16299932.52 | Q72: 16299932.52 | R72: 16299932.52 | S72: 16299932.52 | T72: 16299932.52 | U72: 16299932.52 | V72: 16299932.52 | W72: 16299932.52 | X72: 16299932.52 | Y72: 16299932.52 | Z72: 16299932.52 | AA72: 16299932.52 | AB72: 16299932.52 | AC72: 16299932.52 | AD72: 16299932.52 | AE72: 16299932.52 | AF72: 16299932.52 | AG72: 16299932.52 | AH72: 16299932.52 | AI72: 16299932.52 | AJ72: 16299932.52 | AK72: 16299932.52 | AL72: 16299932.52 | AM72: 16136933.19 | AN72: 16299932.52 | AO72: 16299932.52 | AP72: 16299932.52 | AQ72: 16271829.19
A73: 71 | B73: Economique | C73: oTauxREGAPAR | D73: oTauxREGAPAR | F73: 0 | G73: 4694042.68 | H73: 0 | I73: 2151067 | J73: 807200 | K73: 851400 | L73: 901370 | M73: 953502 | N73: 1012332.2 | O73: 2178604.37 | P73: 800373.59 | Q73: 1240584.18 | R73: 1772541.09 | S73: 2276340.05 | T73: 2064031.42 | U73: 2744743.79 | V73: 3499797.81 | W73: 3643212.51 | X73: 4694042.68 | Y73: 3890767.2 | Z73: 2519930.85 | AA73: 3278930.92 | AB73: 2962876.84 | AC73: 4323010.27 | AD73: 2592494.66 | AE73: 2181489.98 | AF73: 2150822.98 | AG73: 2194834.02 | AH73: 3461202.74 | AI73: 2806926.88 | AJ73: 2446703.87 | AK73: 2921850.81 | AL73: 2720273.04 | AM73: 905160.84 | AN73: 1653688.656 | AO73: 3255370.447 | AP73: 2779960.925 | AQ73: 2410075.543
A74: 72 | B74: Economique | C74: oTauxREGAEDU | D74: oTauxREGAEDU | F74: 0 | G74: 10836755.92 | H74: 0 | I74: 7201090 | J74: 10836755.92 | K74: 10693146 | L74: 10164772.01 | M74: 9409530.03 | N74: 8926889.79 | O74: 8097968.84 | P74: 8886449.5 | Q74: 8113477.97 | R74: 8410404.47 | S74: 8037440.81 | T74: 8461012.47 | U74: 8180037.11 | V74: 7827827.99 | W74: 8202518.25 | X74: 8089176.66 | Y74: 7901307.92 | Z74: 9267840.82 | AA74: 8048866.06 | AB74: 8380409.07 | AC74: 7010014.08 | AD74: 8250536.18 | AE74: 8181317.33 | AF74: 8515918.7 | AG74: 8111412.19 | AH74: 7279392.6 | AI74: 7899192.62 | AJ74: 8310858.02 | AK74: 7870173.11 | AL74: 7897304.29 | AM74: 10006218.75 | AN74: 8309148.318 | AO74: 8262110.706 | AP74: 7932611.912 | AQ74: 8457308.649
A75: 73 | B75: Economique | C75: oTauxREGAFIN | D75: oTauxREGAFIN | F75: 0 | G75: 0 | H75: 0 | I75: 0 | J75: 0 | K75: 0 | L75: 0 | M75: 0 | N75: 0 | O75: 0 | P75: 0 | Q75: 0 | R75: 0 | S75: 0 | T75: 0 | U75: 0 | V75: 0 | W75: 0 | X75: 0 | Y75: 0 | Z75: 0 | AA75: 0 | AB75: 0 | AC75: 0 | AD75: 0 | AE75: 0 | AF75: 0 | AG75: 0 | AH75: 0 | AI75: 0 | AJ75: 0 | AK75: 0 | AL75: 0 | AM75: 0 | AN75: 0 | AO75: 0 | AP75: 0 | AQ75: 0
A76: 74 | B76: Economique | C76: oTauxREGAREG | D76: oTauxREGAREG | F76: 0 | G76: 4998081.61 | H76: 0 | I76: 1290349.08 | J76: 3224894.14 | K76: 3311556.58 | L76: 3553783.1 | M76: 4144539.64 | N76: 4285077.97 | O76: 4398842.8 | P76: 4774056.6 | Q76: 4998081.61 | R76: 4456378.98 | S76: 4367912.95 | T76: 4123965.75 | U76: 3796302.83 | V76: 3557401.03 | W76: 3063108.58 | X76: 2572545.11 | Y76: 3267084.04 | Z76: 3267084.04 | AA76: 3593792.44 | AB76: 3599680.44 | AC76: 3593792.44 | AD76: 3953171.69 | AE76: 4291579.39 | AF76: 4070839.64 | AG76: 4195526.31 | AH76: 4070839.64 | AI76: 4079754.25 | AJ76: 4070839.64 | AK76: 4070839.64 | AL76: 4204848.64 | AM76: 3703970.286 | AN76: 4599054.588 | AO76: 3426773.807 | AP76: 4060203.128 | AQ76: 3895107.583
A77: 75 | B77: Economique | C77: oTauxAUTRES | D77: oTauxAUTRES | F77: 0 | G77: 1947788.76 | H77: 0 | I77: 788015.23 | J77: 1268083.13 | K77: 1280830.62 | L77: 1517008.09 | M77: 1629361.53 | N77: 1912633.24 | O77: 1624516.51 | P77: 1839052.82 | Q77: 1947788.76 | R77: 1660607.97 | S77: 1618238.7 | T77: 1650922.88 | U77: 1578848.79 | V77: 1414905.69 | W77: 1391093.19 | X77: 944168.07 | Y77: 1240773.37 | Z77: 1245076.81 | AA77: 1378343.1 | AB77: 1356966.16 | AC77: 1373115.72 | AD77: 1503729.99 | AE77: 1645545.82 | AF77: 1562351.2 | AG77: 1798159.99 | AH77: 1488497.54 | AI77: 1514058.77 | AJ77: 1471530.99 | AK77: 1437068.96 | AL77: 1477506.55 | AM77: 1521583.322 | AN77: 1738040.952 | AO77: 1355677.562 | AP77: 1527156.553 | AQ77: 1509337.412
A78: 76 | B78: Economique | C78: oSupRealREGAPAR | D78: oSupRealREGAPAR | F78: 0 | G78: 4196.24 | H78: 0 | I78: 2231.67 | J78: 1105 | K78: 1215.5 | L78: 1337.05 | M78: 1470.75 | N78: 1617.83 | O78: 1779.61 | P78: 1957.57 | Q78: 2153.33 | R78: 2368.67 | S78: 2605.53 | T78: 2866.09 | U78: 3152.69 | V78: 3467.96 | W78: 3814.76 | X78: 4196.24 | Y78: 3776.61 | Z78: 3398.95 | AA78: 3459.44 | AB78: 3739.42 | AC78: 4113.36 | AD78: 3702.03 | AE78: 3730.7 | AF78: 3357.63 | AG78: 3693.39 | AH78: 3324.05 | AI78: 2991.65 | AJ78: 2692.48 | AK78: 2423.23 | AL78: 2180.91 | AM78: 1349.226 | AN78: 2172.942 | AO78: 3541.351111 | AP78: 3220.943 | AQ78: 2816.980345
A79: 77 | B79: Economique | C79: oSupRealREGAEDU | D79: oSupRealREGAEDU | F79: 0 | G79: 7692.35 | H79: 0 | I79: 5230 | J79: 7388.88 | K79: 7692.35 | L79: 6970.37 | M79: 6503.81 | N79: 6071.38 | O79: 5464.24 | P79: 6010.67 | Q79: 5579.36 | R79: 5749.24 | S79: 5400.18 | T79: 5857.98 | U79: 5664.47 | V79: 5511.52 | W79: 6062.67 | X79: 5813.64 | Y79: 5615.43 | Z79: 6082.51 | AA79: 5496.9 | AB79: 5603.2 | AC79: 5042.88 | AD79: 5547.17 | AE79: 5361 | AF79: 5897.1 | AG79: 5513.38 | AH79: 4962.04 | AI79: 5401.1 | AJ79: 5749.52 | AK79: 5330.28 | AL79: 5312.57 | AM79: 6925.358 | AN79: 5640.738 | AO79: 5745.368889 | AP79: 5411.704 | AQ79: 5815.718621
A80: 78 | B80: Economique | C80: oSupRealREGAFIN | D80: oSupRealREGAFIN | F80: 0 | G80: 17677.98 | H80: 0 | I80: 9510.91 | J80: 10054.69 | K80: 10105.6 | L80: 10163.18 | M80: 10225.37 | N80: 8839.51 | O80: 11815.26 | P80: 12649.49 | Q80: 16532.77 | R80: 16254.77 | S80: 12214.92 | T80: 16517.34 | U80: 17677.98 | V80: 17642.61 | W80: 17123.59 | X80: 17379.74 | Y80: 14270.53 | Z80: 13537.01 | AA80: 14291.69 | AB80: 13245.24 | AC80: 13575.66 | AD80: 11791.71 | AE80: 13045.04 | AF80: 12847.49 | AG80: 13843.76 | AH80: 13930.91 | AI80: 12810.64 | AJ80: 13820.01 | AK80: 14673.1 | AL80: 15718.5 | AM80: 9877.67 | AN80: 13893.442 | AO80: 15742.85889 | AP80: 13605.682 | AQ80: 13675.7969
A81: 79 | B81: Economique | C81: oSupRealREGAREG | D81: oSupRealREGAREG | F81: 0 | G81: 3263.58 | H81: 0 | I81: 1000 | J81: 2155.89 | K81: 2194.21 | L81: 2413.63 | M81: 2654.99 | N81: 2920.49 | O81: 2753.82 | P81: 2966.89 | Q81: 3263.58 | R81: 2944.07 | S81: 2847.4 | T81: 2562.66 | U81: 2474.97 | V81: 2227.47 | W81: 2049.74 | X81: 1844.77 | Y81: 2029.24 | Z81: 2029.24 | AA81: 2232.17 | AB81: 2236.77 | AC81: 2232.17 | AD81: 2455.39 | AE81: 2700.92 | AF81: 2528.47 | AG81: 2669.29 | AH81: 2528.47 | AI81: 2545.29 | AJ81: 2528.47 | AK81: 2528.47 | AL81: 2781.32 | AM81: 2467.842 | AN81: 2955.152 | AO81: 2187.447778 | AP81: 2549.826 | AQ81: 2493.112414
A82: 80 | B82: Economique | C82: oSupRealAUTRES | D82: oSupRealAUTRES | F82: 0 | G82: 3428.21 | H82: 0 | I82: 1334.42 | J82: 2209.61 | K82: 2226.15 | L82: 2635.23 | M82: 2825.93 | N82: 3300.16 | O82: 2866.67 | P82: 3210.04 | Q82: 3428.21 | R82: 2940.65 | S82: 2879.86 | T82: 2858.32 | U82: 2731.78 | V82: 2459.87 | W82: 2388.02 | X82: 1668.36 | Y82: 2172.25 | Z82: 2178.15 | AA82: 2407.96 | AB82: 2379.75 | AC82: 2422.2 | AD82: 2631.71 | AE82: 2883.15 | AF82: 2732.17 | AG82: 3067.6 | AH82: 2627.86 | AI82: 2677.7 | AJ82: 2610.04 | AK82: 2566.19 | AL82: 2631.12 | AM82: 2639.416 | AN82: 3065.086 | AO82: 2360.495556 | AP82: 2684.974 | AQ82: 2641.955517
A83: 81 | B83: VolExpl | C83: OVOLBOJADMaEC | D83: Volume BOJ Admissible InclusActions aEC | F83: 0 | G83: 0 | H83: 0 | I83: 0 | J83: 0 | K83: 0 | L83: 0 | M83: 0 | N83: 0 | O83: 0 | P83: 0 | Q83: 0 | R83: 0 | S83: 0 | T83: 0 | U83: 0 | V83: 0 | W83: 0 | X83: 0 | Y83: 0 | Z83: 0 | AA83: 0 | AB83: 0 | AC83: 0 | AD83: 0 | AE83: 0 | AF83: 0 | AG83: 0 | AH83: 0 | AI83: 0 | AJ83: 0 | AK83: 0 | AL83: 0 | AM83: 0 | AN83: 0 | AO83: 0 | AP83: 0 | AQ83: 0
A84: 82 | B84: VolExpl | C84: OVOLBOJADMaEC2 | D84: Volume BOJ Admissible InclusActions aEC2 | F84: 0 | G84: 0 | H84: 0 | I84: 0 | J84: 0 | K84: 0 | L84: 0 | M84: 0 | N84: 0 | O84: 0 | P84: 0 | Q84: 0 | R84: 0 | S84: 0 | T84: 0 | U84: 0 | V84: 0 | W84: 0 | X84: 0 | Y84: 0 | Z84: 0 | AA84: 0 | AB84: 0 | AC84: 0 | AD84: 0 | AE84: 0 | AF84: 0 | AG84: 0 | AH84: 0 | AI84: 0 | AJ84: 0 | AK84: 0 | AL84: 0 | AM84: 0 | AN84: 0 | AO84: 0 | AP84: 0 | AQ84: 0
A85: 83 | B85: VolExpl | C85: OVOLBOJADMaEC3 | D85: Volume BOJ Admissible InclusActions aEC3 | F85: 0 | G85: 0 | H85: 0 | I85: 0 | J85: 0 | K85: 0 | L85: 0 | M85: 0 | N85: 0 | O85: 0 | P85: 0 | Q85: 0 | R85: 0 | S85: 0 | T85: 0 | U85: 0 | V85: 0 | W85: 0 | X85: 0 | Y85: 0 | Z85: 0 | AA85: 0 | AB85: 0 | AC85: 0 | AD85: 0 | AE85: 0 | AF85: 0 | AG85: 0 | AH85: 0 | AI85: 0 | AJ85: 0 | AK85: 0 | AL85: 0 | AM85: 0 | AN85: 0 | AO85: 0 | AP85: 0 | AQ85: 0
A86: 84 | B86: VolExpl | C86: OVOLBOJADMaCA | D86: Volume BOJ Admissible InclusActions aCA | F86: 0 | G86: 0 | H86: 0 | I86: 0 | J86: 0 | K86: 0 | L86: 0 | M86: 0 | N86: 0 | O86: 0 | P86: 0 | Q86: 0 | R86: 0 | S86: 0 | T86: 0 | U86: 0 | V86: 0 | W86: 0 | X86: 0 | Y86: 0 | Z86: 0 | AA86: 0 | AB86: 0 | AC86: 0 | AD86: 0 | AE86: 0 | AF86: 0 | AG86: 0 | AH86: 0 | AI86: 0 | AJ86: 0 | AK86: 0 | AL86: 0 | AM86: 0 | AN86: 0 | AO86: 0 | AP86: 0 | AQ86: 0
A87: 85 | B87: VolExpl | C87: OVOLBOJADMaCA2 | D87: Volume BOJ Admissible InclusActions aCA2 | F87: 0 | G87: 0 | H87: 0 | I87: 0 | J87: 0 | K87: 0 | L87: 0 | M87: 0 | N87: 0 | O87: 0 | P87: 0 | Q87: 0 | R87: 0 | S87: 0 | T87: 0 | U87: 0 | V87: 0 | W87: 0 | X87: 0 | Y87: 0 | Z87: 0 | AA87: 0 | AB87: 0 | AC87: 0 | AD87: 0 | AE87: 0 | AF87: 0 | AG87: 0 | AH87: 0 | AI87: 0 | AJ87: 0 | AK87: 0 | AL87: 0 | AM87: 0 | AN87: 0 | AO87: 0 | AP87: 0 | AQ87: 0
A88: 86 | B88: VolExpl | C88: OVOLBOJADMaCPROG | D88: Volume BOJ Admissible InclusActions aCPROG | F88: 0 | G88: 0 | H88: 0 | I88: 0 | J88: 0 | K88: 0 | L88: 0 | M88: 0 | N88: 0 | O88: 0 | P88: 0 | Q88: 0 | R88: 0 | S88: 0 | T88: 0 | U88: 0 | V88: 0 | W88: 0 | X88: 0 | Y88: 0 | Z88: 0 | AA88: 0 | AB88: 0 | AC88: 0 | AD88: 0 | AE88: 0 | AF88: 0 | AG88: 0 | AH88: 0 | AI88: 0 | AJ88: 0 | AK88: 0 | AL88: 0 | AM88: 0 | AN88: 0 | AO88: 0 | AP88: 0 | AQ88: 0
A89: 87 | B89: VolExpl | C89: OVOLBOJADMaCPIL | D89: Volume BOJ Admissible InclusActions aCPIL | F89: 0 | G89: 4442.96 | H89: 0 | I89: 111.13 | J89: 164.41 | K89: 1192.39 | L89: 307.44 | M89: 1089.63 | N89: 1506.89 | O89: 1343.06 | P89: 4442.96 | Q89: 614.73 | R89: 741.24 | S89: 2087.57 | T89: 706.69 | U89: 200.35 | V89: 2.11 | W89: 7.31 | X89: 0.6 | Y89: 0.12 | Z89: 119.6 | AA89: 67.01 | AB89: 143.33 | AC89: 628.13 | AD89: 497.31 | AE89: 1692.97 | AF89: 249.31 | AG89: 251.38 | AH89: 683.6 | AI89: 1016.02 | AJ89: 989.06 | AK89: 379.67 | AL89: 0 | AM89: 852.152 | AN89: 1845.912 | AO89: 138.5688889 | AP89: 638.745 | AQ89: 728.4444828
A90: 88 | B90: VolExpl | C90: OVOLBOJADMaCPIP | D90: Volume BOJ Admissible InclusActions aCPIP | F90: 0 | G90: 0 | H90: 0 | I90: 0 | J90: 0 | K90: 0 | L90: 0 | M90: 0 | N90: 0 | O90: 0 | P90: 0 | Q90: 0 | R90: 0 | S90: 0 | T90: 0 | U90: 0 | V90: 0 | W90: 0 | X90: 0 | Y90: 0 | Z90: 0 | AA90: 0 | AB90: 0 | AC90: 0 | AD90: 0 | AE90: 0 | AF90: 0 | AG90: 0 | AH90: 0 | AI90: 0 | AJ90: 0 | AK90: 0 | AL90: 0 | AM90: 0 | AN90: 0 | AO90: 0 | AP90: 0 | AQ90: 0
A91: 89 | B91: VolExpl | C91: OVOLBOJADMaCPFORT | D91: Volume BOJ Admissible InclusActions aCPFORT | F91: 0 | G91: 90945.82 | H91: 0 | I91: 66396.2 | J91: 33323.6 | K91: 19767.78 | L91: 20900.36 | M91: 41654.45 | N91: 27853.35 | O91: 51610.29 | P91: 68969.31 | Q91: 41843.08 | R91: 62577.39 | S91: 41070.32 | T91: 69103.4 | U91: 83356.92 | V91: 47519.81 | W91: 66476.32 | X91: 45284.59 | Y91: 73159.52 | Z91: 89823.69 | AA91: 48991.31 | AB91: 68232.35 | AC91: 46628.48 | AD91: 74009.08 | AE91: 90704.86 | AF91: 48446.15 | AG91: 72048.23 | AH91: 39318.99 | AI91: 77517.58 | AJ91: 90945.82 | AK91: 35989.17 | AL91: 75284.01 | AM91: 28699.908 | AN91: 53214.078 | AO91: 65771.99 | AP91: 65089.237 | AQ91: 56979.66241
A92: 90 | B92: VolExpl | C92: OVOLBOJADMaCPFAIBL | D92: Volume BOJ Admissible InclusActions aCPFAIBL | F92: 0 | G92: 965.95 | H92: 0 | I92: 77.57 | J92: 260.48 | K92: 24.9 | L92: 496.35 | M92: 196.28 | N92: 965.95 | O92: 948.29 | P92: 513.9 | Q92: 497.19 | R92: 189.68 | S92: 533.05 | T92: 549.11 | U92: 541.88 | V92: 544.47 | W92: 190.45 | X92: 523.98 | Y92: 459.76 | Z92: 529.26 | AA92: 351.69 | AB92: 184.17 | AC92: 511.85 | AD92: 453.25 | AE92: 520.04 | AF92: 552.2 | AG92: 183.97 | AH92: 511.85 | AI92: 453.25 | AJ92: 520.04 | AK92: 233.65 | AL92: 183.97 | AM92: 388.792 | AN92: 536.422 | AO92: 430.53 | AP92: 412.407 | AQ92: 435.3417241
A93: 91 | B93: VolExpl | C93: OVOLBOJADMaCP | D93: Volume BOJ Admissible InclusActions aCP | F93: 0 | G93: 0 | H93: 0 | I93: 0 | J93: 0 | K93: 0 | L93: 0 | M93: 0 | N93: 0 | O93: 0 | P93: 0 | Q93: 0 | R93: 0 | S93: 0 | T93: 0 | U93: 0 | V93: 0 | W93: 0 | X93: 0 | Y93: 0 | Z93: 0 | AA93: 0 | AB93: 0 | AC93: 0 | AD93: 0 | AE93: 0 | AF93: 0 | AG93: 0 | AH93: 0 | AI93: 0 | AJ93: 0 | AK93: 0 | AL93: 0 | AM93: 0 | AN93: 0 | AO93: 0 | AP93: 0 | AQ93: 0
A94: 92 | B94: VolExpl | C94: OVOLBOJADMaCPJ | D94: Volume BOJ Admissible InclusActions aCPJ | F94: 0 | G94: 0 | H94: 0 | I94: 0 | J94: 0 | K94: 0 | L94: 0 | M94: 0 | N94: 0 | O94: 0 | P94: 0 | Q94: 0 | R94: 0 | S94: 0 | T94: 0 | U94: 0 | V94: 0 | W94: 0 | X94: 0 | Y94: 0 | Z94: 0 | AA94: 0 | AB94: 0 | AC94: 0 | AD94: 0 | AE94: 0 | AF94: 0 | AG94: 0 | AH94: 0 | AI94: 0 | AJ94: 0 | AK94: 0 | AL94: 0 | AM94: 0 | AN94: 0 | AO94: 0 | AP94: 0 | AQ94: 0
